Workbook

Sheet REPORT
A1: Surveyor’s Report
A2: Project: | B2: TUS-800-22.74 | D2: PID: | E2: 100603
A4: Scope: | B4: Aerial Control and Lidar
A5: Type:
A7: Gray boxes denote INPUT | E7: Tan boxes denote OUTPUT (check)
A9: Datum and Coordinate System | G9: Type:
A10: Coordinate System: | C10: Ohio State Plane, North Zone | G10: (Select from List)
A11: Horizontal Reference Datum: | C11: NAD83 (2011) | G11: Bridge Monitoring
A12: Ellipsoid: | C12: GRS80 | G12: Bridge Rehab
A13: Grid to Ground Multiplier (1/CSF): | D13: Factor is 8 decimal places per Survey & Mapping Specifications. | G13: Bridge Replacement
A14: Origin of Combined Scale Factor: | C14: (0,0) | G14: Culvert Rehab
A15: Vertical Reference Datum: | C15: NAVD88 | G15: Highway Widening
A16: Geoid Model: | C16: Geoid 12B | G16: Slope Repair
A17: Units: | C17: US Survey Feet (sft) | G17: Stream Maintenance
A18: Original Survey Subdivision:
A19: Township:
A20: Quarter Section/Section/Lot:
A21: Files | E21: Description
A31: References
A32: Alignment based on the following plan:
A33: Other references used:
A37: Equipment Maintenance
A38: Equipment maintenance logs are on file at the Ohio Department of Transportation, Central Office
A39: Methodology and Equipment Used
A40: Leica GS14 Leica CS20
A48: Report Submitted/Prepared by: | C48: Kolton Wilson
A49: Date Submitted: | C49: 2018-12-19
A50: Surveying Performed by: | C50: Kolton Wilson
A51: Surveying Performed by: | C51: Kolton Wilson
A52: Checked By: | C52: Joel Swick
A55: DGN Overview Map
A56: Insert close-up screen shot of combined DGN here

Sheet CSF
A1: Combined Scale Factor Calculations | I1: Zone | J1: Index Value | K1: Project Latitude | M1: Radius of the Earth (meters) | N1: Tabular Difference | O1: Scale Factor (k) | P1: Differences | Q1: Coordinate System List
A2: Project: | B2: =REPORT!B2 -> TUS-800-22.74 | D2: PID: | E2: =REPORT!E2 -> 100603 | I2: NZ | J2: 3940 | K2: 39 | L2: 40 | M2: 7485451.598 | N2: 30.84836 | O2: 1.00023491
I3: NZ | J3: 3941 | K3: 39 | L3: 41 | M3: 7483600.697 | N3: 30.84823 | O3: 1.00022793 | P3: =O2-O3 -> 6.98e-06 | Q3: State Plane Coordinate System: Ohio North (3401)
A4: Horizontal Datum: NAD83 | C4: State Plane Coordinate System: Ohio North (3401) | I4: NZ | J4: 3942 | K4: 39 | L4: 42 | M4: 7481749.803 | N4: 30.84811 | O4: 1.00022104 | P4: 6.89e-06 | Q4: State Plane Coordinate System: Ohio South (3402)
I5: NZ | J5: 3943 | K5: 39 | L5: 43 | M5: 7479898.916 | N5: 30.84799 | O5: 1.00021424 | P5: 6.8e-06
A6: Gray boxes denote INPUT | D6: Tan boxes denote OUTPUT (check) | I6: NZ | J6: 3944 | K6: 39 | L6: 44 | M6: 7478048.037 | N6: 30.84787 | O6: 1.00020751 | P6: 6.73e-06
I7: NZ | J7: 3945 | K7: 39 | L7: 45 | M7: 7476197.165 | N7: 30.84776 | O7: 1.00020087 | P7: 6.64e-06
C8: Input Deg. | D8: Min. | E8: Sec. | F8: Zone Parameters: | I8: NZ | J8: 3946 | K8: 39 | L8: 46 | M8: 7474346.299 | N8: 30.84765 | O8: 1.00019431 | P8: 6.56e-06
A9: Project Mean Latitude (DMS): | C9: 40 | D9: 34 | E9: 22.04909 | F9: =IF(C4="State Plane Coordinate System: Ohio North (3401)", "k = 1 at lats. 40⁰ 26' and 41⁰ 42'", "k = 1 at lats. 38⁰ 44' and 40⁰ 20'") -> k = 1 at lats. 40⁰ 26' and 41⁰ 42' | I9: NZ | J9: 3947 | K9: 39 | L9: 47 | M9: 7472495.44 | N9: 30.84754 | O9: 1.00018783 | P9: 6.48e-06
A10: =ISBLANK(D9) -> FALSE | B10: =ISBLANK(E9) -> FALSE | D10: =IF(OR(A10,B10)=TRUE,"Minute and second fields must be populated","") ->  | I10: NZ | J10: 3948 | K10: 39 | L10: 48 | M10: 7470644.588 | N10: 30.84743 | O10: 1.00018144 | P10: 6.39e-06
C11: Input Ellipsoid Height: | F11: =IF(C4="State Plane Coordinate System: Ohio North (3401)", "Origin at 82⁰ 30' long., 39⁰ 40' lat.", "Origin at 82⁰ 30' long., 38⁰ 00' lat.") -> Origin at 82⁰ 30' long., 39⁰ 40' lat. | I11: NZ | J11: 3949 | K11: 39 | L11: 49 | M11: 7468793.742 | N11: 30.84732 | O11: 1.00017513 | P11: 6.31e-06
A12: Project Mean Height (ft): | C12: 907.669 | F12: Origin coords: x=600,000m, y=0m | I12: NZ | J12: 3950 | K12: 39 | L12: 50 | M12: 7466942.903 | N12: 30.84722 | O12: 1.0001689 | P12: 6.23e-06
I13: NZ | J13: 3951 | K13: 39 | L13: 51 | M13: 7465092.069 | N13: 30.84712 | O13: 1.00016276 | P13: 6.14e-06
C14: Radius of the Earth * (Radius of the Earth + Proj. Mean Elev.) = | I14: NZ | J14: 3952 | K14: 39 | L14: 52 | M14: 7463241.242 | N14: 30.84703 | O14: 1.0001567 | P14: 6.06e-06
A15: Sea Level Factor: | C15: =TRUNC(20906000/(20906000+C12),9) -> 0.999956585 | I15: NZ | J15: 3953 | K15: 39 | L15: 53 | M15: 7461390.42 | N15: 30.84693 | O15: 1.00015072 | P15: 5.98e-06
I16: NZ | J16: 3954 | K16: 39 | L16: 54 | M16: 7459539.604 | N16: 30.84684 | O16: 1.00014482 | P16: 5.9e-06
C17: Tabular data proportioned according to the number of seconds: | I17: NZ | J17: 3955 | K17: 39 | L17: 55 | M17: 7457688.794 | N17: 30.84675 | O17: 1.00013901 | P17: 5.81e-06
C18: =IF($C$4="State Plane Coordinate System: Ohio North (3401)",VLOOKUP(D18,J1:O150,6),VLOOKUP(D18,J151:O310,6)) -> 0.99997713 | D18: =VALUE(IF(D9>9,CONCATENATE(C9,D9),CONCATENATE(C9*10,D9))) -> 4034 | E18: =IF(C18>C19,1-E9/60,E9/60) -> 0.6325151667 | F18: ="Scale factor at "&LEFT($D18,2)&"⁰ "&RIGHT($D18,2)&"' latitude" -> Scale factor at 40⁰ 34' latitude | I18: NZ | J18: 3956 | K18: 39 | L18: 56 | M18: 7455837.989 | N18: 30.84667 | O18: 1.00013328 | P18: 5.73e-06
C19: =IF($C$4="State Plane Coordinate System: Ohio North (3401)",VLOOKUP(D19,J2:O151,6),VLOOKUP(D19,J152:O311,6)) -> 0.99997465 | D19: =IF(D9=59,(VALUE(IF(D9>9,CONCATENATE(C9,D9),CONCATENATE(C9*10,D9)))+41),(VALUE(IF(D9>9,CONCATENATE(C9,D9),CONCATENATE(C9*10,D9)))+1)) -> 4035 | E19: =IF(C18<C19,1-E9/60,E9/60) -> 0.3674848333 | F19: ="Scale factor at "&LEFT($D19,2)&"⁰ "&RIGHT($D19,2)&"' latitude" -> Scale factor at 40⁰ 35' latitude | I19: NZ | J19: 3957 | K19: 39 | L19: 57 | M19: 7453987.189 | N19: 30.84658 | O19: 1.00012763 | P19: 5.65e-06
A20: Scale Factor (k): | C20: =C18*E18+C19*E19 -> 0.9999762186 | I20: NZ | J20: 3958 | K20: 39 | L20: 58 | M20: 7452136.394 | N20: 30.8465 | O20: 1.00012206 | P20: 5.57e-06
I21: NZ | J21: 3959 | K21: 39 | L21: 59 | M21: 7450285.604 | N21: 30.84642 | O21: 1.00011658 | P21: 5.48e-06
C22: =LEFT(A15,16)&" * "&LEFT(A20,12)&" =" -> Sea Level Factor * Scale Factor = | I22: NZ | J22: 4000 | K22: 40 | L22: 0 | M22: 7448434.819 | N22: 30.84634 | O22: 1.00011118 | P22: 5.4e-06
A23: Combined Scale Factor (CSF): | C23: =C15*C20 -> 0.9999328047 | I23: NZ | J23: 4001 | K23: 40 | L23: 1 | M23: 7446584.038 | N23: 30.84627 | O23: 1.00010587 | P23: 5.31e-06
I24: NZ | J24: 4002 | K24: 40 | L24: 2 | M24: 7444733.262 | N24: 30.8462 | O24: 1.00010063 | P24: 5.24e-06
C25: Unitless Grid to Ground Multiplier: | I25: NZ | J25: 4003 | K25: 40 | L25: 3 | M25: 7442882.49 | N25: 30.84613 | O25: 1.00009548 | P25: 5.15e-06
A26: Grid to Ground Multiplier (1/CSF): | C26: =1/C23 -> 1.0000672 | I26: NZ | J26: 4004 | K26: 40 | L26: 4 | M26: 7441031.722 | N26: 30.84607 | O26: 1.00009042 | P26: 5.06e-06 | U26: 1.000061955
I27: NZ | J27: 4005 | K27: 40 | L27: 5 | M27: 7439180.958 | N27: 30.846 | O27: 1.00008543 | P27: 4.99e-06
C28: Converts Grid Meters to Ground Feet: | I28: NZ | J28: 4006 | K28: 40 | L28: 6 | M28: 7437330.198 | N28: 30.84594 | O28: 1.00008053 | P28: 4.9e-06
A29: Project Adjustment Factor (PAF): | C29: =C26*3.28083333 -> 3.281053801 | I29: NZ | J29: 4007 | K29: 40 | L29: 7 | M29: 7435479.441 | N29: 30.84588 | O29: 1.00007571 | P29: 4.82e-06
I30: NZ | J30: 4011 | K30: 40 | L30: 11 | M30: 7428076.449 | N30: 30.84568 | O30: 1.00005728 | P30: =O34-O30 -> 4.48e-06
A31: Check spreadsheet-generated (XLS) CSF against Trimble Business Center-generated (TBC) CSF below. | I31: NZ | J31: 4012 | K31: 40 | L31: 12 | M31: 7426225.708 | N31: 30.84563 | O31: 1.00005287 | P31: =O30-O31 -> 4.41e-06
I32: NZ | J32: 4008 | K32: 40 | L32: 8 | M32: 7433628.688 | N32: 30.84583 | O32: 1.00007098 | P32: =O29-O32 -> 4.73e-06
C33: Compare to Unitless Grid to Ground Multiplier: | I33: NZ | J33: 4009 | K33: 40 | L33: 9 | M33: 7431777.939 | N33: 30.84577 | O33: 1.00006633 | P33: =O32-O33 -> 4.65e-06
A34: Input TBC-generated 1/CSF: | I34: NZ | J34: 4010 | K34: 40 | L34: 10 | M34: 7429927.192 | N34: 30.84572 | O34: 1.00006176 | P34: =O33-O34 -> 4.57e-06
I35: NZ | J35: 4013 | K35: 40 | L35: 13 | M35: 7424374.97 | N35: 30.84559 | O35: 1.00004856 | P35: =O31-O35 -> 4.31e-06
A36: Test point at one end of project: | C36: Northing (ft) | D36: Easting (ft) | F36: Grid - Ground (XLS) | I36: NZ | J36: 4014 | K36: 40 | L36: 14 | M36: 7422524.235 | N36: 30.84555 | O36: 1.00004432 | P36: =O35-O36 -> 4.24e-06
B37: Input Grid Coordinates: | F37: =IF(C37-C38>0,ABS(ROUND(C37-C38,3))&"' shift N",ABS(ROUND(C37-C38,3))&"' shift S") -> 0' shift S | G37: =IF(D37-D38>0,ABS(ROUND(D37-D38,3))&"' shift E",ABS(ROUND(D37-D38,3))&"' shift W") -> 0' shift W | I37: NZ | J37: 4015 | K37: 40 | L37: 15 | M37: 7420673.502 | N37: 30.84551 | O37: 1.00004017 | P37: 4.15e-06
A38: =$A37 -> 0 | B38: Ground (XLS): | C38: =$C37*$C$26 -> 0 | D38: =$D37*$C$26 -> 0 | F38: Ground (XLS) - Ground (TBC) | I38: NZ | J38: 4016 | K38: 40 | L38: 16 | M38: 7418822.772 | N38: 30.84547 | O38: 1.0000361 | P38: 4.07e-06
A39: =$A37 -> 0 | B39: Ground (TBC): | C39: =$C37*$C$34 -> 0 | D39: =$D37*$C$34 -> 0 | F39: =IF(C38-C39>0,ABS(ROUND(C38-C39,3))&"' shift N",ABS(ROUND(C38-C39,3))&"' shift S") -> 0' shift S | G39: =IF(D38-D39>0,ABS(ROUND(D38-D39,3))&"' shift E",ABS(ROUND(D38-D39,3))&"' shift W") -> 0' shift W | I39: NZ | J39: 4017 | K39: 40 | L39: 17 | M39: 7416972.043 | N39: 30.84544 | O39: 1.00003212 | P39: 3.98e-06
I40: NZ | J40: 4018 | K40: 40 | L40: 18 | M40: 7415121.317 | N40: 30.84541 | O40: 1.00002821 | P40: 3.91e-06
A41: Test point at other end of project: | C41: Northing (ft) | D41: Easting (ft) | F41: Grid - Ground (XLS) | I41: NZ | J41: 4019 | K41: 40 | L41: 19 | M41: 7413270.592 | N41: 30.84538 | O41: 1.0000244 | P41: 3.81e-06
B42: Input Grid Coordinates: | F42: =IF(C42-C43>0,ABS(ROUND(C42-C43,3))&"' shift N",ABS(ROUND(C42-C43,3))&"' shift S") -> 0' shift S | G42: =IF(D42-D43>0,ABS(ROUND(D42-D43,3))&"' shift E",ABS(ROUND(D42-D43,3))&"' shift W") -> 0' shift W | I42: NZ | J42: 4020 | K42: 40 | L42: 20 | M42: 7411419.869 | N42: 30.84536 | O42: 1.00002066 | P42: 3.74e-06
A43: =$A42 -> 0 | B43: Ground (XLS): | C43: =$C42*$C$26 -> 0 | D43: =$D42*$C$26 -> 0 | F43: Ground XLS - Ground TBC | I43: NZ | J43: 4021 | K43: 40 | L43: 21 | M43: 7409569.147 | N43: 30.84534 | O43: 1.00001701 | P43: 3.65e-06
A44: =$A42 -> 0 | B44: Ground (TBC): | C44: =$C42*$C$34 -> 0 | D44: =$D42*$C$34 -> 0 | F44: =IF(C43-C44>0,ABS(ROUND(C43-C44,3))&"' shift N",ABS(ROUND(C43-C44,3))&"' shift S") -> 0' shift S | G44: =IF(D43-D44>0,ABS(ROUND(D43-D44,3))&"' shift E",ABS(ROUND(D43-D44,3))&"' shift W") -> 0' shift W | I44: NZ | J44: 4022 | K44: 40 | L44: 22 | M44: 7407718.427 | N44: 30.84532 | O44: 1.00001344 | P44: 3.57e-06
I45: NZ | J45: 4023 | K45: 40 | L45: 23 | M45: 7405867.708 | N45: 30.8453 | O45: 1.00000995 | P45: 3.49e-06
A46: ="Change in computed horizontal distance between "&A$37&" and "&A$42&" due to CSF used (an approximate "&ROUND(SQRT((C38-C43)^2+(D38-D43)^2),0)&" foot distance):" -> Change in computed horizontal distance between and due to CSF used (an approximate 0 foot distance): | F46: Ground (XLS) vs. Ground (TBC) | I46: NZ | J46: 4024 | K46: 40 | L46: 24 | M46: 7404016.99 | N46: 30.84529 | O46: 1.00000655 | P46: 3.4e-06
F47: =IF(ABS(C38-C43)>ABS(C39-C44),ABS(ROUND((C38-C39)-(C43-C44),3))&"' further N-S",ABS(ROUND((C38-C39)-(C43-C44),3))&"' nearer N-S") -> 0' nearer N-S | G47: =IF(ABS(D38-D43)>ABS(D39-D44),ABS(ROUND((D38-D39)-(D43-D44),3))&"' further E-W",ABS(ROUND((D38-D39)-(D43-D44),3))&"' nearer E-W") -> 0' nearer E-W | I47: NZ | J47: 4025 | K47: 40 | L47: 25 | M47: 7402166.273 | N47: 30.84527 | O47: 1.00000323 | P47: 3.32e-06
I48: NZ | J48: 4027 | K48: 40 | L48: 27 | M48: 7398464.84 | N48: 30.84526 | O48: 0.99999685 | P48: 6.38e-06
A49: ="Change in computed horizontal distance between "&A$37&" and "&A$42&" by adjusting from grid to ground (approx. "&ROUND(SQRT((C38-C43)^2+(D38-D43)^2),0)&" ft dist.):" -> Change in computed horizontal distance between and by adjusting from grid to ground (approx. 0 ft dist.): | F49: Grid vs. Ground (XLS) | I49: NZ | J49: 4028 | K49: 40 | L49: 28 | M49: 7396614.125 | N49: 30.84525 | O49: 0.99999378 | P49: 3.07e-06
F50: =IF(ABS(C38-C43)>ABS(C37-C42),ABS(ROUND((C37-C38)-(C42-C43),3))&"' further N-S",ABS(ROUND((C37-C38)-(C42-C43),3))&"' nearer N-S") -> 0' nearer N-S | G50: =IF(ABS(D38-D43)>ABS(D37-D42),ABS(ROUND((D37-D38)-(D42-D43),3))&"' further E-W",ABS(ROUND((D37-D38)-(D42-D43),3))&"' nearer E-W") -> 0' nearer E-W | I50: NZ | J50: 4029 | K50: 40 | L50: 29 | M50: 7394763.409 | N50: 30.84525 | O50: 0.9999908 | P50: 2.98e-06
I51: NZ | J51: 4030 | K51: 40 | L51: 30 | M51: 7392912.694 | N51: 30.84525 | O51: 0.9999879 | P51: 2.9e-06
I52: NZ | J52: 4031 | K52: 40 | L52: 31 | M52: 7391061.979 | N52: 30.84526 | O52: 0.99998508 | P52: 2.82e-06
I53: NZ | J53: 4032 | K53: 40 | L53: 32 | M53: 7389211.263 | N53: 30.84526 | O53: 0.99998235 | P53: 2.73e-06
I54: NZ | J54: 4033 | K54: 40 | L54: 33 | M54: 7387360.548 | N54: 30.84527 | O54: 0.9999797 | P54: 2.65e-06
I55: NZ | J55: 4034 | K55: 40 | L55: 34 | M55: 7385509.831 | N55: 30.84528 | O55: 0.99997713 | P55: 2.57e-06
I56: NZ | J56: 4035 | K56: 40 | L56: 35 | M56: 7383659.114 | N56: 30.8453 | O56: 0.99997465 | P56: 2.48e-06
I57: NZ | J57: 4036 | K57: 40 | L57: 36 | M57: 7381808.396 | N57: 30.84532 | O57: 0.99997225 | P57: 2.4e-06
I58: NZ | J58: 4037 | K58: 40 | L58: 37 | M58: 7379957.677 | N58: 30.84533 | O58: 0.99996993 | P58: 2.32e-06
I59: NZ | J59: 4038 | K59: 40 | L59: 38 | M59: 7378106.957 | N59: 30.84536 | O59: 0.9999677 | P59: 2.23e-06
I60: NZ | J60: 4039 | K60: 40 | L60: 39 | M60: 7376256.236 | N60: 30.84538 | O60: 0.99996556 | P60: 2.14e-06
I61: NZ | J61: 4040 | K61: 40 | L61: 40 | M61: 7374405.513 | N61: 30.84541 | O61: 0.99996349 | P61: 2.07e-06
I62: NZ | J62: 4041 | K62: 40 | L62: 41 | M62: 7372554.789 | N62: 30.84544 | O62: 0.99996151 | P62: 1.98e-06
I63: NZ | J63: 4042 | K63: 40 | L63: 42 | M63: 7370704.062 | N63: 30.84547 | O63: 0.99995961 | P63: 1.9e-06
I64: NZ | J64: 4043 | K64: 40 | L64: 43 | M64: 7368853.334 | N64: 30.8455 | O64: 0.9999578 | P64: 1.81e-06
I65: NZ | J65: 4044 | K65: 40 | L65: 44 | M65: 7367002.604 | N65: 30.84554 | O65: 0.99995607 | P65: 1.73e-06
I66: NZ | J66: 4045 | K66: 40 | L66: 45 | M66: 7365151.872 | N66: 30.84558 | O66: 0.99995443 | P66: 1.64e-06
I67: NZ | J67: 4046 | K67: 40 | L67: 46 | M67: 7363301.137 | N67: 30.84562 | O67: 0.99995287 | P67: 1.56e-06
I68: NZ | J68: 4047 | K68: 40 | L68: 47 | M68: 7361450.399 | N68: 30.84567 | O68: 0.99995139 | P68: =O67-O68 -> 1.48e-06
I69: NZ | J69: 4048 | K69: 40 | L69: 48 | M69: 7359599.659 | N69: 30.84572 | O69: 0.99995 | P69: 1.39e-06
I70: NZ | J70: 4049 | K70: 40 | L70: 49 | M70: 7357748.916 | N70: 30.84577 | O70: 0.99994869 | P70: 1.31e-06
I71: NZ | J71: 4050 | K71: 40 | L71: 50 | M71: 7355898.17 | N71: 30.84582 | O71: 0.99994746 | P71: 1.23e-06
I72: NZ | J72: 4051 | K72: 40 | L72: 51 | M72: 7354047.421 | N72: 30.84588 | O72: 0.99994632 | P72: 1.14e-06
I73: NZ | J73: 4052 | K73: 40 | L73: 52 | M73: 7352196.669 | N73: 30.84593 | O73: 0.99994527 | P73: 1.05e-06
I74: NZ | J74: 4053 | K74: 40 | L74: 53 | M74: 7350345.913 | N74: 30.84599 | O74: 0.99994429 | P74: 9.8e-07
I75: NZ | J75: 4054 | K75: 40 | L75: 54 | M75: 7348495.153 | N75: 30.84606 | O75: 0.9999434 | P75: 8.899999999e-07
I76: NZ | J76: 4055 | K76: 40 | L76: 55 | M76: 7346644.39 | N76: 30.84612 | O76: 0.9999426 | P76: 8e-07
I77: NZ | J77: 4056 | K77: 40 | L77: 56 | M77: 7344793.622 | N77: 30.84619 | O77: 0.99994188 | P77: 7.200000001e-07
I78: NZ | J78: 4057 | K78: 40 | L78: 57 | M78: 7342942.851 | N78: 30.84626 | O78: 0.99994124 | P78: 6.4e-07
I79: NZ | J79: 4058 | K79: 40 | L79: 58 | M79: 7341092.075 | N79: 30.84634 | O79: 0.99994069 | P79: 5.5e-07
I80: NZ | J80: 4059 | K80: 40 | L80: 59 | M80: 7339241.295 | N80: 30.84641 | O80: 0.99994022 | P80: 4.699999999e-07
I81: NZ | J81: 4100 | K81: 41 | L81: 0 | M81: 7337390.51 | N81: 30.84649 | O81: 0.99993984 | P81: 3.8e-07
I82: NZ | J82: 4101 | K82: 41 | L82: 1 | M82: 7335539.72 | N82: 30.84657 | O82: 0.99993954 | P82: 3.000000001e-07
I83: NZ | J83: 4102 | K83: 41 | L83: 2 | M83: 7333688.926 | N83: 30.84666 | O83: 0.99993932 | P83: 2.2e-07
I84: NZ | J84: 4103 | K84: 41 | L84: 3 | M84: 7331838.127 | N84: 30.84674 | O84: 0.99993919 | P84: 1.3e-07
I85: NZ | J85: 4104 | K85: 41 | L85: 4 | M85: 7329987.322 | N85: 30.84683 | O85: 0.99993914 | P85: 5.000000003e-08
I86: NZ | J86: 4105 | K86: 41 | L86: 5 | M86: 7328136.512 | N86: 30.84693 | O86: 0.99993918 | P86: -4.000000009e-08
I87: NZ | J87: 4106 | K87: 41 | L87: 6 | M87: 7326285.696 | N87: 30.84702 | O87: 0.9999393 | P87: -1.199999999e-07
I88: NZ | J88: 4107 | K88: 41 | L88: 7 | M88: 7324434.875 | N88: 30.84712 | O88: 0.9999395 | P88: -2e-07
I89: NZ | J89: 4108 | K89: 41 | L89: 8 | M89: 7322584.048 | N89: 30.84722 | O89: 0.99993979 | P89: -2.9e-07
I90: NZ | J90: 4109 | K90: 41 | L90: 9 | M90: 7320733.215 | N90: 30.84732 | O90: 0.99994017 | P90: -3.8e-07
I91: NZ | J91: 4110 | K91: 41 | L91: 10 | M91: 7318882.376 | N91: 30.84742 | O91: 0.99994063 | P91: -4.6e-07
I92: NZ | J92: 4111 | K92: 41 | L92: 11 | M92: 7317031.531 | N92: 30.84753 | O92: 0.99994117 | P92: -5.4e-07
I93: NZ | J93: 4112 | K93: 41 | L93: 12 | M93: 7315180.679 | N93: 30.84764 | O93: 0.9999418 | P93: -6.299999999e-07
I94: NZ | J94: 4113 | K94: 41 | L94: 13 | M94: 7313329.82 | N94: 30.84776 | O94: 0.99994251 | P94: -7.1e-07
I95: NZ | J95: 4114 | K95: 41 | L95: 14 | M95: 7311478.955 | N95: 30.84787 | O95: 0.99994331 | P95: -8e-07
I96: NZ | J96: 4115 | K96: 41 | L96: 15 | M96: 7309628.083 | N96: 30.84799 | O96: 0.99994419 | P96: -8.8e-07
I97: NZ | J97: 4116 | K97: 41 | L97: 16 | M97: 7307777.203 | N97: 30.84811 | O97: 0.99994515 | P97: -9.599999999e-07
I98: NZ | J98: 4117 | K98: 41 | L98: 17 | M98: 7305926.317 | N98: 30.84823 | O98: 0.9999462 | P98: -1.05e-06
I99: NZ | J99: 4118 | K99: 41 | L99: 18 | M99: 7304075.423 | N99: 30.84836 | O99: 0.99994734 | P99: -1.14e-06
I100: NZ | J100: 4119 | K100: 41 | L100: 19 | M100: 7302224.521 | N100: 30.84849 | O100: 0.99994856 | P100: =O99-O100 -> -1.22e-06
I101: NZ | J101: 4120 | K101: 41 | L101: 20 | M101: 7300373.612 | N101: 30.84862 | O101: 0.99994986 | P101: -1.3e-06
I102: NZ | J102: 4121 | K102: 41 | L102: 21 | M102: 7298522.695 | N102: 30.84875 | O102: 0.99995125 | P102: -1.39e-06
I103: NZ | J103: 4122 | K103: 41 | L103: 22 | M103: 7296671.77 | N103: 30.84889 | O103: 0.99995272 | P103: -1.47e-06
I104: NZ | J104: 4123 | K104: 41 | L104: 23 | M104: 7294820.837 | N104: 30.84903 | O104: 0.99995428 | P104: -1.56e-06
I105: NZ | J105: 4124 | K105: 41 | L105: 24 | M105: 7292969.895 | N105: 30.84917 | O105: 0.99995592 | P105: -1.64e-06
I106: NZ | J106: 4125 | K106: 41 | L106: 25 | M106: 7291118.945 | N106: 30.84931 | O106: 0.99995765 | P106: -1.73e-06
I107: NZ | J107: 4126 | K107: 41 | L107: 26 | M107: 7289267.986 | N107: 30.84946 | O107: 0.99995946 | P107: -1.81e-06
I108: NZ | J108: 4127 | K108: 41 | L108: 27 | M108: 7287417.018 | N108: 30.84961 | O108: 0.99996136 | P108: -1.9e-06
I109: NZ | J109: 4128 | K109: 41 | L109: 28 | M109: 7285566.042 | N109: 30.84976 | O109: 0.99996334 | P109: -1.98e-06
I110: NZ | J110: 4129 | K110: 41 | L110: 29 | M110: 7283715.056 | N110: 30.84992 | O110: 0.99996541 | P110: -2.07e-06
I111: NZ | J111: 4130 | K111: 41 | L111: 30 | M111: 7281864.061 | N111: 30.85007 | O111: 0.99996756 | P111: -2.15e-06
I112: NZ | J112: 4131 | K112: 41 | L112: 31 | M112: 7280013.057 | N112: 30.85023 | O112: 0.99996979 | P112: -2.23e-06
I113: NZ | J113: 4132 | K113: 41 | L113: 32 | M113: 7278162.043 | N113: 30.8504 | O113: 0.99997212 | P113: -2.33e-06
I114: NZ | J114: 4133 | K114: 41 | L114: 33 | M114: 7276311.019 | N114: 30.85056 | O114: 0.99997452 | P114: -2.4e-06
I115: NZ | J115: 4134 | K115: 41 | L115: 34 | M115: 7274459.985 | N115: 30.85073 | O115: 0.99997701 | P115: -2.49e-06
I116: NZ | J116: 4135 | K116: 41 | L116: 35 | M116: 7272608.941 | N116: 30.8509 | O116: 0.99997959 | P116: -2.58e-06
I117: NZ | J117: 4136 | K117: 41 | L117: 36 | M117: 7270757.887 | N117: 30.85107 | O117: 0.99998225 | P117: -2.66e-06
I118: NZ | J118: 4137 | K118: 41 | L118: 37 | M118: 7268906.823 | N118: 30.85125 | O118: 0.99998499 | P118: -2.74e-06
I119: NZ | J119: 4138 | K119: 41 | L119: 38 | M119: 7267055.748 | N119: 30.85143 | O119: 0.99998783 | P119: -2.84e-06
I120: NZ | J120: 4139 | K120: 41 | L120: 39 | M120: 7265204.662 | N120: 30.85161 | O120: 0.99999074 | P120: -2.91e-06
I121: NZ | J121: 4140 | K121: 41 | L121: 40 | M121: 7263353.566 | N121: 30.85179 | O121: 0.99999374 | P121: -3e-06
I122: NZ | J122: 4141 | K122: 41 | L122: 41 | M122: 7261502.458 | N122: 30.85198 | O122: 0.99999683 | P122: -3.09e-06
I123: NZ | J123: 4142 | K123: 41 | L123: 42 | M123: 7259651.339 | N123: 30.85217 | O123: 1 | P123: -3.17e-06
I124: NZ | J124: 4143 | K124: 41 | L124: 43 | M124: 7257800.209 | N124: 30.85236 | O124: 1.00000326 | P124: -3.26e-06
I125: NZ | J125: 4144 | K125: 41 | L125: 44 | M125: 7255949.068 | N125: 30.85255 | O125: 1.0000066 | P125: -3.34e-06
I126: NZ | J126: 4145 | K126: 41 | L126: 45 | M126: 7254097.915 | N126: 30.85275 | O126: 1.00001002 | P126: -3.42e-06
I127: NZ | J127: 4146 | K127: 41 | L127: 46 | M127: 7252246.75 | N127: 30.85295 | O127: 1.00001354 | P127: -3.52e-06
I128: NZ | J128: 4147 | K128: 41 | L128: 47 | M128: 7250395.573 | N128: 30.85315 | O128: 1.00001713 | P128: -3.59e-06
I129: NZ | J129: 4148 | K129: 41 | L129: 48 | M129: 7248544.384 | N129: 30.85336 | O129: 1.00002082 | P129: -3.69e-06
I130: NZ | J130: 4149 | K130: 41 | L130: 49 | M130: 7246693.182 | N130: 30.85356 | O130: 1.00002458 | P130: -3.76e-06
I131: NZ | J131: 4150 | K131: 41 | L131: 50 | M131: 7244841.968 | N131: 30.85377 | O131: 1.00002844 | P131: -3.86e-06
I132: NZ | J132: 4151 | K132: 41 | L132: 51 | M132: 7242990.742 | N132: 30.85399 | O132: 1.00003238 | P132: =O131-O132 -> -3.94e-06
I133: NZ | J133: 4152 | K133: 41 | L133: 52 | M133: 7241139.503 | N133: 30.8542 | O133: 1.0000364 | P133: -4.02e-06
I134: NZ | J134: 4153 | K134: 41 | L134: 53 | M134: 7239288.251 | N134: 30.85442 | O134: 1.00004051 | P134: -4.11e-06
I135: NZ | J135: 4154 | K135: 41 | L135: 54 | M135: 7237436.985 | N135: 30.85464 | O135: 1.0000447 | P135: -4.19e-06
I136: NZ | J136: 4155 | K136: 41 | L136: 55 | M136: 7235585.707 | N136: 30.85486 | O136: 1.00004898 | P136: -4.28e-06
I137: NZ | J137: 4156 | K137: 41 | L137: 56 | M137: 7233734.415 | N137: 30.85509 | O137: 1.00005335 | P137: -4.37e-06
I138: NZ | J138: 4157 | K138: 41 | L138: 57 | M138: 7231883.11 | N138: 30.85532 | O138: 1.0000578 | P138: -4.45e-06
I139: NZ | J139: 4158 | K139: 41 | L139: 58 | M139: 7230031.791 | N139: 30.85555 | O139: 1.00006234 | P139: -4.54e-06
I140: NZ | J140: 4159 | K140: 41 | L140: 59 | M140: 7228180.458 | N140: 30.85578 | O140: 1.00006696 | P140: -4.62e-06
I141: NZ | J141: 4200 | K141: 42 | L141: 0 | M141: 7226329.111 | N141: 30.85602 | O141: 1.00007167 | P141: -4.71e-06
I142: NZ | J142: 4201 | K142: 42 | L142: 1 | M142: 7224477.749 | N142: 30.85626 | O142: 1.00007646 | P142: -4.79e-06
I143: NZ | J143: 4202 | K143: 42 | L143: 2 | M143: 7222626.374 | N143: 30.8565 | O143: 1.00008134 | P143: -4.88e-06
I144: NZ | J144: 4203 | K144: 42 | L144: 3 | M144: 7220774.984 | N144: 30.85675 | O144: 1.0000863 | P144: -4.96e-06
I145: NZ | J145: 4204 | K145: 42 | L145: 4 | M145: 7218923.579 | N145: 30.85699 | O145: 1.00009135 | P145: -5.05e-06
I146: NZ | J146: 4205 | K146: 42 | L146: 5 | M146: 7217072.16 | N146: 30.85724 | O146: 1.00009649 | P146: -5.14e-06
I147: NZ | J147: 4206 | K147: 42 | L147: 6 | M147: 7215220.725 | N147: 30.85749 | O147: 1.00010171 | P147: -5.22e-06
I148: NZ | J148: 4207 | K148: 42 | L148: 7 | M148: 7213369.275 | N148: 30.85775 | O148: 1.00010702 | P148: -5.31e-06
I149: NZ | J149: 4208 | K149: 42 | L149: 8 | M149: 7211517.811 | N149: 30.85801 | O149: 1.00011241 | P149: -5.39e-06
I150: NZ | J150: 4209 | K150: 42 | L150: 9 | M150: 7209666.33 | N150: 30.85827 | O150: 1.00011789 | P150: -5.48e-06
I151: NZ | J151: 4210 | K151: 42 | L151: 10 | M151: 7207814.834 | N151: 30.85853 | O151: 1.00012345 | P151: -5.56e-06
I152: SZ | J152: 3800 | K152: 38 | L152: 0 | M152: 7932869.037 | N152: 30.83922 | O152: 1.00022476
I153: SZ | J153: 3801 | K153: 38 | L153: 1 | M153: 7931018.684 | N153: 30.8391 | O153: 1.00021786 | P153: =O152-O153 -> 6.9e-06
I154: SZ | J154: 3802 | K154: 38 | L154: 2 | M154: 7929168.338 | N154: 30.83898 | O154: 1.00021105 | P154: 6.81e-06
I155: SZ | J155: 3803 | K155: 38 | L155: 3 | M155: 7927318 | N155: 30.83886 | O155: 1.00020433 | P155: 6.72e-06
I156: SZ | J156: 3804 | K156: 38 | L156: 4 | M156: 7925467.668 | N156: 30.83874 | O156: 1.00019768 | P156: 6.65e-06
I157: SZ | J157: 3805 | K157: 38 | L157: 5 | M157: 7923617.343 | N157: 30.83863 | O157: 1.00019112 | P157: 6.56e-06
I158: SZ | J158: 3806 | K158: 38 | L158: 6 | M158: 7921767.026 | N158: 30.83852 | O158: 1.00018464 | P158: 6.48e-06
I159: SZ | J159: 3807 | K159: 38 | L159: 7 | M159: 7919916.715 | N159: 30.83841 | O159: 1.00017825 | P159: 6.39e-06
I160: SZ | J160: 3808 | K160: 38 | L160: 8 | M160: 7918066.41 | N160: 30.8383 | O160: 1.00017193 | P160: 6.32e-06
I161: SZ | J161: 3809 | K161: 38 | L161: 9 | M161: 7916216.112 | N161: 30.8382 | O161: 1.0001657 | P161: 6.23e-06
I162: SZ | J162: 3810 | K162: 38 | L162: 10 | M162: 7914365.82 | N162: 30.8381 | O162: 1.00015956 | P162: 6.14e-06
I163: SZ | J163: 3811 | K163: 38 | L163: 11 | M163: 7912515.534 | N163: 30.8381 | O163: 1.00015349 | P163: 6.07e-06
I164: SZ | J164: 3812 | K164: 38 | L164: 12 | M164: 7910665.253 | N164: 30.83791 | O164: 1.00014751 | P164: 5.98e-06
I165: SZ | J165: 3813 | K165: 38 | L165: 13 | M165: 7908814.979 | N165: 30.83782 | O165: 1.00014161 | P165: 5.9e-06
I166: SZ | J166: 3814 | K166: 38 | L166: 14 | M166: 7906964.71 | N166: 30.83772 | O166: 1.0001358 | P166: 5.81e-06
I167: SZ | J167: 3815 | K167: 38 | L167: 15 | M167: 7905114.446 | N167: 30.83764 | O167: 1.00013007 | P167: 5.73e-06
I168: SZ | J168: 3816 | K168: 38 | L168: 16 | M168: 7903264.188 | N168: 30.83755 | O168: 1.00012442 | P168: 5.65e-06
I169: SZ | J169: 3817 | K169: 38 | L169: 17 | M169: 7901413.935 | N169: 30.83747 | O169: 1.00011885 | P169: 5.57e-06
I170: SZ | J170: 3818 | K170: 38 | L170: 18 | M170: 7899563.687 | N170: 30.83739 | O170: 1.00011337 | P170: 5.48e-06
I171: SZ | J171: 3819 | K171: 38 | L171: 19 | M171: 7897713.444 | N171: 30.83731 | O171: 1.00010797 | P171: 5.4e-06
I172: SZ | J172: 3820 | K172: 38 | L172: 20 | M172: 7895863.205 | N172: 30.83724 | O172: 1.00010265 | P172: 5.32e-06
I173: SZ | J173: 3821 | K173: 38 | L173: 21 | M173: 7894012.971 | N173: 30.83717 | O173: 1.00009741 | P173: 5.24e-06
I174: SZ | J174: 3822 | K174: 38 | L174: 22 | M174: 7892162.741 | N174: 30.8371 | O174: 1.00009226 | P174: 5.15e-06
I175: SZ | J175: 3823 | K175: 38 | L175: 23 | M175: 7890312.515 | N175: 30.83703 | O175: 1.0000872 | P175: 5.06e-06
I176: SZ | J176: 3824 | K176: 38 | L176: 24 | M176: 7888462.293 | N176: 30.83696 | O176: 1.00008221 | P176: 4.99e-06
I177: SZ | J177: 3825 | K177: 38 | L177: 25 | M177: 7886612.075 | N177: 30.8369 | O177: 1.00007731 | P177: 4.9e-06
I178: SZ | J178: 3826 | K178: 38 | L178: 26 | M178: 7884761.861 | N178: 30.83684 | O178: 1.00007249 | P178: 4.82e-06
I179: SZ | J179: 3827 | K179: 38 | L179: 27 | M179: 7882911.651 | N179: 30.83679 | O179: 1.00006776 | P179: 4.73e-06
I180: SZ | J180: 3828 | K180: 38 | L180: 28 | M180: 7881061.444 | N180: 30.83673 | O180: 1.0000631 | P180: 4.66e-06
I181: SZ | J181: 3829 | K181: 38 | L181: 29 | M181: 7879211.24 | N181: 30.83668 | O181: 1.00005853 | P181: 4.57e-06
I182: SZ | J182: 3830 | K182: 38 | L182: 30 | M182: 7877361.039 | N182: 30.83663 | O182: 1.00005405 | P182: 4.48e-06
I183: SZ | J183: 3831 | K183: 38 | L183: 31 | M183: 7875510.841 | N183: 30.83658 | O183: 1.00004965 | P183: 4.4e-06
I184: SZ | J184: 3832 | K184: 38 | L184: 32 | M184: 7873660.646 | N184: 30.83654 | O184: 1.00004533 | P184: 4.32e-06
I185: SZ | J185: 3833 | K185: 38 | L185: 33 | M185: 7871810.453 | N185: 30.8365 | O185: 1.00004109 | P185: =O184-O185 -> 4.24e-06
I186: SZ | J186: 3834 | K186: 38 | L186: 34 | M186: 7869960.263 | N186: 30.83646 | O186: 1.00003694 | P186: 4.15e-06
I187: SZ | J187: 3835 | K187: 38 | L187: 35 | M187: 7868110.076 | N187: 30.83642 | O187: 1.00003287 | P187: 4.07e-06
I188: SZ | J188: 3836 | K188: 38 | L188: 36 | M188: 7866259.89 | N188: 30.83639 | O188: 1.00002888 | P188: 3.99e-06
I189: SZ | J189: 3837 | K189: 38 | L189: 37 | M189: 7864409.707 | N189: 30.83636 | O189: 1.00002498 | P189: 3.9e-06
I190: SZ | J190: 3838 | K190: 38 | L190: 38 | M190: 7862559.525 | N190: 30.83633 | O190: 1.00002116 | P190: 3.82e-06
I191: SZ | J191: 3839 | K191: 38 | L191: 39 | M191: 7860709.345 | N191: 30.83631 | O191: 1.00001743 | P191: 3.73e-06
I192: SZ | J192: 3840 | K192: 38 | L192: 40 | M192: 7858859.167 | N192: 30.83628 | O192: 1.00001377 | P192: 3.66e-06
I193: SZ | J193: 3841 | K193: 38 | L193: 41 | M193: 7857008.99 | N193: 30.83626 | O193: 1.00001021 | P193: 3.56e-06
I194: SZ | J194: 3842 | K194: 38 | L194: 42 | M194: 7855158.814 | N194: 30.83624 | O194: 1.00000672 | P194: 3.49e-06
I195: SZ | J195: 3843 | K195: 38 | L195: 43 | M195: 7853308.64 | N195: 30.83623 | O195: 1.00000332 | P195: 3.4e-06
I196: SZ | J196: 3844 | K196: 38 | L196: 44 | M196: 7851458.466 | N196: 30.83622 | O196: 1 | P196: 3.32e-06
I197: SZ | J197: 3845 | K197: 38 | L197: 45 | M197: 7849608.293 | N197: 30.83621 | O197: 0.99999677 | P197: 3.23e-06
I198: SZ | J198: 3846 | K198: 38 | L198: 46 | M198: 7847758.121 | N198: 30.8362 | O198: 0.99999361 | P198: 3.16e-06
I199: SZ | J199: 3847 | K199: 38 | L199: 47 | M199: 7845907.949 | N199: 30.83619 | O199: 0.99999055 | P199: 3.06e-06
I200: SZ | J200: 3848 | K200: 38 | L200: 48 | M200: 7844057.777 | N200: 30.83619 | O200: 0.99998756 | P200: 2.99e-06
... 111 more rows

Sheet GRID>GRND
A1: Project: | B1: =REPORT!B2 -> TUS-800-22.74 | F1: Input Units (please select): | G1: State Plane Grid - US Survey Feet | J1: Unitless Grid to Ground Factor: | K1: =REPORT!C13 -> 0
A2: Pid: | B2: =REPORT!E2 -> 100603 | F2: Output Units (please select): | G2: Ground - US Survey Feet | J2: Project Adjustment Factor: | K2: =K1*K3 -> 0
J3: Metric to US Survey Feet Factor: | K3: =3937/1200 -> 3.280833333
A5: INPUT | G5: OUTPUT
A6: =G1 -> State Plane Grid - US Survey Feet | G6: =G2 -> Ground - US Survey Feet | N6: INPUT UNITS
A7: NAME | B7: NORTH | C7: EAST | D7: ORTHO HT | E7: FEATURE | G7: NAME | H7: NORTH | I7: EAST | J7: ORTHO HT | K7: FEATURE | N7: State Plane Grid - Meters
G8: =A8 -> 0 | H8: =IF(AND($G$1="STATE PLANE GRID - METERS",$G$2="STATE PLANE GRID - US SURVEY FEET"),B8*$K$3,IF(AND($G$1="STATE PLANE GRID - METERS",$G$2="GROUND - METERS"),B8*$K$1,IF(AND($G$1="STATE PLANE GRID - METERS",$G$2="GROUND - US SURVEY FEET"),B8*$K$2,IF(AND($G$1="STATE PLANE GRID - US SURVEY FEET",$G$2="STATE PLANE GRID - METERS"),B8/$K$3,IF(AND($G$1="STATE PLANE GRID - US SURVEY FEET",$G$2="GROUND - METERS"),B8/$K$2,IF(AND($G$1="STATE PLANE GRID - US SURVEY FEET",$G$2="GROUND - US SURVEY FEET"),B8*$K$1,IF(AND($G$1="GROUND - METERS",$G$2="STATE PLANE GRID - US SURVEY FEET"),B8*$K$3/$K$1,IF(AND($G$1="GROUND - METERS",$G$2="STATE PLANE GRID - METERS"),B8/$K$1,IF(AND($G$1="GROUND - METERS",$G$2="GROUND - US SURVEY FEET"),B8*$K$3,IF(AND($G$1="GROUND - US SURVEY FEET",$G$2="STATE PLANE GRID - US SURVEY FEET"),B8/$K$1,IF(AND($G$1="GROUND - US SURVEY FEET",$G$2="STATE PLANE GRID - METERS"),B8/$K$2,IF(AND($G$1="GROUND - US SURVEY FEET",$G$2="GROUND - METERS"),B8/$K$3)))))))))))) -> 0 | I8: =IF(AND($G$1="STATE PLANE GRID - METERS",$G$2="STATE PLANE GRID - US SURVEY FEET"),C8*$K$3,IF(AND($G$1="STATE PLANE GRID - METERS",$G$2="GROUND - METERS"),C8*$K$1,IF(AND($G$1="STATE PLANE GRID - METERS",$G$2="GROUND - US SURVEY FEET"),C8*$K$2,IF(AND($G$1="STATE PLANE GRID - US SURVEY FEET",$G$2="STATE PLANE GRID - METERS"),C8/$K$3,IF(AND($G$1="STATE PLANE GRID - US SURVEY FEET",$G$2="GROUND - METERS"),C8/$K$2,IF(AND($G$1="STATE PLANE GRID - US SURVEY FEET",$G$2="GROUND - US SURVEY FEET"),C8*$K$1,IF(AND($G$1="GROUND - METERS",$G$2="STATE PLANE GRID - US SURVEY FEET"),C8*$K$3/$K$1,IF(AND($G$1="GROUND - METERS",$G$2="STATE PLANE GRID - METERS"),C8/$K$1,IF(AND($G$1="GROUND - METERS",$G$2="GROUND - US SURVEY FEET"),C8*$K$3,IF(AND($G$1="GROUND - US SURVEY FEET",$G$2="STATE PLANE GRID - US SURVEY FEET"),C8/$K$1,IF(AND($G$1="GROUND - US SURVEY FEET",$G$2="STATE PLANE GRID - METERS"),C8/$K$2,IF(AND($G$1="GROUND - US SURVEY FEET",$G$2="GROUND - METERS"),C8/$K$3)))))))))))) -> 0 | J8: =IF(AND($G$1="STATE PLANE GRID - METERS",$G$2="STATE PLANE GRID - US SURVEY FEET"),D8*$K$3,IF(AND($G$1="STATE PLANE GRID - METERS",$G$2="GROUND - METERS"),B8,IF(AND($G$1="STATE PLANE GRID - METERS",$G$2="GROUND - US SURVEY FEET"),D8*$K$3,IF(AND($G$1="STATE PLANE GRID - US SURVEY FEET",$G$2="STATE PLANE GRID - METERS"),D8/$K$3,IF(AND($G$1="STATE PLANE GRID - US SURVEY FEET",$G$2="GROUND - METERS"),D8/$K$3,IF(AND($G$1="STATE PLANE GRID - US SURVEY FEET",$G$2="GROUND - US SURVEY FEET"),D8,IF(AND($G$1="GROUND - METERS",$G$2="STATE PLANE GRID - US SURVEY FEET"),D8*$K$3,IF(AND($G$1="GROUND - METERS",$G$2="STATE PLANE GRID - METERS"),D8,IF(AND($G$1="GROUND - METERS",$G$2="GROUND - US SURVEY FEET"),D8*$K$3,IF(AND($G$1="GROUND - US SURVEY FEET",$G$2="STATE PLANE GRID - US SURVEY FEET"),D8,IF(AND($G$1="GROUND - US SURVEY FEET",$G$2="STATE PLANE GRID - METERS"),D8/$K$3,IF(AND($G$1="GROUND - US SURVEY FEET",$G$2="GROUND - METERS"),D8/$K$3)))))))))))) -> 0 | K8: =E8 -> 0 | N8: State Plane Grid - US Survey Feet
G9: 0 | H9: 0 | I9: 0 | J9: 0 | K9: 0 | N9: Ground - Meters
G10: 0 | H10: 0 | I10: 0 | J10: 0 | K10: 0 | N10: Ground - US Survey Feet
G11: 0 | H11: 0 | I11: 0 | J11: 0 | K11: 0
G12: 0 | H12: 0 | I12: 0 | J12: 0 | K12: 0
G13: 0 | H13: 0 | I13: 0 | J13: 0 | K13: 0
G14: 0 | H14: 0 | I14: 0 | J14: 0 | K14: 0
G15: 0 | H15: 0 | I15: 0 | J15: 0 | K15: 0
G16: 0 | H16: 0 | I16: 0 | J16: 0 | K16: 0
G17: 0 | H17: 0 | I17: 0 | J17: 0 | K17: 0
G18: 0 | H18: 0 | I18: 0 | J18: 0 | K18: 0
G19: 0 | H19: 0 | I19: 0 | J19: 0 | K19: 0
G20: 0 | H20: 0 | I20: 0 | J20: 0 | K20: 0
G21: 0 | H21: 0 | I21: 0 | J21: 0 | K21: 0
G22: 0 | H22: 0 | I22: 0 | J22: 0 | K22: 0
G23: 0 | H23: 0 | I23: 0 | J23: 0 | K23: 0
G24: 0 | H24: 0 | I24: 0 | J24: 0 | K24: 0
G25: 0 | H25: 0 | I25: 0 | J25: 0 | K25: 0
G26: 0 | H26: 0 | I26: 0 | J26: 0 | K26: 0
G27: 0 | H27: 0 | I27: 0 | J27: 0 | K27: 0
G28: 0 | H28: 0 | I28: 0 | J28: 0 | K28: 0
G29: 0 | H29: 0 | I29: 0 | J29: 0 | K29: 0
G30: 0 | H30: 0 | I30: 0 | J30: 0 | K30: 0
G31: 0 | H31: 0 | I31: 0 | J31: 0 | K31: 0
G32: 0 | H32: 0 | I32: 0 | J32: 0 | K32: 0
G33: 0 | H33: 0 | I33: 0 | J33: 0 | K33: 0
G34: 0 | H34: 0 | I34: 0 | J34: 0 | K34: 0
G35: 0 | H35: 0 | I35: 0 | J35: 0 | K35: 0
G36: 0 | H36: 0 | I36: 0 | J36: 0 | K36: 0
G37: 0 | H37: 0 | I37: 0 | J37: 0 | K37: 0
G38: 0 | H38: 0 | I38: 0 | J38: 0 | K38: 0
G39: 0 | H39: 0 | I39: 0 | J39: 0 | K39: 0
G40: 0 | H40: =IF(AND($G$1="STATE PLANE GRID - METERS",$G$2="STATE PLANE GRID - US SURVEY FEET"),B40*$K$3,IF(AND($G$1="STATE PLANE GRID - METERS",$G$2="GROUND - METERS"),B40*$K$1,IF(AND($G$1="STATE PLANE GRID - METERS",$G$2="GROUND - US SURVEY FEET"),B40*$K$2,IF(AND($G$1="STATE PLANE GRID - US SURVEY FEET",$G$2="STATE PLANE GRID - METERS"),B40/$K$3,IF(AND($G$1="STATE PLANE GRID - US SURVEY FEET",$G$2="GROUND - METERS"),B40/$K$2,IF(AND($G$1="STATE PLANE GRID - US SURVEY FEET",$G$2="GROUND - US SURVEY FEET"),B40*$K$1,IF(AND($G$1="GROUND - METERS",$G$2="STATE PLANE GRID - US SURVEY FEET"),B40*$K$3/$K$1,IF(AND($G$1="GROUND - METERS",$G$2="STATE PLANE GRID - METERS"),B40/$K$1,IF(AND($G$1="GROUND - METERS",$G$2="GROUND - US SURVEY FEET"),B40*$K$3,IF(AND($G$1="GROUND - US SURVEY FEET",$G$2="STATE PLANE GRID - US SURVEY FEET"),B40/$K$1,IF(AND($G$1="GROUND - US SURVEY FEET",$G$2="STATE PLANE GRID - METERS"),B40/$K$2,IF(AND($G$1="GROUND - US SURVEY FEET",$G$2="GROUND - METERS"),B40/$K$3)))))))))))) -> 0 | I40: =IF(AND($G$1="STATE PLANE GRID - METERS",$G$2="STATE PLANE GRID - US SURVEY FEET"),C40*$K$3,IF(AND($G$1="STATE PLANE GRID - METERS",$G$2="GROUND - METERS"),C40*$K$1,IF(AND($G$1="STATE PLANE GRID - METERS",$G$2="GROUND - US SURVEY FEET"),C40*$K$2,IF(AND($G$1="STATE PLANE GRID - US SURVEY FEET",$G$2="STATE PLANE GRID - METERS"),C40/$K$3,IF(AND($G$1="STATE PLANE GRID - US SURVEY FEET",$G$2="GROUND - METERS"),C40/$K$2,IF(AND($G$1="STATE PLANE GRID - US SURVEY FEET",$G$2="GROUND - US SURVEY FEET"),C40*$K$1,IF(AND($G$1="GROUND - METERS",$G$2="STATE PLANE GRID - US SURVEY FEET"),C40*$K$3/$K$1,IF(AND($G$1="GROUND - METERS",$G$2="STATE PLANE GRID - METERS"),C40/$K$1,IF(AND($G$1="GROUND - METERS",$G$2="GROUND - US SURVEY FEET"),C40*$K$3,IF(AND($G$1="GROUND - US SURVEY FEET",$G$2="STATE PLANE GRID - US SURVEY FEET"),C40/$K$1,IF(AND($G$1="GROUND - US SURVEY FEET",$G$2="STATE PLANE GRID - METERS"),C40/$K$2,IF(AND($G$1="GROUND - US SURVEY FEET",$G$2="GROUND - METERS"),C40/$K$3)))))))))))) -> 0 | J40: =IF(AND($G$1="STATE PLANE GRID - METERS",$G$2="STATE PLANE GRID - US SURVEY FEET"),D40*$K$3,IF(AND($G$1="STATE PLANE GRID - METERS",$G$2="GROUND - METERS"),B40,IF(AND($G$1="STATE PLANE GRID - METERS",$G$2="GROUND - US SURVEY FEET"),D40*$K$3,IF(AND($G$1="STATE PLANE GRID - US SURVEY FEET",$G$2="STATE PLANE GRID - METERS"),D40/$K$3,IF(AND($G$1="STATE PLANE GRID - US SURVEY FEET",$G$2="GROUND - METERS"),D40/$K$3,IF(AND($G$1="STATE PLANE GRID - US SURVEY FEET",$G$2="GROUND - US SURVEY FEET"),D40,IF(AND($G$1="GROUND - METERS",$G$2="STATE PLANE GRID - US SURVEY FEET"),D40*$K$3,IF(AND($G$1="GROUND - METERS",$G$2="STATE PLANE GRID - METERS"),D40,IF(AND($G$1="GROUND - METERS",$G$2="GROUND - US SURVEY FEET"),D40*$K$3,IF(AND($G$1="GROUND - US SURVEY FEET",$G$2="STATE PLANE GRID - US SURVEY FEET"),D40,IF(AND($G$1="GROUND - US SURVEY FEET",$G$2="STATE PLANE GRID - METERS"),D40/$K$3,IF(AND($G$1="GROUND - US SURVEY FEET",$G$2="GROUND - METERS"),D40/$K$3)))))))))))) -> 0 | K40: 0
G41: 0 | H41: 0 | I41: 0 | J41: 0 | K41: 0
G42: 0 | H42: 0 | I42: 0 | J42: 0 | K42: 0
G43: 0 | H43: 0 | I43: 0 | J43: 0 | K43: 0
G44: 0 | H44: 0 | I44: 0 | J44: 0 | K44: 0
G45: 0 | H45: 0 | I45: 0 | J45: 0 | K45: 0
G46: 0 | H46: 0 | I46: 0 | J46: 0 | K46: 0
G47: 0 | H47: 0 | I47: 0 | J47: 0 | K47: 0
G48: 0 | H48: 0 | I48: 0 | J48: 0 | K48: 0
G49: 0 | H49: 0 | I49: 0 | J49: 0 | K49: 0
G50: 0 | H50: 0 | I50: 0 | J50: 0 | K50: 0
G51: 0 | H51: 0 | I51: 0 | J51: 0 | K51: 0
G52: 0 | H52: 0 | I52: 0 | J52: 0 | K52: 0
G53: 0 | H53: 0 | I53: 0 | J53: 0 | K53: 0
G54: 0 | H54: 0 | I54: 0 | J54: 0 | K54: 0
G55: 0 | H55: 0 | I55: 0 | J55: 0 | K55: 0
G56: 0 | H56: 0 | I56: 0 | J56: 0 | K56: 0
G57: 0 | H57: 0 | I57: 0 | J57: 0 | K57: 0
G58: 0 | H58: 0 | I58: 0 | J58: 0 | K58: 0
G59: 0 | H59: 0 | I59: 0 | J59: 0 | K59: 0
G60: 0 | H60: 0 | I60: 0 | J60: 0 | K60: 0
G61: 0 | H61: 0 | I61: 0 | J61: 0 | K61: 0
G62: 0 | H62: 0 | I62: 0 | J62: 0 | K62: 0
G63: 0 | H63: 0 | I63: 0 | J63: 0 | K63: 0
G64: 0 | H64: 0 | I64: 0 | J64: 0 | K64: 0
G65: 0 | H65: 0 | I65: 0 | J65: 0 | K65: 0
G66: 0 | H66: 0 | I66: 0 | J66: 0 | K66: 0
G67: 0 | H67: 0 | I67: 0 | J67: 0 | K67: 0
G68: 0 | H68: 0 | I68: 0 | J68: 0 | K68: 0
G69: 0 | H69: 0 | I69: 0 | J69: 0 | K69: 0
G70: 0 | H70: 0 | I70: 0 | J70: 0 | K70: 0
G71: 0 | H71: 0 | I71: 0 | J71: 0 | K71: 0
G72: =A72 -> 0 | H72: =IF(AND($G$1="STATE PLANE GRID - METERS",$G$2="STATE PLANE GRID - US SURVEY FEET"),B72*$K$3,IF(AND($G$1="STATE PLANE GRID - METERS",$G$2="GROUND - METERS"),B72*$K$1,IF(AND($G$1="STATE PLANE GRID - METERS",$G$2="GROUND - US SURVEY FEET"),B72*$K$2,IF(AND($G$1="STATE PLANE GRID - US SURVEY FEET",$G$2="STATE PLANE GRID - METERS"),B72/$K$3,IF(AND($G$1="STATE PLANE GRID - US SURVEY FEET",$G$2="GROUND - METERS"),B72/$K$2,IF(AND($G$1="STATE PLANE GRID - US SURVEY FEET",$G$2="GROUND - US SURVEY FEET"),B72*$K$1,IF(AND($G$1="GROUND - METERS",$G$2="STATE PLANE GRID - US SURVEY FEET"),B72*$K$3/$K$1,IF(AND($G$1="GROUND - METERS",$G$2="STATE PLANE GRID - METERS"),B72/$K$1,IF(AND($G$1="GROUND - METERS",$G$2="GROUND - US SURVEY FEET"),B72*$K$3,IF(AND($G$1="GROUND - US SURVEY FEET",$G$2="STATE PLANE GRID - US SURVEY FEET"),B72/$K$1,IF(AND($G$1="GROUND - US SURVEY FEET",$G$2="STATE PLANE GRID - METERS"),B72/$K$2,IF(AND($G$1="GROUND - US SURVEY FEET",$G$2="GROUND - METERS"),B72/$K$3)))))))))))) -> 0 | I72: =IF(AND($G$1="STATE PLANE GRID - METERS",$G$2="STATE PLANE GRID - US SURVEY FEET"),C72*$K$3,IF(AND($G$1="STATE PLANE GRID - METERS",$G$2="GROUND - METERS"),C72*$K$1,IF(AND($G$1="STATE PLANE GRID - METERS",$G$2="GROUND - US SURVEY FEET"),C72*$K$2,IF(AND($G$1="STATE PLANE GRID - US SURVEY FEET",$G$2="STATE PLANE GRID - METERS"),C72/$K$3,IF(AND($G$1="STATE PLANE GRID - US SURVEY FEET",$G$2="GROUND - METERS"),C72/$K$2,IF(AND($G$1="STATE PLANE GRID - US SURVEY FEET",$G$2="GROUND - US SURVEY FEET"),C72*$K$1,IF(AND($G$1="GROUND - METERS",$G$2="STATE PLANE GRID - US SURVEY FEET"),C72*$K$3/$K$1,IF(AND($G$1="GROUND - METERS",$G$2="STATE PLANE GRID - METERS"),C72/$K$1,IF(AND($G$1="GROUND - METERS",$G$2="GROUND - US SURVEY FEET"),C72*$K$3,IF(AND($G$1="GROUND - US SURVEY FEET",$G$2="STATE PLANE GRID - US SURVEY FEET"),C72/$K$1,IF(AND($G$1="GROUND - US SURVEY FEET",$G$2="STATE PLANE GRID - METERS"),C72/$K$2,IF(AND($G$1="GROUND - US SURVEY FEET",$G$2="GROUND - METERS"),C72/$K$3)))))))))))) -> 0 | J72: =IF(AND($G$1="STATE PLANE GRID - METERS",$G$2="STATE PLANE GRID - US SURVEY FEET"),D72*$K$3,IF(AND($G$1="STATE PLANE GRID - METERS",$G$2="GROUND - METERS"),B72,IF(AND($G$1="STATE PLANE GRID - METERS",$G$2="GROUND - US SURVEY FEET"),D72*$K$3,IF(AND($G$1="STATE PLANE GRID - US SURVEY FEET",$G$2="STATE PLANE GRID - METERS"),D72/$K$3,IF(AND($G$1="STATE PLANE GRID - US SURVEY FEET",$G$2="GROUND - METERS"),D72/$K$3,IF(AND($G$1="STATE PLANE GRID - US SURVEY FEET",$G$2="GROUND - US SURVEY FEET"),D72,IF(AND($G$1="GROUND - METERS",$G$2="STATE PLANE GRID - US SURVEY FEET"),D72*$K$3,IF(AND($G$1="GROUND - METERS",$G$2="STATE PLANE GRID - METERS"),D72,IF(AND($G$1="GROUND - METERS",$G$2="GROUND - US SURVEY FEET"),D72*$K$3,IF(AND($G$1="GROUND - US SURVEY FEET",$G$2="STATE PLANE GRID - US SURVEY FEET"),D72,IF(AND($G$1="GROUND - US SURVEY FEET",$G$2="STATE PLANE GRID - METERS"),D72/$K$3,IF(AND($G$1="GROUND - US SURVEY FEET",$G$2="GROUND - METERS"),D72/$K$3)))))))))))) -> 0 | K72: =E72 -> 0
G73: 0 | H73: 0 | I73: 0 | J73: 0 | K73: 0
G74: 0 | H74: 0 | I74: 0 | J74: 0 | K74: 0
G75: 0 | H75: 0 | I75: 0 | J75: 0 | K75: 0
G76: 0 | H76: 0 | I76: 0 | J76: 0 | K76: 0
G77: 0 | H77: 0 | I77: 0 | J77: 0 | K77: 0
G78: 0 | H78: 0 | I78: 0 | J78: 0 | K78: 0
G79: 0 | H79: 0 | I79: 0 | J79: 0 | K79: 0
G80: 0 | H80: 0 | I80: 0 | J80: 0 | K80: 0
G81: 0 | H81: 0 | I81: 0 | J81: 0 | K81: 0
G82: 0 | H82: 0 | I82: 0 | J82: 0 | K82: 0
G83: 0 | H83: 0 | I83: 0 | J83: 0 | K83: 0
G84: 0 | H84: 0 | I84: 0 | J84: 0 | K84: 0
G85: 0 | H85: 0 | I85: 0 | J85: 0 | K85: 0
G86: 0 | H86: 0 | I86: 0 | J86: 0 | K86: 0
G87: 0 | H87: 0 | I87: 0 | J87: 0 | K87: 0
G88: 0 | H88: 0 | I88: 0 | J88: 0 | K88: 0
G89: 0 | H89: 0 | I89: 0 | J89: 0 | K89: 0
G90: 0 | H90: 0 | I90: 0 | J90: 0 | K90: 0
G91: 0 | H91: 0 | I91: 0 | J91: 0 | K91: 0
G92: 0 | H92: 0 | I92: 0 | J92: 0 | K92: 0
G93: 0 | H93: 0 | I93: 0 | J93: 0 | K93: 0
G94: 0 | H94: 0 | I94: 0 | J94: 0 | K94: 0
G95: 0 | H95: 0 | I95: 0 | J95: 0 | K95: 0

Sheet OWNERS
A1: First | B1: Last | C1: Address | D1: City | E1: State | F1: Zip Code | G1: Deed Book/Page | H1: Auditor Parcel Number | I1: Area | J1: Section | K1: Lot | L1: Tax Map Parcel

Sheet OSIP
B1: Project: | C1: =REPORT!B2 -> TUS-800-22.74
B2: Pid: | C2: =REPORT!E2 -> 100603
A4: Calculate the Project Coordinates for the corners of the Aerial Mapping Raster File
A5: To scale the Geo-referenced file to the Project Datum | N5: Project County: | P5: =REPORT!B2 -> TUS-800-22.74 | Q5: =MID(P5,1,3) -> TUS
O7: Photo Corners | Q7: Pixel Range
A8: INPUT: SP GRID - US SURVEY FEET | N8: COUNTY | O8: EASTING | P8: NORTHING | Q8: EASTING | R8: NORTHING
B9: X (East) | C9: Y (North) | N9: ADA | O9: 1620000 | P9: 215000 | Q9: 130000 | R9: 175000
A10: Lower left (SW) origin: | B10: =VLOOKUP(MID(REPORT!B2,1,3),OSIP!N9:R96,2,FALSE) -> 2185000 | C10: =VLOOKUP(MID(REPORT!B2,1,3),OSIP!N9:R96,3,FALSE) -> 200000 | D10: Enter X,Y from Georeferenced Raster File Header | N10: ALL | O10: 1440000 | P10: 355000 | Q10: 150000 | R10: 110000
A11: Pixel Range: | B11: =VLOOKUP(MID(REPORT!B2,1,3),OSIP!N9:R96,4,FALSE) -> 130000 | C11: =VLOOKUP(MID(REPORT!B2,1,3),OSIP!N9:R96,5,FALSE) -> 170000 | D11: Enter X,Y from Georeferenced Raster File Header | N11: ASD | O11: 1985000 | P11: 320000 | Q11: 90000 | R11: 195000
A12: Upper right (NE) origin: | B12: =B10+B11 -> 2315000 | C12: =C10+C11 -> 370000 | D12: Calculated NE ORIGIN using Delta X & Delta Y | N12: ASH | O12: 2375000 | P12: 670000 | Q12: 140000 | R12: 185000
N13: ATH | O13: 2025000 | P13: 430000 | Q13: 165000 | R13: 140000
A14: PAF (scale multiplier): | B14: =REPORT!C13 -> 0 | D14: Enter Unitless Project Adjustment Factor for Project | N14: AUG | O14: 1420000 | P14: 255000 | Q14: 170000 | R14: 125000
N15: BEL | O15: 2320000 | P15: 675000 | Q15: 155000 | R15: 120000
A16: OUTPUT: PROJECT GROUND - US SURVEY FEET | N16: BRO | O16: 1525000 | P16: 230000 | Q16: 115000 | R16: 235000
B17: X (East) | C17: Y (North) | N17: BUT | O17: 1310000 | P17: 475000 | Q17: 145000 | R17: 115000
A18: Lower left (SW) origin (MAP01): | B18: =PRODUCT(B10,B14) -> 0 | C18: =PRODUCT(C10,B14) -> 0 | D18: Calculated Scaled ORIGIN Coordinates | N18: CAR | O18: 2295000 | P18: 275000 | Q18: 130000 | R18: 120000
A19: Upper right (NE) origin (MAP02): | B19: =PRODUCT(B12,B14) -> 0 | C19: =PRODUCT(C12,B14) -> 0 | D19: Calculated Scaled ORIGIN Coordinates | N19: CHP | O19: 1535000 | P19: 730000 | Q19: 160000 | R19: 105000
N20: CLA | O20: 1530000 | P20: 645000 | Q20: 160000 | R20: 105000
D21: (Edit Header & Footer for Printing File report copy) | N21: CLE | O21: 1450000 | P21: 280000 | Q21: 100000 | R21: 190000
N22: CLI | O22: 1540000 | P22: 445000 | Q22: 125000 | R22: 130000
A23: 1) Place a Shape (BOX) in the MicroStation file at the Project Origin Coordinates and use KEY-IN COMMAND XY= (X value),(Y value) for both corners | N23: COL | O23: 2355000 | P23: 335000 | Q23: 165000 | R23: 130000
A24: 2) Attach the Raster File using the "INTERACTIVE" Toggle & PLACE at the Corners of the BOX | N24: COS | O24: 2050000 | P24: 175000 | Q24: 165000 | R24: 115000
N25: CRA | O25: 1795000 | P25: 375000 | Q25: 115000 | R25: 115000
A26: This will scale the Aerial Mapping Ortho Photo to fit the PROJECT COORDINATES | N26: CUY | O26: 2110000 | P26: 585000 | Q26: 170000 | R26: 145000
N27: DAR | O27: 1315000 | P27: 700000 | Q27: 115000 | R27: 170000
N28: DEF | O28: 1330000 | P28: 550000 | Q28: 165000 | R28: 100000
N29: DEL | O29: 1755000 | P29: 165000 | Q29: 150000 | R29: 120000
N30: ERI | O30: 1855000 | P30: 585000 | Q30: 160000 | R30: 135000
N31: FAI | O31: 1870000 | P31: 565000 | Q31: 140000 | R31: 145000
N32: FAY | O32: 1635000 | P32: 500000 | Q32: 125000 | R32: 130000
N33: FRA | O33: 1755000 | P33: 650000 | Q33: 145000 | R33: 135000
N34: FUL | O34: 1445000 | P34: 665000 | Q34: 150000 | R34: 90000
N35: GAL | O35: 1940000 | P35: 210000 | Q35: 145000 | R35: 170000
N36: GEA | O36: 2270000 | P36: 610000 | Q36: 110000 | R36: 145000
N37: GRE | O37: 1510000 | P37: 565000 | Q37: 140000 | R37: 115000
N38: GUE | O38: 2180000 | P38: 670000 | Q38: 145000 | R38: 145000
N39: HAM | O39: 1305000 | P39: 375000 | Q39: 170000 | R39: 110000
N40: HAN | O40: 1585000 | P40: 420000 | Q40: 135000 | R40: 135000
N41: HAR | O41: 1580000 | P41: 305000 | Q41: 135000 | R41: 120000
N42: HAS | O42: 2290000 | P42: 180000 | Q42: 135000 | R42: 105000
N43: HEN | O43: 1460000 | P43: 545000 | Q43: 130000 | R43: 125000
N44: HIG | O44: 1575000 | P44: 370000 | Q44: 155000 | R44: 135000
N45: HOC | O45: 1895000 | P45: 495000 | Q45: 170000 | R45: 115000
N46: HOL | O46: 2045000 | P46: 280000 | Q46: 160000 | R46: 90000
N47: HUR | O47: 1870000 | P47: 480000 | Q47: 145000 | R47: 115000
N48: JAC | O48: 1880000 | P48: 305000 | Q48: 110000 | R48: 140000
N49: JEF | O49: 2400000 | P49: 180000 | Q49: 100000 | R49: 165000
N50: KNO | O50: 1895000 | P50: 205000 | Q50: 165000 | R50: 130000
N51: LAK | O51: 2240000 | P51: 690000 | Q51: 140000 | R51: 115000
N52: LAW | O52: 1875000 | P52: 145000 | Q52: 155000 | R52: 165000
N53: LIC | O53: 1885000 | P53: 695000 | Q53: 175000 | R53: 135000
N54: LOG | O54: 1545000 | P54: 205000 | Q54: 145000 | R54: 120000
N55: LOR | O55: 2005000 | P55: 505000 | Q55: 135000 | R55: 175000
N56: LUC | O56: 1585000 | P56: 635000 | Q56: 225000 | R56: 125000
N57: MAD | O57: 1640000 | P57: 615000 | Q57: 135000 | R57: 160000
N58: MAH | O58: 2355000 | P58: 450000 | Q58: 165000 | R58: 95000
N59: MAR | O59: 1710000 | P59: 275000 | Q59: 160000 | R59: 105000
N60: MED | O60: 2055000 | P60: 480000 | Q60: 140000 | R60: 110000
N61: MEG | O61: 2015000 | P61: 315000 | Q61: 175000 | R61: 125000
N62: MER | O62: 1325000 | P62: 255000 | Q62: 110000 | R62: 145000
N63: MIA | O63: 1425000 | P63: 685000 | Q63: 120000 | R63: 125000
N64: MOE | O64: 2300000 | P64: 560000 | Q64: 145000 | R64: 125000
N65: MOT | O65: 1410000 | P65: 575000 | Q65: 125000 | R65: 130000
N66: MRG | O66: 2085000 | P66: 525000 | Q66: 145000 | R66: 125000
N67: MRW | O67: 1820000 | P67: 245000 | Q67: 115000 | R67: 140000
N68: MUS | O68: 2040000 | P68: 640000 | Q68: 160000 | R68: 150000
N69: NOB | O69: 2190000 | P69: 575000 | Q69: 135000 | R69: 140000
N70: OTT | O70: 1715000 | P70: 650000 | Q70: 20000 | R70: 105000
N71: PAU | O71: 1330000 | P71: 485000 | Q71: 135000 | R71: 105000
N72: PER | O72: 1975000 | P72: 560000 | Q72: 130000 | R72: 145000
N73: PIC | O73: 1750000 | P73: 530000 | Q73: 155000 | R73: 135000
N74: PIK | O74: 1715000 | P74: 345000 | Q74: 175000 | R74: 95000
N75: POR | O75: 2270000 | P75: 480000 | Q75: 115000 | R75: 140000
N76: PRE | O76: 1310000 | P76: 575000 | Q76: 105000 | R76: 135000
N77: PUT | O77: 1440000 | P77: 435000 | Q77: 150000 | R77: 120000
N78: RIC | O78: 1900000 | P78: 320000 | Q78: 115000 | R78: 165000
N79: ROS | O79: 1715000 | P79: 425000 | Q79: 190000 | R79: 130000
N80: SAN | O80: 1715000 | P80: 575000 | Q80: 165000 | R80: 100000
N81: SCI | O81: 1745000 | P81: 205000 | Q81: 185000 | R81: 170000
N82: SEN | O82: 1710000 | P82: 480000 | Q82: 170000 | R82: 105000
N83: SHE | O83: 1425000 | P83: 190000 | Q83: 130000 | R83: 115000
N84: STA | O84: 2200000 | P84: 350000 | Q84: 165000 | R84: 135000
N85: SUM | O85: 2190000 | P85: 450000 | Q85: 85000 | R85: 175000
N86: TRU | O86: 2375000 | P86: 535000 | Q86: 145000 | R86: 140000
N87: TUS | O87: 2185000 | P87: 200000 | Q87: 130000 | R87: 170000
N88: UNI | O88: 1650000 | P88: 160000 | Q88: 265000 | R88: 295000
N89: VAN | O89: 1325000 | P89: 375000 | Q89: 135000 | R89: 120000
N90: VIN | O90: 1890000 | P90: 370000 | Q90: 150000 | R90: 140000
N91: WAR | O91: 1440000 | P91: 460000 | Q91: 115000 | R91: 125000
N92: WAS | O92: 2150000 | P92: 440000 | Q92: 235000 | R92: 165000
N93: WAY | O93: 2070000 | P93: 360000 | Q93: 135000 | R93: 125000
N94: WIL | O94: 1335000 | P94: 645000 | Q94: 130000 | R94: 105000
N95: WOO | O95: 1585000 | P95: 545000 | Q95: 135000 | R95: 170000
N96: WYA | O96: 1685000 | P96: 370000 | Q96: 115000 | R96: 115000

Sheet MON TABLE
A1: PROJECT: | E1: =REPORT!B2 -> TUS-800-22.74 | H1: PID: | M1: =REPORT!$E$2 -> 100603
A2: PROJECT GROUND COORDINATES - US SURVEY FEET | I2: PROJECT CONTROL POINTS | J2: STATE PLANE GRID COORDINATES | P2: MONUMENTS TO BE SET
P3: DURING CONSTRUCTION
A4: Project coordinates (U.S. Survey Feet) are relative to State Plane Grid coordinates (meters) by a Project Adjustment Factor of: | H4: =C103 -> 0 | J4: Horiz. Datum: | K4: =REPORT!C11 -> NAD83 (2011) | L4: =REPORT!C10 -> Ohio State Plane, North Zone | N4: Vert. Datum: | O4: =REPORT!C15 -> NAVD88
P5: ITEM 623.05 | Q5: ITEM 623.05
B6: ="C/L of Right-of-Way SR "&MID(E1,5,3) -> C/L of Right-of-Way SR 800 | D6: =REPORT!C32&" used for alignment" -> used for alignment | J6: =REPORT!A44&" defined by GPS from CORS using "&REPORT!C16&". All other elevations are established by leveling from "&REPORT!A44&"." -> defined by GPS from CORS using Geoid 12B. All other elevations are established by leveling from . | P6: MONUMENT | Q6: REFERENCE
A7: NAME | B7: STATION | C7: OFFSET (US FT) | D7: RT/LT | E7: NORTH (US FT) | F7: EAST (US FT) | G7: ELEVATION (US FT) | H7: FEATURE | I7: DESCRIPTION | J7: NAME | K7: NORTH (sft) | L7: EAST (sft) | M7: ORTHO HT (sft) | N7: NORTH (US FT) | O7: EAST (US FT) | P7: ASSEMBLY | Q7: MONUMENT
D8: =IF(C8<0,"LT","RT") -> RT | J8: =A8 -> 0 | K8: =E8/$C$103 ->  | L8: =F8/$C$103 ->  | M8: =G8/$C$104 -> 0 | N8: =$K8*$C$104 ->  | O8: =$L8*$C$104 -> 
D9: =IF(C9<0,"LT","RT") -> RT | J9: =A9 -> 0 | M9: 0
D10: RT | J10: 0 | M10: 0
D11: RT | J11: 0 | M11: 0
D12: RT | J12: 0 | M12: 0
D13: RT | J13: 0 | M13: 0
D14: RT | J14: 0 | M14: 0
D15: RT | J15: 0 | M15: 0
D16: RT | J16: 0 | M16: 0
D17: RT | J17: 0 | M17: 0
D18: RT | J18: 0 | M18: 0
D19: RT | J19: 0 | M19: 0
D20: RT | J20: 0 | M20: 0
D21: RT | J21: 0 | M21: 0
D22: RT | J22: 0 | M22: 0
D23: RT | J23: 0 | M23: 0
D24: RT | J24: 0 | M24: 0
D25: RT | J25: 0 | M25: 0
D26: RT | J26: 0 | M26: 0
D27: RT | J27: 0 | M27: 0
D28: RT | J28: 0 | M28: 0
D29: RT | J29: 0 | M29: 0
D30: RT | J30: 0 | M30: 0
D31: RT | J31: 0 | M31: 0
D32: RT | J32: =A32 -> 0 | M32: 0
D33: RT | J33: 0 | M33: 0
D34: RT | J34: 0 | M34: 0
D35: RT | J35: 0 | M35: 0
D36: RT | J36: =A36 -> 0 | M36: 0
D37: RT | J37: =A37 -> 0 | M37: 0
A38: ="EXISTING MONUMENTATION "&"CENTERLINE OF RIGHT OF WAY STATE ROUTE "&MID(E1,5,3) -> EXISTING MONUMENTATION CENTERLINE OF RIGHT OF WAY STATE ROUTE 800 | I38: EXISTING CENTERLINE CONTROL POINTS | J38: Horiz. Datum: | K38: =REPORT!C11 -> NAD83 (2011) | L38: =REPORT!C10 -> Ohio State Plane, North Zone | N38: Vert. Datum: | O38: =REPORT!C15 -> NAVD88
A39: NAME | B39: STATION | C39: OFFSET (US FT) | D39: RT/LT | E39: NORTH (US FT) | F39: EAST (US FT) | G39: ELEVATION (US FT) | H39: FEATURE | I39: DESCRIPTION | J39: NAME | K39: NORTH (sft) | L39: EAST (sft) | M39: ORTHO HT (sft) | N39: NORTH (US FT) | O39: EAST (US FT)
D40: =IF(C40<0,"LT","RT") -> RT | J40: =A40 -> 0 | K40: =E40/$C$103 ->  | L40: =F40/$C$103 ->  | M40: =G40/$C$104 -> 0 | N40: =$K40*$C$104 ->  | O40: =$L40*$C$104 -> 
D41: RT | J41: 0 | M41: 0
D42: RT | J42: 0 | M42: 0
D43: RT | J43: 0 | M43: 0
D44: RT | J44: 0 | M44: 0
D45: RT | J45: 0 | M45: 0
D46: RT | J46: 0 | M46: 0
D47: RT | J47: 0 | M47: 0
D48: RT | J48: 0 | M48: 0
D49: RT | J49: 0 | M49: 0
D50: RT | J50: 0 | M50: 0
D51: RT | J51: =A51 -> 0 | M51: 0
D52: RT | J52: 0 | M52: 0
D53: RT | J53: 0 | M53: 0
D54: RT | J54: 0 | M54: 0
D55: RT | J55: 0 | M55: 0
D56: RT | J56: 0 | M56: 0
D57: RT | J57: =A57 -> 0 | M57: 0
D58: RT | J58: 0 | M58: 0
D59: RT | J59: 0 | M59: 0
D60: RT | J60: 0 | M60: 0
D61: RT | J61: 0 | M61: 0
D62: RT | J62: 0 | M62: 0
D63: RT | J63: 0 | M63: 0
D64: RT | J64: 0 | M64: 0
D65: RT | J65: 0 | M65: 0
D66: RT | J66: 0 | M66: 0
D67: RT | J67: 0 | M67: 0
D68: RT | J68: 0 | M68: 0
D69: RT | J69: 0 | M69: 0
A70: =" CENTERLINE OF RIGHT OF WAY & CONSTRUCTION "&"STATE ROUTE "&MID(E1,5,3) -> CENTERLINE OF RIGHT OF WAY & CONSTRUCTION STATE ROUTE 800 | I70: CENTERLINE ALIGNMENT | J70: Horiz. Datum: | K70: =REPORT!C11 -> NAD83 (2011) | L70: =REPORT!C10 -> Ohio State Plane, North Zone | N70: Vert. Datum: | O70: =REPORT!C15 -> NAVD88
A71: NAME | B71: STATION | C71: OFFSET (US FT) | D71: RT/LT | E71: NORTH (US FT) | F71: EAST (US FT) | G71: ELEVATION (US FT) | H71: FEATURE | I71: DESCRIPTION | J71: NAME | K71: NORTH (sft) | L71: EAST (sft) | M71: ORTHO HT (sft) | N71: NORTH (US FT) | O71: EAST (US FT)
D72: =IF(C72<0,"LT","RT") -> RT | J72: =A72 -> 0 | K72: =E72/$C$103 ->  | L72: =F72/$C$103 ->  | M72: =G72/$C$104 -> 0 | N72: =$K72*$C$104 ->  | O72: =$L72*$C$104 -> 
D73: RT | J73: =A73 -> 0 | M73: 0
D74: RT | J74: 0 | M74: 0
D75: RT | J75: 0 | M75: 0
D76: RT | J76: =A76 -> 0 | M76: 0
D77: RT | J77: 0 | M77: 0
D78: RT | J78: 0 | M78: 0
D79: RT | J79: 0 | M79: 0
D80: RT | J80: 0 | M80: 0
D81: RT | J81: 0 | M81: 0
D82: RT | J82: 0 | M82: 0
D83: RT | J83: 0 | M83: 0
D84: RT | J84: 0 | M84: 0
D85: RT | J85: 0 | M85: 0
D86: RT | J86: 0 | M86: 0
D87: RT | J87: 0 | M87: 0
D88: RT | J88: 0 | M88: 0
D89: RT | J89: 0 | M89: 0
D90: RT | J90: 0 | M90: 0
D91: RT | J91: 0 | M91: 0
D92: RT | J92: 0 | M92: 0
D93: RT | J93: 0 | M93: 0
D94: RT | J94: 0 | M94: 0
D95: RT | J95: 0 | M95: 0
D96: RT | J96: 0 | M96: 0
D97: RT | J97: 0 | M97: 0
D98: RT | J98: 0 | M98: 0
D99: RT | J99: 0 | M99: 0
D100: RT | J100: 0 | M100: 0
D101: RT | J101: 0 | M101: 0
A102: Grid to Ground Multiplier (1/CSF) = | C102: =REPORT!C13 -> 0 | E102: State Plane Grid to Project Ground (same units) | I102: Unitless Factor:
A103: Project Adjustment Factor (PAF) = | C103: =C102*C104 -> 0 | E103: State Plane Grid (meters) to Project Ground (US Survey Feet) | I103: =REPORT!A45&REPORT!A46&REPORT!C46 -> 
A104: English to metric conversion = | C104: =3937/1200 -> 3.280833333 | E104: US Survey foor to meters conversion factor | I104: Primary Project Control:
A105: PROJECT coordinates are scaled from GRID coordinates about the Ohio North Zone grid point N=0, E=0 (N 39⁰ 27' 01.76097", W 89⁰ 28' 32.98476"). | I105: =REPORT!A41&REPORT!A42&REPORT!A43 -> 
A107: PROJECT GROUND COORDINATES - US SURVEY FEET | I107: PROPOSED RIGHT OF WAY MONUMENTS | J107: STATE PLANE GRID COORDINATES | P107: MONUMENTS TO BE RESET
P108: AFTER CONSTRUCTION
A109: =A4 -> Project coordinates (U.S. Survey Feet) are relative to State Plane Grid coordinates (meters) by a Project Adjustment Factor of: | H109: =H4 -> 0
J110: Horiz. Datum: | K110: =REPORT!C11 -> NAD83 (2011) | L110: =REPORT!C10 -> Ohio State Plane, North Zone | N110: Vert. Datum: | O110: =REPORT!C15 -> NAVD88 | P110: ITEM 623.05 | Q110: ITEM 623.05
B111: =$B$6 -> C/L of Right-of-Way SR 800 | D111: =$D$6 -> used for alignment | P111: RIGHT OF WAY | Q111: BOUNDARY
A112: NAME | B112: STATION | C112: OFFSET (US FT) | D112: RT/LT | E112: NORTH (US FT) | F112: EAST (US FT) | G112: ELEVATION (US FT) | H112: FEATURE | I112: DESCRIPTION | J112: NAME | K112: NORTH (sft) | L112: EAST (sft) | M112: ORTHO HT (sft) | N112: NORTH (US FT) | O112: EAST (US FT) | P112: PIN (TYPE "B") | Q112: PIN (TYPE "B")
D113: =IF(C113<0,"LT","RT") -> RT | J113: =A113 -> 0 | K113: =E113/$C$103 ->  | L113: =F113/$C$103 ->  | M113: =G113/$C$104 -> 0 | N113: =$K113*$C$104 ->  | O113: =$L113*$C$104 -> 
D114: =IF(C114<0,"LT","RT") -> RT | J114: =A114 -> 0 | K114: =E114/$C$103 ->  | L114: =F114/$C$103 ->  | M114: =G114/$C$104 -> 0
D115: RT | J115: 0 | M115: 0
D116: RT | J116: 0 | M116: 0
D117: RT | J117: 0 | M117: 0
D118: RT | J118: 0 | M118: 0
D119: RT | J119: 0 | M119: 0
D120: RT | J120: 0 | M120: 0
D121: RT | J121: 0 | M121: 0
D122: RT | J122: 0 | M122: 0
D123: RT | J123: 0 | M123: 0
D124: RT | J124: 0 | M124: 0
D125: RT | J125: 0 | M125: 0
D126: RT | J126: 0 | K126: =E126/$C$103 ->  | M126: 0
D127: RT | J127: 0 | M127: 0
D128: RT | J128: 0 | M128: 0
D129: RT | J129: 0 | M129: 0
D130: RT | J130: =A130 -> 0 | L130: =F130/$C$103 ->  | M130: =G130/$C$104 -> 0
D131: RT | J131: 0 | M131: 0
D132: RT | J132: 0 | M132: 0
D133: RT | J133: 0 | M133: 0
D134: RT | J134: =A134 -> 0 | K134: =E134/$C$103 ->  | L134: =F134/$C$103 ->  | M134: =G134/$C$104 -> 0
D135: RT | J135: 0 | M135: 0
D136: RT | J136: 0 | M136: 0
D137: RT | J137: 0 | M137: 0
D138: RT | J138: 0 | M138: 0
D139: RT | J139: 0 | M139: 0
D140: RT | J140: 0 | M140: 0
D141: RT | J141: 0 | M141: 0
D142: RT | J142: 0 | M142: 0
J143: SUBTOTAL MONUMENTS - QUANTITY CARRIED TO CENTERLINE PLAT SHEET 3 OF 4 | P143: =+SUM(P112:P142) -> 0 | Q143: =+SUM(Q7:Q142) -> 0
A147: PROJECT GROUND COORDINATES - US SURVEY FEET | I147: EXISTING RIGHT OF WAY POINTS | J147: STATE PLANE GRID COORDINATES
A149: =A4 -> Project coordinates (U.S. Survey Feet) are relative to State Plane Grid coordinates (meters) by a Project Adjustment Factor of: | H149: =H4 -> 0
J150: Horiz. Datum: | K150: =REPORT!C11 -> NAD83 (2011) | L150: =REPORT!C10 -> Ohio State Plane, North Zone | N150: Vert. Datum: | O150: =REPORT!C15 -> NAVD88
B151: =$B$6 -> C/L of Right-of-Way SR 800 | D151: =$D$6 -> used for alignment
A152: NAME | B152: STATION | C152: OFFSET (US FT) | D152: RT/LT | E152: NORTH (US FT) | F152: EAST (US FT) | G152: ELEVATION (US FT) | H152: FEATURE | I152: DESCRIPTION | J152: NAME | K152: NORTH (sft) | L152: EAST (sft) | M152: ORTHO HT (sft) | N152: NORTH (US FT) | O152: EAST (US FT)
D153: =IF(C153<0,"LT","RT") -> RT | J153: =A153 -> 0 | K153: =E153/$C$103 ->  | M153: =G153/$C$104 -> 0 | N153: =$K153*$C$104 ->  | O153: =$L153*$C$104 -> 
D154: RT | J154: 0 | M154: 0
D155: RT | J155: 0 | M155: 0
D156: RT | J156: 0 | M156: 0
D157: RT | J157: 0 | M157: 0
D158: RT | J158: 0 | M158: 0
D159: RT | J159: 0 | M159: 0
D160: RT | J160: =A160 -> 0 | K160: =E160/$C$103 ->  | L160: =F160/$C$103 ->  | M160: =G160/$C$104 -> 0
D161: RT | J161: 0 | M161: 0
D162: RT | J162: 0 | M162: 0
D163: RT | J163: 0 | M163: 0
D164: RT | J164: 0 | M164: 0
D165: RT | J165: 0 | M165: 0
D166: RT | J166: 0 | M166: 0
D167: RT | J167: 0 | M167: 0
D168: RT | J168: 0 | M168: 0
D169: RT | J169: 0 | M169: 0
D170: RT | J170: 0 | M170: 0
D171: RT | J171: 0 | M171: 0
D172: RT | J172: 0 | M172: 0
D173: RT | J173: 0 | M173: 0
D174: RT | J174: 0 | M174: 0
D175: RT | J175: 0 | M175: 0
D176: RT | J176: 0 | M176: 0
D177: RT | J177: 0 | M177: 0
D178: RT | J178: 0 | M178: 0
D179: RT | J179: 0 | M179: 0
D180: RT | J180: 0 | M180: 0
D181: RT | J181: 0 | M181: 0
D182: RT | J182: 0 | M182: 0
A184: PROJECT GROUND COORDINATES - US SURVEY FEET | I184: EXISTING BOUNDARY MONUMENTS | J184: STATE PLANE GRID COORDINATES
A185: =A4 -> Project coordinates (U.S. Survey Feet) are relative to State Plane Grid coordinates (meters) by a Project Adjustment Factor of: | H185: =H4 -> 0
J186: Horiz. Datum: | K186: =REPORT!C11 -> NAD83 (2011) | L186: =REPORT!C10 -> Ohio State Plane, North Zone | N186: Vert. Datum: | O186: =REPORT!C15 -> NAVD88
B187: =$B$6 -> C/L of Right-of-Way SR 800 | D187: =$D$6 -> used for alignment
A188: NAME | B188: STATION | C188: OFFSET (US FT) | D188: RT/LT | E188: NORTH (US FT) | F188: EAST (US FT) | G188: ELEVATION (US FT) | H188: FEATURE | I188: DESCRIPTION | J188: NAME | K188: NORTH (sft) | L188: EAST (sft) | M188: ORTHO HT (sft) | N188: NORTH (US FT) | O188: EAST (US FT)
D189: =IF(C189<0,"LT","RT") -> RT | J189: =A189 -> 0 | K189: =E189/$C$103 ->  | M189: =G189/$C$104 -> 0 | N189: =$K189*$C$104 ->  | O189: =$L189*$C$104 -> 
D190: RT | J190: =A190 -> 0 | K190: =E190/$C$103 ->  | L190: =F190/$C$103 ->  | M190: =G190/$C$104 -> 0
D191: RT | J191: 0 | M191: 0
D192: RT | J192: 0 | M192: 0
D193: RT | J193: =A193 -> 0 | K193: =E193/$C$103 ->  | L193: =F193/$C$103 ->  | M193: =G193/$C$104 -> 0
D194: RT | J194: 0 | M194: 0
D195: RT | J195: 0 | M195: 0
D196: RT | J196: 0 | M196: 0
D197: RT | J197: 0 | M197: 0
D198: RT | J198: 0 | M198: 0
D199: RT | J199: 0 | M199: 0
D200: RT | J200: 0 | M200: 0
D201: RT | J201: 0 | M201: 0
D202: RT | J202: 0 | M202: 0
D203: RT | J203: 0 | M203: 0
D204: RT | J204: 0 | M204: 0
D205: RT | J205: 0 | M205: 0
D206: RT | J206: 0 | M206: 0
... 12 more rows

Sheet GPS_IMPORT
A2: GS1 | B2: 12.18.2018 | C2: 9: 3:49.0900 | D2: 314273.4203 | E2: 2256928.331 | F2: 912.146517 | G2: AERTAR
A3: GS1 | B3: 12.18.2018 | C3: 9: 4:0.4000 | D3: 314273.4165 | E3: 2256928.326 | F3: 912.1360518 | G3: AERTAR
A4: GS1 | B4: 12.18.2018 | C4: 9: 4:11.7400 | D4: 314273.4184 | E4: 2256928.318 | F4: 912.1566663 | G4: AERTAR
A5: GS1 | B5: 12.18.2018 | C5: 9: 4:23.6600 | D5: 314273.4151 | E5: 2256928.312 | F5: 912.1568516 | G5: AERTAR | H5: Imported data should be in Grid Meters!
A6: GS1 | B6: 12.18.2018 | C6: 9: 5:0.1900 | D6: 314273.4171 | E6: 2256928.319 | F6: 912.1452544 | G6: AERTAR
A7: GS1 | B7: 12.18.2018 | C7: 9: 5:10.9300 | D7: 314273.4167 | E7: 2256928.322 | F7: 912.1598219 | G7: AERTAR
A8: GS1 | B8: 12.18.2018 | C8: 9: 5:22.6400 | D8: 314273.4069 | E8: 2256928.327 | F8: 912.1620048 | G8: AERTAR
A9: GS1 | B9: 12.18.2018 | C9: 9: 5:33.9700 | D9: 314273.4006 | E9: 2256928.329 | F9: 912.1530692 | G9: AERTAR
A10: GS1 | B10: 12.18.2018 | C10: 9: 5:58.8400 | D10: 314273.3996 | E10: 2256928.327 | F10: 912.1528882 | G10: AERTAR
A11: GS1 | B11: 12.18.2018 | C11: 9: 6:10.1200 | D11: 314273.3989 | E11: 2256928.326 | F11: 912.1572557 | G11: AERTAR
A12: GS1 | B12: 12.18.2018 | C12: 9: 6:21.9800 | D12: 314273.3956 | E12: 2256928.323 | F12: 912.158452 | G12: AERTAR
A13: GS1 | B13: 12.18.2018 | C13: 9: 6:34.1800 | D13: 314273.3965 | E13: 2256928.327 | F13: 912.1560944 | G13: AERTAR
A14: GS2 | B14: 12.18.2018 | C14: 9:15:28.2700 | D14: 315045.2133 | E14: 2257842.21 | F14: 902.4426998 | G14: AERTAR
A15: GS2 | B15: 12.18.2018 | C15: 9:15:39.9600 | D15: 315045.2093 | E15: 2257842.205 | F15: 902.4421245 | G15: AERTAR
A16: GS2 | B16: 12.18.2018 | C16: 9:15:50.8500 | D16: 315045.1998 | E16: 2257842.198 | F16: 902.4424355 | G16: AERTAR
A17: GS2 | B17: 12.18.2018 | C17: 9:16:1.2100 | D17: 315045.2005 | E17: 2257842.198 | F17: 902.4589326 | G17: AERTAR
A18: GS2 | B18: 12.18.2018 | C18: 9:16:16.8300 | D18: 315045.2005 | E18: 2257842.204 | F18: 902.4629625 | G18: AERTAR
A19: GS2 | B19: 12.18.2018 | C19: 9:16:26.5800 | D19: 315045.1994 | E19: 2257842.203 | F19: 902.4629155 | G19: AERTAR
A20: GS2 | B20: 12.18.2018 | C20: 9:16:37.6100 | D20: 315045.2 | E20: 2257842.208 | F20: 902.4667384 | G20: AERTAR
A21: GS2 | B21: 12.18.2018 | C21: 9:16:49.1900 | D21: 315045.1991 | E21: 2257842.205 | F21: 902.4817397 | G21: AERTAR
A22: GS2 | B22: 12.18.2018 | C22: 9:17:8.6400 | D22: 315045.1995 | E22: 2257842.203 | F22: 902.463483 | G22: AERTAR
A23: GS2 | B23: 12.18.2018 | C23: 9:17:19.7600 | D23: 315045.1983 | E23: 2257842.204 | F23: 902.4600446 | G23: AERTAR
A24: GS2 | B24: 12.18.2018 | C24: 9:17:31.1500 | D24: 315045.1972 | E24: 2257842.205 | F24: 902.4559618 | G24: AERTAR
A25: GS2 | B25: 12.18.2018 | C25: 9:17:42.0300 | D25: 315045.1936 | E25: 2257842.2 | F25: 902.4498431 | G25: AERTAR
A26: GS3 | B26: 12.18.2018 | C26: 9:23:58.8000 | D26: 313946.227 | E26: 2258275.222 | F26: 875.7350114 | G26: AERTAR
A27: GS3 | B27: 12.18.2018 | C27: 9:24:9.9200 | D27: 313946.2224 | E27: 2258275.219 | F27: 875.7338248 | G27: AERTAR
A28: GS3 | B28: 12.18.2018 | C28: 9:24:20.8500 | D28: 313946.2275 | E28: 2258275.211 | F28: 875.7292109 | G28: AERTAR
A29: GS3 | B29: 12.18.2018 | C29: 9:24:41.8000 | D29: 313946.225 | E29: 2258275.216 | F29: 875.743009 | G29: AERTAR
A30: GS3 | B30: 12.18.2018 | C30: 9:24:52.6700 | D30: 313946.2269 | E30: 2258275.214 | F30: 875.7371692 | G30: AERTAR
A31: GS3 | B31: 12.18.2018 | C31: 9:25:4.9900 | D31: 313946.2359 | E31: 2258275.209 | F31: 875.7346936 | G31: AERTAR
A32: GS3 | B32: 12.18.2018 | C32: 9:25:17.0500 | D32: 313946.2417 | E32: 2258275.214 | F32: 875.7497173 | G32: AERTAR
A33: GS3 | B33: 12.18.2018 | C33: 9:25:27.9400 | D33: 313946.2294 | E33: 2258275.211 | F33: 875.7603393 | G33: AERTAR
A34: GS3 | B34: 12.18.2018 | C34: 9:25:48.6400 | D34: 313946.2277 | E34: 2258275.211 | F34: 875.7490601 | G34: AERTAR
A35: GS3 | B35: 12.18.2018 | C35: 9:26:0.0000 | D35: 313946.2355 | E35: 2258275.21 | F35: 875.7390068 | G35: AERTAR
A36: GS3 | B36: 12.18.2018 | C36: 9:26:11.9800 | D36: 313946.2384 | E36: 2258275.219 | F36: 875.735512 | G36: AERTAR
A37: GS3 | B37: 12.18.2018 | C37: 9:26:26.9600 | D37: 313946.2331 | E37: 2258275.22 | F37: 875.7284469 | G37: AERTAR
A38: GS4 | B38: 12.18.2018 | C38: 9:35:50.8300 | D38: 314875.152 | E38: 2264670.365 | F38: 880.8604752 | G38: AERTAR
A39: GS4 | B39: 12.18.2018 | C39: 9:36:6.7800 | D39: 314875.1626 | E39: 2264670.36 | F39: 880.8537247 | G39: AERTAR
A40: GS4 | B40: 12.18.2018 | C40: 9:36:16.9700 | D40: 314875.1648 | E40: 2264670.36 | F40: 880.8537019 | G40: AERTAR
A41: GS4 | B41: 12.18.2018 | C41: 9:36:26.7600 | D41: 314875.1641 | E41: 2264670.363 | F41: 880.863844 | G41: AERTAR
A42: GS4 | B42: 12.18.2018 | C42: 9:36:43.9700 | D42: 314875.1664 | E42: 2264670.358 | F42: 880.8577967 | G42: AERTAR
A43: GS4 | B43: 12.18.2018 | C43: 9:36:53.9100 | D43: 314875.1653 | E43: 2264670.366 | F43: 880.8681219 | G43: AERTAR
A44: GS4 | B44: 12.18.2018 | C44: 9:37:2.7800 | D44: 314875.1693 | E44: 2264670.364 | F44: 880.8586636 | G44: AERTAR
A45: GS4 | B45: 12.18.2018 | C45: 9:37:14.9100 | D45: 314875.1674 | E45: 2264670.368 | F45: 880.85958 | G45: AERTAR
A46: GS4 | B46: 12.18.2018 | C46: 9:37:33.7800 | D46: 314875.1682 | E46: 2264670.367 | F46: 880.8607782 | G46: AERTAR
A47: GS4 | B47: 12.18.2018 | C47: 9:37:45.2300 | D47: 314875.1682 | E47: 2264670.364 | F47: 880.8658986 | G47: AERTAR
A48: GS4 | B48: 12.18.2018 | C48: 9:37:56.0100 | D48: 314875.1734 | E48: 2264670.369 | F48: 880.8646223 | G48: AERTAR
A49: GS4 | B49: 12.18.2018 | C49: 9:38:6.0000 | D49: 314875.1755 | E49: 2264670.373 | F49: 880.874587 | G49: AERTAR
A50: GS5 | B50: 12.18.2018 | C50: 9:43:32.0600 | D50: 316420.7341 | E50: 2266072.373 | F50: 880.6342876 | G50: AERTAR
A51: GS5 | B51: 12.18.2018 | C51: 9:43:43.0800 | D51: 316420.7324 | E51: 2266072.375 | F51: 880.6395809 | G51: AERTAR
A52: GS5 | B52: 12.18.2018 | C52: 9:43:52.7000 | D52: 316420.7263 | E52: 2266072.368 | F52: 880.660662 | G52: AERTAR
A53: GS5 | B53: 12.18.2018 | C53: 9:44:6.8600 | D53: 316420.7222 | E53: 2266072.359 | F53: 880.6618353 | G53: AERTAR
A54: GS5 | B54: 12.18.2018 | C54: 9:44:26.7800 | D54: 316420.7266 | E54: 2266072.369 | F54: 880.6432988 | G54: AERTAR
A55: GS5 | B55: 12.18.2018 | C55: 9:44:37.0400 | D55: 316420.7253 | E55: 2266072.371 | F55: 880.6519239 | G55: AERTAR
A56: GS5 | B56: 12.18.2018 | C56: 9:44:47.3400 | D56: 316420.7288 | E56: 2266072.377 | F56: 880.6575781 | G56: AERTAR
A57: GS5 | B57: 12.18.2018 | C57: 9:44:57.1900 | D57: 316420.728 | E57: 2266072.37 | F57: 880.6588777 | G57: AERTAR
A58: GS5 | B58: 12.18.2018 | C58: 9:45:10.3900 | D58: 316420.7263 | E58: 2266072.368 | F58: 880.6625292 | G58: AERTAR
A59: GS5 | B59: 12.18.2018 | C59: 9:45:21.5800 | D59: 316420.7287 | E59: 2266072.365 | F59: 880.6550589 | G59: AERTAR
A60: GS5 | B60: 12.18.2018 | C60: 9:45:31.0000 | D60: 316420.7298 | E60: 2266072.372 | F60: 880.6397953 | G60: AERTAR
A61: GS5 | B61: 12.18.2018 | C61: 9:45:40.7100 | D61: 316420.7335 | E61: 2266072.376 | F61: 880.6276488 | G61: AERTAR
A62: GS6 | B62: 12.18.2018 | C62: 9:53:38.8900 | D62: 311926.7939 | E62: 2265883.914 | F62: 1041.315056 | G62: AERTAR
A63: GS6 | B63: 12.18.2018 | C63: 9:53:53.4200 | D63: 311926.7986 | E63: 2265883.92 | F63: 1041.300552 | G63: AERTAR
A64: GS6 | B64: 12.18.2018 | C64: 9:54:5.2200 | D64: 311926.7996 | E64: 2265883.919 | F64: 1041.301268 | G64: AERTAR
A65: GS6 | B65: 12.18.2018 | C65: 9:54:17.0600 | D65: 311926.7927 | E65: 2265883.914 | F65: 1041.331893 | G65: AERTAR
A66: GS6 | B66: 12.18.2018 | C66: 9:54:36.7800 | D66: 311926.7897 | E66: 2265883.908 | F66: 1041.337244 | G66: AERTAR
A67: GS6 | B67: 12.18.2018 | C67: 9:54:48.9400 | D67: 311926.783 | E67: 2265883.906 | F67: 1041.3416 | G67: AERTAR
A68: GS6 | B68: 12.18.2018 | C68: 9:55:0.7900 | D68: 311926.7901 | E68: 2265883.907 | F68: 1041.348015 | G68: AERTAR
A69: GS6 | B69: 12.18.2018 | C69: 9:55:12.2200 | D69: 311926.7981 | E69: 2265883.906 | F69: 1041.331559 | G69: AERTAR
A70: GS6 | B70: 12.18.2018 | C70: 9:55:32.9400 | D70: 311926.7896 | E70: 2265883.906 | F70: 1041.346724 | G70: AERTAR
A71: GS6 | B71: 12.18.2018 | C71: 9:55:43.8000 | D71: 311926.7916 | E71: 2265883.908 | F71: 1041.343726 | G71: AERTAR
A72: GS6 | B72: 12.18.2018 | C72: 9:55:55.2000 | D72: 311926.7889 | E72: 2265883.91 | F72: 1041.350517 | G72: AERTAR
A73: GS6 | B73: 12.18.2018 | C73: 9:56:6.0700 | D73: 311926.7873 | E73: 2265883.91 | F73: 1041.35595 | G73: AERTAR
A74: GS7 | B74: 12.18.2018 | C74: 10:08:17.080 | D74: 310823.1445 | E74: 2269553.918 | F74: 930.6092891 | G74: AERTAR
A75: GS7 | B75: 12.18.2018 | C75: 10:08:28.450 | D75: 310823.1401 | E75: 2269553.92 | F75: 930.6087138 | G75: AERTAR
A76: GS7 | B76: 12.18.2018 | C76: 10:08:40.180 | D76: 310823.1449 | E76: 2269553.921 | F76: 930.6061162 | G76: AERTAR
A77: GS7 | B77: 12.18.2018 | C77: 10:08:50.820 | D77: 310823.1414 | E77: 2269553.918 | F77: 930.6111329 | G77: AERTAR
A78: GS7 | B78: 12.18.2018 | C78: 10:09:10.950 | D78: 310823.1353 | E78: 2269553.92 | F78: 930.6117599 | G78: AERTAR
A79: GS7 | B79: 12.18.2018 | C79: 10:09:21.680 | D79: 310823.1338 | E79: 2269553.918 | F79: 930.5976059 | G79: AERTAR
A80: GS7 | B80: 12.18.2018 | C80: 10:09:33.070 | D80: 310823.1319 | E80: 2269553.917 | F80: 930.6019577 | G80: AERTAR
A81: GS7 | B81: 12.18.2018 | C81: 10:09:45.310 | D81: 310823.1302 | E81: 2269553.912 | F81: 930.6054605 | G81: AERTAR
A82: GS7 | B82: 12.18.2018 | C82: 10:10:06.090 | D82: 310823.1381 | E82: 2269553.918 | F82: 930.610271 | G82: AERTAR
A83: GS7 | B83: 12.18.2018 | C83: 10:10:18.090 | D83: 310823.1403 | E83: 2269553.919 | F83: 930.6084794 | G83: AERTAR
A84: GS7 | B84: 12.18.2018 | C84: 10:10:32.040 | D84: 310823.1386 | E84: 2269553.913 | F84: 930.6223805 | G84: AERTAR
A85: GS7 | B85: 12.18.2018 | C85: 10:10:43.990 | D85: 310823.1429 | E85: 2269553.916 | F85: 930.6132004 | G85: AERTAR
A86: GS8 | B86: 12.18.2018 | C86: 10:29:50.490 | D86: 320793.6243 | E86: 2266823.859 | F86: 894.8722997 | G86: AERTAR
A87: GS8 | B87: 12.18.2018 | C87: 10:30:01.830 | D87: 320793.6148 | E87: 2266823.86 | F87: 894.8391928 | G87: AERTAR
A88: GS8 | B88: 12.18.2018 | C88: 10:30:14.140 | D88: 320793.6607 | E88: 2266823.834 | F88: 894.8367905 | G88: AERTAR
A89: GS8 | B89: 12.18.2018 | C89: 10:30:23.480 | D89: 320793.6263 | E89: 2266823.848 | F89: 894.8661129 | G89: AERTAR
A90: GS8 | B90: 12.18.2018 | C90: 10:31:01.200 | D90: 320793.5909 | E90: 2266823.868 | F90: 894.8858563 | G90: AERTAR
A91: GS8 | B91: 12.18.2018 | C91: 10:31:11.080 | D91: 320793.5875 | E91: 2266823.872 | F91: 894.8662425 | G91: AERTAR
A92: GS8 | B92: 12.18.2018 | C92: 10:31:28.080 | D92: 320793.5913 | E92: 2266823.855 | F92: 894.8654251 | G92: AERTAR
A93: GS8 | B93: 12.18.2018 | C93: 10:31:37.780 | D93: 320793.5912 | E93: 2266823.853 | F93: 894.8764966 | G93: AERTAR
A94: GS8 | B94: 12.18.2018 | C94: 10:32:06 | D94: 320793.5797 | E94: 2266823.876 | F94: 894.810814 | G94: AERTAR
A95: GS8 | B95: 12.18.2018 | C95: 10:32:17.090 | D95: 320793.5685 | E95: 2266823.873 | F95: 894.8110639 | G95: AERTAR
A96: GS8 | B96: 12.18.2018 | C96: 10:32:28.200 | D96: 320793.5708 | E96: 2266823.87 | F96: 894.8136225 | G96: AERTAR
A97: GS8 | B97: 12.18.2018 | C97: 10:32:41.980 | D97: 320793.5492 | E97: 2266823.868 | F97: 894.8100458 | G97: AERTAR
A98: GS9 | B98: 12.18.2018 | C98: 10:43:24.890 | D98: 320157.2826 | E98: 2265885.467 | F98: 888.1203464 | G98: AERTAR
A99: GS9 | B99: 12.18.2018 | C99: 10:43:37.280 | D99: 320157.3088 | E99: 2265885.464 | F99: 888.119851 | G99: AERTAR
A100: GS9 | B100: 12.18.2018 | C100: 10:43:47.700 | D100: 320157.3166 | E100: 2265885.466 | F100: 888.1249648 | G100: AERTAR
A101: GS9 | B101: 12.18.2018 | C101: 10:44:12.860 | D101: 320157.3253 | E101: 2265885.482 | F101: 888.1692216 | G101: AERTAR
A102: GS9 | B102: 12.18.2018 | C102: 10:44:38.870 | D102: 320157.3254 | E102: 2265885.446 | F102: 888.1465501 | G102: AERTAR
A103: GS9 | B103: 12.18.2018 | C103: 10:44:50.090 | D103: 320157.3185 | E103: 2265885.455 | F103: 888.172572 | G103: AERTAR
A104: GS9 | B104: 12.18.2018 | C104: 10:45:00.900 | D104: 320157.3126 | E104: 2265885.44 | F104: 888.1260204 | G104: AERTAR
A105: GS9 | B105: 12.18.2018 | C105: 10:45:13.980 | D105: 320157.3065 | E105: 2265885.434 | F105: 888.1490453 | G105: AERTAR
A106: GS9 | B106: 12.18.2018 | C106: 10:45:45.390 | D106: 320157.2959 | E106: 2265885.447 | F106: 888.1537053 | G106: AERTAR
A107: GS9 | B107: 12.18.2018 | C107: 10:45:58.640 | D107: 320157.2938 | E107: 2265885.466 | F107: 888.188672 | G107: AERTAR
A108: GS9 | B108: 12.18.2018 | C108: 10:46:11.230 | D108: 320157.3079 | E108: 2265885.48 | F108: 888.1982801 | G108: AERTAR
A109: GS9 | B109: 12.18.2018 | C109: 10:46:23.640 | D109: 320157.2907 | E109: 2265885.475 | F109: 888.1830112 | G109: AERTAR
A110: GS10 | B110: 12.18.2018 | C110: 10:53:15.850 | D110: 323096.454 | E110: 2267173.22 | F110: 887.2801996 | G110: AERTAR
A111: GS10 | B111: 12.18.2018 | C111: 10:53:27.830 | D111: 323096.4569 | E111: 2267173.211 | F111: 887.2785978 | G111: AERTAR
A112: GS10 | B112: 12.18.2018 | C112: 10:53:39.060 | D112: 323096.4501 | E112: 2267173.214 | F112: 887.2642825 | G112: AERTAR
A113: GS10 | B113: 12.18.2018 | C113: 10:53:51.020 | D113: 323096.4468 | E113: 2267173.213 | F113: 887.2688722 | G113: AERTAR
A114: GS10 | B114: 12.18.2018 | C114: 10:54:15.980 | D114: 323096.4434 | E114: 2267173.217 | F114: 887.2778064 | G114: AERTAR
A115: GS10 | B115: 12.18.2018 | C115: 10:54:28.040 | D115: 323096.4365 | E115: 2267173.215 | F115: 887.282443 | G115: AERTAR
A116: GS10 | B116: 12.18.2018 | C116: 10:54:38.720 | D116: 323096.4358 | E116: 2267173.217 | F116: 887.2783282 | G116: AERTAR
A117: GS10 | B117: 12.18.2018 | C117: 10:54:50.190 | D117: 323096.4348 | E117: 2267173.216 | F117: 887.2763031 | G117: AERTAR
A118: GS10 | B118: 12.18.2018 | C118: 10:55:10.800 | D118: 323096.4405 | E118: 2267173.217 | F118: 887.2751375 | G118: AERTAR
A119: GS10 | B119: 12.18.2018 | C119: 10:55:21.670 | D119: 323096.4356 | E119: 2267173.222 | F119: 887.2886888 | G119: AERTAR
A120: GS10 | B120: 12.18.2018 | C120: 10:55:32.810 | D120: 323096.4301 | E120: 2267173.221 | F120: 887.2784324 | G120: AERTAR
A121: GS10 | B121: 12.18.2018 | C121: 10:55:44.150 | D121: 323096.4285 | E121: 2267173.217 | F121: 887.3185858 | G121: AERTAR
A122: GS11 | B122: 12.18.2018 | C122: 11:01:49.410 | D122: 326771.6736 | E122: 2270465.383 | F122: 935.3888543 | G122: AERTAR
A123: GS11 | B123: 12.18.2018 | C123: 11:02:04.430 | D123: 326771.6699 | E123: 2270465.395 | F123: 935.3912124 | G123: AERTAR
A124: GS11 | B124: 12.18.2018 | C124: 11:02:17.320 | D124: 326771.6684 | E124: 2270465.392 | F124: 935.3904132 | G124: AERTAR
A125: GS11 | B125: 12.18.2018 | C125: 11:02:29.760 | D125: 326771.6634 | E125: 2270465.386 | F125: 935.3920465 | G125: AERTAR
A126: GS11 | B126: 12.18.2018 | C126: 11:03:20.160 | D126: 326771.6865 | E126: 2270465.349 | F126: 935.3276966 | G126: AERTAR
A127: GS11 | B127: 12.18.2018 | C127: 11:03:31.680 | D127: 326771.6878 | E127: 2270465.344 | F127: 935.3326779 | G127: AERTAR
A128: GS11 | B128: 12.18.2018 | C128: 11:03:43.720 | D128: 326771.6758 | E128: 2270465.363 | F128: 935.3520812 | G128: AERTAR
A129: GS11 | B129: 12.18.2018 | C129: 11:04:35.290 | D129: 326771.6687 | E129: 2270465.357 | F129: 935.3411788 | G129: AERTAR
A130: GS11 | B130: 12.18.2018 | C130: 11:05:10.150 | D130: 326771.6581 | E130: 2270465.369 | F130: 935.4128087 | G130: AERTAR
A131: GS11 | B131: 12.18.2018 | C131: 11:05:21.720 | D131: 326771.6663 | E131: 2270465.365 | F131: 935.3688665 | G131: AERTAR
A132: GS11 | B132: 12.18.2018 | C132: 11:05:32.710 | D132: 326771.6604 | E132: 2270465.377 | F132: 935.4269501 | G132: AERTAR
A133: GS11 | B133: 12.18.2018 | C133: 11:05:43.830 | D133: 326771.6647 | E133: 2270465.373 | F133: 935.4263037 | G133: AERTAR
A134: GS12 | B134: 12.18.2018 | C134: 11:08:01.130 | D134: 328167.648 | E134: 2271461.387 | F134: 928.8120584 | G134: AERPP
A135: GS12 | B135: 12.18.2018 | C135: 11:08:13 | D135: 328167.6585 | E135: 2271461.386 | F135: 928.8156517 | G135: AERPP
A136: GS12 | B136: 12.18.2018 | C136: 11:08:25.090 | D136: 328167.6594 | E136: 2271461.386 | F136: 928.8139137 | G136: AERPP
A137: GS12 | B137: 12.18.2018 | C137: 11:08:37.790 | D137: 328167.6482 | E137: 2271461.387 | F137: 928.8037964 | G137: AERPP
A138: GS12 | B138: 12.18.2018 | C138: 11:09:00.160 | D138: 328167.627 | E138: 2271461.376 | F138: 928.7562896 | G138: AERPP
A139: GS12 | B139: 12.18.2018 | C139: 11:09:12.100 | D139: 328167.642 | E139: 2271461.382 | F139: 928.7775936 | G139: AERPP
A140: GS12 | B140: 12.18.2018 | C140: 11:09:24.070 | D140: 328167.6844 | E140: 2271461.396 | F140: 928.8025003 | G140: AERPP
A141: GS12 | B141: 12.18.2018 | C141: 11:09:35.980 | D141: 328167.6445 | E141: 2271461.384 | F141: 928.7648543 | G141: AERPP
A142: GS12 | B142: 12.18.2018 | C142: 11:09:55.060 | D142: 328167.6383 | E142: 2271461.394 | F142: 928.8121726 | G142: AERPP
A143: GS12 | B143: 12.18.2018 | C143: 11:10:06.800 | D143: 328167.641 | E143: 2271461.39 | F143: 928.794452 | G143: AERPP
A144: GS12 | B144: 12.18.2018 | C144: 11:11:14.030 | D144: 328167.6654 | E144: 2271461.39 | F144: 928.7834975 | G144: AERPP
A145: GS12 | B145: 12.18.2018 | C145: 11:11:26.290 | D145: 328167.6708 | E145: 2271461.391 | F145: 928.7767011 | G145: AERPP
A146: GS13 | B146: 12.18.2018 | C146: 11:18:21.900 | D146: 332046.7253 | E146: 2273761.108 | F146: 907.6804734 | G146: AERTAR
A147: GS13 | B147: 12.18.2018 | C147: 11:18:33.810 | D147: 332046.7262 | E147: 2273761.11 | F147: 907.6743559 | G147: AERTAR
A148: GS13 | B148: 12.18.2018 | C148: 11:18:46.030 | D148: 332046.7358 | E148: 2273761.11 | F148: 907.6668512 | G148: AERTAR
A149: GS13 | B149: 12.18.2018 | C149: 11:18:58.830 | D149: 332046.7315 | E149: 2273761.106 | F149: 907.6651053 | G149: AERTAR
A150: GS13 | B150: 12.18.2018 | C150: 11:19:18.810 | D150: 332046.7265 | E150: 2273761.108 | F150: 907.6597049 | G150: AERTAR
A151: GS13 | B151: 12.18.2018 | C151: 11:19:29.730 | D151: 332046.7264 | E151: 2273761.111 | F151: 907.6454176 | G151: AERTAR
A152: GS13 | B152: 12.18.2018 | C152: 11:19:42.030 | D152: 332046.7232 | E152: 2273761.11 | F152: 907.660475 | G152: AERTAR
A153: GS13 | B153: 12.18.2018 | C153: 11:19:53.890 | D153: 332046.7225 | E153: 2273761.108 | F153: 907.6625856 | G153: AERTAR
A154: GS13 | B154: 12.18.2018 | C154: 11:20:04.750 | D154: 332046.7276 | E154: 2273761.113 | F154: 907.6544534 | G154: AERTAR
A155: GS13 | B155: 12.18.2018 | C155: 11:20:25.930 | D155: 332046.7216 | E155: 2273761.103 | F155: 907.6826122 | G155: AERTAR
A156: GS13 | B156: 12.18.2018 | C156: 11:20:38.030 | D156: 332046.7207 | E156: 2273761.104 | F156: 907.6887085 | G156: AERTAR
A157: GS13 | B157: 12.18.2018 | C157: 11:20:50.150 | D157: 332046.7227 | E157: 2273761.104 | F157: 907.6851067 | G157: AERTAR
A158: GS13 | B158: 12.18.2018 | C158: 11:21:04.020 | D158: 332046.7255 | E158: 2273761.106 | F158: 907.6847747 | G158: AERTAR
A159: GS13 | B159: 12.18.2018 | C159: 11:21:17.950 | D159: 332046.7235 | E159: 2273761.106 | F159: 907.702006 | G159: AERTAR
A160: GS14 | B160: 12.18.2018 | C160: 11:24:35.930 | D160: 334532.5894 | E160: 2275980.488 | F160: 901.9479871 | G160: AERPP
A161: GS14 | B161: 12.18.2018 | C161: 11:24:47.760 | D161: 334532.5858 | E161: 2275980.491 | F161: 901.9419482 | G161: AERPP
A162: GS14 | B162: 12.18.2018 | C162: 11:24:59.710 | D162: 334532.5806 | E162: 2275980.491 | F162: 901.9458891 | G162: AERPP
A163: GS14 | B163: 12.18.2018 | C163: 11:25:11.700 | D163: 334532.5792 | E163: 2275980.49 | F163: 901.9428467 | G163: AERPP
A164: GS14 | B164: 12.18.2018 | C164: 11:25:30.030 | D164: 334532.5845 | E164: 2275980.491 | F164: 901.9588132 | G164: AERPP
A165: GS14 | B165: 12.18.2018 | C165: 11:25:42.210 | D165: 334532.5881 | E165: 2275980.494 | F165: 901.9690521 | G165: AERPP
A166: GS14 | B166: 12.18.2018 | C166: 11:25:53.860 | D166: 334532.5923 | E166: 2275980.494 | F166: 901.9725404 | G166: AERPP
A167: GS14 | B167: 12.18.2018 | C167: 11:26:07.310 | D167: 334532.5882 | E167: 2275980.496 | F167: 901.9913485 | G167: AERPP
A168: GS14 | B168: 12.18.2018 | C168: 11:26:28.130 | D168: 334532.585 | E168: 2275980.494 | F168: 901.9704124 | G168: AERPP
A169: GS14 | B169: 12.18.2018 | C169: 11:26:38.910 | D169: 334532.5808 | E169: 2275980.497 | F169: 901.9636869 | G169: AERPP
A170: GS14 | B170: 12.18.2018 | C170: 11:26:50.960 | D170: 334532.5827 | E170: 2275980.492 | F170: 901.965213 | G170: AERPP
A171: GS14 | B171: 12.18.2018 | C171: 11:27:02.810 | D171: 334532.5814 | E171: 2275980.485 | F171: 901.9708842 | G171: AERPP
A172: GS15 | B172: 12.18.2018 | C172: 11:34:05.200 | D172: 336356.4132 | E172: 2276998.871 | F172: 923.0740955 | G172: AERTAR
A173: GS15 | B173: 12.18.2018 | C173: 11:34:17.300 | D173: 336356.421 | E173: 2276998.874 | F173: 923.0811963 | G173: AERTAR
A174: GS15 | B174: 12.18.2018 | C174: 11:34:30.270 | D174: 336356.4189 | E174: 2276998.878 | F174: 923.0786071 | G174: AERTAR
A175: GS15 | B175: 12.18.2018 | C175: 11:34:43.460 | D175: 336356.4148 | E175: 2276998.88 | F175: 923.081365 | G175: AERTAR
A176: GS15 | B176: 12.18.2018 | C176: 11:35:01.800 | D176: 336356.4271 | E176: 2276998.876 | F176: 923.0831205 | G176: AERTAR
A177: GS15 | B177: 12.18.2018 | C177: 11:35:13.070 | D177: 336356.4306 | E177: 2276998.881 | F177: 923.0839108 | G177: AERTAR
A178: GS15 | B178: 12.18.2018 | C178: 11:35:25.210 | D178: 336356.4246 | E178: 2276998.877 | F178: 923.0841957 | G178: AERTAR
A179: GS15 | B179: 12.18.2018 | C179: 11:35:37.300 | D179: 336356.4323 | E179: 2276998.876 | F179: 923.0746969 | G179: AERTAR
A180: GS15 | B180: 12.18.2018 | C180: 11:35:55.980 | D180: 336356.4348 | E180: 2276998.872 | F180: 923.0610735 | G180: AERTAR
A181: GS15 | B181: 12.18.2018 | C181: 11:36:08.100 | D181: 336356.4307 | E181: 2276998.873 | F181: 923.0509564 | G181: AERTAR
A182: GS15 | B182: 12.18.2018 | C182: 11:36:19.940 | D182: 336356.4136 | E182: 2276998.883 | F182: 923.0703883 | G182: AERTAR
A183: GS15 | B183: 12.18.2018 | C183: 11:36:32.790 | D183: 336356.4368 | E183: 2276998.869 | F183: 923.0589541 | G183: AERTAR
A184: GS16 | B184: 12.18.2018 | C184: 11:43:15.230 | D184: 337228.7292 | E184: 2279034.581 | F184: 902.4073028 | G184: AERTAR
A185: GS16 | B185: 12.18.2018 | C185: 11:43:26 | D185: 337228.7314 | E185: 2279034.578 | F185: 902.4086188 | G185: AERTAR
A186: GS16 | B186: 12.18.2018 | C186: 11:43:38.380 | D186: 337228.7296 | E186: 2279034.585 | F186: 902.4287254 | G186: AERTAR
A187: GS16 | B187: 12.18.2018 | C187: 11:43:50.170 | D187: 337228.7308 | E187: 2279034.589 | F187: 902.4242753 | G187: AERTAR
A188: GS16 | B188: 12.18.2018 | C188: 11:44:07.610 | D188: 337228.7291 | E188: 2279034.59 | F188: 902.4146126 | G188: AERTAR
A189: GS16 | B189: 12.18.2018 | C189: 11:44:18.780 | D189: 337228.7297 | E189: 2279034.589 | F189: 902.4146479 | G189: AERTAR
A190: GS16 | B190: 12.18.2018 | C190: 11:44:30.120 | D190: 337228.7319 | E190: 2279034.589 | F190: 902.4244177 | G190: AERTAR
A191: GS16 | B191: 12.18.2018 | C191: 11:44:42.200 | D191: 337228.7358 | E191: 2279034.59 | F191: 902.415867 | G191: AERTAR
A192: GS16 | B192: 12.18.2018 | C192: 11:44:58.710 | D192: 337228.7321 | E192: 2279034.593 | F192: 902.4308964 | G192: AERTAR
A193: GS16 | B193: 12.18.2018 | C193: 11:45:10.250 | D193: 337228.7374 | E193: 2279034.592 | F193: 902.4169975 | G193: AERTAR
A194: GS16 | B194: 12.18.2018 | C194: 11:45:22.120 | D194: 337228.727 | E194: 2279034.594 | F194: 902.4194515 | G194: AERTAR
A195: GS16 | B195: 12.18.2018 | C195: 11:45:34.230 | D195: 337228.7277 | E195: 2279034.597 | F195: 902.451364 | G195: AERTAR
A196: GS17 | B196: 12.18.2018 | C196: 11:54:49.040 | D196: 340270.8391 | E196: 2284093.239 | F196: 902.8032164 | G196: AERTAR
A197: GS17 | B197: 12.18.2018 | C197: 11:55:01.150 | D197: 340270.8481 | E197: 2284093.237 | F197: 902.7943038 | G197: AERTAR
A198: GS17 | B198: 12.18.2018 | C198: 11:55:13.840 | D198: 340270.853 | E198: 2284093.236 | F198: 902.7991421 | G198: AERTAR
A199: GS17 | B199: 12.18.2018 | C199: 11:55:27.080 | D199: 340270.8641 | E199: 2284093.236 | F199: 902.7793468 | G199: AERTAR
A200: GS17 | B200: 12.18.2018 | C200: 11:55:48.220 | D200: 340270.8449 | E200: 2284093.242 | F200: 902.7851405 | G200: AERTAR
A201: GS17 | B201: 12.18.2018 | C201: 11:56:00.290 | D201: 340270.8425 | E201: 2284093.239 | F201: 902.7897856 | G201: AERTAR
... 139 more rows

Sheet GS1
A1: VRS GNSS Project Control Monument Coordinate Analysis
A3: Project: | B3: =REPORT!B2 -> TUS-800-22.74 | C3: GPS Antenna: | D3: LEICA GS14 | J3: Report Date: | K3: =REPORT!C49 -> 2018-12-19
A4: PID: | B4: =REPORT!E2 -> 100603 | C4: VRS Network: | D4: ODOT VRS | J4: Prepared By: | K4: =REPORT!C48 -> Kolton Wilson
A5: Point ID: | B5: GS1 | C5: No. of Sessions: | D5: =COUNTIF(GPS_IMPORT!A2:A1000,$B$5) -> 12 | J5: Checked By: | K5: =REPORT!C52 -> Joel Swick
A6: SESSION # | B6: gs1 | C6: Observation Date | D6: Start Time | E6: Northing(sft) | F6: Easting(sft) | G6: Height(sft) | H6: ∆ Northing(sft) | I6: ∆ Easting(sft) | J6: ∆ Height(sft) | K6: Include in Solution?
A7: 1 | B7: =IF(ROWS(GPS_IMPORT!$1:1)<=COUNTIF(GPS_IMPORT!$A$2:$A$10000,$B$5),INDEX(GPS_IMPORT!$2:$10000,MATCH($B$5,(GPS_IMPORT!$A$2:$A$10000),0)+ROWS($1:1)-1,COLUMN()-1),0) -> GS1 | C7: =IF(ROWS(GPS_IMPORT!$1:1)<=COUNTIF(GPS_IMPORT!$A$2:$A$10000,$B$5),INDEX(GPS_IMPORT!$2:$10000,MATCH($B$5,(GPS_IMPORT!$A$2:$A$10000),0)+ROWS($1:1)-1,COLUMN()-1),0) -> 12.18.2018 | D7: =IF(ROWS(GPS_IMPORT!$1:1)<=COUNTIF(GPS_IMPORT!$A$2:$A$10000,$B$5),INDEX(GPS_IMPORT!$2:$10000,MATCH($B$5,(GPS_IMPORT!$A$2:$A$10000),0)+ROWS($1:1)-1,COLUMN()-1),0) -> 9: 3:49.0900 | E7: =IF(ROWS(GPS_IMPORT!$1:1)<=COUNTIF(GPS_IMPORT!$A$2:$A$10000,$B$5),INDEX(GPS_IMPORT!$2:$10000,MATCH($B$5,(GPS_IMPORT!$A$2:$A$10000),0)+ROWS($1:1)-1,COLUMN()-1),0) -> 314273.4203 | F7: =IF(ROWS(GPS_IMPORT!$1:1)<=COUNTIF(GPS_IMPORT!$A$2:$A$10000,$B$5),INDEX(GPS_IMPORT!$2:$10000,MATCH($B$5,(GPS_IMPORT!$A$2:$A$10000),0)+ROWS($1:1)-1,COLUMN()-1),0) -> 2256928.331 | G7: =IF(ROWS(GPS_IMPORT!$1:1)<=COUNTIF(GPS_IMPORT!$A$2:$A$10000,$B$5),INDEX(GPS_IMPORT!$2:$10000,MATCH($B$5,(GPS_IMPORT!$A$2:$A$10000),0)+ROWS($1:1)-1,COLUMN()-1),0) -> 912.146517 | H7: =IF(E7>0,E$22-E7,0) -> -0.01177654171 | I7: -0.006914482452 | J7: 0.006893612437 | K7: TRUE
A8: 2 | B8: =IF(ROWS(GPS_IMPORT!$1:2)<=COUNTIF(GPS_IMPORT!$A$2:$A$10000,$B$5),INDEX(GPS_IMPORT!$2:$10000,MATCH($B$5,(GPS_IMPORT!$A$2:$A$10000),0)+ROWS($1:2)-1,COLUMN()-1),0) -> GS1 | C8: =IF(ROWS(GPS_IMPORT!$1:2)<=COUNTIF(GPS_IMPORT!$A$2:$A$10000,$B$5),INDEX(GPS_IMPORT!$2:$10000,MATCH($B$5,(GPS_IMPORT!$A$2:$A$10000),0)+ROWS($1:2)-1,COLUMN()-1),0) -> 12.18.2018 | D8: =IF(ROWS(GPS_IMPORT!$1:2)<=COUNTIF(GPS_IMPORT!$A$2:$A$10000,$B$5),INDEX(GPS_IMPORT!$2:$10000,MATCH($B$5,(GPS_IMPORT!$A$2:$A$10000),0)+ROWS($1:2)-1,COLUMN()-1),0) -> 9: 4:0.4000 | E8: =IF(ROWS(GPS_IMPORT!$1:2)<=COUNTIF(GPS_IMPORT!$A$2:$A$10000,$B$5),INDEX(GPS_IMPORT!$2:$10000,MATCH($B$5,(GPS_IMPORT!$A$2:$A$10000),0)+ROWS($1:2)-1,COLUMN()-1),0) -> 314273.4165 | F8: =IF(ROWS(GPS_IMPORT!$1:2)<=COUNTIF(GPS_IMPORT!$A$2:$A$10000,$B$5),INDEX(GPS_IMPORT!$2:$10000,MATCH($B$5,(GPS_IMPORT!$A$2:$A$10000),0)+ROWS($1:2)-1,COLUMN()-1),0) -> 2256928.326 | G8: =IF(ROWS(GPS_IMPORT!$1:2)<=COUNTIF(GPS_IMPORT!$A$2:$A$10000,$B$5),INDEX(GPS_IMPORT!$2:$10000,MATCH($B$5,(GPS_IMPORT!$A$2:$A$10000),0)+ROWS($1:2)-1,COLUMN()-1),0) -> 912.1360518 | H8: -0.007937534712 | I8: -0.00179325277 | J8: 0.01735880644 | K8: TRUE
A9: 3 | B9: =IF(ROWS(GPS_IMPORT!$1:3)<=COUNTIF(GPS_IMPORT!$A$2:$A$10000,$B$5),INDEX(GPS_IMPORT!$2:$10000,MATCH($B$5,(GPS_IMPORT!$A$2:$A$10000),0)+ROWS($1:3)-1,COLUMN()-1),0) -> GS1 | C9: =IF(ROWS(GPS_IMPORT!$1:3)<=COUNTIF(GPS_IMPORT!$A$2:$A$10000,$B$5),INDEX(GPS_IMPORT!$2:$10000,MATCH($B$5,(GPS_IMPORT!$A$2:$A$10000),0)+ROWS($1:3)-1,COLUMN()-1),0) -> 12.18.2018 | D9: =IF(ROWS(GPS_IMPORT!$1:3)<=COUNTIF(GPS_IMPORT!$A$2:$A$10000,$B$5),INDEX(GPS_IMPORT!$2:$10000,MATCH($B$5,(GPS_IMPORT!$A$2:$A$10000),0)+ROWS($1:3)-1,COLUMN()-1),0) -> 9: 4:11.7400 | E9: =IF(ROWS(GPS_IMPORT!$1:3)<=COUNTIF(GPS_IMPORT!$A$2:$A$10000,$B$5),INDEX(GPS_IMPORT!$2:$10000,MATCH($B$5,(GPS_IMPORT!$A$2:$A$10000),0)+ROWS($1:3)-1,COLUMN()-1),0) -> 314273.4184 | F9: =IF(ROWS(GPS_IMPORT!$1:3)<=COUNTIF(GPS_IMPORT!$A$2:$A$10000,$B$5),INDEX(GPS_IMPORT!$2:$10000,MATCH($B$5,(GPS_IMPORT!$A$2:$A$10000),0)+ROWS($1:3)-1,COLUMN()-1),0) -> 2256928.318 | G9: =IF(ROWS(GPS_IMPORT!$1:3)<=COUNTIF(GPS_IMPORT!$A$2:$A$10000,$B$5),INDEX(GPS_IMPORT!$2:$10000,MATCH($B$5,(GPS_IMPORT!$A$2:$A$10000),0)+ROWS($1:3)-1,COLUMN()-1),0) -> 912.1566663 | H9: -0.009887792694 | I9: 0.00621538749 | J9: -0.003255650583 | K9: TRUE
A10: 4 | B10: =IF(ROWS(GPS_IMPORT!$1:4)<=COUNTIF(GPS_IMPORT!$A$2:$A$10000,$B$5),INDEX(GPS_IMPORT!$2:$10000,MATCH($B$5,(GPS_IMPORT!$A$2:$A$10000),0)+ROWS($1:4)-1,COLUMN()-1),0) -> GS1 | C10: =IF(ROWS(GPS_IMPORT!$1:4)<=COUNTIF(GPS_IMPORT!$A$2:$A$10000,$B$5),INDEX(GPS_IMPORT!$2:$10000,MATCH($B$5,(GPS_IMPORT!$A$2:$A$10000),0)+ROWS($1:4)-1,COLUMN()-1),0) -> 12.18.2018 | D10: =IF(ROWS(GPS_IMPORT!$1:4)<=COUNTIF(GPS_IMPORT!$A$2:$A$10000,$B$5),INDEX(GPS_IMPORT!$2:$10000,MATCH($B$5,(GPS_IMPORT!$A$2:$A$10000),0)+ROWS($1:4)-1,COLUMN()-1),0) -> 9: 4:23.6600 | E10: =IF(ROWS(GPS_IMPORT!$1:4)<=COUNTIF(GPS_IMPORT!$A$2:$A$10000,$B$5),INDEX(GPS_IMPORT!$2:$10000,MATCH($B$5,(GPS_IMPORT!$A$2:$A$10000),0)+ROWS($1:4)-1,COLUMN()-1),0) -> 314273.4151 | F10: =IF(ROWS(GPS_IMPORT!$1:4)<=COUNTIF(GPS_IMPORT!$A$2:$A$10000,$B$5),INDEX(GPS_IMPORT!$2:$10000,MATCH($B$5,(GPS_IMPORT!$A$2:$A$10000),0)+ROWS($1:4)-1,COLUMN()-1),0) -> 2256928.312 | G10: =IF(ROWS(GPS_IMPORT!$1:4)<=COUNTIF(GPS_IMPORT!$A$2:$A$10000,$B$5),INDEX(GPS_IMPORT!$2:$10000,MATCH($B$5,(GPS_IMPORT!$A$2:$A$10000),0)+ROWS($1:4)-1,COLUMN()-1),0) -> 912.1568516 | H10: -0.006600125693 | I10: 0.01133893756 | J10: -0.003440995013 | K10: TRUE
A11: 5 | B11: =IF(ROWS(GPS_IMPORT!$1:5)<=COUNTIF(GPS_IMPORT!$A$2:$A$10000,$B$5),INDEX(GPS_IMPORT!$2:$10000,MATCH($B$5,(GPS_IMPORT!$A$2:$A$10000),0)+ROWS($1:5)-1,COLUMN()-1),0) -> GS1 | C11: =IF(ROWS(GPS_IMPORT!$1:5)<=COUNTIF(GPS_IMPORT!$A$2:$A$10000,$B$5),INDEX(GPS_IMPORT!$2:$10000,MATCH($B$5,(GPS_IMPORT!$A$2:$A$10000),0)+ROWS($1:5)-1,COLUMN()-1),0) -> 12.18.2018 | D11: =IF(ROWS(GPS_IMPORT!$1:5)<=COUNTIF(GPS_IMPORT!$A$2:$A$10000,$B$5),INDEX(GPS_IMPORT!$2:$10000,MATCH($B$5,(GPS_IMPORT!$A$2:$A$10000),0)+ROWS($1:5)-1,COLUMN()-1),0) -> 9: 5:0.1900 | E11: =IF(ROWS(GPS_IMPORT!$1:5)<=COUNTIF(GPS_IMPORT!$A$2:$A$10000,$B$5),INDEX(GPS_IMPORT!$2:$10000,MATCH($B$5,(GPS_IMPORT!$A$2:$A$10000),0)+ROWS($1:5)-1,COLUMN()-1),0) -> 314273.4171 | F11: =IF(ROWS(GPS_IMPORT!$1:5)<=COUNTIF(GPS_IMPORT!$A$2:$A$10000,$B$5),INDEX(GPS_IMPORT!$2:$10000,MATCH($B$5,(GPS_IMPORT!$A$2:$A$10000),0)+ROWS($1:5)-1,COLUMN()-1),0) -> 2256928.319 | G11: =IF(ROWS(GPS_IMPORT!$1:5)<=COUNTIF(GPS_IMPORT!$A$2:$A$10000,$B$5),INDEX(GPS_IMPORT!$2:$10000,MATCH($B$5,(GPS_IMPORT!$A$2:$A$10000),0)+ROWS($1:5)-1,COLUMN()-1),0) -> 912.1452544 | H11: -0.008597479726 | I11: 0.004678847268 | J11: 0.008156248657 | K11: TRUE
A12: 6 | B12: =IF(ROWS(GPS_IMPORT!$1:6)<=COUNTIF(GPS_IMPORT!$A$2:$A$10000,$B$5),INDEX(GPS_IMPORT!$2:$10000,MATCH($B$5,(GPS_IMPORT!$A$2:$A$10000),0)+ROWS($1:6)-1,COLUMN()-1),0) -> GS1 | C12: =IF(ROWS(GPS_IMPORT!$1:6)<=COUNTIF(GPS_IMPORT!$A$2:$A$10000,$B$5),INDEX(GPS_IMPORT!$2:$10000,MATCH($B$5,(GPS_IMPORT!$A$2:$A$10000),0)+ROWS($1:6)-1,COLUMN()-1),0) -> 12.18.2018 | D12: =IF(ROWS(GPS_IMPORT!$1:6)<=COUNTIF(GPS_IMPORT!$A$2:$A$10000,$B$5),INDEX(GPS_IMPORT!$2:$10000,MATCH($B$5,(GPS_IMPORT!$A$2:$A$10000),0)+ROWS($1:6)-1,COLUMN()-1),0) -> 9: 5:10.9300 | E12: =IF(ROWS(GPS_IMPORT!$1:6)<=COUNTIF(GPS_IMPORT!$A$2:$A$10000,$B$5),INDEX(GPS_IMPORT!$2:$10000,MATCH($B$5,(GPS_IMPORT!$A$2:$A$10000),0)+ROWS($1:6)-1,COLUMN()-1),0) -> 314273.4167 | F12: =IF(ROWS(GPS_IMPORT!$1:6)<=COUNTIF(GPS_IMPORT!$A$2:$A$10000,$B$5),INDEX(GPS_IMPORT!$2:$10000,MATCH($B$5,(GPS_IMPORT!$A$2:$A$10000),0)+ROWS($1:6)-1,COLUMN()-1),0) -> 2256928.322 | G12: =IF(ROWS(GPS_IMPORT!$1:6)<=COUNTIF(GPS_IMPORT!$A$2:$A$10000,$B$5),INDEX(GPS_IMPORT!$2:$10000,MATCH($B$5,(GPS_IMPORT!$A$2:$A$10000),0)+ROWS($1:6)-1,COLUMN()-1),0) -> 912.1598219 | H12: -0.00819500169 | I12: 0.002300237305 | J12: -0.006411312253 | K12: TRUE
A13: 7 | B13: =IF(ROWS(GPS_IMPORT!$1:7)<=COUNTIF(GPS_IMPORT!$A$2:$A$10000,$B$5),INDEX(GPS_IMPORT!$2:$10000,MATCH($B$5,(GPS_IMPORT!$A$2:$A$10000),0)+ROWS($1:7)-1,COLUMN()-1),0) -> GS1 | C13: =IF(ROWS(GPS_IMPORT!$1:7)<=COUNTIF(GPS_IMPORT!$A$2:$A$10000,$B$5),INDEX(GPS_IMPORT!$2:$10000,MATCH($B$5,(GPS_IMPORT!$A$2:$A$10000),0)+ROWS($1:7)-1,COLUMN()-1),0) -> 12.18.2018 | D13: =IF(ROWS(GPS_IMPORT!$1:7)<=COUNTIF(GPS_IMPORT!$A$2:$A$10000,$B$5),INDEX(GPS_IMPORT!$2:$10000,MATCH($B$5,(GPS_IMPORT!$A$2:$A$10000),0)+ROWS($1:7)-1,COLUMN()-1),0) -> 9: 5:22.6400 | E13: =IF(ROWS(GPS_IMPORT!$1:7)<=COUNTIF(GPS_IMPORT!$A$2:$A$10000,$B$5),INDEX(GPS_IMPORT!$2:$10000,MATCH($B$5,(GPS_IMPORT!$A$2:$A$10000),0)+ROWS($1:7)-1,COLUMN()-1),0) -> 314273.4069 | F13: =IF(ROWS(GPS_IMPORT!$1:7)<=COUNTIF(GPS_IMPORT!$A$2:$A$10000,$B$5),INDEX(GPS_IMPORT!$2:$10000,MATCH($B$5,(GPS_IMPORT!$A$2:$A$10000),0)+ROWS($1:7)-1,COLUMN()-1),0) -> 2256928.327 | G13: =IF(ROWS(GPS_IMPORT!$1:7)<=COUNTIF(GPS_IMPORT!$A$2:$A$10000,$B$5),INDEX(GPS_IMPORT!$2:$10000,MATCH($B$5,(GPS_IMPORT!$A$2:$A$10000),0)+ROWS($1:7)-1,COLUMN()-1),0) -> 912.1620048 | H13: 0.00164385431 | I13: -0.003360462841 | J13: -0.008594150173 | K13: TRUE
A14: 8 | B14: =IF(ROWS(GPS_IMPORT!$1:8)<=COUNTIF(GPS_IMPORT!$A$2:$A$10000,$B$5),INDEX(GPS_IMPORT!$2:$10000,MATCH($B$5,(GPS_IMPORT!$A$2:$A$10000),0)+ROWS($1:8)-1,COLUMN()-1),0) -> GS1 | C14: =IF(ROWS(GPS_IMPORT!$1:8)<=COUNTIF(GPS_IMPORT!$A$2:$A$10000,$B$5),INDEX(GPS_IMPORT!$2:$10000,MATCH($B$5,(GPS_IMPORT!$A$2:$A$10000),0)+ROWS($1:8)-1,COLUMN()-1),0) -> 12.18.2018 | D14: =IF(ROWS(GPS_IMPORT!$1:8)<=COUNTIF(GPS_IMPORT!$A$2:$A$10000,$B$5),INDEX(GPS_IMPORT!$2:$10000,MATCH($B$5,(GPS_IMPORT!$A$2:$A$10000),0)+ROWS($1:8)-1,COLUMN()-1),0) -> 9: 5:33.9700 | E14: =IF(ROWS(GPS_IMPORT!$1:8)<=COUNTIF(GPS_IMPORT!$A$2:$A$10000,$B$5),INDEX(GPS_IMPORT!$2:$10000,MATCH($B$5,(GPS_IMPORT!$A$2:$A$10000),0)+ROWS($1:8)-1,COLUMN()-1),0) -> 314273.4006 | F14: =IF(ROWS(GPS_IMPORT!$1:8)<=COUNTIF(GPS_IMPORT!$A$2:$A$10000,$B$5),INDEX(GPS_IMPORT!$2:$10000,MATCH($B$5,(GPS_IMPORT!$A$2:$A$10000),0)+ROWS($1:8)-1,COLUMN()-1),0) -> 2256928.329 | G14: =IF(ROWS(GPS_IMPORT!$1:8)<=COUNTIF(GPS_IMPORT!$A$2:$A$10000,$B$5),INDEX(GPS_IMPORT!$2:$10000,MATCH($B$5,(GPS_IMPORT!$A$2:$A$10000),0)+ROWS($1:8)-1,COLUMN()-1),0) -> 912.1530692 | H14: 0.007933133282 | I14: -0.005228302442 | J14: 0.0003413953967 | K14: TRUE
A15: 9 | B15: =IF(ROWS(GPS_IMPORT!$1:9)<=COUNTIF(GPS_IMPORT!$A$2:$A$10000,$B$5),INDEX(GPS_IMPORT!$2:$10000,MATCH($B$5,(GPS_IMPORT!$A$2:$A$10000),0)+ROWS($1:9)-1,COLUMN()-1),0) -> GS1 | C15: =IF(ROWS(GPS_IMPORT!$1:9)<=COUNTIF(GPS_IMPORT!$A$2:$A$10000,$B$5),INDEX(GPS_IMPORT!$2:$10000,MATCH($B$5,(GPS_IMPORT!$A$2:$A$10000),0)+ROWS($1:9)-1,COLUMN()-1),0) -> 12.18.2018 | D15: =IF(ROWS(GPS_IMPORT!$1:9)<=COUNTIF(GPS_IMPORT!$A$2:$A$10000,$B$5),INDEX(GPS_IMPORT!$2:$10000,MATCH($B$5,(GPS_IMPORT!$A$2:$A$10000),0)+ROWS($1:9)-1,COLUMN()-1),0) -> 9: 5:58.8400 | E15: =IF(ROWS(GPS_IMPORT!$1:9)<=COUNTIF(GPS_IMPORT!$A$2:$A$10000,$B$5),INDEX(GPS_IMPORT!$2:$10000,MATCH($B$5,(GPS_IMPORT!$A$2:$A$10000),0)+ROWS($1:9)-1,COLUMN()-1),0) -> 314273.3996 | F15: =IF(ROWS(GPS_IMPORT!$1:9)<=COUNTIF(GPS_IMPORT!$A$2:$A$10000,$B$5),INDEX(GPS_IMPORT!$2:$10000,MATCH($B$5,(GPS_IMPORT!$A$2:$A$10000),0)+ROWS($1:9)-1,COLUMN()-1),0) -> 2256928.327 | G15: =IF(ROWS(GPS_IMPORT!$1:9)<=COUNTIF(GPS_IMPORT!$A$2:$A$10000,$B$5),INDEX(GPS_IMPORT!$2:$10000,MATCH($B$5,(GPS_IMPORT!$A$2:$A$10000),0)+ROWS($1:9)-1,COLUMN()-1),0) -> 912.1528882 | H15: 0.008918226289 | I15: -0.002873142716 | J15: 0.0005223826666 | K15: TRUE
A16: 10 | B16: =IF(ROWS(GPS_IMPORT!$1:10)<=COUNTIF(GPS_IMPORT!$A$2:$A$10000,$B$5),INDEX(GPS_IMPORT!$2:$10000,MATCH($B$5,(GPS_IMPORT!$A$2:$A$10000),0)+ROWS($1:10)-1,COLUMN()-1),0) -> GS1 | C16: =IF(ROWS(GPS_IMPORT!$1:10)<=COUNTIF(GPS_IMPORT!$A$2:$A$10000,$B$5),INDEX(GPS_IMPORT!$2:$10000,MATCH($B$5,(GPS_IMPORT!$A$2:$A$10000),0)+ROWS($1:10)-1,COLUMN()-1),0) -> 12.18.2018 | D16: =IF(ROWS(GPS_IMPORT!$1:10)<=COUNTIF(GPS_IMPORT!$A$2:$A$10000,$B$5),INDEX(GPS_IMPORT!$2:$10000,MATCH($B$5,(GPS_IMPORT!$A$2:$A$10000),0)+ROWS($1:10)-1,COLUMN()-1),0) -> 9: 6:10.1200 | E16: =IF(ROWS(GPS_IMPORT!$1:10)<=COUNTIF(GPS_IMPORT!$A$2:$A$10000,$B$5),INDEX(GPS_IMPORT!$2:$10000,MATCH($B$5,(GPS_IMPORT!$A$2:$A$10000),0)+ROWS($1:10)-1,COLUMN()-1),0) -> 314273.3989 | F16: =IF(ROWS(GPS_IMPORT!$1:10)<=COUNTIF(GPS_IMPORT!$A$2:$A$10000,$B$5),INDEX(GPS_IMPORT!$2:$10000,MATCH($B$5,(GPS_IMPORT!$A$2:$A$10000),0)+ROWS($1:10)-1,COLUMN()-1),0) -> 2256928.326 | G16: =IF(ROWS(GPS_IMPORT!$1:10)<=COUNTIF(GPS_IMPORT!$A$2:$A$10000,$B$5),INDEX(GPS_IMPORT!$2:$10000,MATCH($B$5,(GPS_IMPORT!$A$2:$A$10000),0)+ROWS($1:10)-1,COLUMN()-1),0) -> 912.1572557 | H16: 0.009612799273 | I16: -0.002278292552 | J16: -0.003845086753 | K16: TRUE
A17: 11 | B17: =IF(ROWS(GPS_IMPORT!$1:11)<=COUNTIF(GPS_IMPORT!$A$2:$A$10000,$B$5),INDEX(GPS_IMPORT!$2:$10000,MATCH($B$5,(GPS_IMPORT!$A$2:$A$10000),0)+ROWS($1:11)-1,COLUMN()-1),0) -> GS1 | C17: =IF(ROWS(GPS_IMPORT!$1:11)<=COUNTIF(GPS_IMPORT!$A$2:$A$10000,$B$5),INDEX(GPS_IMPORT!$2:$10000,MATCH($B$5,(GPS_IMPORT!$A$2:$A$10000),0)+ROWS($1:11)-1,COLUMN()-1),0) -> 12.18.2018 | D17: =IF(ROWS(GPS_IMPORT!$1:11)<=COUNTIF(GPS_IMPORT!$A$2:$A$10000,$B$5),INDEX(GPS_IMPORT!$2:$10000,MATCH($B$5,(GPS_IMPORT!$A$2:$A$10000),0)+ROWS($1:11)-1,COLUMN()-1),0) -> 9: 6:21.9800 | E17: =IF(ROWS(GPS_IMPORT!$1:11)<=COUNTIF(GPS_IMPORT!$A$2:$A$10000,$B$5),INDEX(GPS_IMPORT!$2:$10000,MATCH($B$5,(GPS_IMPORT!$A$2:$A$10000),0)+ROWS($1:11)-1,COLUMN()-1),0) -> 314273.3956 | F17: =IF(ROWS(GPS_IMPORT!$1:11)<=COUNTIF(GPS_IMPORT!$A$2:$A$10000,$B$5),INDEX(GPS_IMPORT!$2:$10000,MATCH($B$5,(GPS_IMPORT!$A$2:$A$10000),0)+ROWS($1:11)-1,COLUMN()-1),0) -> 2256928.323 | G17: =IF(ROWS(GPS_IMPORT!$1:11)<=COUNTIF(GPS_IMPORT!$A$2:$A$10000,$B$5),INDEX(GPS_IMPORT!$2:$10000,MATCH($B$5,(GPS_IMPORT!$A$2:$A$10000),0)+ROWS($1:11)-1,COLUMN()-1),0) -> 912.158452 | H17: 0.01288815832 | I17: 0.0007167472504 | J17: -0.005041412213 | K17: TRUE
A18: 12 | B18: =IF(ROWS(GPS_IMPORT!$1:12)<=COUNTIF(GPS_IMPORT!$A$2:$A$10000,$B$5),INDEX(GPS_IMPORT!$2:$10000,MATCH($B$5,(GPS_IMPORT!$A$2:$A$10000),0)+ROWS($1:12)-1,COLUMN()-1),0) -> GS1 | C18: =IF(ROWS(GPS_IMPORT!$1:12)<=COUNTIF(GPS_IMPORT!$A$2:$A$10000,$B$5),INDEX(GPS_IMPORT!$2:$10000,MATCH($B$5,(GPS_IMPORT!$A$2:$A$10000),0)+ROWS($1:12)-1,COLUMN()-1),0) -> 12.18.2018 | D18: =IF(ROWS(GPS_IMPORT!$1:12)<=COUNTIF(GPS_IMPORT!$A$2:$A$10000,$B$5),INDEX(GPS_IMPORT!$2:$10000,MATCH($B$5,(GPS_IMPORT!$A$2:$A$10000),0)+ROWS($1:12)-1,COLUMN()-1),0) -> 9: 6:34.1800 | E18: =IF(ROWS(GPS_IMPORT!$1:12)<=COUNTIF(GPS_IMPORT!$A$2:$A$10000,$B$5),INDEX(GPS_IMPORT!$2:$10000,MATCH($B$5,(GPS_IMPORT!$A$2:$A$10000),0)+ROWS($1:12)-1,COLUMN()-1),0) -> 314273.3965 | F18: =IF(ROWS(GPS_IMPORT!$1:12)<=COUNTIF(GPS_IMPORT!$A$2:$A$10000,$B$5),INDEX(GPS_IMPORT!$2:$10000,MATCH($B$5,(GPS_IMPORT!$A$2:$A$10000),0)+ROWS($1:12)-1,COLUMN()-1),0) -> 2256928.327 | G18: =IF(ROWS(GPS_IMPORT!$1:12)<=COUNTIF(GPS_IMPORT!$A$2:$A$10000,$B$5),INDEX(GPS_IMPORT!$2:$10000,MATCH($B$5,(GPS_IMPORT!$A$2:$A$10000),0)+ROWS($1:12)-1,COLUMN()-1),0) -> 912.1560944 | H18: 0.01199830527 | I18: -0.002802222501 | J18: -0.002683838603 | K18: TRUE
A19: 13 | B19: =IF(ROWS(GPS_IMPORT!$1:13)<=COUNTIF(GPS_IMPORT!$A$2:$A$10000,$B$5),INDEX(GPS_IMPORT!$2:$10000,MATCH($B$5,(GPS_IMPORT!$A$2:$A$10000),0)+ROWS($1:13)-1,COLUMN()-1),0) -> 0 | C19: =IF(ROWS(GPS_IMPORT!$1:13)<=COUNTIF(GPS_IMPORT!$A$2:$A$10000,$B$5),INDEX(GPS_IMPORT!$2:$10000,MATCH($B$5,(GPS_IMPORT!$A$2:$A$10000),0)+ROWS($1:13)-1,COLUMN()-1),0) -> 00:00:00 | D19: =IF(ROWS(GPS_IMPORT!$1:13)<=COUNTIF(GPS_IMPORT!$A$2:$A$10000,$B$5),INDEX(GPS_IMPORT!$2:$10000,MATCH($B$5,(GPS_IMPORT!$A$2:$A$10000),0)+ROWS($1:13)-1,COLUMN()-1),0) -> 00:00:00 | E19: =IF(ROWS(GPS_IMPORT!$1:13)<=COUNTIF(GPS_IMPORT!$A$2:$A$10000,$B$5),INDEX(GPS_IMPORT!$2:$10000,MATCH($B$5,(GPS_IMPORT!$A$2:$A$10000),0)+ROWS($1:13)-1,COLUMN()-1),0) -> 0 | F19: =IF(ROWS(GPS_IMPORT!$1:13)<=COUNTIF(GPS_IMPORT!$A$2:$A$10000,$B$5),INDEX(GPS_IMPORT!$2:$10000,MATCH($B$5,(GPS_IMPORT!$A$2:$A$10000),0)+ROWS($1:13)-1,COLUMN()-1),0) -> 0 | G19: =IF(ROWS(GPS_IMPORT!$1:13)<=COUNTIF(GPS_IMPORT!$A$2:$A$10000,$B$5),INDEX(GPS_IMPORT!$2:$10000,MATCH($B$5,(GPS_IMPORT!$A$2:$A$10000),0)+ROWS($1:13)-1,COLUMN()-1),0) -> 0 | H19: =IF(E19>0,E$22-E19,0) -> 0 | I19: 0 | J19: 0 | K19: FALSE
A20: 14 | B20: =IF(ROWS(GPS_IMPORT!$1:14)<=COUNTIF(GPS_IMPORT!$A$2:$A$10000,$B$5),INDEX(GPS_IMPORT!$2:$10000,MATCH($B$5,(GPS_IMPORT!$A$2:$A$10000),0)+ROWS($1:14)-1,COLUMN()-1),0) -> 0 | C20: =IF(ROWS(GPS_IMPORT!$1:14)<=COUNTIF(GPS_IMPORT!$A$2:$A$10000,$B$5),INDEX(GPS_IMPORT!$2:$10000,MATCH($B$5,(GPS_IMPORT!$A$2:$A$10000),0)+ROWS($1:14)-1,COLUMN()-1),0) -> 00:00:00 | D20: =IF(ROWS(GPS_IMPORT!$1:14)<=COUNTIF(GPS_IMPORT!$A$2:$A$10000,$B$5),INDEX(GPS_IMPORT!$2:$10000,MATCH($B$5,(GPS_IMPORT!$A$2:$A$10000),0)+ROWS($1:14)-1,COLUMN()-1),0) -> 00:00:00 | E20: =IF(ROWS(GPS_IMPORT!$1:14)<=COUNTIF(GPS_IMPORT!$A$2:$A$10000,$B$5),INDEX(GPS_IMPORT!$2:$10000,MATCH($B$5,(GPS_IMPORT!$A$2:$A$10000),0)+ROWS($1:14)-1,COLUMN()-1),0) -> 0 | F20: =IF(ROWS(GPS_IMPORT!$1:14)<=COUNTIF(GPS_IMPORT!$A$2:$A$10000,$B$5),INDEX(GPS_IMPORT!$2:$10000,MATCH($B$5,(GPS_IMPORT!$A$2:$A$10000),0)+ROWS($1:14)-1,COLUMN()-1),0) -> 0 | G20: =IF(ROWS(GPS_IMPORT!$1:14)<=COUNTIF(GPS_IMPORT!$A$2:$A$10000,$B$5),INDEX(GPS_IMPORT!$2:$10000,MATCH($B$5,(GPS_IMPORT!$A$2:$A$10000),0)+ROWS($1:14)-1,COLUMN()-1),0) -> 0 | H20: 0 | I20: 0 | J20: 0 | K20: FALSE
A21: 15 | B21: =IF(ROWS(GPS_IMPORT!$1:15)<=COUNTIF(GPS_IMPORT!$A$2:$A$10000,$B$5),INDEX(GPS_IMPORT!$2:$10000,MATCH($B$5,(GPS_IMPORT!$A$2:$A$10000),0)+ROWS($1:15)-1,COLUMN()-1),0) -> 0 | C21: =IF(ROWS(GPS_IMPORT!$1:15)<=COUNTIF(GPS_IMPORT!$A$2:$A$10000,$B$5),INDEX(GPS_IMPORT!$2:$10000,MATCH($B$5,(GPS_IMPORT!$A$2:$A$10000),0)+ROWS($1:15)-1,COLUMN()-1),0) -> 00:00:00 | D21: =IF(ROWS(GPS_IMPORT!$1:15)<=COUNTIF(GPS_IMPORT!$A$2:$A$10000,$B$5),INDEX(GPS_IMPORT!$2:$10000,MATCH($B$5,(GPS_IMPORT!$A$2:$A$10000),0)+ROWS($1:15)-1,COLUMN()-1),0) -> 00:00:00 | E21: =IF(ROWS(GPS_IMPORT!$1:15)<=COUNTIF(GPS_IMPORT!$A$2:$A$10000,$B$5),INDEX(GPS_IMPORT!$2:$10000,MATCH($B$5,(GPS_IMPORT!$A$2:$A$10000),0)+ROWS($1:15)-1,COLUMN()-1),0) -> 0 | F21: =IF(ROWS(GPS_IMPORT!$1:15)<=COUNTIF(GPS_IMPORT!$A$2:$A$10000,$B$5),INDEX(GPS_IMPORT!$2:$10000,MATCH($B$5,(GPS_IMPORT!$A$2:$A$10000),0)+ROWS($1:15)-1,COLUMN()-1),0) -> 0 | G21: =IF(ROWS(GPS_IMPORT!$1:15)<=COUNTIF(GPS_IMPORT!$A$2:$A$10000,$B$5),INDEX(GPS_IMPORT!$2:$10000,MATCH($B$5,(GPS_IMPORT!$A$2:$A$10000),0)+ROWS($1:15)-1,COLUMN()-1),0) -> 0 | H21: 0 | I21: 0 | J21: 0 | K21: FALSE
D22: AVERAGE | E22: =(IF($K$7=TRUE,E7,0)+IF($K$8=TRUE,E8,0)+IF($K$9=TRUE,E9,0)+IF($K$10=TRUE,E10,0)+IF($K$11=TRUE,E11,0)+IF($K$12=TRUE,E12,0)+IF($K$13=TRUE,E13,0)+IF($K$14=TRUE,E14,0)+IF($K$15=TRUE,E15,0)+IF($K$16=TRUE,E16,0)+IF($K$17=TRUE,E17,0)+IF($K$18=TRUE,E18,0)+IF($K$19=TRUE,E19,0)+IF($K$20=TRUE,E20,0)+IF($K$21=TRUE,E21,0))/(IF($K$7=TRUE,1,0)+IF($K$8=TRUE,1,0)+IF($K$9=TRUE,1,0)+IF($K$10=TRUE,1,0)+IF($K$11=TRUE,1,0)+IF($K$12=TRUE,1,0)+IF($K$13=TRUE,1,0)+IF($K$14=TRUE,1,0)+IF($K$15=TRUE,1,0)+IF($K$16=TRUE,1,0)+IF($K$17=TRUE,1,0)+IF($K$18=TRUE,1,0)+IF($K$19=TRUE,1,0)+IF($K$20=TRUE,1,0)+IF($K$21=TRUE,1,0)) -> 314273.4085 | F22: =(IF($K$7=TRUE,F7,0)+IF($K$8=TRUE,F8,0)+IF($K$9=TRUE,F9,0)+IF($K$10=TRUE,F10,0)+IF($K$11=TRUE,F11,0)+IF($K$12=TRUE,F12,0)+IF($K$13=TRUE,F13,0)+IF($K$14=TRUE,F14,0)+IF($K$15=TRUE,F15,0)+IF($K$16=TRUE,F16,0)+IF($K$17=TRUE,F17,0)+IF($K$18=TRUE,F18,0)+IF($K$19=TRUE,F19,0)+IF($K$20=TRUE,F20,0)+IF($K$21=TRUE,F21,0))/(IF($K$7=TRUE,1,0)+IF($K$8=TRUE,1,0)+IF($K$9=TRUE,1,0)+IF($K$10=TRUE,1,0)+IF($K$11=TRUE,1,0)+IF($K$12=TRUE,1,0)+IF($K$13=TRUE,1,0)+IF($K$14=TRUE,1,0)+IF($K$15=TRUE,1,0)+IF($K$16=TRUE,1,0)+IF($K$17=TRUE,1,0)+IF($K$18=TRUE,1,0)+IF($K$19=TRUE,1,0)+IF($K$20=TRUE,1,0)+IF($K$21=TRUE,1,0)) -> 2256928.324 | G22: =(IF($K$7=TRUE,G7,0)+IF($K$8=TRUE,G8,0)+IF($K$9=TRUE,G9,0)+IF($K$10=TRUE,G10,0)+IF($K$11=TRUE,G11,0)+IF($K$12=TRUE,G12,0)+IF($K$13=TRUE,G13,0)+IF($K$14=TRUE,G14,0)+IF($K$15=TRUE,G15,0)+IF($K$16=TRUE,G16,0)+IF($K$17=TRUE,G17,0)+IF($K$18=TRUE,G18,0)+IF($K$19=TRUE,G19,0)+IF($K$20=TRUE,G20,0)+IF($K$21=TRUE,G21,0))/ (IF($K$7=TRUE,1,0)+IF($K$8=TRUE,1,0)+IF($K$9=TRUE,1,0)+IF($K$10=TRUE,1,0)+IF($K$11=TRUE,1,0)+IF($K$12=TRUE,1,0)+IF($K$13=TRUE,1,0)+IF($K$14=TRUE,1,0)+IF($K$15=TRUE,1,0)+IF($K$16=TRUE,1,0)+IF($K$17=TRUE,1,0)+IF($K$18=TRUE,1,0)+IF($K$19=TRUE,1,0)+IF($K$20=TRUE,1,0)+IF($K$21=TRUE,1,0)) -> 912.1534106 | H22: RMSE: | I22: RMSE: | J22: RMSE:
G23: RMSE IN US SURVEY FEET: | H23: =SQRT(( (IF($K$7=TRUE,H7^2,0))+(IF($K$8=TRUE,H8^2,0))+(IF($K$9=TRUE,H9^2,0))+(IF($K$10=TRUE,H10^2,0))+(IF($K$11=TRUE,H11^2,0))+(IF($K$12=TRUE,H12^2,0))+(IF($K$13=TRUE,H13^2,0))+(IF($K$14=TRUE,H14^2,0))+(IF($K$15=TRUE,H15^2,0))+(IF($K$16=TRUE,H16^2,0))+(IF($K$17=TRUE,H17^2,0))+(IF($K$18=TRUE,H18^2,0))+(IF($K$19=TRUE,H19^2,0))+(IF($K$20=TRUE,H20^2,0))+(IF($K$21=TRUE,H21^2,0)))/ (IF($K$7=TRUE,1,0)+IF($K$8=TRUE,1,0)+IF($K$9=TRUE,1,0)+IF($K$10=TRUE,1,0)+IF($K$11=TRUE,1,0)+IF($K$12=TRUE,1,0)+IF($K$13=TRUE,1,0)+IF($K$14=TRUE,1,0)+IF($K$15=TRUE,1,0)+IF($K$16=TRUE,1,0)+IF($K$17=TRUE,1,0)+IF($K$18=TRUE,1,0)+IF($K$19=TRUE,1,0)+IF($K$20=TRUE,1,0)+IF($K$21=TRUE,1,0))) -> 0.009272439857 | I23: =SQRT(( (IF($K$7=TRUE,I7^2,0))+(IF($K$8=TRUE,I8^2,0))+(IF($K$9=TRUE,I9^2,0))+(IF($K$10=TRUE,I10^2,0))+(IF($K$11=TRUE,I11^2,0))+(IF($K$12=TRUE,I12^2,0))+(IF($K$13=TRUE,I13^2,0))+(IF($K$14=TRUE,I14^2,0))+(IF($K$15=TRUE,I15^2,0))+(IF($K$16=TRUE,I16^2,0))+(IF($K$17=TRUE,I17^2,0))+(IF($K$18=TRUE,I18^2,0))+(IF($K$19=TRUE,I19^2,0))+(IF($K$20=TRUE,I20^2,0))+(IF($K$21=TRUE,I21^2,0)))/ (IF($K$7=TRUE,1,0)+IF($K$8=TRUE,1,0)+IF($K$9=TRUE,1,0)+IF($K$10=TRUE,1,0)+IF($K$11=TRUE,1,0)+IF($K$12=TRUE,1,0)+IF($K$13=TRUE,1,0)+IF($K$14=TRUE,1,0)+IF($K$15=TRUE,1,0)+IF($K$16=TRUE,1,0)+IF($K$17=TRUE,1,0)+IF($K$18=TRUE,1,0)+IF($K$19=TRUE,1,0)+IF($K$20=TRUE,1,0)+IF($K$21=TRUE,1,0))) -> 0.005048520193 | J23: =SQRT(( (IF($K$7=TRUE,J7^2,0))+(IF($K$8=TRUE,J8^2,0))+(IF($K$9=TRUE,J9^2,0))+(IF($K$10=TRUE,J10^2,0))+(IF($K$11=TRUE,J11^2,0))+(IF($K$12=TRUE,J12^2,0))+(IF($K$13=TRUE,J13^2,0))+(IF($K$14=TRUE,J14^2,0))+(IF($K$15=TRUE,J15^2,0))+(IF($K$16=TRUE,J16^2,0))+(IF($K$17=TRUE,J17^2,0))+(IF($K$18=TRUE,J18^2,0))+(IF($K$19=TRUE,J19^2,0))+(IF($K$20=TRUE,J20^2,0))+(IF($K$21=TRUE,J21^2,0)))/ (IF($K$7=TRUE,1,0)+IF($K$8=TRUE,1,0)+IF($K$9=TRUE,1,0)+IF($K$10=TRUE,1,0)+IF($K$11=TRUE,1,0)+IF($K$12=TRUE,1,0)+IF($K$13=TRUE,1,0)+IF($K$14=TRUE,1,0)+IF($K$15=TRUE,1,0)+IF($K$16=TRUE,1,0)+IF($K$17=TRUE,1,0)+IF($K$18=TRUE,1,0)+IF($K$19=TRUE,1,0)+IF($K$20=TRUE,1,0)+IF($K$21=TRUE,1,0))) -> 0.007074434302
D24: 1
C25: UNITLESS GRID TO GROUND MULTIPLIER | D25: 0 | H25: =IF(H23<=0.029,"PASS","FAIL") -> PASS | I25: =IF(I23<=0.029,"PASS","FAIL") -> PASS | J25: =IF(J23<=0.039,"PASS","FAIL") -> PASS
A27: AVERAGED GPS-DERIVED POSITION | I27: Notes:
B28: MONUMENT COORDINATES | D28: NORTHING | E28: EASTING | F28: ORTHO HEIGHT
B29: US Survey Feet (GRID) | D29: =$E$22 -> 314273.4085 | E29: =$F$22 -> 2256928.324 | F29: =$G$22 -> 912.1534106
A31: LEVELED ELEVATION
A32: US SURVEY FEET | C32: N/A | D32: (Type the leveled elevation or N/A if no leveled elevation is available)
A33: MONUMENT HELD | D33: (Type the monument name from which leveling originated)
A34: LEVELED ELEVATION - GPS DERIVED ELEVATION = | E34: =IF(C32="N/A","N/A",C32-(F29*D24)) -> N/A
A36: FINAL MONUMENT COORDINATES
B37: MONUMENT COORDINATES | D37: NORTHING | E37: EASTING | F37: ELEVATION | G37: FEATURE CODE
B38: US SURVEY FEET (GRID) | D38: =$E$22*$D$24 -> 314273.4085 | E38: =$F$22*$D$24 -> 2256928.324 | F38: =IF($C$32="N/A",($G$22*$D$24),$C$32) -> 912.1534106 | G38: AERTAR
B39: US SURVEY FEET (GROUND) | D39: =$D$38*$D$25 -> 0 | E39: =$E$38*$D$25 -> 0 | F39: =IF($C$32="N/A",($G$22*$D$24),$C$32) -> 912.1534106 | G39: =G38 -> AERTAR
A41: ∆ North, ∆ East, and ∆ Ht. are the difference between the average northing, easting, and height for each observation. | I41: Mask Angle: | J41: 10°

Sheet GS2
A1: VRS GNSS Project Control Monument Coordinate Analysis
A3: Project: | B3: =REPORT!B2 -> TUS-800-22.74 | C3: GPS Antenna: | D3: LEICA GS14 | J3: Report Date: | K3: =REPORT!C49 -> 2018-12-19
A4: PID: | B4: =REPORT!E2 -> 100603 | C4: VRS Network: | D4: ODOT VRS | J4: Prepared By: | K4: =REPORT!C48 -> Kolton Wilson
A5: Point ID: | B5: GS2 | C5: No. of Sessions: | D5: =COUNTIF(GPS_IMPORT!A2:A1000,$B$5) -> 12 | J5: Checked By: | K5: =REPORT!C52 -> Joel Swick
A6: SESSION # | B6: Point | C6: Observation Date | D6: Start Time | E6: Northing(sft) | F6: Easting(sft) | G6: Height(sft) | H6: ∆ Northing(sft) | I6: ∆ Easting(sft) | J6: ∆ Height(sft) | K6: Include in Solution?
A7: 1 | B7: =IF(ROWS(GPS_IMPORT!$1:1)<=COUNTIF(GPS_IMPORT!$A$2:$A$10000,$B$5),INDEX(GPS_IMPORT!$2:$10000,MATCH($B$5,(GPS_IMPORT!$A$2:$A$10000),0)+ROWS($1:1)-1,COLUMN()-1),0) -> GS2 | C7: =IF(ROWS(GPS_IMPORT!$1:1)<=COUNTIF(GPS_IMPORT!$A$2:$A$10000,$B$5),INDEX(GPS_IMPORT!$2:$10000,MATCH($B$5,(GPS_IMPORT!$A$2:$A$10000),0)+ROWS($1:1)-1,COLUMN()-1),0) -> 12.18.2018 | D7: =IF(ROWS(GPS_IMPORT!$1:1)<=COUNTIF(GPS_IMPORT!$A$2:$A$10000,$B$5),INDEX(GPS_IMPORT!$2:$10000,MATCH($B$5,(GPS_IMPORT!$A$2:$A$10000),0)+ROWS($1:1)-1,COLUMN()-1),0) -> 9:15:28.2700 | E7: =IF(ROWS(GPS_IMPORT!$1:1)<=COUNTIF(GPS_IMPORT!$A$2:$A$10000,$B$5),INDEX(GPS_IMPORT!$2:$10000,MATCH($B$5,(GPS_IMPORT!$A$2:$A$10000),0)+ROWS($1:1)-1,COLUMN()-1),0) -> 315045.2133 | F7: =IF(ROWS(GPS_IMPORT!$1:1)<=COUNTIF(GPS_IMPORT!$A$2:$A$10000,$B$5),INDEX(GPS_IMPORT!$2:$10000,MATCH($B$5,(GPS_IMPORT!$A$2:$A$10000),0)+ROWS($1:1)-1,COLUMN()-1),0) -> 2257842.21 | G7: =IF(ROWS(GPS_IMPORT!$1:1)<=COUNTIF(GPS_IMPORT!$A$2:$A$10000,$B$5),INDEX(GPS_IMPORT!$2:$10000,MATCH($B$5,(GPS_IMPORT!$A$2:$A$10000),0)+ROWS($1:1)-1,COLUMN()-1),0) -> 902.4426998 | H7: =IF(E7>0,E$22-E7,0) -> -0.01248634228 | I7: -0.006038180552 | J7: 0.01479026053 | K7: TRUE
A8: 2 | B8: =IF(ROWS(GPS_IMPORT!$1:2)<=COUNTIF(GPS_IMPORT!$A$2:$A$10000,$B$5),INDEX(GPS_IMPORT!$2:$10000,MATCH($B$5,(GPS_IMPORT!$A$2:$A$10000),0)+ROWS($1:2)-1,COLUMN()-1),0) -> GS2 | C8: =IF(ROWS(GPS_IMPORT!$1:2)<=COUNTIF(GPS_IMPORT!$A$2:$A$10000,$B$5),INDEX(GPS_IMPORT!$2:$10000,MATCH($B$5,(GPS_IMPORT!$A$2:$A$10000),0)+ROWS($1:2)-1,COLUMN()-1),0) -> 12.18.2018 | D8: =IF(ROWS(GPS_IMPORT!$1:2)<=COUNTIF(GPS_IMPORT!$A$2:$A$10000,$B$5),INDEX(GPS_IMPORT!$2:$10000,MATCH($B$5,(GPS_IMPORT!$A$2:$A$10000),0)+ROWS($1:2)-1,COLUMN()-1),0) -> 9:15:39.9600 | E8: =IF(ROWS(GPS_IMPORT!$1:2)<=COUNTIF(GPS_IMPORT!$A$2:$A$10000,$B$5),INDEX(GPS_IMPORT!$2:$10000,MATCH($B$5,(GPS_IMPORT!$A$2:$A$10000),0)+ROWS($1:2)-1,COLUMN()-1),0) -> 315045.2093 | F8: =IF(ROWS(GPS_IMPORT!$1:2)<=COUNTIF(GPS_IMPORT!$A$2:$A$10000,$B$5),INDEX(GPS_IMPORT!$2:$10000,MATCH($B$5,(GPS_IMPORT!$A$2:$A$10000),0)+ROWS($1:2)-1,COLUMN()-1),0) -> 2257842.205 | G8: =IF(ROWS(GPS_IMPORT!$1:2)<=COUNTIF(GPS_IMPORT!$A$2:$A$10000,$B$5),INDEX(GPS_IMPORT!$2:$10000,MATCH($B$5,(GPS_IMPORT!$A$2:$A$10000),0)+ROWS($1:2)-1,COLUMN()-1),0) -> 902.4421245 | H8: -0.008406912268 | I8: -0.001334310509 | J8: 0.0153656169 | K8: TRUE
A9: 3 | B9: =IF(ROWS(GPS_IMPORT!$1:3)<=COUNTIF(GPS_IMPORT!$A$2:$A$10000,$B$5),INDEX(GPS_IMPORT!$2:$10000,MATCH($B$5,(GPS_IMPORT!$A$2:$A$10000),0)+ROWS($1:3)-1,COLUMN()-1),0) -> GS2 | C9: =IF(ROWS(GPS_IMPORT!$1:3)<=COUNTIF(GPS_IMPORT!$A$2:$A$10000,$B$5),INDEX(GPS_IMPORT!$2:$10000,MATCH($B$5,(GPS_IMPORT!$A$2:$A$10000),0)+ROWS($1:3)-1,COLUMN()-1),0) -> 12.18.2018 | D9: =IF(ROWS(GPS_IMPORT!$1:3)<=COUNTIF(GPS_IMPORT!$A$2:$A$10000,$B$5),INDEX(GPS_IMPORT!$2:$10000,MATCH($B$5,(GPS_IMPORT!$A$2:$A$10000),0)+ROWS($1:3)-1,COLUMN()-1),0) -> 9:15:50.8500 | E9: =IF(ROWS(GPS_IMPORT!$1:3)<=COUNTIF(GPS_IMPORT!$A$2:$A$10000,$B$5),INDEX(GPS_IMPORT!$2:$10000,MATCH($B$5,(GPS_IMPORT!$A$2:$A$10000),0)+ROWS($1:3)-1,COLUMN()-1),0) -> 315045.1998 | F9: =IF(ROWS(GPS_IMPORT!$1:3)<=COUNTIF(GPS_IMPORT!$A$2:$A$10000,$B$5),INDEX(GPS_IMPORT!$2:$10000,MATCH($B$5,(GPS_IMPORT!$A$2:$A$10000),0)+ROWS($1:3)-1,COLUMN()-1),0) -> 2257842.198 | G9: =IF(ROWS(GPS_IMPORT!$1:3)<=COUNTIF(GPS_IMPORT!$A$2:$A$10000,$B$5),INDEX(GPS_IMPORT!$2:$10000,MATCH($B$5,(GPS_IMPORT!$A$2:$A$10000),0)+ROWS($1:3)-1,COLUMN()-1),0) -> 902.4424355 | H9: 0.001076411747 | I9: 0.005048439838 | J9: 0.01505462973 | K9: TRUE
A10: 4 | B10: =IF(ROWS(GPS_IMPORT!$1:4)<=COUNTIF(GPS_IMPORT!$A$2:$A$10000,$B$5),INDEX(GPS_IMPORT!$2:$10000,MATCH($B$5,(GPS_IMPORT!$A$2:$A$10000),0)+ROWS($1:4)-1,COLUMN()-1),0) -> GS2 | C10: =IF(ROWS(GPS_IMPORT!$1:4)<=COUNTIF(GPS_IMPORT!$A$2:$A$10000,$B$5),INDEX(GPS_IMPORT!$2:$10000,MATCH($B$5,(GPS_IMPORT!$A$2:$A$10000),0)+ROWS($1:4)-1,COLUMN()-1),0) -> 12.18.2018 | D10: =IF(ROWS(GPS_IMPORT!$1:4)<=COUNTIF(GPS_IMPORT!$A$2:$A$10000,$B$5),INDEX(GPS_IMPORT!$2:$10000,MATCH($B$5,(GPS_IMPORT!$A$2:$A$10000),0)+ROWS($1:4)-1,COLUMN()-1),0) -> 9:16:1.2100 | E10: =IF(ROWS(GPS_IMPORT!$1:4)<=COUNTIF(GPS_IMPORT!$A$2:$A$10000,$B$5),INDEX(GPS_IMPORT!$2:$10000,MATCH($B$5,(GPS_IMPORT!$A$2:$A$10000),0)+ROWS($1:4)-1,COLUMN()-1),0) -> 315045.2005 | F10: =IF(ROWS(GPS_IMPORT!$1:4)<=COUNTIF(GPS_IMPORT!$A$2:$A$10000,$B$5),INDEX(GPS_IMPORT!$2:$10000,MATCH($B$5,(GPS_IMPORT!$A$2:$A$10000),0)+ROWS($1:4)-1,COLUMN()-1),0) -> 2257842.198 | G10: =IF(ROWS(GPS_IMPORT!$1:4)<=COUNTIF(GPS_IMPORT!$A$2:$A$10000,$B$5),INDEX(GPS_IMPORT!$2:$10000,MATCH($B$5,(GPS_IMPORT!$A$2:$A$10000),0)+ROWS($1:4)-1,COLUMN()-1),0) -> 902.4589326 | H10: 0.000389821711 | I10: 0.005806879606 | J10: -0.001442470032 | K10: TRUE
A11: 5 | B11: =IF(ROWS(GPS_IMPORT!$1:5)<=COUNTIF(GPS_IMPORT!$A$2:$A$10000,$B$5),INDEX(GPS_IMPORT!$2:$10000,MATCH($B$5,(GPS_IMPORT!$A$2:$A$10000),0)+ROWS($1:5)-1,COLUMN()-1),0) -> GS2 | C11: =IF(ROWS(GPS_IMPORT!$1:5)<=COUNTIF(GPS_IMPORT!$A$2:$A$10000,$B$5),INDEX(GPS_IMPORT!$2:$10000,MATCH($B$5,(GPS_IMPORT!$A$2:$A$10000),0)+ROWS($1:5)-1,COLUMN()-1),0) -> 12.18.2018 | D11: =IF(ROWS(GPS_IMPORT!$1:5)<=COUNTIF(GPS_IMPORT!$A$2:$A$10000,$B$5),INDEX(GPS_IMPORT!$2:$10000,MATCH($B$5,(GPS_IMPORT!$A$2:$A$10000),0)+ROWS($1:5)-1,COLUMN()-1),0) -> 9:16:16.8300 | E11: =IF(ROWS(GPS_IMPORT!$1:5)<=COUNTIF(GPS_IMPORT!$A$2:$A$10000,$B$5),INDEX(GPS_IMPORT!$2:$10000,MATCH($B$5,(GPS_IMPORT!$A$2:$A$10000),0)+ROWS($1:5)-1,COLUMN()-1),0) -> 315045.2005 | F11: =IF(ROWS(GPS_IMPORT!$1:5)<=COUNTIF(GPS_IMPORT!$A$2:$A$10000,$B$5),INDEX(GPS_IMPORT!$2:$10000,MATCH($B$5,(GPS_IMPORT!$A$2:$A$10000),0)+ROWS($1:5)-1,COLUMN()-1),0) -> 2257842.204 | G11: =IF(ROWS(GPS_IMPORT!$1:5)<=COUNTIF(GPS_IMPORT!$A$2:$A$10000,$B$5),INDEX(GPS_IMPORT!$2:$10000,MATCH($B$5,(GPS_IMPORT!$A$2:$A$10000),0)+ROWS($1:5)-1,COLUMN()-1),0) -> 902.4629625 | H11: 0.0004047947587 | I11: -0.0004513305612 | J11: -0.005472415142 | K11: TRUE
A12: 6 | B12: =IF(ROWS(GPS_IMPORT!$1:6)<=COUNTIF(GPS_IMPORT!$A$2:$A$10000,$B$5),INDEX(GPS_IMPORT!$2:$10000,MATCH($B$5,(GPS_IMPORT!$A$2:$A$10000),0)+ROWS($1:6)-1,COLUMN()-1),0) -> GS2 | C12: =IF(ROWS(GPS_IMPORT!$1:6)<=COUNTIF(GPS_IMPORT!$A$2:$A$10000,$B$5),INDEX(GPS_IMPORT!$2:$10000,MATCH($B$5,(GPS_IMPORT!$A$2:$A$10000),0)+ROWS($1:6)-1,COLUMN()-1),0) -> 12.18.2018 | D12: =IF(ROWS(GPS_IMPORT!$1:6)<=COUNTIF(GPS_IMPORT!$A$2:$A$10000,$B$5),INDEX(GPS_IMPORT!$2:$10000,MATCH($B$5,(GPS_IMPORT!$A$2:$A$10000),0)+ROWS($1:6)-1,COLUMN()-1),0) -> 9:16:26.5800 | E12: =IF(ROWS(GPS_IMPORT!$1:6)<=COUNTIF(GPS_IMPORT!$A$2:$A$10000,$B$5),INDEX(GPS_IMPORT!$2:$10000,MATCH($B$5,(GPS_IMPORT!$A$2:$A$10000),0)+ROWS($1:6)-1,COLUMN()-1),0) -> 315045.1994 | F12: =IF(ROWS(GPS_IMPORT!$1:6)<=COUNTIF(GPS_IMPORT!$A$2:$A$10000,$B$5),INDEX(GPS_IMPORT!$2:$10000,MATCH($B$5,(GPS_IMPORT!$A$2:$A$10000),0)+ROWS($1:6)-1,COLUMN()-1),0) -> 2257842.203 | G12: =IF(ROWS(GPS_IMPORT!$1:6)<=COUNTIF(GPS_IMPORT!$A$2:$A$10000,$B$5),INDEX(GPS_IMPORT!$2:$10000,MATCH($B$5,(GPS_IMPORT!$A$2:$A$10000),0)+ROWS($1:6)-1,COLUMN()-1),0) -> 902.4629155 | H12: 0.001506859728 | I12: 0.0004290495999 | J12: -0.005425433562 | K12: TRUE
A13: 7 | B13: =IF(ROWS(GPS_IMPORT!$1:7)<=COUNTIF(GPS_IMPORT!$A$2:$A$10000,$B$5),INDEX(GPS_IMPORT!$2:$10000,MATCH($B$5,(GPS_IMPORT!$A$2:$A$10000),0)+ROWS($1:7)-1,COLUMN()-1),0) -> GS2 | C13: =IF(ROWS(GPS_IMPORT!$1:7)<=COUNTIF(GPS_IMPORT!$A$2:$A$10000,$B$5),INDEX(GPS_IMPORT!$2:$10000,MATCH($B$5,(GPS_IMPORT!$A$2:$A$10000),0)+ROWS($1:7)-1,COLUMN()-1),0) -> 12.18.2018 | D13: =IF(ROWS(GPS_IMPORT!$1:7)<=COUNTIF(GPS_IMPORT!$A$2:$A$10000,$B$5),INDEX(GPS_IMPORT!$2:$10000,MATCH($B$5,(GPS_IMPORT!$A$2:$A$10000),0)+ROWS($1:7)-1,COLUMN()-1),0) -> 9:16:37.6100 | E13: =IF(ROWS(GPS_IMPORT!$1:7)<=COUNTIF(GPS_IMPORT!$A$2:$A$10000,$B$5),INDEX(GPS_IMPORT!$2:$10000,MATCH($B$5,(GPS_IMPORT!$A$2:$A$10000),0)+ROWS($1:7)-1,COLUMN()-1),0) -> 315045.2 | F13: =IF(ROWS(GPS_IMPORT!$1:7)<=COUNTIF(GPS_IMPORT!$A$2:$A$10000,$B$5),INDEX(GPS_IMPORT!$2:$10000,MATCH($B$5,(GPS_IMPORT!$A$2:$A$10000),0)+ROWS($1:7)-1,COLUMN()-1),0) -> 2257842.208 | G13: =IF(ROWS(GPS_IMPORT!$1:7)<=COUNTIF(GPS_IMPORT!$A$2:$A$10000,$B$5),INDEX(GPS_IMPORT!$2:$10000,MATCH($B$5,(GPS_IMPORT!$A$2:$A$10000),0)+ROWS($1:7)-1,COLUMN()-1),0) -> 902.4667384 | H13: 0.000861470704 | I13: -0.004629740492 | J13: -0.009248358411 | K13: TRUE
A14: 8 | B14: =IF(ROWS(GPS_IMPORT!$1:8)<=COUNTIF(GPS_IMPORT!$A$2:$A$10000,$B$5),INDEX(GPS_IMPORT!$2:$10000,MATCH($B$5,(GPS_IMPORT!$A$2:$A$10000),0)+ROWS($1:8)-1,COLUMN()-1),0) -> GS2 | C14: =IF(ROWS(GPS_IMPORT!$1:8)<=COUNTIF(GPS_IMPORT!$A$2:$A$10000,$B$5),INDEX(GPS_IMPORT!$2:$10000,MATCH($B$5,(GPS_IMPORT!$A$2:$A$10000),0)+ROWS($1:8)-1,COLUMN()-1),0) -> 12.18.2018 | D14: =IF(ROWS(GPS_IMPORT!$1:8)<=COUNTIF(GPS_IMPORT!$A$2:$A$10000,$B$5),INDEX(GPS_IMPORT!$2:$10000,MATCH($B$5,(GPS_IMPORT!$A$2:$A$10000),0)+ROWS($1:8)-1,COLUMN()-1),0) -> 9:16:49.1900 | E14: =IF(ROWS(GPS_IMPORT!$1:8)<=COUNTIF(GPS_IMPORT!$A$2:$A$10000,$B$5),INDEX(GPS_IMPORT!$2:$10000,MATCH($B$5,(GPS_IMPORT!$A$2:$A$10000),0)+ROWS($1:8)-1,COLUMN()-1),0) -> 315045.1991 | F14: =IF(ROWS(GPS_IMPORT!$1:8)<=COUNTIF(GPS_IMPORT!$A$2:$A$10000,$B$5),INDEX(GPS_IMPORT!$2:$10000,MATCH($B$5,(GPS_IMPORT!$A$2:$A$10000),0)+ROWS($1:8)-1,COLUMN()-1),0) -> 2257842.205 | G14: =IF(ROWS(GPS_IMPORT!$1:8)<=COUNTIF(GPS_IMPORT!$A$2:$A$10000,$B$5),INDEX(GPS_IMPORT!$2:$10000,MATCH($B$5,(GPS_IMPORT!$A$2:$A$10000),0)+ROWS($1:8)-1,COLUMN()-1),0) -> 902.4817397 | H14: 0.001764641725 | I14: -0.001614880282 | J14: -0.02424962511 | K14: TRUE
A15: 9 | B15: =IF(ROWS(GPS_IMPORT!$1:9)<=COUNTIF(GPS_IMPORT!$A$2:$A$10000,$B$5),INDEX(GPS_IMPORT!$2:$10000,MATCH($B$5,(GPS_IMPORT!$A$2:$A$10000),0)+ROWS($1:9)-1,COLUMN()-1),0) -> GS2 | C15: =IF(ROWS(GPS_IMPORT!$1:9)<=COUNTIF(GPS_IMPORT!$A$2:$A$10000,$B$5),INDEX(GPS_IMPORT!$2:$10000,MATCH($B$5,(GPS_IMPORT!$A$2:$A$10000),0)+ROWS($1:9)-1,COLUMN()-1),0) -> 12.18.2018 | D15: =IF(ROWS(GPS_IMPORT!$1:9)<=COUNTIF(GPS_IMPORT!$A$2:$A$10000,$B$5),INDEX(GPS_IMPORT!$2:$10000,MATCH($B$5,(GPS_IMPORT!$A$2:$A$10000),0)+ROWS($1:9)-1,COLUMN()-1),0) -> 9:17:8.6400 | E15: =IF(ROWS(GPS_IMPORT!$1:9)<=COUNTIF(GPS_IMPORT!$A$2:$A$10000,$B$5),INDEX(GPS_IMPORT!$2:$10000,MATCH($B$5,(GPS_IMPORT!$A$2:$A$10000),0)+ROWS($1:9)-1,COLUMN()-1),0) -> 315045.1995 | F15: =IF(ROWS(GPS_IMPORT!$1:9)<=COUNTIF(GPS_IMPORT!$A$2:$A$10000,$B$5),INDEX(GPS_IMPORT!$2:$10000,MATCH($B$5,(GPS_IMPORT!$A$2:$A$10000),0)+ROWS($1:9)-1,COLUMN()-1),0) -> 2257842.203 | G15: =IF(ROWS(GPS_IMPORT!$1:9)<=COUNTIF(GPS_IMPORT!$A$2:$A$10000,$B$5),INDEX(GPS_IMPORT!$2:$10000,MATCH($B$5,(GPS_IMPORT!$A$2:$A$10000),0)+ROWS($1:9)-1,COLUMN()-1),0) -> 902.463483 | H15: 0.001378641755 | I15: 0.0004480895586 | J15: -0.005992918921 | K15: TRUE
A16: 10 | B16: =IF(ROWS(GPS_IMPORT!$1:10)<=COUNTIF(GPS_IMPORT!$A$2:$A$10000,$B$5),INDEX(GPS_IMPORT!$2:$10000,MATCH($B$5,(GPS_IMPORT!$A$2:$A$10000),0)+ROWS($1:10)-1,COLUMN()-1),0) -> GS2 | C16: =IF(ROWS(GPS_IMPORT!$1:10)<=COUNTIF(GPS_IMPORT!$A$2:$A$10000,$B$5),INDEX(GPS_IMPORT!$2:$10000,MATCH($B$5,(GPS_IMPORT!$A$2:$A$10000),0)+ROWS($1:10)-1,COLUMN()-1),0) -> 12.18.2018 | D16: =IF(ROWS(GPS_IMPORT!$1:10)<=COUNTIF(GPS_IMPORT!$A$2:$A$10000,$B$5),INDEX(GPS_IMPORT!$2:$10000,MATCH($B$5,(GPS_IMPORT!$A$2:$A$10000),0)+ROWS($1:10)-1,COLUMN()-1),0) -> 9:17:19.7600 | E16: =IF(ROWS(GPS_IMPORT!$1:10)<=COUNTIF(GPS_IMPORT!$A$2:$A$10000,$B$5),INDEX(GPS_IMPORT!$2:$10000,MATCH($B$5,(GPS_IMPORT!$A$2:$A$10000),0)+ROWS($1:10)-1,COLUMN()-1),0) -> 315045.1983 | F16: =IF(ROWS(GPS_IMPORT!$1:10)<=COUNTIF(GPS_IMPORT!$A$2:$A$10000,$B$5),INDEX(GPS_IMPORT!$2:$10000,MATCH($B$5,(GPS_IMPORT!$A$2:$A$10000),0)+ROWS($1:10)-1,COLUMN()-1),0) -> 2257842.204 | G16: =IF(ROWS(GPS_IMPORT!$1:10)<=COUNTIF(GPS_IMPORT!$A$2:$A$10000,$B$5),INDEX(GPS_IMPORT!$2:$10000,MATCH($B$5,(GPS_IMPORT!$A$2:$A$10000),0)+ROWS($1:10)-1,COLUMN()-1),0) -> 902.4600446 | H16: 0.002592729754 | I16: -5.985051394e-05 | J16: -0.002554551912 | K16: TRUE
A17: 11 | B17: =IF(ROWS(GPS_IMPORT!$1:11)<=COUNTIF(GPS_IMPORT!$A$2:$A$10000,$B$5),INDEX(GPS_IMPORT!$2:$10000,MATCH($B$5,(GPS_IMPORT!$A$2:$A$10000),0)+ROWS($1:11)-1,COLUMN()-1),0) -> GS2 | C17: =IF(ROWS(GPS_IMPORT!$1:11)<=COUNTIF(GPS_IMPORT!$A$2:$A$10000,$B$5),INDEX(GPS_IMPORT!$2:$10000,MATCH($B$5,(GPS_IMPORT!$A$2:$A$10000),0)+ROWS($1:11)-1,COLUMN()-1),0) -> 12.18.2018 | D17: =IF(ROWS(GPS_IMPORT!$1:11)<=COUNTIF(GPS_IMPORT!$A$2:$A$10000,$B$5),INDEX(GPS_IMPORT!$2:$10000,MATCH($B$5,(GPS_IMPORT!$A$2:$A$10000),0)+ROWS($1:11)-1,COLUMN()-1),0) -> 9:17:31.1500 | E17: =IF(ROWS(GPS_IMPORT!$1:11)<=COUNTIF(GPS_IMPORT!$A$2:$A$10000,$B$5),INDEX(GPS_IMPORT!$2:$10000,MATCH($B$5,(GPS_IMPORT!$A$2:$A$10000),0)+ROWS($1:11)-1,COLUMN()-1),0) -> 315045.1972 | F17: =IF(ROWS(GPS_IMPORT!$1:11)<=COUNTIF(GPS_IMPORT!$A$2:$A$10000,$B$5),INDEX(GPS_IMPORT!$2:$10000,MATCH($B$5,(GPS_IMPORT!$A$2:$A$10000),0)+ROWS($1:11)-1,COLUMN()-1),0) -> 2257842.205 | G17: =IF(ROWS(GPS_IMPORT!$1:11)<=COUNTIF(GPS_IMPORT!$A$2:$A$10000,$B$5),INDEX(GPS_IMPORT!$2:$10000,MATCH($B$5,(GPS_IMPORT!$A$2:$A$10000),0)+ROWS($1:11)-1,COLUMN()-1),0) -> 902.4559618 | H17: 0.003673569707 | I17: -0.001425660215 | J17: 0.001528278038 | K17: TRUE
A18: 12 | B18: =IF(ROWS(GPS_IMPORT!$1:12)<=COUNTIF(GPS_IMPORT!$A$2:$A$10000,$B$5),INDEX(GPS_IMPORT!$2:$10000,MATCH($B$5,(GPS_IMPORT!$A$2:$A$10000),0)+ROWS($1:12)-1,COLUMN()-1),0) -> GS2 | C18: =IF(ROWS(GPS_IMPORT!$1:12)<=COUNTIF(GPS_IMPORT!$A$2:$A$10000,$B$5),INDEX(GPS_IMPORT!$2:$10000,MATCH($B$5,(GPS_IMPORT!$A$2:$A$10000),0)+ROWS($1:12)-1,COLUMN()-1),0) -> 12.18.2018 | D18: =IF(ROWS(GPS_IMPORT!$1:12)<=COUNTIF(GPS_IMPORT!$A$2:$A$10000,$B$5),INDEX(GPS_IMPORT!$2:$10000,MATCH($B$5,(GPS_IMPORT!$A$2:$A$10000),0)+ROWS($1:12)-1,COLUMN()-1),0) -> 9:17:42.0300 | E18: =IF(ROWS(GPS_IMPORT!$1:12)<=COUNTIF(GPS_IMPORT!$A$2:$A$10000,$B$5),INDEX(GPS_IMPORT!$2:$10000,MATCH($B$5,(GPS_IMPORT!$A$2:$A$10000),0)+ROWS($1:12)-1,COLUMN()-1),0) -> 315045.1936 | F18: =IF(ROWS(GPS_IMPORT!$1:12)<=COUNTIF(GPS_IMPORT!$A$2:$A$10000,$B$5),INDEX(GPS_IMPORT!$2:$10000,MATCH($B$5,(GPS_IMPORT!$A$2:$A$10000),0)+ROWS($1:12)-1,COLUMN()-1),0) -> 2257842.2 | G18: =IF(ROWS(GPS_IMPORT!$1:12)<=COUNTIF(GPS_IMPORT!$A$2:$A$10000,$B$5),INDEX(GPS_IMPORT!$2:$10000,MATCH($B$5,(GPS_IMPORT!$A$2:$A$10000),0)+ROWS($1:12)-1,COLUMN()-1),0) -> 902.4498431 | H18: 0.007244312728 | I18: 0.003821499646 | J18: 0.007646987899 | K18: TRUE
A19: 13 | B19: =IF(ROWS(GPS_IMPORT!$1:13)<=COUNTIF(GPS_IMPORT!$A$2:$A$10000,$B$5),INDEX(GPS_IMPORT!$2:$10000,MATCH($B$5,(GPS_IMPORT!$A$2:$A$10000),0)+ROWS($1:13)-1,COLUMN()-1),0) -> 0 | C19: =IF(ROWS(GPS_IMPORT!$1:13)<=COUNTIF(GPS_IMPORT!$A$2:$A$10000,$B$5),INDEX(GPS_IMPORT!$2:$10000,MATCH($B$5,(GPS_IMPORT!$A$2:$A$10000),0)+ROWS($1:13)-1,COLUMN()-1),0) -> 00:00:00 | D19: =IF(ROWS(GPS_IMPORT!$1:13)<=COUNTIF(GPS_IMPORT!$A$2:$A$10000,$B$5),INDEX(GPS_IMPORT!$2:$10000,MATCH($B$5,(GPS_IMPORT!$A$2:$A$10000),0)+ROWS($1:13)-1,COLUMN()-1),0) -> 00:00:00 | E19: =IF(ROWS(GPS_IMPORT!$1:13)<=COUNTIF(GPS_IMPORT!$A$2:$A$10000,$B$5),INDEX(GPS_IMPORT!$2:$10000,MATCH($B$5,(GPS_IMPORT!$A$2:$A$10000),0)+ROWS($1:13)-1,COLUMN()-1),0) -> 0 | F19: =IF(ROWS(GPS_IMPORT!$1:13)<=COUNTIF(GPS_IMPORT!$A$2:$A$10000,$B$5),INDEX(GPS_IMPORT!$2:$10000,MATCH($B$5,(GPS_IMPORT!$A$2:$A$10000),0)+ROWS($1:13)-1,COLUMN()-1),0) -> 0 | G19: =IF(ROWS(GPS_IMPORT!$1:13)<=COUNTIF(GPS_IMPORT!$A$2:$A$10000,$B$5),INDEX(GPS_IMPORT!$2:$10000,MATCH($B$5,(GPS_IMPORT!$A$2:$A$10000),0)+ROWS($1:13)-1,COLUMN()-1),0) -> 0 | H19: =IF(E19>0,E$22-E19,0) -> 0 | I19: 0 | J19: 0 | K19: FALSE
A20: 14 | B20: =IF(ROWS(GPS_IMPORT!$1:14)<=COUNTIF(GPS_IMPORT!$A$2:$A$10000,$B$5),INDEX(GPS_IMPORT!$2:$10000,MATCH($B$5,(GPS_IMPORT!$A$2:$A$10000),0)+ROWS($1:14)-1,COLUMN()-1),0) -> 0 | C20: =IF(ROWS(GPS_IMPORT!$1:14)<=COUNTIF(GPS_IMPORT!$A$2:$A$10000,$B$5),INDEX(GPS_IMPORT!$2:$10000,MATCH($B$5,(GPS_IMPORT!$A$2:$A$10000),0)+ROWS($1:14)-1,COLUMN()-1),0) -> 00:00:00 | D20: =IF(ROWS(GPS_IMPORT!$1:14)<=COUNTIF(GPS_IMPORT!$A$2:$A$10000,$B$5),INDEX(GPS_IMPORT!$2:$10000,MATCH($B$5,(GPS_IMPORT!$A$2:$A$10000),0)+ROWS($1:14)-1,COLUMN()-1),0) -> 00:00:00 | E20: =IF(ROWS(GPS_IMPORT!$1:14)<=COUNTIF(GPS_IMPORT!$A$2:$A$10000,$B$5),INDEX(GPS_IMPORT!$2:$10000,MATCH($B$5,(GPS_IMPORT!$A$2:$A$10000),0)+ROWS($1:14)-1,COLUMN()-1),0) -> 0 | F20: =IF(ROWS(GPS_IMPORT!$1:14)<=COUNTIF(GPS_IMPORT!$A$2:$A$10000,$B$5),INDEX(GPS_IMPORT!$2:$10000,MATCH($B$5,(GPS_IMPORT!$A$2:$A$10000),0)+ROWS($1:14)-1,COLUMN()-1),0) -> 0 | G20: =IF(ROWS(GPS_IMPORT!$1:14)<=COUNTIF(GPS_IMPORT!$A$2:$A$10000,$B$5),INDEX(GPS_IMPORT!$2:$10000,MATCH($B$5,(GPS_IMPORT!$A$2:$A$10000),0)+ROWS($1:14)-1,COLUMN()-1),0) -> 0 | H20: 0 | I20: 0 | J20: 0 | K20: FALSE
A21: 15 | B21: =IF(ROWS(GPS_IMPORT!$1:15)<=COUNTIF(GPS_IMPORT!$A$2:$A$10000,$B$5),INDEX(GPS_IMPORT!$2:$10000,MATCH($B$5,(GPS_IMPORT!$A$2:$A$10000),0)+ROWS($1:15)-1,COLUMN()-1),0) -> 0 | C21: =IF(ROWS(GPS_IMPORT!$1:15)<=COUNTIF(GPS_IMPORT!$A$2:$A$10000,$B$5),INDEX(GPS_IMPORT!$2:$10000,MATCH($B$5,(GPS_IMPORT!$A$2:$A$10000),0)+ROWS($1:15)-1,COLUMN()-1),0) -> 00:00:00 | D21: =IF(ROWS(GPS_IMPORT!$1:15)<=COUNTIF(GPS_IMPORT!$A$2:$A$10000,$B$5),INDEX(GPS_IMPORT!$2:$10000,MATCH($B$5,(GPS_IMPORT!$A$2:$A$10000),0)+ROWS($1:15)-1,COLUMN()-1),0) -> 00:00:00 | E21: =IF(ROWS(GPS_IMPORT!$1:15)<=COUNTIF(GPS_IMPORT!$A$2:$A$10000,$B$5),INDEX(GPS_IMPORT!$2:$10000,MATCH($B$5,(GPS_IMPORT!$A$2:$A$10000),0)+ROWS($1:15)-1,COLUMN()-1),0) -> 0 | F21: =IF(ROWS(GPS_IMPORT!$1:15)<=COUNTIF(GPS_IMPORT!$A$2:$A$10000,$B$5),INDEX(GPS_IMPORT!$2:$10000,MATCH($B$5,(GPS_IMPORT!$A$2:$A$10000),0)+ROWS($1:15)-1,COLUMN()-1),0) -> 0 | G21: =IF(ROWS(GPS_IMPORT!$1:15)<=COUNTIF(GPS_IMPORT!$A$2:$A$10000,$B$5),INDEX(GPS_IMPORT!$2:$10000,MATCH($B$5,(GPS_IMPORT!$A$2:$A$10000),0)+ROWS($1:15)-1,COLUMN()-1),0) -> 0 | H21: 0 | I21: 0 | J21: 0 | K21: FALSE
D22: AVERAGE | E22: =(IF($K$7=TRUE,E7,0)+IF($K$8=TRUE,E8,0)+IF($K$9=TRUE,E9,0)+IF($K$10=TRUE,E10,0)+IF($K$11=TRUE,E11,0)+IF($K$12=TRUE,E12,0)+IF($K$13=TRUE,E13,0)+IF($K$14=TRUE,E14,0)+IF($K$15=TRUE,E15,0)+IF($K$16=TRUE,E16,0)+IF($K$17=TRUE,E17,0)+IF($K$18=TRUE,E18,0)+IF($K$19=TRUE,E19,0)+IF($K$20=TRUE,E20,0)+IF($K$21=TRUE,E21,0))/(IF($K$7=TRUE,1,0)+IF($K$8=TRUE,1,0)+IF($K$9=TRUE,1,0)+IF($K$10=TRUE,1,0)+IF($K$11=TRUE,1,0)+IF($K$12=TRUE,1,0)+IF($K$13=TRUE,1,0)+IF($K$14=TRUE,1,0)+IF($K$15=TRUE,1,0)+IF($K$16=TRUE,1,0)+IF($K$17=TRUE,1,0)+IF($K$18=TRUE,1,0)+IF($K$19=TRUE,1,0)+IF($K$20=TRUE,1,0)+IF($K$21=TRUE,1,0)) -> 315045.2009 | F22: =(IF($K$7=TRUE,F7,0)+IF($K$8=TRUE,F8,0)+IF($K$9=TRUE,F9,0)+IF($K$10=TRUE,F10,0)+IF($K$11=TRUE,F11,0)+IF($K$12=TRUE,F12,0)+IF($K$13=TRUE,F13,0)+IF($K$14=TRUE,F14,0)+IF($K$15=TRUE,F15,0)+IF($K$16=TRUE,F16,0)+IF($K$17=TRUE,F17,0)+IF($K$18=TRUE,F18,0)+IF($K$19=TRUE,F19,0)+IF($K$20=TRUE,F20,0)+IF($K$21=TRUE,F21,0))/(IF($K$7=TRUE,1,0)+IF($K$8=TRUE,1,0)+IF($K$9=TRUE,1,0)+IF($K$10=TRUE,1,0)+IF($K$11=TRUE,1,0)+IF($K$12=TRUE,1,0)+IF($K$13=TRUE,1,0)+IF($K$14=TRUE,1,0)+IF($K$15=TRUE,1,0)+IF($K$16=TRUE,1,0)+IF($K$17=TRUE,1,0)+IF($K$18=TRUE,1,0)+IF($K$19=TRUE,1,0)+IF($K$20=TRUE,1,0)+IF($K$21=TRUE,1,0)) -> 2257842.204 | G22: =(IF($K$7=TRUE,G7,0)+IF($K$8=TRUE,G8,0)+IF($K$9=TRUE,G9,0)+IF($K$10=TRUE,G10,0)+IF($K$11=TRUE,G11,0)+IF($K$12=TRUE,G12,0)+IF($K$13=TRUE,G13,0)+IF($K$14=TRUE,G14,0)+IF($K$15=TRUE,G15,0)+IF($K$16=TRUE,G16,0)+IF($K$17=TRUE,G17,0)+IF($K$18=TRUE,G18,0)+IF($K$19=TRUE,G19,0)+IF($K$20=TRUE,G20,0)+IF($K$21=TRUE,G21,0))/ (IF($K$7=TRUE,1,0)+IF($K$8=TRUE,1,0)+IF($K$9=TRUE,1,0)+IF($K$10=TRUE,1,0)+IF($K$11=TRUE,1,0)+IF($K$12=TRUE,1,0)+IF($K$13=TRUE,1,0)+IF($K$14=TRUE,1,0)+IF($K$15=TRUE,1,0)+IF($K$16=TRUE,1,0)+IF($K$17=TRUE,1,0)+IF($K$18=TRUE,1,0)+IF($K$19=TRUE,1,0)+IF($K$20=TRUE,1,0)+IF($K$21=TRUE,1,0)) -> 902.4574901 | H22: RMSE: | I22: RMSE: | J22: RMSE:
G23: RMSE IN US SURVEY FEET: | H23: =SQRT(( (IF($K$7=TRUE,H7^2,0))+(IF($K$8=TRUE,H8^2,0))+(IF($K$9=TRUE,H9^2,0))+(IF($K$10=TRUE,H10^2,0))+(IF($K$11=TRUE,H11^2,0))+(IF($K$12=TRUE,H12^2,0))+(IF($K$13=TRUE,H13^2,0))+(IF($K$14=TRUE,H14^2,0))+(IF($K$15=TRUE,H15^2,0))+(IF($K$16=TRUE,H16^2,0))+(IF($K$17=TRUE,H17^2,0))+(IF($K$18=TRUE,H18^2,0))+(IF($K$19=TRUE,H19^2,0))+(IF($K$20=TRUE,H20^2,0))+(IF($K$21=TRUE,H21^2,0)))/ (IF($K$7=TRUE,1,0)+IF($K$8=TRUE,1,0)+IF($K$9=TRUE,1,0)+IF($K$10=TRUE,1,0)+IF($K$11=TRUE,1,0)+IF($K$12=TRUE,1,0)+IF($K$13=TRUE,1,0)+IF($K$14=TRUE,1,0)+IF($K$15=TRUE,1,0)+IF($K$16=TRUE,1,0)+IF($K$17=TRUE,1,0)+IF($K$18=TRUE,1,0)+IF($K$19=TRUE,1,0)+IF($K$20=TRUE,1,0)+IF($K$21=TRUE,1,0))) -> 0.005072673522 | I23: =SQRT(( (IF($K$7=TRUE,I7^2,0))+(IF($K$8=TRUE,I8^2,0))+(IF($K$9=TRUE,I9^2,0))+(IF($K$10=TRUE,I10^2,0))+(IF($K$11=TRUE,I11^2,0))+(IF($K$12=TRUE,I12^2,0))+(IF($K$13=TRUE,I13^2,0))+(IF($K$14=TRUE,I14^2,0))+(IF($K$15=TRUE,I15^2,0))+(IF($K$16=TRUE,I16^2,0))+(IF($K$17=TRUE,I17^2,0))+(IF($K$18=TRUE,I18^2,0))+(IF($K$19=TRUE,I19^2,0))+(IF($K$20=TRUE,I20^2,0))+(IF($K$21=TRUE,I21^2,0)))/ (IF($K$7=TRUE,1,0)+IF($K$8=TRUE,1,0)+IF($K$9=TRUE,1,0)+IF($K$10=TRUE,1,0)+IF($K$11=TRUE,1,0)+IF($K$12=TRUE,1,0)+IF($K$13=TRUE,1,0)+IF($K$14=TRUE,1,0)+IF($K$15=TRUE,1,0)+IF($K$16=TRUE,1,0)+IF($K$17=TRUE,1,0)+IF($K$18=TRUE,1,0)+IF($K$19=TRUE,1,0)+IF($K$20=TRUE,1,0)+IF($K$21=TRUE,1,0))) -> 0.003399968818 | J23: =SQRT(( (IF($K$7=TRUE,J7^2,0))+(IF($K$8=TRUE,J8^2,0))+(IF($K$9=TRUE,J9^2,0))+(IF($K$10=TRUE,J10^2,0))+(IF($K$11=TRUE,J11^2,0))+(IF($K$12=TRUE,J12^2,0))+(IF($K$13=TRUE,J13^2,0))+(IF($K$14=TRUE,J14^2,0))+(IF($K$15=TRUE,J15^2,0))+(IF($K$16=TRUE,J16^2,0))+(IF($K$17=TRUE,J17^2,0))+(IF($K$18=TRUE,J18^2,0))+(IF($K$19=TRUE,J19^2,0))+(IF($K$20=TRUE,J20^2,0))+(IF($K$21=TRUE,J21^2,0)))/ (IF($K$7=TRUE,1,0)+IF($K$8=TRUE,1,0)+IF($K$9=TRUE,1,0)+IF($K$10=TRUE,1,0)+IF($K$11=TRUE,1,0)+IF($K$12=TRUE,1,0)+IF($K$13=TRUE,1,0)+IF($K$14=TRUE,1,0)+IF($K$15=TRUE,1,0)+IF($K$16=TRUE,1,0)+IF($K$17=TRUE,1,0)+IF($K$18=TRUE,1,0)+IF($K$19=TRUE,1,0)+IF($K$20=TRUE,1,0)+IF($K$21=TRUE,1,0))) -> 0.01125384588
D24: 1
C25: UNITLESS GRID TO GROUND MULTIPLIER | D25: 0 | H25: =IF(H23<=0.029,"PASS","FAIL") -> PASS | I25: =IF(I23<=0.029,"PASS","FAIL") -> PASS | J25: =IF(J23<=0.039,"PASS","FAIL") -> PASS
A27: AVERAGED GPS-DERIVED POSITION | I27: Notes:
B28: MONUMENT COORDINATES | D28: NORTHING | E28: EASTING | F28: ORTHO HEIGHT
B29: US Survey Feet (GRID) | D29: =$E$22 -> 315045.2009 | E29: =$F$22 -> 2257842.204 | F29: =$G$22 -> 902.4574901
A31: LEVELED ELEVATION
A32: US SURVEY FEET | C32: N/A | D32: (Type the leveled elevation or N/A if no leveled elevation is available)
A33: MONUMENT HELD | D33: (Type the monument name from which leveling originated)
A34: LEVELED ELEVATION - GPS DERIVED ELEVATION = | E34: =IF(C32="N/A","N/A",C32-(F29*D24)) -> N/A
A36: FINAL MONUMENT COORDINATES
B37: MONUMENT COORDINATES | D37: NORTHING | E37: EASTING | F37: ELEVATION | G37: FEATURE CODE
B38: US SURVEY FEET (GRID) | D38: =$E$22*$D$24 -> 315045.2009 | E38: =$F$22*$D$24 -> 2257842.204 | F38: =IF($C$32="N/A",($G$22*$D$24),$C$32) -> 902.4574901 | G38: AERTAR
B39: US SURVEY FEET (GROUND) | D39: =$D$38*$D$25 -> 0 | E39: =$E$38*$D$25 -> 0 | F39: =IF($C$32="N/A",($G$22*$D$24),$C$32) -> 902.4574901 | G39: =G38 -> AERTAR
A41: ∆ North, ∆ East, and ∆ Ht. are the difference between the average northing, easting, and height for each observation. | I41: Mask Angle: | J41: 10°

Sheet GS3
A1: VRS GNSS Project Control Monument Coordinate Analysis
A3: Project: | B3: =REPORT!B2 -> TUS-800-22.74 | C3: GPS Antenna: | D3: LEICA GS14 | J3: Report Date: | K3: =REPORT!C49 -> 2018-12-19
A4: PID: | B4: =REPORT!E2 -> 100603 | C4: VRS Network: | D4: ODOT VRS | J4: Prepared By: | K4: =REPORT!C48 -> Kolton Wilson
A5: Point ID: | B5: GS3 | C5: No. of Sessions: | D5: =COUNTIF(GPS_IMPORT!A2:A1000,$B$5) -> 12 | J5: Checked By: | K5: =REPORT!C52 -> Joel Swick
A6: SESSION # | B6: Point | C6: Observation Date | D6: Start Time | E6: Northing(sft) | F6: Easting(sft) | G6: Height(sft) | H6: ∆ Northing(sft) | I6: ∆ Easting(sft) | J6: ∆ Height(sft) | K6: Include in Solution?
A7: 1 | B7: =IF(ROWS(GPS_IMPORT!$1:1)<=COUNTIF(GPS_IMPORT!$A$2:$A$10000,$B$5),INDEX(GPS_IMPORT!$2:$10000,MATCH($B$5,(GPS_IMPORT!$A$2:$A$10000),0)+ROWS($1:1)-1,COLUMN()-1),0) -> GS3 | C7: =IF(ROWS(GPS_IMPORT!$1:1)<=COUNTIF(GPS_IMPORT!$A$2:$A$10000,$B$5),INDEX(GPS_IMPORT!$2:$10000,MATCH($B$5,(GPS_IMPORT!$A$2:$A$10000),0)+ROWS($1:1)-1,COLUMN()-1),0) -> 12.18.2018 | D7: =IF(ROWS(GPS_IMPORT!$1:1)<=COUNTIF(GPS_IMPORT!$A$2:$A$10000,$B$5),INDEX(GPS_IMPORT!$2:$10000,MATCH($B$5,(GPS_IMPORT!$A$2:$A$10000),0)+ROWS($1:1)-1,COLUMN()-1),0) -> 9:23:58.8000 | E7: =IF(ROWS(GPS_IMPORT!$1:1)<=COUNTIF(GPS_IMPORT!$A$2:$A$10000,$B$5),INDEX(GPS_IMPORT!$2:$10000,MATCH($B$5,(GPS_IMPORT!$A$2:$A$10000),0)+ROWS($1:1)-1,COLUMN()-1),0) -> 313946.227 | F7: =IF(ROWS(GPS_IMPORT!$1:1)<=COUNTIF(GPS_IMPORT!$A$2:$A$10000,$B$5),INDEX(GPS_IMPORT!$2:$10000,MATCH($B$5,(GPS_IMPORT!$A$2:$A$10000),0)+ROWS($1:1)-1,COLUMN()-1),0) -> 2258275.222 | G7: =IF(ROWS(GPS_IMPORT!$1:1)<=COUNTIF(GPS_IMPORT!$A$2:$A$10000,$B$5),INDEX(GPS_IMPORT!$2:$10000,MATCH($B$5,(GPS_IMPORT!$A$2:$A$10000),0)+ROWS($1:1)-1,COLUMN()-1),0) -> 875.7350114 | H7: =IF(E7>0,E$22-E7,0) -> 0.003831265029 | I7: -0.007650886662 | J7: 0.004572005798 | K7: TRUE
A8: 2 | B8: =IF(ROWS(GPS_IMPORT!$1:2)<=COUNTIF(GPS_IMPORT!$A$2:$A$10000,$B$5),INDEX(GPS_IMPORT!$2:$10000,MATCH($B$5,(GPS_IMPORT!$A$2:$A$10000),0)+ROWS($1:2)-1,COLUMN()-1),0) -> GS3 | C8: =IF(ROWS(GPS_IMPORT!$1:2)<=COUNTIF(GPS_IMPORT!$A$2:$A$10000,$B$5),INDEX(GPS_IMPORT!$2:$10000,MATCH($B$5,(GPS_IMPORT!$A$2:$A$10000),0)+ROWS($1:2)-1,COLUMN()-1),0) -> 12.18.2018 | D8: =IF(ROWS(GPS_IMPORT!$1:2)<=COUNTIF(GPS_IMPORT!$A$2:$A$10000,$B$5),INDEX(GPS_IMPORT!$2:$10000,MATCH($B$5,(GPS_IMPORT!$A$2:$A$10000),0)+ROWS($1:2)-1,COLUMN()-1),0) -> 9:24:9.9200 | E8: =IF(ROWS(GPS_IMPORT!$1:2)<=COUNTIF(GPS_IMPORT!$A$2:$A$10000,$B$5),INDEX(GPS_IMPORT!$2:$10000,MATCH($B$5,(GPS_IMPORT!$A$2:$A$10000),0)+ROWS($1:2)-1,COLUMN()-1),0) -> 313946.2224 | F8: =IF(ROWS(GPS_IMPORT!$1:2)<=COUNTIF(GPS_IMPORT!$A$2:$A$10000,$B$5),INDEX(GPS_IMPORT!$2:$10000,MATCH($B$5,(GPS_IMPORT!$A$2:$A$10000),0)+ROWS($1:2)-1,COLUMN()-1),0) -> 2258275.219 | G8: =IF(ROWS(GPS_IMPORT!$1:2)<=COUNTIF(GPS_IMPORT!$A$2:$A$10000,$B$5),INDEX(GPS_IMPORT!$2:$10000,MATCH($B$5,(GPS_IMPORT!$A$2:$A$10000),0)+ROWS($1:2)-1,COLUMN()-1),0) -> 875.7338248 | H8: 0.008482362027 | I8: -0.003912636545 | J8: 0.005758657487 | K8: TRUE
A9: 3 | B9: =IF(ROWS(GPS_IMPORT!$1:3)<=COUNTIF(GPS_IMPORT!$A$2:$A$10000,$B$5),INDEX(GPS_IMPORT!$2:$10000,MATCH($B$5,(GPS_IMPORT!$A$2:$A$10000),0)+ROWS($1:3)-1,COLUMN()-1),0) -> GS3 | C9: =IF(ROWS(GPS_IMPORT!$1:3)<=COUNTIF(GPS_IMPORT!$A$2:$A$10000,$B$5),INDEX(GPS_IMPORT!$2:$10000,MATCH($B$5,(GPS_IMPORT!$A$2:$A$10000),0)+ROWS($1:3)-1,COLUMN()-1),0) -> 12.18.2018 | D9: =IF(ROWS(GPS_IMPORT!$1:3)<=COUNTIF(GPS_IMPORT!$A$2:$A$10000,$B$5),INDEX(GPS_IMPORT!$2:$10000,MATCH($B$5,(GPS_IMPORT!$A$2:$A$10000),0)+ROWS($1:3)-1,COLUMN()-1),0) -> 9:24:20.8500 | E9: =IF(ROWS(GPS_IMPORT!$1:3)<=COUNTIF(GPS_IMPORT!$A$2:$A$10000,$B$5),INDEX(GPS_IMPORT!$2:$10000,MATCH($B$5,(GPS_IMPORT!$A$2:$A$10000),0)+ROWS($1:3)-1,COLUMN()-1),0) -> 313946.2275 | F9: =IF(ROWS(GPS_IMPORT!$1:3)<=COUNTIF(GPS_IMPORT!$A$2:$A$10000,$B$5),INDEX(GPS_IMPORT!$2:$10000,MATCH($B$5,(GPS_IMPORT!$A$2:$A$10000),0)+ROWS($1:3)-1,COLUMN()-1),0) -> 2258275.211 | G9: =IF(ROWS(GPS_IMPORT!$1:3)<=COUNTIF(GPS_IMPORT!$A$2:$A$10000,$B$5),INDEX(GPS_IMPORT!$2:$10000,MATCH($B$5,(GPS_IMPORT!$A$2:$A$10000),0)+ROWS($1:3)-1,COLUMN()-1),0) -> 875.7292109 | H9: 0.003344408004 | I9: 0.003208783455 | J9: 0.0103725633 | K9: TRUE
A10: 4 | B10: =IF(ROWS(GPS_IMPORT!$1:4)<=COUNTIF(GPS_IMPORT!$A$2:$A$10000,$B$5),INDEX(GPS_IMPORT!$2:$10000,MATCH($B$5,(GPS_IMPORT!$A$2:$A$10000),0)+ROWS($1:4)-1,COLUMN()-1),0) -> GS3 | C10: =IF(ROWS(GPS_IMPORT!$1:4)<=COUNTIF(GPS_IMPORT!$A$2:$A$10000,$B$5),INDEX(GPS_IMPORT!$2:$10000,MATCH($B$5,(GPS_IMPORT!$A$2:$A$10000),0)+ROWS($1:4)-1,COLUMN()-1),0) -> 12.18.2018 | D10: =IF(ROWS(GPS_IMPORT!$1:4)<=COUNTIF(GPS_IMPORT!$A$2:$A$10000,$B$5),INDEX(GPS_IMPORT!$2:$10000,MATCH($B$5,(GPS_IMPORT!$A$2:$A$10000),0)+ROWS($1:4)-1,COLUMN()-1),0) -> 9:24:41.8000 | E10: =IF(ROWS(GPS_IMPORT!$1:4)<=COUNTIF(GPS_IMPORT!$A$2:$A$10000,$B$5),INDEX(GPS_IMPORT!$2:$10000,MATCH($B$5,(GPS_IMPORT!$A$2:$A$10000),0)+ROWS($1:4)-1,COLUMN()-1),0) -> 313946.225 | F10: =IF(ROWS(GPS_IMPORT!$1:4)<=COUNTIF(GPS_IMPORT!$A$2:$A$10000,$B$5),INDEX(GPS_IMPORT!$2:$10000,MATCH($B$5,(GPS_IMPORT!$A$2:$A$10000),0)+ROWS($1:4)-1,COLUMN()-1),0) -> 2258275.216 | G10: =IF(ROWS(GPS_IMPORT!$1:4)<=COUNTIF(GPS_IMPORT!$A$2:$A$10000,$B$5),INDEX(GPS_IMPORT!$2:$10000,MATCH($B$5,(GPS_IMPORT!$A$2:$A$10000),0)+ROWS($1:4)-1,COLUMN()-1),0) -> 875.743009 | H10: 0.005914536014 | I10: -0.0009141964838 | J10: -0.003425545823 | K10: TRUE
A11: 5 | B11: =IF(ROWS(GPS_IMPORT!$1:5)<=COUNTIF(GPS_IMPORT!$A$2:$A$10000,$B$5),INDEX(GPS_IMPORT!$2:$10000,MATCH($B$5,(GPS_IMPORT!$A$2:$A$10000),0)+ROWS($1:5)-1,COLUMN()-1),0) -> GS3 | C11: =IF(ROWS(GPS_IMPORT!$1:5)<=COUNTIF(GPS_IMPORT!$A$2:$A$10000,$B$5),INDEX(GPS_IMPORT!$2:$10000,MATCH($B$5,(GPS_IMPORT!$A$2:$A$10000),0)+ROWS($1:5)-1,COLUMN()-1),0) -> 12.18.2018 | D11: =IF(ROWS(GPS_IMPORT!$1:5)<=COUNTIF(GPS_IMPORT!$A$2:$A$10000,$B$5),INDEX(GPS_IMPORT!$2:$10000,MATCH($B$5,(GPS_IMPORT!$A$2:$A$10000),0)+ROWS($1:5)-1,COLUMN()-1),0) -> 9:24:52.6700 | E11: =IF(ROWS(GPS_IMPORT!$1:5)<=COUNTIF(GPS_IMPORT!$A$2:$A$10000,$B$5),INDEX(GPS_IMPORT!$2:$10000,MATCH($B$5,(GPS_IMPORT!$A$2:$A$10000),0)+ROWS($1:5)-1,COLUMN()-1),0) -> 313946.2269 | F11: =IF(ROWS(GPS_IMPORT!$1:5)<=COUNTIF(GPS_IMPORT!$A$2:$A$10000,$B$5),INDEX(GPS_IMPORT!$2:$10000,MATCH($B$5,(GPS_IMPORT!$A$2:$A$10000),0)+ROWS($1:5)-1,COLUMN()-1),0) -> 2258275.214 | G11: =IF(ROWS(GPS_IMPORT!$1:5)<=COUNTIF(GPS_IMPORT!$A$2:$A$10000,$B$5),INDEX(GPS_IMPORT!$2:$10000,MATCH($B$5,(GPS_IMPORT!$A$2:$A$10000),0)+ROWS($1:5)-1,COLUMN()-1),0) -> 875.7371692 | H11: 0.003936880035 | I11: 0.0003426535986 | J11: 0.002414238367 | K11: TRUE
A12: 6 | B12: =IF(ROWS(GPS_IMPORT!$1:6)<=COUNTIF(GPS_IMPORT!$A$2:$A$10000,$B$5),INDEX(GPS_IMPORT!$2:$10000,MATCH($B$5,(GPS_IMPORT!$A$2:$A$10000),0)+ROWS($1:6)-1,COLUMN()-1),0) -> GS3 | C12: =IF(ROWS(GPS_IMPORT!$1:6)<=COUNTIF(GPS_IMPORT!$A$2:$A$10000,$B$5),INDEX(GPS_IMPORT!$2:$10000,MATCH($B$5,(GPS_IMPORT!$A$2:$A$10000),0)+ROWS($1:6)-1,COLUMN()-1),0) -> 12.18.2018 | D12: =IF(ROWS(GPS_IMPORT!$1:6)<=COUNTIF(GPS_IMPORT!$A$2:$A$10000,$B$5),INDEX(GPS_IMPORT!$2:$10000,MATCH($B$5,(GPS_IMPORT!$A$2:$A$10000),0)+ROWS($1:6)-1,COLUMN()-1),0) -> 9:25:4.9900 | E12: =IF(ROWS(GPS_IMPORT!$1:6)<=COUNTIF(GPS_IMPORT!$A$2:$A$10000,$B$5),INDEX(GPS_IMPORT!$2:$10000,MATCH($B$5,(GPS_IMPORT!$A$2:$A$10000),0)+ROWS($1:6)-1,COLUMN()-1),0) -> 313946.2359 | F12: =IF(ROWS(GPS_IMPORT!$1:6)<=COUNTIF(GPS_IMPORT!$A$2:$A$10000,$B$5),INDEX(GPS_IMPORT!$2:$10000,MATCH($B$5,(GPS_IMPORT!$A$2:$A$10000),0)+ROWS($1:6)-1,COLUMN()-1),0) -> 2258275.209 | G12: =IF(ROWS(GPS_IMPORT!$1:6)<=COUNTIF(GPS_IMPORT!$A$2:$A$10000,$B$5),INDEX(GPS_IMPORT!$2:$10000,MATCH($B$5,(GPS_IMPORT!$A$2:$A$10000),0)+ROWS($1:6)-1,COLUMN()-1),0) -> 875.7346936 | H12: -0.005048688967 | I12: 0.005669553299 | J12: 0.004889873988 | K12: TRUE
A13: 7 | B13: =IF(ROWS(GPS_IMPORT!$1:7)<=COUNTIF(GPS_IMPORT!$A$2:$A$10000,$B$5),INDEX(GPS_IMPORT!$2:$10000,MATCH($B$5,(GPS_IMPORT!$A$2:$A$10000),0)+ROWS($1:7)-1,COLUMN()-1),0) -> GS3 | C13: =IF(ROWS(GPS_IMPORT!$1:7)<=COUNTIF(GPS_IMPORT!$A$2:$A$10000,$B$5),INDEX(GPS_IMPORT!$2:$10000,MATCH($B$5,(GPS_IMPORT!$A$2:$A$10000),0)+ROWS($1:7)-1,COLUMN()-1),0) -> 12.18.2018 | D13: =IF(ROWS(GPS_IMPORT!$1:7)<=COUNTIF(GPS_IMPORT!$A$2:$A$10000,$B$5),INDEX(GPS_IMPORT!$2:$10000,MATCH($B$5,(GPS_IMPORT!$A$2:$A$10000),0)+ROWS($1:7)-1,COLUMN()-1),0) -> 9:25:17.0500 | E13: =IF(ROWS(GPS_IMPORT!$1:7)<=COUNTIF(GPS_IMPORT!$A$2:$A$10000,$B$5),INDEX(GPS_IMPORT!$2:$10000,MATCH($B$5,(GPS_IMPORT!$A$2:$A$10000),0)+ROWS($1:7)-1,COLUMN()-1),0) -> 313946.2417 | F13: =IF(ROWS(GPS_IMPORT!$1:7)<=COUNTIF(GPS_IMPORT!$A$2:$A$10000,$B$5),INDEX(GPS_IMPORT!$2:$10000,MATCH($B$5,(GPS_IMPORT!$A$2:$A$10000),0)+ROWS($1:7)-1,COLUMN()-1),0) -> 2258275.214 | G13: =IF(ROWS(GPS_IMPORT!$1:7)<=COUNTIF(GPS_IMPORT!$A$2:$A$10000,$B$5),INDEX(GPS_IMPORT!$2:$10000,MATCH($B$5,(GPS_IMPORT!$A$2:$A$10000),0)+ROWS($1:7)-1,COLUMN()-1),0) -> 875.7497173 | H13: -0.01083285996 | I13: 0.001026713289 | J13: -0.01013387824 | K13: TRUE
A14: 8 | B14: =IF(ROWS(GPS_IMPORT!$1:8)<=COUNTIF(GPS_IMPORT!$A$2:$A$10000,$B$5),INDEX(GPS_IMPORT!$2:$10000,MATCH($B$5,(GPS_IMPORT!$A$2:$A$10000),0)+ROWS($1:8)-1,COLUMN()-1),0) -> GS3 | C14: =IF(ROWS(GPS_IMPORT!$1:8)<=COUNTIF(GPS_IMPORT!$A$2:$A$10000,$B$5),INDEX(GPS_IMPORT!$2:$10000,MATCH($B$5,(GPS_IMPORT!$A$2:$A$10000),0)+ROWS($1:8)-1,COLUMN()-1),0) -> 12.18.2018 | D14: =IF(ROWS(GPS_IMPORT!$1:8)<=COUNTIF(GPS_IMPORT!$A$2:$A$10000,$B$5),INDEX(GPS_IMPORT!$2:$10000,MATCH($B$5,(GPS_IMPORT!$A$2:$A$10000),0)+ROWS($1:8)-1,COLUMN()-1),0) -> 9:25:27.9400 | E14: =IF(ROWS(GPS_IMPORT!$1:8)<=COUNTIF(GPS_IMPORT!$A$2:$A$10000,$B$5),INDEX(GPS_IMPORT!$2:$10000,MATCH($B$5,(GPS_IMPORT!$A$2:$A$10000),0)+ROWS($1:8)-1,COLUMN()-1),0) -> 313946.2294 | F14: =IF(ROWS(GPS_IMPORT!$1:8)<=COUNTIF(GPS_IMPORT!$A$2:$A$10000,$B$5),INDEX(GPS_IMPORT!$2:$10000,MATCH($B$5,(GPS_IMPORT!$A$2:$A$10000),0)+ROWS($1:8)-1,COLUMN()-1),0) -> 2258275.211 | G14: =IF(ROWS(GPS_IMPORT!$1:8)<=COUNTIF(GPS_IMPORT!$A$2:$A$10000,$B$5),INDEX(GPS_IMPORT!$2:$10000,MATCH($B$5,(GPS_IMPORT!$A$2:$A$10000),0)+ROWS($1:8)-1,COLUMN()-1),0) -> 875.7603393 | H14: 0.001481012034 | I14: 0.003712673206 | J14: -0.02075590568 | K14: TRUE
A15: 9 | B15: =IF(ROWS(GPS_IMPORT!$1:9)<=COUNTIF(GPS_IMPORT!$A$2:$A$10000,$B$5),INDEX(GPS_IMPORT!$2:$10000,MATCH($B$5,(GPS_IMPORT!$A$2:$A$10000),0)+ROWS($1:9)-1,COLUMN()-1),0) -> GS3 | C15: =IF(ROWS(GPS_IMPORT!$1:9)<=COUNTIF(GPS_IMPORT!$A$2:$A$10000,$B$5),INDEX(GPS_IMPORT!$2:$10000,MATCH($B$5,(GPS_IMPORT!$A$2:$A$10000),0)+ROWS($1:9)-1,COLUMN()-1),0) -> 12.18.2018 | D15: =IF(ROWS(GPS_IMPORT!$1:9)<=COUNTIF(GPS_IMPORT!$A$2:$A$10000,$B$5),INDEX(GPS_IMPORT!$2:$10000,MATCH($B$5,(GPS_IMPORT!$A$2:$A$10000),0)+ROWS($1:9)-1,COLUMN()-1),0) -> 9:25:48.6400 | E15: =IF(ROWS(GPS_IMPORT!$1:9)<=COUNTIF(GPS_IMPORT!$A$2:$A$10000,$B$5),INDEX(GPS_IMPORT!$2:$10000,MATCH($B$5,(GPS_IMPORT!$A$2:$A$10000),0)+ROWS($1:9)-1,COLUMN()-1),0) -> 313946.2277 | F15: =IF(ROWS(GPS_IMPORT!$1:9)<=COUNTIF(GPS_IMPORT!$A$2:$A$10000,$B$5),INDEX(GPS_IMPORT!$2:$10000,MATCH($B$5,(GPS_IMPORT!$A$2:$A$10000),0)+ROWS($1:9)-1,COLUMN()-1),0) -> 2258275.211 | G15: =IF(ROWS(GPS_IMPORT!$1:9)<=COUNTIF(GPS_IMPORT!$A$2:$A$10000,$B$5),INDEX(GPS_IMPORT!$2:$10000,MATCH($B$5,(GPS_IMPORT!$A$2:$A$10000),0)+ROWS($1:9)-1,COLUMN()-1),0) -> 875.7490601 | H15: 0.00322675705 | I15: 0.003873583395 | J15: -0.009476658543 | K15: TRUE
A16: 10 | B16: =IF(ROWS(GPS_IMPORT!$1:10)<=COUNTIF(GPS_IMPORT!$A$2:$A$10000,$B$5),INDEX(GPS_IMPORT!$2:$10000,MATCH($B$5,(GPS_IMPORT!$A$2:$A$10000),0)+ROWS($1:10)-1,COLUMN()-1),0) -> GS3 | C16: =IF(ROWS(GPS_IMPORT!$1:10)<=COUNTIF(GPS_IMPORT!$A$2:$A$10000,$B$5),INDEX(GPS_IMPORT!$2:$10000,MATCH($B$5,(GPS_IMPORT!$A$2:$A$10000),0)+ROWS($1:10)-1,COLUMN()-1),0) -> 12.18.2018 | D16: =IF(ROWS(GPS_IMPORT!$1:10)<=COUNTIF(GPS_IMPORT!$A$2:$A$10000,$B$5),INDEX(GPS_IMPORT!$2:$10000,MATCH($B$5,(GPS_IMPORT!$A$2:$A$10000),0)+ROWS($1:10)-1,COLUMN()-1),0) -> 9:26:0.0000 | E16: =IF(ROWS(GPS_IMPORT!$1:10)<=COUNTIF(GPS_IMPORT!$A$2:$A$10000,$B$5),INDEX(GPS_IMPORT!$2:$10000,MATCH($B$5,(GPS_IMPORT!$A$2:$A$10000),0)+ROWS($1:10)-1,COLUMN()-1),0) -> 313946.2355 | F16: =IF(ROWS(GPS_IMPORT!$1:10)<=COUNTIF(GPS_IMPORT!$A$2:$A$10000,$B$5),INDEX(GPS_IMPORT!$2:$10000,MATCH($B$5,(GPS_IMPORT!$A$2:$A$10000),0)+ROWS($1:10)-1,COLUMN()-1),0) -> 2258275.21 | G16: =IF(ROWS(GPS_IMPORT!$1:10)<=COUNTIF(GPS_IMPORT!$A$2:$A$10000,$B$5),INDEX(GPS_IMPORT!$2:$10000,MATCH($B$5,(GPS_IMPORT!$A$2:$A$10000),0)+ROWS($1:10)-1,COLUMN()-1),0) -> 875.7390068 | H16: -0.004625807982 | I16: 0.004507923499 | J16: 0.0005766552175 | K16: TRUE
A17: 11 | B17: =IF(ROWS(GPS_IMPORT!$1:11)<=COUNTIF(GPS_IMPORT!$A$2:$A$10000,$B$5),INDEX(GPS_IMPORT!$2:$10000,MATCH($B$5,(GPS_IMPORT!$A$2:$A$10000),0)+ROWS($1:11)-1,COLUMN()-1),0) -> GS3 | C17: =IF(ROWS(GPS_IMPORT!$1:11)<=COUNTIF(GPS_IMPORT!$A$2:$A$10000,$B$5),INDEX(GPS_IMPORT!$2:$10000,MATCH($B$5,(GPS_IMPORT!$A$2:$A$10000),0)+ROWS($1:11)-1,COLUMN()-1),0) -> 12.18.2018 | D17: =IF(ROWS(GPS_IMPORT!$1:11)<=COUNTIF(GPS_IMPORT!$A$2:$A$10000,$B$5),INDEX(GPS_IMPORT!$2:$10000,MATCH($B$5,(GPS_IMPORT!$A$2:$A$10000),0)+ROWS($1:11)-1,COLUMN()-1),0) -> 9:26:11.9800 | E17: =IF(ROWS(GPS_IMPORT!$1:11)<=COUNTIF(GPS_IMPORT!$A$2:$A$10000,$B$5),INDEX(GPS_IMPORT!$2:$10000,MATCH($B$5,(GPS_IMPORT!$A$2:$A$10000),0)+ROWS($1:11)-1,COLUMN()-1),0) -> 313946.2384 | F17: =IF(ROWS(GPS_IMPORT!$1:11)<=COUNTIF(GPS_IMPORT!$A$2:$A$10000,$B$5),INDEX(GPS_IMPORT!$2:$10000,MATCH($B$5,(GPS_IMPORT!$A$2:$A$10000),0)+ROWS($1:11)-1,COLUMN()-1),0) -> 2258275.219 | G17: =IF(ROWS(GPS_IMPORT!$1:11)<=COUNTIF(GPS_IMPORT!$A$2:$A$10000,$B$5),INDEX(GPS_IMPORT!$2:$10000,MATCH($B$5,(GPS_IMPORT!$A$2:$A$10000),0)+ROWS($1:11)-1,COLUMN()-1),0) -> 875.735512 | H17: -0.007486519986 | I17: -0.004531846847 | J17: 0.004071478967 | K17: TRUE
A18: 12 | B18: =IF(ROWS(GPS_IMPORT!$1:12)<=COUNTIF(GPS_IMPORT!$A$2:$A$10000,$B$5),INDEX(GPS_IMPORT!$2:$10000,MATCH($B$5,(GPS_IMPORT!$A$2:$A$10000),0)+ROWS($1:12)-1,COLUMN()-1),0) -> GS3 | C18: =IF(ROWS(GPS_IMPORT!$1:12)<=COUNTIF(GPS_IMPORT!$A$2:$A$10000,$B$5),INDEX(GPS_IMPORT!$2:$10000,MATCH($B$5,(GPS_IMPORT!$A$2:$A$10000),0)+ROWS($1:12)-1,COLUMN()-1),0) -> 12.18.2018 | D18: =IF(ROWS(GPS_IMPORT!$1:12)<=COUNTIF(GPS_IMPORT!$A$2:$A$10000,$B$5),INDEX(GPS_IMPORT!$2:$10000,MATCH($B$5,(GPS_IMPORT!$A$2:$A$10000),0)+ROWS($1:12)-1,COLUMN()-1),0) -> 9:26:26.9600 | E18: =IF(ROWS(GPS_IMPORT!$1:12)<=COUNTIF(GPS_IMPORT!$A$2:$A$10000,$B$5),INDEX(GPS_IMPORT!$2:$10000,MATCH($B$5,(GPS_IMPORT!$A$2:$A$10000),0)+ROWS($1:12)-1,COLUMN()-1),0) -> 313946.2331 | F18: =IF(ROWS(GPS_IMPORT!$1:12)<=COUNTIF(GPS_IMPORT!$A$2:$A$10000,$B$5),INDEX(GPS_IMPORT!$2:$10000,MATCH($B$5,(GPS_IMPORT!$A$2:$A$10000),0)+ROWS($1:12)-1,COLUMN()-1),0) -> 2258275.22 | G18: =IF(ROWS(GPS_IMPORT!$1:12)<=COUNTIF(GPS_IMPORT!$A$2:$A$10000,$B$5),INDEX(GPS_IMPORT!$2:$10000,MATCH($B$5,(GPS_IMPORT!$A$2:$A$10000),0)+ROWS($1:12)-1,COLUMN()-1),0) -> 875.7284469 | H18: -0.002223342948 | I18: -0.005332316738 | J18: 0.01113651517 | K18: TRUE
A19: 13 | B19: =IF(ROWS(GPS_IMPORT!$1:13)<=COUNTIF(GPS_IMPORT!$A$2:$A$10000,$B$5),INDEX(GPS_IMPORT!$2:$10000,MATCH($B$5,(GPS_IMPORT!$A$2:$A$10000),0)+ROWS($1:13)-1,COLUMN()-1),0) -> 0 | C19: =IF(ROWS(GPS_IMPORT!$1:13)<=COUNTIF(GPS_IMPORT!$A$2:$A$10000,$B$5),INDEX(GPS_IMPORT!$2:$10000,MATCH($B$5,(GPS_IMPORT!$A$2:$A$10000),0)+ROWS($1:13)-1,COLUMN()-1),0) -> 00:00:00 | D19: =IF(ROWS(GPS_IMPORT!$1:13)<=COUNTIF(GPS_IMPORT!$A$2:$A$10000,$B$5),INDEX(GPS_IMPORT!$2:$10000,MATCH($B$5,(GPS_IMPORT!$A$2:$A$10000),0)+ROWS($1:13)-1,COLUMN()-1),0) -> 00:00:00 | E19: =IF(ROWS(GPS_IMPORT!$1:13)<=COUNTIF(GPS_IMPORT!$A$2:$A$10000,$B$5),INDEX(GPS_IMPORT!$2:$10000,MATCH($B$5,(GPS_IMPORT!$A$2:$A$10000),0)+ROWS($1:13)-1,COLUMN()-1),0) -> 0 | F19: =IF(ROWS(GPS_IMPORT!$1:13)<=COUNTIF(GPS_IMPORT!$A$2:$A$10000,$B$5),INDEX(GPS_IMPORT!$2:$10000,MATCH($B$5,(GPS_IMPORT!$A$2:$A$10000),0)+ROWS($1:13)-1,COLUMN()-1),0) -> 0 | G19: =IF(ROWS(GPS_IMPORT!$1:13)<=COUNTIF(GPS_IMPORT!$A$2:$A$10000,$B$5),INDEX(GPS_IMPORT!$2:$10000,MATCH($B$5,(GPS_IMPORT!$A$2:$A$10000),0)+ROWS($1:13)-1,COLUMN()-1),0) -> 0 | H19: =IF(E19>0,E$22-E19,0) -> 0 | I19: 0 | J19: 0 | K19: FALSE
A20: 14 | B20: =IF(ROWS(GPS_IMPORT!$1:14)<=COUNTIF(GPS_IMPORT!$A$2:$A$10000,$B$5),INDEX(GPS_IMPORT!$2:$10000,MATCH($B$5,(GPS_IMPORT!$A$2:$A$10000),0)+ROWS($1:14)-1,COLUMN()-1),0) -> 0 | C20: =IF(ROWS(GPS_IMPORT!$1:14)<=COUNTIF(GPS_IMPORT!$A$2:$A$10000,$B$5),INDEX(GPS_IMPORT!$2:$10000,MATCH($B$5,(GPS_IMPORT!$A$2:$A$10000),0)+ROWS($1:14)-1,COLUMN()-1),0) -> 00:00:00 | D20: =IF(ROWS(GPS_IMPORT!$1:14)<=COUNTIF(GPS_IMPORT!$A$2:$A$10000,$B$5),INDEX(GPS_IMPORT!$2:$10000,MATCH($B$5,(GPS_IMPORT!$A$2:$A$10000),0)+ROWS($1:14)-1,COLUMN()-1),0) -> 00:00:00 | E20: =IF(ROWS(GPS_IMPORT!$1:14)<=COUNTIF(GPS_IMPORT!$A$2:$A$10000,$B$5),INDEX(GPS_IMPORT!$2:$10000,MATCH($B$5,(GPS_IMPORT!$A$2:$A$10000),0)+ROWS($1:14)-1,COLUMN()-1),0) -> 0 | F20: =IF(ROWS(GPS_IMPORT!$1:14)<=COUNTIF(GPS_IMPORT!$A$2:$A$10000,$B$5),INDEX(GPS_IMPORT!$2:$10000,MATCH($B$5,(GPS_IMPORT!$A$2:$A$10000),0)+ROWS($1:14)-1,COLUMN()-1),0) -> 0 | G20: =IF(ROWS(GPS_IMPORT!$1:14)<=COUNTIF(GPS_IMPORT!$A$2:$A$10000,$B$5),INDEX(GPS_IMPORT!$2:$10000,MATCH($B$5,(GPS_IMPORT!$A$2:$A$10000),0)+ROWS($1:14)-1,COLUMN()-1),0) -> 0 | H20: 0 | I20: 0 | J20: 0 | K20: FALSE
A21: 15 | B21: =IF(ROWS(GPS_IMPORT!$1:15)<=COUNTIF(GPS_IMPORT!$A$2:$A$10000,$B$5),INDEX(GPS_IMPORT!$2:$10000,MATCH($B$5,(GPS_IMPORT!$A$2:$A$10000),0)+ROWS($1:15)-1,COLUMN()-1),0) -> 0 | C21: =IF(ROWS(GPS_IMPORT!$1:15)<=COUNTIF(GPS_IMPORT!$A$2:$A$10000,$B$5),INDEX(GPS_IMPORT!$2:$10000,MATCH($B$5,(GPS_IMPORT!$A$2:$A$10000),0)+ROWS($1:15)-1,COLUMN()-1),0) -> 00:00:00 | D21: =IF(ROWS(GPS_IMPORT!$1:15)<=COUNTIF(GPS_IMPORT!$A$2:$A$10000,$B$5),INDEX(GPS_IMPORT!$2:$10000,MATCH($B$5,(GPS_IMPORT!$A$2:$A$10000),0)+ROWS($1:15)-1,COLUMN()-1),0) -> 00:00:00 | E21: =IF(ROWS(GPS_IMPORT!$1:15)<=COUNTIF(GPS_IMPORT!$A$2:$A$10000,$B$5),INDEX(GPS_IMPORT!$2:$10000,MATCH($B$5,(GPS_IMPORT!$A$2:$A$10000),0)+ROWS($1:15)-1,COLUMN()-1),0) -> 0 | F21: =IF(ROWS(GPS_IMPORT!$1:15)<=COUNTIF(GPS_IMPORT!$A$2:$A$10000,$B$5),INDEX(GPS_IMPORT!$2:$10000,MATCH($B$5,(GPS_IMPORT!$A$2:$A$10000),0)+ROWS($1:15)-1,COLUMN()-1),0) -> 0 | G21: =IF(ROWS(GPS_IMPORT!$1:15)<=COUNTIF(GPS_IMPORT!$A$2:$A$10000,$B$5),INDEX(GPS_IMPORT!$2:$10000,MATCH($B$5,(GPS_IMPORT!$A$2:$A$10000),0)+ROWS($1:15)-1,COLUMN()-1),0) -> 0 | H21: 0 | I21: 0 | J21: 0 | K21: FALSE
D22: AVERAGE | E22: =(IF($K$7=TRUE,E7,0)+IF($K$8=TRUE,E8,0)+IF($K$9=TRUE,E9,0)+IF($K$10=TRUE,E10,0)+IF($K$11=TRUE,E11,0)+IF($K$12=TRUE,E12,0)+IF($K$13=TRUE,E13,0)+IF($K$14=TRUE,E14,0)+IF($K$15=TRUE,E15,0)+IF($K$16=TRUE,E16,0)+IF($K$17=TRUE,E17,0)+IF($K$18=TRUE,E18,0)+IF($K$19=TRUE,E19,0)+IF($K$20=TRUE,E20,0)+IF($K$21=TRUE,E21,0))/(IF($K$7=TRUE,1,0)+IF($K$8=TRUE,1,0)+IF($K$9=TRUE,1,0)+IF($K$10=TRUE,1,0)+IF($K$11=TRUE,1,0)+IF($K$12=TRUE,1,0)+IF($K$13=TRUE,1,0)+IF($K$14=TRUE,1,0)+IF($K$15=TRUE,1,0)+IF($K$16=TRUE,1,0)+IF($K$17=TRUE,1,0)+IF($K$18=TRUE,1,0)+IF($K$19=TRUE,1,0)+IF($K$20=TRUE,1,0)+IF($K$21=TRUE,1,0)) -> 313946.2309 | F22: =(IF($K$7=TRUE,F7,0)+IF($K$8=TRUE,F8,0)+IF($K$9=TRUE,F9,0)+IF($K$10=TRUE,F10,0)+IF($K$11=TRUE,F11,0)+IF($K$12=TRUE,F12,0)+IF($K$13=TRUE,F13,0)+IF($K$14=TRUE,F14,0)+IF($K$15=TRUE,F15,0)+IF($K$16=TRUE,F16,0)+IF($K$17=TRUE,F17,0)+IF($K$18=TRUE,F18,0)+IF($K$19=TRUE,F19,0)+IF($K$20=TRUE,F20,0)+IF($K$21=TRUE,F21,0))/(IF($K$7=TRUE,1,0)+IF($K$8=TRUE,1,0)+IF($K$9=TRUE,1,0)+IF($K$10=TRUE,1,0)+IF($K$11=TRUE,1,0)+IF($K$12=TRUE,1,0)+IF($K$13=TRUE,1,0)+IF($K$14=TRUE,1,0)+IF($K$15=TRUE,1,0)+IF($K$16=TRUE,1,0)+IF($K$17=TRUE,1,0)+IF($K$18=TRUE,1,0)+IF($K$19=TRUE,1,0)+IF($K$20=TRUE,1,0)+IF($K$21=TRUE,1,0)) -> 2258275.215 | G22: =(IF($K$7=TRUE,G7,0)+IF($K$8=TRUE,G8,0)+IF($K$9=TRUE,G9,0)+IF($K$10=TRUE,G10,0)+IF($K$11=TRUE,G11,0)+IF($K$12=TRUE,G12,0)+IF($K$13=TRUE,G13,0)+IF($K$14=TRUE,G14,0)+IF($K$15=TRUE,G15,0)+IF($K$16=TRUE,G16,0)+IF($K$17=TRUE,G17,0)+IF($K$18=TRUE,G18,0)+IF($K$19=TRUE,G19,0)+IF($K$20=TRUE,G20,0)+IF($K$21=TRUE,G21,0))/ (IF($K$7=TRUE,1,0)+IF($K$8=TRUE,1,0)+IF($K$9=TRUE,1,0)+IF($K$10=TRUE,1,0)+IF($K$11=TRUE,1,0)+IF($K$12=TRUE,1,0)+IF($K$13=TRUE,1,0)+IF($K$14=TRUE,1,0)+IF($K$15=TRUE,1,0)+IF($K$16=TRUE,1,0)+IF($K$17=TRUE,1,0)+IF($K$18=TRUE,1,0)+IF($K$19=TRUE,1,0)+IF($K$20=TRUE,1,0)+IF($K$21=TRUE,1,0)) -> 875.7395834 | H22: RMSE: | I22: RMSE: | J22: RMSE:
G23: RMSE IN US SURVEY FEET: | H23: =SQRT(( (IF($K$7=TRUE,H7^2,0))+(IF($K$8=TRUE,H8^2,0))+(IF($K$9=TRUE,H9^2,0))+(IF($K$10=TRUE,H10^2,0))+(IF($K$11=TRUE,H11^2,0))+(IF($K$12=TRUE,H12^2,0))+(IF($K$13=TRUE,H13^2,0))+(IF($K$14=TRUE,H14^2,0))+(IF($K$15=TRUE,H15^2,0))+(IF($K$16=TRUE,H16^2,0))+(IF($K$17=TRUE,H17^2,0))+(IF($K$18=TRUE,H18^2,0))+(IF($K$19=TRUE,H19^2,0))+(IF($K$20=TRUE,H20^2,0))+(IF($K$21=TRUE,H21^2,0)))/ (IF($K$7=TRUE,1,0)+IF($K$8=TRUE,1,0)+IF($K$9=TRUE,1,0)+IF($K$10=TRUE,1,0)+IF($K$11=TRUE,1,0)+IF($K$12=TRUE,1,0)+IF($K$13=TRUE,1,0)+IF($K$14=TRUE,1,0)+IF($K$15=TRUE,1,0)+IF($K$16=TRUE,1,0)+IF($K$17=TRUE,1,0)+IF($K$18=TRUE,1,0)+IF($K$19=TRUE,1,0)+IF($K$20=TRUE,1,0)+IF($K$21=TRUE,1,0))) -> 0.005672519212 | I23: =SQRT(( (IF($K$7=TRUE,I7^2,0))+(IF($K$8=TRUE,I8^2,0))+(IF($K$9=TRUE,I9^2,0))+(IF($K$10=TRUE,I10^2,0))+(IF($K$11=TRUE,I11^2,0))+(IF($K$12=TRUE,I12^2,0))+(IF($K$13=TRUE,I13^2,0))+(IF($K$14=TRUE,I14^2,0))+(IF($K$15=TRUE,I15^2,0))+(IF($K$16=TRUE,I16^2,0))+(IF($K$17=TRUE,I17^2,0))+(IF($K$18=TRUE,I18^2,0))+(IF($K$19=TRUE,I19^2,0))+(IF($K$20=TRUE,I20^2,0))+(IF($K$21=TRUE,I21^2,0)))/ (IF($K$7=TRUE,1,0)+IF($K$8=TRUE,1,0)+IF($K$9=TRUE,1,0)+IF($K$10=TRUE,1,0)+IF($K$11=TRUE,1,0)+IF($K$12=TRUE,1,0)+IF($K$13=TRUE,1,0)+IF($K$14=TRUE,1,0)+IF($K$15=TRUE,1,0)+IF($K$16=TRUE,1,0)+IF($K$17=TRUE,1,0)+IF($K$18=TRUE,1,0)+IF($K$19=TRUE,1,0)+IF($K$20=TRUE,1,0)+IF($K$21=TRUE,1,0))) -> 0.004246306501 | J23: =SQRT(( (IF($K$7=TRUE,J7^2,0))+(IF($K$8=TRUE,J8^2,0))+(IF($K$9=TRUE,J9^2,0))+(IF($K$10=TRUE,J10^2,0))+(IF($K$11=TRUE,J11^2,0))+(IF($K$12=TRUE,J12^2,0))+(IF($K$13=TRUE,J13^2,0))+(IF($K$14=TRUE,J14^2,0))+(IF($K$15=TRUE,J15^2,0))+(IF($K$16=TRUE,J16^2,0))+(IF($K$17=TRUE,J17^2,0))+(IF($K$18=TRUE,J18^2,0))+(IF($K$19=TRUE,J19^2,0))+(IF($K$20=TRUE,J20^2,0))+(IF($K$21=TRUE,J21^2,0)))/ (IF($K$7=TRUE,1,0)+IF($K$8=TRUE,1,0)+IF($K$9=TRUE,1,0)+IF($K$10=TRUE,1,0)+IF($K$11=TRUE,1,0)+IF($K$12=TRUE,1,0)+IF($K$13=TRUE,1,0)+IF($K$14=TRUE,1,0)+IF($K$15=TRUE,1,0)+IF($K$16=TRUE,1,0)+IF($K$17=TRUE,1,0)+IF($K$18=TRUE,1,0)+IF($K$19=TRUE,1,0)+IF($K$20=TRUE,1,0)+IF($K$21=TRUE,1,0))) -> 0.008978543077
D24: 1
C25: UNITLESS GRID TO GROUND MULTIPLIER | D25: =IF(REPORT!C13="n/a","0.00000000",REPORT!C13) -> 0 | H25: =IF(H23<=0.029,"PASS","FAIL") -> PASS | I25: =IF(I23<=0.029,"PASS","FAIL") -> PASS | J25: =IF(J23<=0.039,"PASS","FAIL") -> PASS
A27: AVERAGED GPS-DERIVED POSITION | I27: Notes:
B28: MONUMENT COORDINATES | D28: NORTHING | E28: EASTING | F28: ORTHO HEIGHT
B29: US Survey Feet (GRID) | D29: =$E$22 -> 313946.2309 | E29: =$F$22 -> 2258275.215 | F29: =$G$22 -> 875.7395834
A31: LEVELED ELEVATION
A32: US SURVEY FEET | C32: N/A | D32: (Type the leveled elevation or N/A if no leveled elevation is available)
A33: MONUMENT HELD | D33: (Type the monument name from which leveling originated)
A34: LEVELED ELEVATION - GPS DERIVED ELEVATION = | E34: =IF(C32="N/A","N/A",C32-(F29*D24)) -> N/A
A36: FINAL MONUMENT COORDINATES
B37: MONUMENT COORDINATES | D37: NORTHING | E37: EASTING | F37: ELEVATION | G37: FEATURE CODE
B38: US SURVEY FEET (GRID) | D38: =$E$22*$D$24 -> 313946.2309 | E38: =$F$22*$D$24 -> 2258275.215 | F38: =IF($C$32="N/A",($G$22*$D$24),$C$32) -> 875.7395834 | G38: AERTAR
B39: US SURVEY FEET (GROUND) | D39: =$D$38*$D$25 -> 0 | E39: =$E$38*$D$25 -> 0 | F39: =IF($C$32="N/A",($G$22*$D$24),$C$32) -> 875.7395834 | G39: =G38 -> AERTAR
A41: ∆ North, ∆ East, and ∆ Ht. are the difference between the average northing, easting, and height for each observation. | I41: Mask Angle: | J41: 10°

Sheet GS4
A1: VRS GNSS Project Control Monument Coordinate Analysis
A3: Project: | B3: =REPORT!B2 -> TUS-800-22.74 | C3: GPS Antenna: | D3: LEICA GS14 | J3: Report Date: | K3: =REPORT!C49 -> 2018-12-19
A4: PID: | B4: =REPORT!E2 -> 100603 | C4: VRS Network: | D4: ODOT VRS | J4: Prepared By: | K4: =REPORT!C48 -> Kolton Wilson
A5: Point ID: | B5: GS4 | C5: No. of Sessions: | D5: =COUNTIF(GPS_IMPORT!A2:A1000,$B$5) -> 12 | J5: Checked By: | K5: =REPORT!C52 -> Joel Swick
A6: SESSION # | B6: Point | C6: Observation Date | D6: Start Time | E6: Northing(sft) | F6: Easting(sft) | G6: Height(sft) | H6: ∆ Northing(sft) | I6: ∆ Easting(sft) | J6: ∆ Height(sft) | K6: Include in Solution?
A7: 1 | B7: =IF(ROWS(GPS_IMPORT!$1:1)<=COUNTIF(GPS_IMPORT!$A$2:$A$10000,$B$5),INDEX(GPS_IMPORT!$2:$10000,MATCH($B$5,(GPS_IMPORT!$A$2:$A$10000),0)+ROWS($1:1)-1,COLUMN()-1),0) -> GS4 | C7: =IF(ROWS(GPS_IMPORT!$1:1)<=COUNTIF(GPS_IMPORT!$A$2:$A$10000,$B$5),INDEX(GPS_IMPORT!$2:$10000,MATCH($B$5,(GPS_IMPORT!$A$2:$A$10000),0)+ROWS($1:1)-1,COLUMN()-1),0) -> 12.18.2018 | D7: =IF(ROWS(GPS_IMPORT!$1:1)<=COUNTIF(GPS_IMPORT!$A$2:$A$10000,$B$5),INDEX(GPS_IMPORT!$2:$10000,MATCH($B$5,(GPS_IMPORT!$A$2:$A$10000),0)+ROWS($1:1)-1,COLUMN()-1),0) -> 9:35:50.8300 | E7: =IF(ROWS(GPS_IMPORT!$1:1)<=COUNTIF(GPS_IMPORT!$A$2:$A$10000,$B$5),INDEX(GPS_IMPORT!$2:$10000,MATCH($B$5,(GPS_IMPORT!$A$2:$A$10000),0)+ROWS($1:1)-1,COLUMN()-1),0) -> 314875.152 | F7: =IF(ROWS(GPS_IMPORT!$1:1)<=COUNTIF(GPS_IMPORT!$A$2:$A$10000,$B$5),INDEX(GPS_IMPORT!$2:$10000,MATCH($B$5,(GPS_IMPORT!$A$2:$A$10000),0)+ROWS($1:1)-1,COLUMN()-1),0) -> 2264670.365 | G7: =IF(ROWS(GPS_IMPORT!$1:1)<=COUNTIF(GPS_IMPORT!$A$2:$A$10000,$B$5),INDEX(GPS_IMPORT!$2:$10000,MATCH($B$5,(GPS_IMPORT!$A$2:$A$10000),0)+ROWS($1:1)-1,COLUMN()-1),0) -> 880.8604752 | H7: =IF(E7>0,E$22-E7,0) -> 0.01442741882 | I7: -0.0002136654221 | J7: 0.001341006597 | K7: TRUE
A8: 2 | B8: =IF(ROWS(GPS_IMPORT!$1:2)<=COUNTIF(GPS_IMPORT!$A$2:$A$10000,$B$5),INDEX(GPS_IMPORT!$2:$10000,MATCH($B$5,(GPS_IMPORT!$A$2:$A$10000),0)+ROWS($1:2)-1,COLUMN()-1),0) -> GS4 | C8: =IF(ROWS(GPS_IMPORT!$1:2)<=COUNTIF(GPS_IMPORT!$A$2:$A$10000,$B$5),INDEX(GPS_IMPORT!$2:$10000,MATCH($B$5,(GPS_IMPORT!$A$2:$A$10000),0)+ROWS($1:2)-1,COLUMN()-1),0) -> 12.18.2018 | D8: =IF(ROWS(GPS_IMPORT!$1:2)<=COUNTIF(GPS_IMPORT!$A$2:$A$10000,$B$5),INDEX(GPS_IMPORT!$2:$10000,MATCH($B$5,(GPS_IMPORT!$A$2:$A$10000),0)+ROWS($1:2)-1,COLUMN()-1),0) -> 9:36:6.7800 | E8: =IF(ROWS(GPS_IMPORT!$1:2)<=COUNTIF(GPS_IMPORT!$A$2:$A$10000,$B$5),INDEX(GPS_IMPORT!$2:$10000,MATCH($B$5,(GPS_IMPORT!$A$2:$A$10000),0)+ROWS($1:2)-1,COLUMN()-1),0) -> 314875.1626 | F8: =IF(ROWS(GPS_IMPORT!$1:2)<=COUNTIF(GPS_IMPORT!$A$2:$A$10000,$B$5),INDEX(GPS_IMPORT!$2:$10000,MATCH($B$5,(GPS_IMPORT!$A$2:$A$10000),0)+ROWS($1:2)-1,COLUMN()-1),0) -> 2264670.36 | G8: =IF(ROWS(GPS_IMPORT!$1:2)<=COUNTIF(GPS_IMPORT!$A$2:$A$10000,$B$5),INDEX(GPS_IMPORT!$2:$10000,MATCH($B$5,(GPS_IMPORT!$A$2:$A$10000),0)+ROWS($1:2)-1,COLUMN()-1),0) -> 880.8537247 | H8: 0.003845088824 | I8: 0.004905054346 | J8: 0.008091428727 | K8: TRUE
A9: 3 | B9: =IF(ROWS(GPS_IMPORT!$1:3)<=COUNTIF(GPS_IMPORT!$A$2:$A$10000,$B$5),INDEX(GPS_IMPORT!$2:$10000,MATCH($B$5,(GPS_IMPORT!$A$2:$A$10000),0)+ROWS($1:3)-1,COLUMN()-1),0) -> GS4 | C9: =IF(ROWS(GPS_IMPORT!$1:3)<=COUNTIF(GPS_IMPORT!$A$2:$A$10000,$B$5),INDEX(GPS_IMPORT!$2:$10000,MATCH($B$5,(GPS_IMPORT!$A$2:$A$10000),0)+ROWS($1:3)-1,COLUMN()-1),0) -> 12.18.2018 | D9: =IF(ROWS(GPS_IMPORT!$1:3)<=COUNTIF(GPS_IMPORT!$A$2:$A$10000,$B$5),INDEX(GPS_IMPORT!$2:$10000,MATCH($B$5,(GPS_IMPORT!$A$2:$A$10000),0)+ROWS($1:3)-1,COLUMN()-1),0) -> 9:36:16.9700 | E9: =IF(ROWS(GPS_IMPORT!$1:3)<=COUNTIF(GPS_IMPORT!$A$2:$A$10000,$B$5),INDEX(GPS_IMPORT!$2:$10000,MATCH($B$5,(GPS_IMPORT!$A$2:$A$10000),0)+ROWS($1:3)-1,COLUMN()-1),0) -> 314875.1648 | F9: =IF(ROWS(GPS_IMPORT!$1:3)<=COUNTIF(GPS_IMPORT!$A$2:$A$10000,$B$5),INDEX(GPS_IMPORT!$2:$10000,MATCH($B$5,(GPS_IMPORT!$A$2:$A$10000),0)+ROWS($1:3)-1,COLUMN()-1),0) -> 2264670.36 | G9: =IF(ROWS(GPS_IMPORT!$1:3)<=COUNTIF(GPS_IMPORT!$A$2:$A$10000,$B$5),INDEX(GPS_IMPORT!$2:$10000,MATCH($B$5,(GPS_IMPORT!$A$2:$A$10000),0)+ROWS($1:3)-1,COLUMN()-1),0) -> 880.8537019 | H9: 0.001606249833 | I9: 0.0044404543 | J9: 0.008114268697 | K9: TRUE
A10: 4 | B10: =IF(ROWS(GPS_IMPORT!$1:4)<=COUNTIF(GPS_IMPORT!$A$2:$A$10000,$B$5),INDEX(GPS_IMPORT!$2:$10000,MATCH($B$5,(GPS_IMPORT!$A$2:$A$10000),0)+ROWS($1:4)-1,COLUMN()-1),0) -> GS4 | C10: =IF(ROWS(GPS_IMPORT!$1:4)<=COUNTIF(GPS_IMPORT!$A$2:$A$10000,$B$5),INDEX(GPS_IMPORT!$2:$10000,MATCH($B$5,(GPS_IMPORT!$A$2:$A$10000),0)+ROWS($1:4)-1,COLUMN()-1),0) -> 12.18.2018 | D10: =IF(ROWS(GPS_IMPORT!$1:4)<=COUNTIF(GPS_IMPORT!$A$2:$A$10000,$B$5),INDEX(GPS_IMPORT!$2:$10000,MATCH($B$5,(GPS_IMPORT!$A$2:$A$10000),0)+ROWS($1:4)-1,COLUMN()-1),0) -> 9:36:26.7600 | E10: =IF(ROWS(GPS_IMPORT!$1:4)<=COUNTIF(GPS_IMPORT!$A$2:$A$10000,$B$5),INDEX(GPS_IMPORT!$2:$10000,MATCH($B$5,(GPS_IMPORT!$A$2:$A$10000),0)+ROWS($1:4)-1,COLUMN()-1),0) -> 314875.1641 | F10: =IF(ROWS(GPS_IMPORT!$1:4)<=COUNTIF(GPS_IMPORT!$A$2:$A$10000,$B$5),INDEX(GPS_IMPORT!$2:$10000,MATCH($B$5,(GPS_IMPORT!$A$2:$A$10000),0)+ROWS($1:4)-1,COLUMN()-1),0) -> 2264670.363 | G10: =IF(ROWS(GPS_IMPORT!$1:4)<=COUNTIF(GPS_IMPORT!$A$2:$A$10000,$B$5),INDEX(GPS_IMPORT!$2:$10000,MATCH($B$5,(GPS_IMPORT!$A$2:$A$10000),0)+ROWS($1:4)-1,COLUMN()-1),0) -> 880.863844 | H10: 0.002336828795 | I10: 0.00148344459 | J10: -0.002027841363 | K10: TRUE
A11: 5 | B11: =IF(ROWS(GPS_IMPORT!$1:5)<=COUNTIF(GPS_IMPORT!$A$2:$A$10000,$B$5),INDEX(GPS_IMPORT!$2:$10000,MATCH($B$5,(GPS_IMPORT!$A$2:$A$10000),0)+ROWS($1:5)-1,COLUMN()-1),0) -> GS4 | C11: =IF(ROWS(GPS_IMPORT!$1:5)<=COUNTIF(GPS_IMPORT!$A$2:$A$10000,$B$5),INDEX(GPS_IMPORT!$2:$10000,MATCH($B$5,(GPS_IMPORT!$A$2:$A$10000),0)+ROWS($1:5)-1,COLUMN()-1),0) -> 12.18.2018 | D11: =IF(ROWS(GPS_IMPORT!$1:5)<=COUNTIF(GPS_IMPORT!$A$2:$A$10000,$B$5),INDEX(GPS_IMPORT!$2:$10000,MATCH($B$5,(GPS_IMPORT!$A$2:$A$10000),0)+ROWS($1:5)-1,COLUMN()-1),0) -> 9:36:43.9700 | E11: =IF(ROWS(GPS_IMPORT!$1:5)<=COUNTIF(GPS_IMPORT!$A$2:$A$10000,$B$5),INDEX(GPS_IMPORT!$2:$10000,MATCH($B$5,(GPS_IMPORT!$A$2:$A$10000),0)+ROWS($1:5)-1,COLUMN()-1),0) -> 314875.1664 | F11: =IF(ROWS(GPS_IMPORT!$1:5)<=COUNTIF(GPS_IMPORT!$A$2:$A$10000,$B$5),INDEX(GPS_IMPORT!$2:$10000,MATCH($B$5,(GPS_IMPORT!$A$2:$A$10000),0)+ROWS($1:5)-1,COLUMN()-1),0) -> 2264670.358 | G11: =IF(ROWS(GPS_IMPORT!$1:5)<=COUNTIF(GPS_IMPORT!$A$2:$A$10000,$B$5),INDEX(GPS_IMPORT!$2:$10000,MATCH($B$5,(GPS_IMPORT!$A$2:$A$10000),0)+ROWS($1:5)-1,COLUMN()-1),0) -> 880.8577967 | H11: 5.205802154e-06 | I11: 0.006881974638 | J11: 0.004019476407 | K11: TRUE
A12: 6 | B12: =IF(ROWS(GPS_IMPORT!$1:6)<=COUNTIF(GPS_IMPORT!$A$2:$A$10000,$B$5),INDEX(GPS_IMPORT!$2:$10000,MATCH($B$5,(GPS_IMPORT!$A$2:$A$10000),0)+ROWS($1:6)-1,COLUMN()-1),0) -> GS4 | C12: =IF(ROWS(GPS_IMPORT!$1:6)<=COUNTIF(GPS_IMPORT!$A$2:$A$10000,$B$5),INDEX(GPS_IMPORT!$2:$10000,MATCH($B$5,(GPS_IMPORT!$A$2:$A$10000),0)+ROWS($1:6)-1,COLUMN()-1),0) -> 12.18.2018 | D12: =IF(ROWS(GPS_IMPORT!$1:6)<=COUNTIF(GPS_IMPORT!$A$2:$A$10000,$B$5),INDEX(GPS_IMPORT!$2:$10000,MATCH($B$5,(GPS_IMPORT!$A$2:$A$10000),0)+ROWS($1:6)-1,COLUMN()-1),0) -> 9:36:53.9100 | E12: =IF(ROWS(GPS_IMPORT!$1:6)<=COUNTIF(GPS_IMPORT!$A$2:$A$10000,$B$5),INDEX(GPS_IMPORT!$2:$10000,MATCH($B$5,(GPS_IMPORT!$A$2:$A$10000),0)+ROWS($1:6)-1,COLUMN()-1),0) -> 314875.1653 | F12: =IF(ROWS(GPS_IMPORT!$1:6)<=COUNTIF(GPS_IMPORT!$A$2:$A$10000,$B$5),INDEX(GPS_IMPORT!$2:$10000,MATCH($B$5,(GPS_IMPORT!$A$2:$A$10000),0)+ROWS($1:6)-1,COLUMN()-1),0) -> 2264670.366 | G12: =IF(ROWS(GPS_IMPORT!$1:6)<=COUNTIF(GPS_IMPORT!$A$2:$A$10000,$B$5),INDEX(GPS_IMPORT!$2:$10000,MATCH($B$5,(GPS_IMPORT!$A$2:$A$10000),0)+ROWS($1:6)-1,COLUMN()-1),0) -> 880.8681219 | H12: 0.00112235581 | I12: -0.00152069563 | J12: -0.006305707833 | K12: TRUE
A13: 7 | B13: =IF(ROWS(GPS_IMPORT!$1:7)<=COUNTIF(GPS_IMPORT!$A$2:$A$10000,$B$5),INDEX(GPS_IMPORT!$2:$10000,MATCH($B$5,(GPS_IMPORT!$A$2:$A$10000),0)+ROWS($1:7)-1,COLUMN()-1),0) -> GS4 | C13: =IF(ROWS(GPS_IMPORT!$1:7)<=COUNTIF(GPS_IMPORT!$A$2:$A$10000,$B$5),INDEX(GPS_IMPORT!$2:$10000,MATCH($B$5,(GPS_IMPORT!$A$2:$A$10000),0)+ROWS($1:7)-1,COLUMN()-1),0) -> 12.18.2018 | D13: =IF(ROWS(GPS_IMPORT!$1:7)<=COUNTIF(GPS_IMPORT!$A$2:$A$10000,$B$5),INDEX(GPS_IMPORT!$2:$10000,MATCH($B$5,(GPS_IMPORT!$A$2:$A$10000),0)+ROWS($1:7)-1,COLUMN()-1),0) -> 9:37:2.7800 | E13: =IF(ROWS(GPS_IMPORT!$1:7)<=COUNTIF(GPS_IMPORT!$A$2:$A$10000,$B$5),INDEX(GPS_IMPORT!$2:$10000,MATCH($B$5,(GPS_IMPORT!$A$2:$A$10000),0)+ROWS($1:7)-1,COLUMN()-1),0) -> 314875.1693 | F13: =IF(ROWS(GPS_IMPORT!$1:7)<=COUNTIF(GPS_IMPORT!$A$2:$A$10000,$B$5),INDEX(GPS_IMPORT!$2:$10000,MATCH($B$5,(GPS_IMPORT!$A$2:$A$10000),0)+ROWS($1:7)-1,COLUMN()-1),0) -> 2264670.364 | G13: =IF(ROWS(GPS_IMPORT!$1:7)<=COUNTIF(GPS_IMPORT!$A$2:$A$10000,$B$5),INDEX(GPS_IMPORT!$2:$10000,MATCH($B$5,(GPS_IMPORT!$A$2:$A$10000),0)+ROWS($1:7)-1,COLUMN()-1),0) -> 880.8586636 | H13: -0.002880635206 | I13: 0.0008090743795 | J13: 0.003152602597 | K13: TRUE
A14: 8 | B14: =IF(ROWS(GPS_IMPORT!$1:8)<=COUNTIF(GPS_IMPORT!$A$2:$A$10000,$B$5),INDEX(GPS_IMPORT!$2:$10000,MATCH($B$5,(GPS_IMPORT!$A$2:$A$10000),0)+ROWS($1:8)-1,COLUMN()-1),0) -> GS4 | C14: =IF(ROWS(GPS_IMPORT!$1:8)<=COUNTIF(GPS_IMPORT!$A$2:$A$10000,$B$5),INDEX(GPS_IMPORT!$2:$10000,MATCH($B$5,(GPS_IMPORT!$A$2:$A$10000),0)+ROWS($1:8)-1,COLUMN()-1),0) -> 12.18.2018 | D14: =IF(ROWS(GPS_IMPORT!$1:8)<=COUNTIF(GPS_IMPORT!$A$2:$A$10000,$B$5),INDEX(GPS_IMPORT!$2:$10000,MATCH($B$5,(GPS_IMPORT!$A$2:$A$10000),0)+ROWS($1:8)-1,COLUMN()-1),0) -> 9:37:14.9100 | E14: =IF(ROWS(GPS_IMPORT!$1:8)<=COUNTIF(GPS_IMPORT!$A$2:$A$10000,$B$5),INDEX(GPS_IMPORT!$2:$10000,MATCH($B$5,(GPS_IMPORT!$A$2:$A$10000),0)+ROWS($1:8)-1,COLUMN()-1),0) -> 314875.1674 | F14: =IF(ROWS(GPS_IMPORT!$1:8)<=COUNTIF(GPS_IMPORT!$A$2:$A$10000,$B$5),INDEX(GPS_IMPORT!$2:$10000,MATCH($B$5,(GPS_IMPORT!$A$2:$A$10000),0)+ROWS($1:8)-1,COLUMN()-1),0) -> 2264670.368 | G14: =IF(ROWS(GPS_IMPORT!$1:8)<=COUNTIF(GPS_IMPORT!$A$2:$A$10000,$B$5),INDEX(GPS_IMPORT!$2:$10000,MATCH($B$5,(GPS_IMPORT!$A$2:$A$10000),0)+ROWS($1:8)-1,COLUMN()-1),0) -> 880.85958 | H14: -0.000972406182 | I14: -0.002964395564 | J14: 0.002236128627 | K14: TRUE
A15: 9 | B15: =IF(ROWS(GPS_IMPORT!$1:9)<=COUNTIF(GPS_IMPORT!$A$2:$A$10000,$B$5),INDEX(GPS_IMPORT!$2:$10000,MATCH($B$5,(GPS_IMPORT!$A$2:$A$10000),0)+ROWS($1:9)-1,COLUMN()-1),0) -> GS4 | C15: =IF(ROWS(GPS_IMPORT!$1:9)<=COUNTIF(GPS_IMPORT!$A$2:$A$10000,$B$5),INDEX(GPS_IMPORT!$2:$10000,MATCH($B$5,(GPS_IMPORT!$A$2:$A$10000),0)+ROWS($1:9)-1,COLUMN()-1),0) -> 12.18.2018 | D15: =IF(ROWS(GPS_IMPORT!$1:9)<=COUNTIF(GPS_IMPORT!$A$2:$A$10000,$B$5),INDEX(GPS_IMPORT!$2:$10000,MATCH($B$5,(GPS_IMPORT!$A$2:$A$10000),0)+ROWS($1:9)-1,COLUMN()-1),0) -> 9:37:33.7800 | E15: =IF(ROWS(GPS_IMPORT!$1:9)<=COUNTIF(GPS_IMPORT!$A$2:$A$10000,$B$5),INDEX(GPS_IMPORT!$2:$10000,MATCH($B$5,(GPS_IMPORT!$A$2:$A$10000),0)+ROWS($1:9)-1,COLUMN()-1),0) -> 314875.1682 | F15: =IF(ROWS(GPS_IMPORT!$1:9)<=COUNTIF(GPS_IMPORT!$A$2:$A$10000,$B$5),INDEX(GPS_IMPORT!$2:$10000,MATCH($B$5,(GPS_IMPORT!$A$2:$A$10000),0)+ROWS($1:9)-1,COLUMN()-1),0) -> 2264670.367 | G15: =IF(ROWS(GPS_IMPORT!$1:9)<=COUNTIF(GPS_IMPORT!$A$2:$A$10000,$B$5),INDEX(GPS_IMPORT!$2:$10000,MATCH($B$5,(GPS_IMPORT!$A$2:$A$10000),0)+ROWS($1:9)-1,COLUMN()-1),0) -> 880.8607782 | H15: -0.001740427164 | I15: -0.00234269537 | J15: 0.001037994317 | K15: TRUE
A16: 10 | B16: =IF(ROWS(GPS_IMPORT!$1:10)<=COUNTIF(GPS_IMPORT!$A$2:$A$10000,$B$5),INDEX(GPS_IMPORT!$2:$10000,MATCH($B$5,(GPS_IMPORT!$A$2:$A$10000),0)+ROWS($1:10)-1,COLUMN()-1),0) -> GS4 | C16: =IF(ROWS(GPS_IMPORT!$1:10)<=COUNTIF(GPS_IMPORT!$A$2:$A$10000,$B$5),INDEX(GPS_IMPORT!$2:$10000,MATCH($B$5,(GPS_IMPORT!$A$2:$A$10000),0)+ROWS($1:10)-1,COLUMN()-1),0) -> 12.18.2018 | D16: =IF(ROWS(GPS_IMPORT!$1:10)<=COUNTIF(GPS_IMPORT!$A$2:$A$10000,$B$5),INDEX(GPS_IMPORT!$2:$10000,MATCH($B$5,(GPS_IMPORT!$A$2:$A$10000),0)+ROWS($1:10)-1,COLUMN()-1),0) -> 9:37:45.2300 | E16: =IF(ROWS(GPS_IMPORT!$1:10)<=COUNTIF(GPS_IMPORT!$A$2:$A$10000,$B$5),INDEX(GPS_IMPORT!$2:$10000,MATCH($B$5,(GPS_IMPORT!$A$2:$A$10000),0)+ROWS($1:10)-1,COLUMN()-1),0) -> 314875.1682 | F16: =IF(ROWS(GPS_IMPORT!$1:10)<=COUNTIF(GPS_IMPORT!$A$2:$A$10000,$B$5),INDEX(GPS_IMPORT!$2:$10000,MATCH($B$5,(GPS_IMPORT!$A$2:$A$10000),0)+ROWS($1:10)-1,COLUMN()-1),0) -> 2264670.364 | G16: =IF(ROWS(GPS_IMPORT!$1:10)<=COUNTIF(GPS_IMPORT!$A$2:$A$10000,$B$5),INDEX(GPS_IMPORT!$2:$10000,MATCH($B$5,(GPS_IMPORT!$A$2:$A$10000),0)+ROWS($1:10)-1,COLUMN()-1),0) -> 880.8658986 | H16: -0.001754060213 | I16: 0.001174784265 | J16: -0.004082384353 | K16: TRUE
A17: 11 | B17: =IF(ROWS(GPS_IMPORT!$1:11)<=COUNTIF(GPS_IMPORT!$A$2:$A$10000,$B$5),INDEX(GPS_IMPORT!$2:$10000,MATCH($B$5,(GPS_IMPORT!$A$2:$A$10000),0)+ROWS($1:11)-1,COLUMN()-1),0) -> GS4 | C17: =IF(ROWS(GPS_IMPORT!$1:11)<=COUNTIF(GPS_IMPORT!$A$2:$A$10000,$B$5),INDEX(GPS_IMPORT!$2:$10000,MATCH($B$5,(GPS_IMPORT!$A$2:$A$10000),0)+ROWS($1:11)-1,COLUMN()-1),0) -> 12.18.2018 | D17: =IF(ROWS(GPS_IMPORT!$1:11)<=COUNTIF(GPS_IMPORT!$A$2:$A$10000,$B$5),INDEX(GPS_IMPORT!$2:$10000,MATCH($B$5,(GPS_IMPORT!$A$2:$A$10000),0)+ROWS($1:11)-1,COLUMN()-1),0) -> 9:37:56.0100 | E17: =IF(ROWS(GPS_IMPORT!$1:11)<=COUNTIF(GPS_IMPORT!$A$2:$A$10000,$B$5),INDEX(GPS_IMPORT!$2:$10000,MATCH($B$5,(GPS_IMPORT!$A$2:$A$10000),0)+ROWS($1:11)-1,COLUMN()-1),0) -> 314875.1734 | F17: =IF(ROWS(GPS_IMPORT!$1:11)<=COUNTIF(GPS_IMPORT!$A$2:$A$10000,$B$5),INDEX(GPS_IMPORT!$2:$10000,MATCH($B$5,(GPS_IMPORT!$A$2:$A$10000),0)+ROWS($1:11)-1,COLUMN()-1),0) -> 2264670.369 | G17: =IF(ROWS(GPS_IMPORT!$1:11)<=COUNTIF(GPS_IMPORT!$A$2:$A$10000,$B$5),INDEX(GPS_IMPORT!$2:$10000,MATCH($B$5,(GPS_IMPORT!$A$2:$A$10000),0)+ROWS($1:11)-1,COLUMN()-1),0) -> 880.8646223 | H17: -0.006979976199 | I17: -0.004064925481 | J17: -0.002806178593 | K17: TRUE
A18: 12 | B18: =IF(ROWS(GPS_IMPORT!$1:12)<=COUNTIF(GPS_IMPORT!$A$2:$A$10000,$B$5),INDEX(GPS_IMPORT!$2:$10000,MATCH($B$5,(GPS_IMPORT!$A$2:$A$10000),0)+ROWS($1:12)-1,COLUMN()-1),0) -> GS4 | C18: =IF(ROWS(GPS_IMPORT!$1:12)<=COUNTIF(GPS_IMPORT!$A$2:$A$10000,$B$5),INDEX(GPS_IMPORT!$2:$10000,MATCH($B$5,(GPS_IMPORT!$A$2:$A$10000),0)+ROWS($1:12)-1,COLUMN()-1),0) -> 12.18.2018 | D18: =IF(ROWS(GPS_IMPORT!$1:12)<=COUNTIF(GPS_IMPORT!$A$2:$A$10000,$B$5),INDEX(GPS_IMPORT!$2:$10000,MATCH($B$5,(GPS_IMPORT!$A$2:$A$10000),0)+ROWS($1:12)-1,COLUMN()-1),0) -> 9:38:6.0000 | E18: =IF(ROWS(GPS_IMPORT!$1:12)<=COUNTIF(GPS_IMPORT!$A$2:$A$10000,$B$5),INDEX(GPS_IMPORT!$2:$10000,MATCH($B$5,(GPS_IMPORT!$A$2:$A$10000),0)+ROWS($1:12)-1,COLUMN()-1),0) -> 314875.1755 | F18: =IF(ROWS(GPS_IMPORT!$1:12)<=COUNTIF(GPS_IMPORT!$A$2:$A$10000,$B$5),INDEX(GPS_IMPORT!$2:$10000,MATCH($B$5,(GPS_IMPORT!$A$2:$A$10000),0)+ROWS($1:12)-1,COLUMN()-1),0) -> 2264670.373 | G18: =IF(ROWS(GPS_IMPORT!$1:12)<=COUNTIF(GPS_IMPORT!$A$2:$A$10000,$B$5),INDEX(GPS_IMPORT!$2:$10000,MATCH($B$5,(GPS_IMPORT!$A$2:$A$10000),0)+ROWS($1:12)-1,COLUMN()-1),0) -> 880.874587 | H18: -0.009015643212 | I18: -0.008588405326 | J18: -0.01277079382 | K18: TRUE
A19: 13 | B19: =IF(ROWS(GPS_IMPORT!$1:13)<=COUNTIF(GPS_IMPORT!$A$2:$A$10000,$B$5),INDEX(GPS_IMPORT!$2:$10000,MATCH($B$5,(GPS_IMPORT!$A$2:$A$10000),0)+ROWS($1:13)-1,COLUMN()-1),0) -> 0 | C19: =IF(ROWS(GPS_IMPORT!$1:13)<=COUNTIF(GPS_IMPORT!$A$2:$A$10000,$B$5),INDEX(GPS_IMPORT!$2:$10000,MATCH($B$5,(GPS_IMPORT!$A$2:$A$10000),0)+ROWS($1:13)-1,COLUMN()-1),0) -> 00:00:00 | D19: =IF(ROWS(GPS_IMPORT!$1:13)<=COUNTIF(GPS_IMPORT!$A$2:$A$10000,$B$5),INDEX(GPS_IMPORT!$2:$10000,MATCH($B$5,(GPS_IMPORT!$A$2:$A$10000),0)+ROWS($1:13)-1,COLUMN()-1),0) -> 00:00:00 | E19: =IF(ROWS(GPS_IMPORT!$1:13)<=COUNTIF(GPS_IMPORT!$A$2:$A$10000,$B$5),INDEX(GPS_IMPORT!$2:$10000,MATCH($B$5,(GPS_IMPORT!$A$2:$A$10000),0)+ROWS($1:13)-1,COLUMN()-1),0) -> 0 | F19: =IF(ROWS(GPS_IMPORT!$1:13)<=COUNTIF(GPS_IMPORT!$A$2:$A$10000,$B$5),INDEX(GPS_IMPORT!$2:$10000,MATCH($B$5,(GPS_IMPORT!$A$2:$A$10000),0)+ROWS($1:13)-1,COLUMN()-1),0) -> 0 | G19: =IF(ROWS(GPS_IMPORT!$1:13)<=COUNTIF(GPS_IMPORT!$A$2:$A$10000,$B$5),INDEX(GPS_IMPORT!$2:$10000,MATCH($B$5,(GPS_IMPORT!$A$2:$A$10000),0)+ROWS($1:13)-1,COLUMN()-1),0) -> 0 | H19: =IF(E19>0,E$22-E19,0) -> 0 | I19: 0 | J19: 0 | K19: FALSE
A20: 14 | B20: =IF(ROWS(GPS_IMPORT!$1:14)<=COUNTIF(GPS_IMPORT!$A$2:$A$10000,$B$5),INDEX(GPS_IMPORT!$2:$10000,MATCH($B$5,(GPS_IMPORT!$A$2:$A$10000),0)+ROWS($1:14)-1,COLUMN()-1),0) -> 0 | C20: =IF(ROWS(GPS_IMPORT!$1:14)<=COUNTIF(GPS_IMPORT!$A$2:$A$10000,$B$5),INDEX(GPS_IMPORT!$2:$10000,MATCH($B$5,(GPS_IMPORT!$A$2:$A$10000),0)+ROWS($1:14)-1,COLUMN()-1),0) -> 00:00:00 | D20: =IF(ROWS(GPS_IMPORT!$1:14)<=COUNTIF(GPS_IMPORT!$A$2:$A$10000,$B$5),INDEX(GPS_IMPORT!$2:$10000,MATCH($B$5,(GPS_IMPORT!$A$2:$A$10000),0)+ROWS($1:14)-1,COLUMN()-1),0) -> 00:00:00 | E20: =IF(ROWS(GPS_IMPORT!$1:14)<=COUNTIF(GPS_IMPORT!$A$2:$A$10000,$B$5),INDEX(GPS_IMPORT!$2:$10000,MATCH($B$5,(GPS_IMPORT!$A$2:$A$10000),0)+ROWS($1:14)-1,COLUMN()-1),0) -> 0 | F20: =IF(ROWS(GPS_IMPORT!$1:14)<=COUNTIF(GPS_IMPORT!$A$2:$A$10000,$B$5),INDEX(GPS_IMPORT!$2:$10000,MATCH($B$5,(GPS_IMPORT!$A$2:$A$10000),0)+ROWS($1:14)-1,COLUMN()-1),0) -> 0 | G20: =IF(ROWS(GPS_IMPORT!$1:14)<=COUNTIF(GPS_IMPORT!$A$2:$A$10000,$B$5),INDEX(GPS_IMPORT!$2:$10000,MATCH($B$5,(GPS_IMPORT!$A$2:$A$10000),0)+ROWS($1:14)-1,COLUMN()-1),0) -> 0 | H20: 0 | I20: 0 | J20: 0 | K20: FALSE
A21: 15 | B21: =IF(ROWS(GPS_IMPORT!$1:15)<=COUNTIF(GPS_IMPORT!$A$2:$A$10000,$B$5),INDEX(GPS_IMPORT!$2:$10000,MATCH($B$5,(GPS_IMPORT!$A$2:$A$10000),0)+ROWS($1:15)-1,COLUMN()-1),0) -> 0 | C21: =IF(ROWS(GPS_IMPORT!$1:15)<=COUNTIF(GPS_IMPORT!$A$2:$A$10000,$B$5),INDEX(GPS_IMPORT!$2:$10000,MATCH($B$5,(GPS_IMPORT!$A$2:$A$10000),0)+ROWS($1:15)-1,COLUMN()-1),0) -> 00:00:00 | D21: =IF(ROWS(GPS_IMPORT!$1:15)<=COUNTIF(GPS_IMPORT!$A$2:$A$10000,$B$5),INDEX(GPS_IMPORT!$2:$10000,MATCH($B$5,(GPS_IMPORT!$A$2:$A$10000),0)+ROWS($1:15)-1,COLUMN()-1),0) -> 00:00:00 | E21: =IF(ROWS(GPS_IMPORT!$1:15)<=COUNTIF(GPS_IMPORT!$A$2:$A$10000,$B$5),INDEX(GPS_IMPORT!$2:$10000,MATCH($B$5,(GPS_IMPORT!$A$2:$A$10000),0)+ROWS($1:15)-1,COLUMN()-1),0) -> 0 | F21: =IF(ROWS(GPS_IMPORT!$1:15)<=COUNTIF(GPS_IMPORT!$A$2:$A$10000,$B$5),INDEX(GPS_IMPORT!$2:$10000,MATCH($B$5,(GPS_IMPORT!$A$2:$A$10000),0)+ROWS($1:15)-1,COLUMN()-1),0) -> 0 | G21: =IF(ROWS(GPS_IMPORT!$1:15)<=COUNTIF(GPS_IMPORT!$A$2:$A$10000,$B$5),INDEX(GPS_IMPORT!$2:$10000,MATCH($B$5,(GPS_IMPORT!$A$2:$A$10000),0)+ROWS($1:15)-1,COLUMN()-1),0) -> 0 | H21: 0 | I21: 0 | J21: 0 | K21: FALSE
D22: AVERAGE | E22: =(IF($K$7=TRUE,E7,0)+IF($K$8=TRUE,E8,0)+IF($K$9=TRUE,E9,0)+IF($K$10=TRUE,E10,0)+IF($K$11=TRUE,E11,0)+IF($K$12=TRUE,E12,0)+IF($K$13=TRUE,E13,0)+IF($K$14=TRUE,E14,0)+IF($K$15=TRUE,E15,0)+IF($K$16=TRUE,E16,0)+IF($K$17=TRUE,E17,0)+IF($K$18=TRUE,E18,0)+IF($K$19=TRUE,E19,0)+IF($K$20=TRUE,E20,0)+IF($K$21=TRUE,E21,0))/(IF($K$7=TRUE,1,0)+IF($K$8=TRUE,1,0)+IF($K$9=TRUE,1,0)+IF($K$10=TRUE,1,0)+IF($K$11=TRUE,1,0)+IF($K$12=TRUE,1,0)+IF($K$13=TRUE,1,0)+IF($K$14=TRUE,1,0)+IF($K$15=TRUE,1,0)+IF($K$16=TRUE,1,0)+IF($K$17=TRUE,1,0)+IF($K$18=TRUE,1,0)+IF($K$19=TRUE,1,0)+IF($K$20=TRUE,1,0)+IF($K$21=TRUE,1,0)) -> 314875.1664 | F22: =(IF($K$7=TRUE,F7,0)+IF($K$8=TRUE,F8,0)+IF($K$9=TRUE,F9,0)+IF($K$10=TRUE,F10,0)+IF($K$11=TRUE,F11,0)+IF($K$12=TRUE,F12,0)+IF($K$13=TRUE,F13,0)+IF($K$14=TRUE,F14,0)+IF($K$15=TRUE,F15,0)+IF($K$16=TRUE,F16,0)+IF($K$17=TRUE,F17,0)+IF($K$18=TRUE,F18,0)+IF($K$19=TRUE,F19,0)+IF($K$20=TRUE,F20,0)+IF($K$21=TRUE,F21,0))/(IF($K$7=TRUE,1,0)+IF($K$8=TRUE,1,0)+IF($K$9=TRUE,1,0)+IF($K$10=TRUE,1,0)+IF($K$11=TRUE,1,0)+IF($K$12=TRUE,1,0)+IF($K$13=TRUE,1,0)+IF($K$14=TRUE,1,0)+IF($K$15=TRUE,1,0)+IF($K$16=TRUE,1,0)+IF($K$17=TRUE,1,0)+IF($K$18=TRUE,1,0)+IF($K$19=TRUE,1,0)+IF($K$20=TRUE,1,0)+IF($K$21=TRUE,1,0)) -> 2264670.365 | G22: =(IF($K$7=TRUE,G7,0)+IF($K$8=TRUE,G8,0)+IF($K$9=TRUE,G9,0)+IF($K$10=TRUE,G10,0)+IF($K$11=TRUE,G11,0)+IF($K$12=TRUE,G12,0)+IF($K$13=TRUE,G13,0)+IF($K$14=TRUE,G14,0)+IF($K$15=TRUE,G15,0)+IF($K$16=TRUE,G16,0)+IF($K$17=TRUE,G17,0)+IF($K$18=TRUE,G18,0)+IF($K$19=TRUE,G19,0)+IF($K$20=TRUE,G20,0)+IF($K$21=TRUE,G21,0))/ (IF($K$7=TRUE,1,0)+IF($K$8=TRUE,1,0)+IF($K$9=TRUE,1,0)+IF($K$10=TRUE,1,0)+IF($K$11=TRUE,1,0)+IF($K$12=TRUE,1,0)+IF($K$13=TRUE,1,0)+IF($K$14=TRUE,1,0)+IF($K$15=TRUE,1,0)+IF($K$16=TRUE,1,0)+IF($K$17=TRUE,1,0)+IF($K$18=TRUE,1,0)+IF($K$19=TRUE,1,0)+IF($K$20=TRUE,1,0)+IF($K$21=TRUE,1,0)) -> 880.8618162 | H22: RMSE: | I22: RMSE: | J22: RMSE:
G23: RMSE IN US SURVEY FEET: | H23: =SQRT(( (IF($K$7=TRUE,H7^2,0))+(IF($K$8=TRUE,H8^2,0))+(IF($K$9=TRUE,H9^2,0))+(IF($K$10=TRUE,H10^2,0))+(IF($K$11=TRUE,H11^2,0))+(IF($K$12=TRUE,H12^2,0))+(IF($K$13=TRUE,H13^2,0))+(IF($K$14=TRUE,H14^2,0))+(IF($K$15=TRUE,H15^2,0))+(IF($K$16=TRUE,H16^2,0))+(IF($K$17=TRUE,H17^2,0))+(IF($K$18=TRUE,H18^2,0))+(IF($K$19=TRUE,H19^2,0))+(IF($K$20=TRUE,H20^2,0))+(IF($K$21=TRUE,H21^2,0)))/ (IF($K$7=TRUE,1,0)+IF($K$8=TRUE,1,0)+IF($K$9=TRUE,1,0)+IF($K$10=TRUE,1,0)+IF($K$11=TRUE,1,0)+IF($K$12=TRUE,1,0)+IF($K$13=TRUE,1,0)+IF($K$14=TRUE,1,0)+IF($K$15=TRUE,1,0)+IF($K$16=TRUE,1,0)+IF($K$17=TRUE,1,0)+IF($K$18=TRUE,1,0)+IF($K$19=TRUE,1,0)+IF($K$20=TRUE,1,0)+IF($K$21=TRUE,1,0))) -> 0.005609418984 | I23: =SQRT(( (IF($K$7=TRUE,I7^2,0))+(IF($K$8=TRUE,I8^2,0))+(IF($K$9=TRUE,I9^2,0))+(IF($K$10=TRUE,I10^2,0))+(IF($K$11=TRUE,I11^2,0))+(IF($K$12=TRUE,I12^2,0))+(IF($K$13=TRUE,I13^2,0))+(IF($K$14=TRUE,I14^2,0))+(IF($K$15=TRUE,I15^2,0))+(IF($K$16=TRUE,I16^2,0))+(IF($K$17=TRUE,I17^2,0))+(IF($K$18=TRUE,I18^2,0))+(IF($K$19=TRUE,I19^2,0))+(IF($K$20=TRUE,I20^2,0))+(IF($K$21=TRUE,I21^2,0)))/ (IF($K$7=TRUE,1,0)+IF($K$8=TRUE,1,0)+IF($K$9=TRUE,1,0)+IF($K$10=TRUE,1,0)+IF($K$11=TRUE,1,0)+IF($K$12=TRUE,1,0)+IF($K$13=TRUE,1,0)+IF($K$14=TRUE,1,0)+IF($K$15=TRUE,1,0)+IF($K$16=TRUE,1,0)+IF($K$17=TRUE,1,0)+IF($K$18=TRUE,1,0)+IF($K$19=TRUE,1,0)+IF($K$20=TRUE,1,0)+IF($K$21=TRUE,1,0))) -> 0.004105813467 | J23: =SQRT(( (IF($K$7=TRUE,J7^2,0))+(IF($K$8=TRUE,J8^2,0))+(IF($K$9=TRUE,J9^2,0))+(IF($K$10=TRUE,J10^2,0))+(IF($K$11=TRUE,J11^2,0))+(IF($K$12=TRUE,J12^2,0))+(IF($K$13=TRUE,J13^2,0))+(IF($K$14=TRUE,J14^2,0))+(IF($K$15=TRUE,J15^2,0))+(IF($K$16=TRUE,J16^2,0))+(IF($K$17=TRUE,J17^2,0))+(IF($K$18=TRUE,J18^2,0))+(IF($K$19=TRUE,J19^2,0))+(IF($K$20=TRUE,J20^2,0))+(IF($K$21=TRUE,J21^2,0)))/ (IF($K$7=TRUE,1,0)+IF($K$8=TRUE,1,0)+IF($K$9=TRUE,1,0)+IF($K$10=TRUE,1,0)+IF($K$11=TRUE,1,0)+IF($K$12=TRUE,1,0)+IF($K$13=TRUE,1,0)+IF($K$14=TRUE,1,0)+IF($K$15=TRUE,1,0)+IF($K$16=TRUE,1,0)+IF($K$17=TRUE,1,0)+IF($K$18=TRUE,1,0)+IF($K$19=TRUE,1,0)+IF($K$20=TRUE,1,0)+IF($K$21=TRUE,1,0))) -> 0.005750300269
D24: 1
C25: UNITLESS GRID TO GROUND MULTIPLIER | D25: =IF(REPORT!C13="n/a","0.00000000",REPORT!C13) -> 0 | H25: =IF(H23<=0.029,"PASS","FAIL") -> PASS | I25: =IF(I23<=0.029,"PASS","FAIL") -> PASS | J25: =IF(J23<=0.039,"PASS","FAIL") -> PASS
A27: AVERAGED GPS-DERIVED POSITION | I27: Notes:
B28: MONUMENT COORDINATES | D28: NORTHING | E28: EASTING | F28: ORTHO HEIGHT
B29: US Survey Feet (GRID) | D29: =$E$22 -> 314875.1664 | E29: =$F$22 -> 2264670.365 | F29: =$G$22 -> 880.8618162
A31: LEVELED ELEVATION
A32: US SURVEY FEET | C32: N/A | D32: (Type the leveled elevation or N/A if no leveled elevation is available)
A33: MONUMENT HELD | D33: (Type the monument name from which leveling originated)
A34: LEVELED ELEVATION - GPS DERIVED ELEVATION = | E34: =IF(C32="N/A","N/A",C32-(F29*D24)) -> N/A
A36: FINAL MONUMENT COORDINATES
B37: MONUMENT COORDINATES | D37: NORTHING | E37: EASTING | F37: ELEVATION | G37: FEATURE CODE
B38: US SURVEY FEET (GRID) | D38: =$E$22*$D$24 -> 314875.1664 | E38: =$F$22*$D$24 -> 2264670.365 | F38: =IF($C$32="N/A",($G$22*$D$24),$C$32) -> 880.8618162 | G38: AERTAR
B39: US SURVEY FEET (GROUND) | D39: =$D$38*$D$25 -> 0 | E39: =$E$38*$D$25 -> 0 | F39: =IF($C$32="N/A",($G$22*$D$24),$C$32) -> 880.8618162 | G39: =G38 -> AERTAR
A41: ∆ North, ∆ East, and ∆ Ht. are the difference between the average northing, easting, and height for each observation. | I41: Mask Angle: | J41: 10°

Sheet GS5
A1: VRS GNSS Project Control Monument Coordinate Analysis
A3: Project: | B3: =REPORT!B2 -> TUS-800-22.74 | C3: GPS Antenna: | D3: LEICA GS14 | J3: Report Date: | K3: =REPORT!C49 -> 2018-12-19
A4: PID: | B4: =REPORT!E2 -> 100603 | C4: VRS Network: | D4: ODOT VRS | J4: Prepared By: | K4: =REPORT!C48 -> Kolton Wilson
A5: Point ID: | B5: GS5 | C5: No. of Sessions: | D5: =COUNTIF(GPS_IMPORT!A2:A1000,$B$5) -> 12 | J5: Checked By: | K5: =REPORT!C52 -> Joel Swick
A6: SESSION # | B6: Point | C6: Observation Date | D6: Start Time | E6: Northing(sft) | F6: Easting(sft) | G6: Height(sft) | H6: ∆ Northing(sft) | I6: ∆ Easting(sft) | J6: ∆ Height(sft) | K6: Include in Solution?
A7: 1 | B7: =IF(ROWS(GPS_IMPORT!$1:1)<=COUNTIF(GPS_IMPORT!$A$2:$A$10000,$B$5),INDEX(GPS_IMPORT!$2:$10000,MATCH($B$5,(GPS_IMPORT!$A$2:$A$10000),0)+ROWS($1:1)-1,COLUMN()-1),0) -> GS5 | C7: =IF(ROWS(GPS_IMPORT!$1:1)<=COUNTIF(GPS_IMPORT!$A$2:$A$10000,$B$5),INDEX(GPS_IMPORT!$2:$10000,MATCH($B$5,(GPS_IMPORT!$A$2:$A$10000),0)+ROWS($1:1)-1,COLUMN()-1),0) -> 12.18.2018 | D7: =IF(ROWS(GPS_IMPORT!$1:1)<=COUNTIF(GPS_IMPORT!$A$2:$A$10000,$B$5),INDEX(GPS_IMPORT!$2:$10000,MATCH($B$5,(GPS_IMPORT!$A$2:$A$10000),0)+ROWS($1:1)-1,COLUMN()-1),0) -> 9:43:32.0600 | E7: =IF(ROWS(GPS_IMPORT!$1:1)<=COUNTIF(GPS_IMPORT!$A$2:$A$10000,$B$5),INDEX(GPS_IMPORT!$2:$10000,MATCH($B$5,(GPS_IMPORT!$A$2:$A$10000),0)+ROWS($1:1)-1,COLUMN()-1),0) -> 316420.7341 | F7: =IF(ROWS(GPS_IMPORT!$1:1)<=COUNTIF(GPS_IMPORT!$A$2:$A$10000,$B$5),INDEX(GPS_IMPORT!$2:$10000,MATCH($B$5,(GPS_IMPORT!$A$2:$A$10000),0)+ROWS($1:1)-1,COLUMN()-1),0) -> 2266072.373 | G7: =IF(ROWS(GPS_IMPORT!$1:1)<=COUNTIF(GPS_IMPORT!$A$2:$A$10000,$B$5),INDEX(GPS_IMPORT!$2:$10000,MATCH($B$5,(GPS_IMPORT!$A$2:$A$10000),0)+ROWS($1:1)-1,COLUMN()-1),0) -> 880.6342876 | H7: =IF(E7>0,E$22-E7,0) -> -0.005652358581 | I7: -0.002985196654 | J7: 0.01513540658 | K7: TRUE
A8: 2 | B8: =IF(ROWS(GPS_IMPORT!$1:2)<=COUNTIF(GPS_IMPORT!$A$2:$A$10000,$B$5),INDEX(GPS_IMPORT!$2:$10000,MATCH($B$5,(GPS_IMPORT!$A$2:$A$10000),0)+ROWS($1:2)-1,COLUMN()-1),0) -> GS5 | C8: =IF(ROWS(GPS_IMPORT!$1:2)<=COUNTIF(GPS_IMPORT!$A$2:$A$10000,$B$5),INDEX(GPS_IMPORT!$2:$10000,MATCH($B$5,(GPS_IMPORT!$A$2:$A$10000),0)+ROWS($1:2)-1,COLUMN()-1),0) -> 12.18.2018 | D8: =IF(ROWS(GPS_IMPORT!$1:2)<=COUNTIF(GPS_IMPORT!$A$2:$A$10000,$B$5),INDEX(GPS_IMPORT!$2:$10000,MATCH($B$5,(GPS_IMPORT!$A$2:$A$10000),0)+ROWS($1:2)-1,COLUMN()-1),0) -> 9:43:43.0800 | E8: =IF(ROWS(GPS_IMPORT!$1:2)<=COUNTIF(GPS_IMPORT!$A$2:$A$10000,$B$5),INDEX(GPS_IMPORT!$2:$10000,MATCH($B$5,(GPS_IMPORT!$A$2:$A$10000),0)+ROWS($1:2)-1,COLUMN()-1),0) -> 316420.7324 | F8: =IF(ROWS(GPS_IMPORT!$1:2)<=COUNTIF(GPS_IMPORT!$A$2:$A$10000,$B$5),INDEX(GPS_IMPORT!$2:$10000,MATCH($B$5,(GPS_IMPORT!$A$2:$A$10000),0)+ROWS($1:2)-1,COLUMN()-1),0) -> 2266072.375 | G8: =IF(ROWS(GPS_IMPORT!$1:2)<=COUNTIF(GPS_IMPORT!$A$2:$A$10000,$B$5),INDEX(GPS_IMPORT!$2:$10000,MATCH($B$5,(GPS_IMPORT!$A$2:$A$10000),0)+ROWS($1:2)-1,COLUMN()-1),0) -> 880.6395809 | H8: -0.003902432625 | I8: -0.004942326341 | J8: 0.009842134696 | K8: TRUE
A9: 3 | B9: =IF(ROWS(GPS_IMPORT!$1:3)<=COUNTIF(GPS_IMPORT!$A$2:$A$10000,$B$5),INDEX(GPS_IMPORT!$2:$10000,MATCH($B$5,(GPS_IMPORT!$A$2:$A$10000),0)+ROWS($1:3)-1,COLUMN()-1),0) -> GS5 | C9: =IF(ROWS(GPS_IMPORT!$1:3)<=COUNTIF(GPS_IMPORT!$A$2:$A$10000,$B$5),INDEX(GPS_IMPORT!$2:$10000,MATCH($B$5,(GPS_IMPORT!$A$2:$A$10000),0)+ROWS($1:3)-1,COLUMN()-1),0) -> 12.18.2018 | D9: =IF(ROWS(GPS_IMPORT!$1:3)<=COUNTIF(GPS_IMPORT!$A$2:$A$10000,$B$5),INDEX(GPS_IMPORT!$2:$10000,MATCH($B$5,(GPS_IMPORT!$A$2:$A$10000),0)+ROWS($1:3)-1,COLUMN()-1),0) -> 9:43:52.7000 | E9: =IF(ROWS(GPS_IMPORT!$1:3)<=COUNTIF(GPS_IMPORT!$A$2:$A$10000,$B$5),INDEX(GPS_IMPORT!$2:$10000,MATCH($B$5,(GPS_IMPORT!$A$2:$A$10000),0)+ROWS($1:3)-1,COLUMN()-1),0) -> 316420.7263 | F9: =IF(ROWS(GPS_IMPORT!$1:3)<=COUNTIF(GPS_IMPORT!$A$2:$A$10000,$B$5),INDEX(GPS_IMPORT!$2:$10000,MATCH($B$5,(GPS_IMPORT!$A$2:$A$10000),0)+ROWS($1:3)-1,COLUMN()-1),0) -> 2266072.368 | G9: =IF(ROWS(GPS_IMPORT!$1:3)<=COUNTIF(GPS_IMPORT!$A$2:$A$10000,$B$5),INDEX(GPS_IMPORT!$2:$10000,MATCH($B$5,(GPS_IMPORT!$A$2:$A$10000),0)+ROWS($1:3)-1,COLUMN()-1),0) -> 880.660662 | H9: 0.002245118376 | I9: 0.002212693449 | J9: -0.01123893905 | K9: TRUE
A10: 4 | B10: =IF(ROWS(GPS_IMPORT!$1:4)<=COUNTIF(GPS_IMPORT!$A$2:$A$10000,$B$5),INDEX(GPS_IMPORT!$2:$10000,MATCH($B$5,(GPS_IMPORT!$A$2:$A$10000),0)+ROWS($1:4)-1,COLUMN()-1),0) -> GS5 | C10: =IF(ROWS(GPS_IMPORT!$1:4)<=COUNTIF(GPS_IMPORT!$A$2:$A$10000,$B$5),INDEX(GPS_IMPORT!$2:$10000,MATCH($B$5,(GPS_IMPORT!$A$2:$A$10000),0)+ROWS($1:4)-1,COLUMN()-1),0) -> 12.18.2018 | D10: =IF(ROWS(GPS_IMPORT!$1:4)<=COUNTIF(GPS_IMPORT!$A$2:$A$10000,$B$5),INDEX(GPS_IMPORT!$2:$10000,MATCH($B$5,(GPS_IMPORT!$A$2:$A$10000),0)+ROWS($1:4)-1,COLUMN()-1),0) -> 9:44:6.8600 | E10: =IF(ROWS(GPS_IMPORT!$1:4)<=COUNTIF(GPS_IMPORT!$A$2:$A$10000,$B$5),INDEX(GPS_IMPORT!$2:$10000,MATCH($B$5,(GPS_IMPORT!$A$2:$A$10000),0)+ROWS($1:4)-1,COLUMN()-1),0) -> 316420.7222 | F10: =IF(ROWS(GPS_IMPORT!$1:4)<=COUNTIF(GPS_IMPORT!$A$2:$A$10000,$B$5),INDEX(GPS_IMPORT!$2:$10000,MATCH($B$5,(GPS_IMPORT!$A$2:$A$10000),0)+ROWS($1:4)-1,COLUMN()-1),0) -> 2266072.359 | G10: =IF(ROWS(GPS_IMPORT!$1:4)<=COUNTIF(GPS_IMPORT!$A$2:$A$10000,$B$5),INDEX(GPS_IMPORT!$2:$10000,MATCH($B$5,(GPS_IMPORT!$A$2:$A$10000),0)+ROWS($1:4)-1,COLUMN()-1),0) -> 880.6618353 | H10: 0.006314370374 | I10: 0.01184689347 | J10: -0.01241221982 | K10: TRUE
A11: 5 | B11: =IF(ROWS(GPS_IMPORT!$1:5)<=COUNTIF(GPS_IMPORT!$A$2:$A$10000,$B$5),INDEX(GPS_IMPORT!$2:$10000,MATCH($B$5,(GPS_IMPORT!$A$2:$A$10000),0)+ROWS($1:5)-1,COLUMN()-1),0) -> GS5 | C11: =IF(ROWS(GPS_IMPORT!$1:5)<=COUNTIF(GPS_IMPORT!$A$2:$A$10000,$B$5),INDEX(GPS_IMPORT!$2:$10000,MATCH($B$5,(GPS_IMPORT!$A$2:$A$10000),0)+ROWS($1:5)-1,COLUMN()-1),0) -> 12.18.2018 | D11: =IF(ROWS(GPS_IMPORT!$1:5)<=COUNTIF(GPS_IMPORT!$A$2:$A$10000,$B$5),INDEX(GPS_IMPORT!$2:$10000,MATCH($B$5,(GPS_IMPORT!$A$2:$A$10000),0)+ROWS($1:5)-1,COLUMN()-1),0) -> 9:44:26.7800 | E11: =IF(ROWS(GPS_IMPORT!$1:5)<=COUNTIF(GPS_IMPORT!$A$2:$A$10000,$B$5),INDEX(GPS_IMPORT!$2:$10000,MATCH($B$5,(GPS_IMPORT!$A$2:$A$10000),0)+ROWS($1:5)-1,COLUMN()-1),0) -> 316420.7266 | F11: =IF(ROWS(GPS_IMPORT!$1:5)<=COUNTIF(GPS_IMPORT!$A$2:$A$10000,$B$5),INDEX(GPS_IMPORT!$2:$10000,MATCH($B$5,(GPS_IMPORT!$A$2:$A$10000),0)+ROWS($1:5)-1,COLUMN()-1),0) -> 2266072.369 | G11: =IF(ROWS(GPS_IMPORT!$1:5)<=COUNTIF(GPS_IMPORT!$A$2:$A$10000,$B$5),INDEX(GPS_IMPORT!$2:$10000,MATCH($B$5,(GPS_IMPORT!$A$2:$A$10000),0)+ROWS($1:5)-1,COLUMN()-1),0) -> 880.6432988 | H11: 0.001886944403 | I11: 0.0008821734227 | J11: 0.006124215636 | K11: TRUE
A12: 6 | B12: =IF(ROWS(GPS_IMPORT!$1:6)<=COUNTIF(GPS_IMPORT!$A$2:$A$10000,$B$5),INDEX(GPS_IMPORT!$2:$10000,MATCH($B$5,(GPS_IMPORT!$A$2:$A$10000),0)+ROWS($1:6)-1,COLUMN()-1),0) -> GS5 | C12: =IF(ROWS(GPS_IMPORT!$1:6)<=COUNTIF(GPS_IMPORT!$A$2:$A$10000,$B$5),INDEX(GPS_IMPORT!$2:$10000,MATCH($B$5,(GPS_IMPORT!$A$2:$A$10000),0)+ROWS($1:6)-1,COLUMN()-1),0) -> 12.18.2018 | D12: =IF(ROWS(GPS_IMPORT!$1:6)<=COUNTIF(GPS_IMPORT!$A$2:$A$10000,$B$5),INDEX(GPS_IMPORT!$2:$10000,MATCH($B$5,(GPS_IMPORT!$A$2:$A$10000),0)+ROWS($1:6)-1,COLUMN()-1),0) -> 9:44:37.0400 | E12: =IF(ROWS(GPS_IMPORT!$1:6)<=COUNTIF(GPS_IMPORT!$A$2:$A$10000,$B$5),INDEX(GPS_IMPORT!$2:$10000,MATCH($B$5,(GPS_IMPORT!$A$2:$A$10000),0)+ROWS($1:6)-1,COLUMN()-1),0) -> 316420.7253 | F12: =IF(ROWS(GPS_IMPORT!$1:6)<=COUNTIF(GPS_IMPORT!$A$2:$A$10000,$B$5),INDEX(GPS_IMPORT!$2:$10000,MATCH($B$5,(GPS_IMPORT!$A$2:$A$10000),0)+ROWS($1:6)-1,COLUMN()-1),0) -> 2266072.371 | G12: =IF(ROWS(GPS_IMPORT!$1:6)<=COUNTIF(GPS_IMPORT!$A$2:$A$10000,$B$5),INDEX(GPS_IMPORT!$2:$10000,MATCH($B$5,(GPS_IMPORT!$A$2:$A$10000),0)+ROWS($1:6)-1,COLUMN()-1),0) -> 880.6519239 | H12: 0.003242103383 | I12: -0.0002155164257 | J12: -0.002500895804 | K12: TRUE
A13: 7 | B13: =IF(ROWS(GPS_IMPORT!$1:7)<=COUNTIF(GPS_IMPORT!$A$2:$A$10000,$B$5),INDEX(GPS_IMPORT!$2:$10000,MATCH($B$5,(GPS_IMPORT!$A$2:$A$10000),0)+ROWS($1:7)-1,COLUMN()-1),0) -> GS5 | C13: =IF(ROWS(GPS_IMPORT!$1:7)<=COUNTIF(GPS_IMPORT!$A$2:$A$10000,$B$5),INDEX(GPS_IMPORT!$2:$10000,MATCH($B$5,(GPS_IMPORT!$A$2:$A$10000),0)+ROWS($1:7)-1,COLUMN()-1),0) -> 12.18.2018 | D13: =IF(ROWS(GPS_IMPORT!$1:7)<=COUNTIF(GPS_IMPORT!$A$2:$A$10000,$B$5),INDEX(GPS_IMPORT!$2:$10000,MATCH($B$5,(GPS_IMPORT!$A$2:$A$10000),0)+ROWS($1:7)-1,COLUMN()-1),0) -> 9:44:47.3400 | E13: =IF(ROWS(GPS_IMPORT!$1:7)<=COUNTIF(GPS_IMPORT!$A$2:$A$10000,$B$5),INDEX(GPS_IMPORT!$2:$10000,MATCH($B$5,(GPS_IMPORT!$A$2:$A$10000),0)+ROWS($1:7)-1,COLUMN()-1),0) -> 316420.7288 | F13: =IF(ROWS(GPS_IMPORT!$1:7)<=COUNTIF(GPS_IMPORT!$A$2:$A$10000,$B$5),INDEX(GPS_IMPORT!$2:$10000,MATCH($B$5,(GPS_IMPORT!$A$2:$A$10000),0)+ROWS($1:7)-1,COLUMN()-1),0) -> 2266072.377 | G13: =IF(ROWS(GPS_IMPORT!$1:7)<=COUNTIF(GPS_IMPORT!$A$2:$A$10000,$B$5),INDEX(GPS_IMPORT!$2:$10000,MATCH($B$5,(GPS_IMPORT!$A$2:$A$10000),0)+ROWS($1:7)-1,COLUMN()-1),0) -> 880.6575781 | H13: -0.0002969646011 | I13: -0.006630046293 | J13: -0.008155023904 | K13: TRUE
A14: 8 | B14: =IF(ROWS(GPS_IMPORT!$1:8)<=COUNTIF(GPS_IMPORT!$A$2:$A$10000,$B$5),INDEX(GPS_IMPORT!$2:$10000,MATCH($B$5,(GPS_IMPORT!$A$2:$A$10000),0)+ROWS($1:8)-1,COLUMN()-1),0) -> GS5 | C14: =IF(ROWS(GPS_IMPORT!$1:8)<=COUNTIF(GPS_IMPORT!$A$2:$A$10000,$B$5),INDEX(GPS_IMPORT!$2:$10000,MATCH($B$5,(GPS_IMPORT!$A$2:$A$10000),0)+ROWS($1:8)-1,COLUMN()-1),0) -> 12.18.2018 | D14: =IF(ROWS(GPS_IMPORT!$1:8)<=COUNTIF(GPS_IMPORT!$A$2:$A$10000,$B$5),INDEX(GPS_IMPORT!$2:$10000,MATCH($B$5,(GPS_IMPORT!$A$2:$A$10000),0)+ROWS($1:8)-1,COLUMN()-1),0) -> 9:44:57.1900 | E14: =IF(ROWS(GPS_IMPORT!$1:8)<=COUNTIF(GPS_IMPORT!$A$2:$A$10000,$B$5),INDEX(GPS_IMPORT!$2:$10000,MATCH($B$5,(GPS_IMPORT!$A$2:$A$10000),0)+ROWS($1:8)-1,COLUMN()-1),0) -> 316420.728 | F14: =IF(ROWS(GPS_IMPORT!$1:8)<=COUNTIF(GPS_IMPORT!$A$2:$A$10000,$B$5),INDEX(GPS_IMPORT!$2:$10000,MATCH($B$5,(GPS_IMPORT!$A$2:$A$10000),0)+ROWS($1:8)-1,COLUMN()-1),0) -> 2266072.37 | G14: =IF(ROWS(GPS_IMPORT!$1:8)<=COUNTIF(GPS_IMPORT!$A$2:$A$10000,$B$5),INDEX(GPS_IMPORT!$2:$10000,MATCH($B$5,(GPS_IMPORT!$A$2:$A$10000),0)+ROWS($1:8)-1,COLUMN()-1),0) -> 880.6588777 | H14: 0.0005024754209 | I14: 0.0004433933645 | J14: -0.009454641014 | K14: TRUE
A15: 9 | B15: =IF(ROWS(GPS_IMPORT!$1:9)<=COUNTIF(GPS_IMPORT!$A$2:$A$10000,$B$5),INDEX(GPS_IMPORT!$2:$10000,MATCH($B$5,(GPS_IMPORT!$A$2:$A$10000),0)+ROWS($1:9)-1,COLUMN()-1),0) -> GS5 | C15: =IF(ROWS(GPS_IMPORT!$1:9)<=COUNTIF(GPS_IMPORT!$A$2:$A$10000,$B$5),INDEX(GPS_IMPORT!$2:$10000,MATCH($B$5,(GPS_IMPORT!$A$2:$A$10000),0)+ROWS($1:9)-1,COLUMN()-1),0) -> 12.18.2018 | D15: =IF(ROWS(GPS_IMPORT!$1:9)<=COUNTIF(GPS_IMPORT!$A$2:$A$10000,$B$5),INDEX(GPS_IMPORT!$2:$10000,MATCH($B$5,(GPS_IMPORT!$A$2:$A$10000),0)+ROWS($1:9)-1,COLUMN()-1),0) -> 9:45:10.3900 | E15: =IF(ROWS(GPS_IMPORT!$1:9)<=COUNTIF(GPS_IMPORT!$A$2:$A$10000,$B$5),INDEX(GPS_IMPORT!$2:$10000,MATCH($B$5,(GPS_IMPORT!$A$2:$A$10000),0)+ROWS($1:9)-1,COLUMN()-1),0) -> 316420.7263 | F15: =IF(ROWS(GPS_IMPORT!$1:9)<=COUNTIF(GPS_IMPORT!$A$2:$A$10000,$B$5),INDEX(GPS_IMPORT!$2:$10000,MATCH($B$5,(GPS_IMPORT!$A$2:$A$10000),0)+ROWS($1:9)-1,COLUMN()-1),0) -> 2266072.368 | G15: =IF(ROWS(GPS_IMPORT!$1:9)<=COUNTIF(GPS_IMPORT!$A$2:$A$10000,$B$5),INDEX(GPS_IMPORT!$2:$10000,MATCH($B$5,(GPS_IMPORT!$A$2:$A$10000),0)+ROWS($1:9)-1,COLUMN()-1),0) -> 880.6625292 | H15: 0.002179824398 | I15: 0.001958033536 | J15: -0.01310613624 | K15: TRUE
A16: 10 | B16: =IF(ROWS(GPS_IMPORT!$1:10)<=COUNTIF(GPS_IMPORT!$A$2:$A$10000,$B$5),INDEX(GPS_IMPORT!$2:$10000,MATCH($B$5,(GPS_IMPORT!$A$2:$A$10000),0)+ROWS($1:10)-1,COLUMN()-1),0) -> GS5 | C16: =IF(ROWS(GPS_IMPORT!$1:10)<=COUNTIF(GPS_IMPORT!$A$2:$A$10000,$B$5),INDEX(GPS_IMPORT!$2:$10000,MATCH($B$5,(GPS_IMPORT!$A$2:$A$10000),0)+ROWS($1:10)-1,COLUMN()-1),0) -> 12.18.2018 | D16: =IF(ROWS(GPS_IMPORT!$1:10)<=COUNTIF(GPS_IMPORT!$A$2:$A$10000,$B$5),INDEX(GPS_IMPORT!$2:$10000,MATCH($B$5,(GPS_IMPORT!$A$2:$A$10000),0)+ROWS($1:10)-1,COLUMN()-1),0) -> 9:45:21.5800 | E16: =IF(ROWS(GPS_IMPORT!$1:10)<=COUNTIF(GPS_IMPORT!$A$2:$A$10000,$B$5),INDEX(GPS_IMPORT!$2:$10000,MATCH($B$5,(GPS_IMPORT!$A$2:$A$10000),0)+ROWS($1:10)-1,COLUMN()-1),0) -> 316420.7287 | F16: =IF(ROWS(GPS_IMPORT!$1:10)<=COUNTIF(GPS_IMPORT!$A$2:$A$10000,$B$5),INDEX(GPS_IMPORT!$2:$10000,MATCH($B$5,(GPS_IMPORT!$A$2:$A$10000),0)+ROWS($1:10)-1,COLUMN()-1),0) -> 2266072.365 | G16: =IF(ROWS(GPS_IMPORT!$1:10)<=COUNTIF(GPS_IMPORT!$A$2:$A$10000,$B$5),INDEX(GPS_IMPORT!$2:$10000,MATCH($B$5,(GPS_IMPORT!$A$2:$A$10000),0)+ROWS($1:10)-1,COLUMN()-1),0) -> 880.6550589 | H16: -0.0001899296185 | I16: 0.005304733757 | J16: -0.005635886934 | K16: TRUE
A17: 11 | B17: =IF(ROWS(GPS_IMPORT!$1:11)<=COUNTIF(GPS_IMPORT!$A$2:$A$10000,$B$5),INDEX(GPS_IMPORT!$2:$10000,MATCH($B$5,(GPS_IMPORT!$A$2:$A$10000),0)+ROWS($1:11)-1,COLUMN()-1),0) -> GS5 | C17: =IF(ROWS(GPS_IMPORT!$1:11)<=COUNTIF(GPS_IMPORT!$A$2:$A$10000,$B$5),INDEX(GPS_IMPORT!$2:$10000,MATCH($B$5,(GPS_IMPORT!$A$2:$A$10000),0)+ROWS($1:11)-1,COLUMN()-1),0) -> 12.18.2018 | D17: =IF(ROWS(GPS_IMPORT!$1:11)<=COUNTIF(GPS_IMPORT!$A$2:$A$10000,$B$5),INDEX(GPS_IMPORT!$2:$10000,MATCH($B$5,(GPS_IMPORT!$A$2:$A$10000),0)+ROWS($1:11)-1,COLUMN()-1),0) -> 9:45:31.0000 | E17: =IF(ROWS(GPS_IMPORT!$1:11)<=COUNTIF(GPS_IMPORT!$A$2:$A$10000,$B$5),INDEX(GPS_IMPORT!$2:$10000,MATCH($B$5,(GPS_IMPORT!$A$2:$A$10000),0)+ROWS($1:11)-1,COLUMN()-1),0) -> 316420.7298 | F17: =IF(ROWS(GPS_IMPORT!$1:11)<=COUNTIF(GPS_IMPORT!$A$2:$A$10000,$B$5),INDEX(GPS_IMPORT!$2:$10000,MATCH($B$5,(GPS_IMPORT!$A$2:$A$10000),0)+ROWS($1:11)-1,COLUMN()-1),0) -> 2266072.372 | G17: =IF(ROWS(GPS_IMPORT!$1:11)<=COUNTIF(GPS_IMPORT!$A$2:$A$10000,$B$5),INDEX(GPS_IMPORT!$2:$10000,MATCH($B$5,(GPS_IMPORT!$A$2:$A$10000),0)+ROWS($1:11)-1,COLUMN()-1),0) -> 880.6397953 | H17: -0.001301803626 | I17: -0.001878356561 | J17: 0.009627750656 | K17: TRUE
A18: 12 | B18: =IF(ROWS(GPS_IMPORT!$1:12)<=COUNTIF(GPS_IMPORT!$A$2:$A$10000,$B$5),INDEX(GPS_IMPORT!$2:$10000,MATCH($B$5,(GPS_IMPORT!$A$2:$A$10000),0)+ROWS($1:12)-1,COLUMN()-1),0) -> GS5 | C18: =IF(ROWS(GPS_IMPORT!$1:12)<=COUNTIF(GPS_IMPORT!$A$2:$A$10000,$B$5),INDEX(GPS_IMPORT!$2:$10000,MATCH($B$5,(GPS_IMPORT!$A$2:$A$10000),0)+ROWS($1:12)-1,COLUMN()-1),0) -> 12.18.2018 | D18: =IF(ROWS(GPS_IMPORT!$1:12)<=COUNTIF(GPS_IMPORT!$A$2:$A$10000,$B$5),INDEX(GPS_IMPORT!$2:$10000,MATCH($B$5,(GPS_IMPORT!$A$2:$A$10000),0)+ROWS($1:12)-1,COLUMN()-1),0) -> 9:45:40.7100 | E18: =IF(ROWS(GPS_IMPORT!$1:12)<=COUNTIF(GPS_IMPORT!$A$2:$A$10000,$B$5),INDEX(GPS_IMPORT!$2:$10000,MATCH($B$5,(GPS_IMPORT!$A$2:$A$10000),0)+ROWS($1:12)-1,COLUMN()-1),0) -> 316420.7335 | F18: =IF(ROWS(GPS_IMPORT!$1:12)<=COUNTIF(GPS_IMPORT!$A$2:$A$10000,$B$5),INDEX(GPS_IMPORT!$2:$10000,MATCH($B$5,(GPS_IMPORT!$A$2:$A$10000),0)+ROWS($1:12)-1,COLUMN()-1),0) -> 2266072.376 | G18: =IF(ROWS(GPS_IMPORT!$1:12)<=COUNTIF(GPS_IMPORT!$A$2:$A$10000,$B$5),INDEX(GPS_IMPORT!$2:$10000,MATCH($B$5,(GPS_IMPORT!$A$2:$A$10000),0)+ROWS($1:12)-1,COLUMN()-1),0) -> 880.6276488 | H18: -0.005027346604 | I18: -0.005996476393 | J18: 0.02177423522 | K18: TRUE
A19: 13 | B19: =IF(ROWS(GPS_IMPORT!$1:13)<=COUNTIF(GPS_IMPORT!$A$2:$A$10000,$B$5),INDEX(GPS_IMPORT!$2:$10000,MATCH($B$5,(GPS_IMPORT!$A$2:$A$10000),0)+ROWS($1:13)-1,COLUMN()-1),0) -> 0 | C19: =IF(ROWS(GPS_IMPORT!$1:13)<=COUNTIF(GPS_IMPORT!$A$2:$A$10000,$B$5),INDEX(GPS_IMPORT!$2:$10000,MATCH($B$5,(GPS_IMPORT!$A$2:$A$10000),0)+ROWS($1:13)-1,COLUMN()-1),0) -> 00:00:00 | D19: =IF(ROWS(GPS_IMPORT!$1:13)<=COUNTIF(GPS_IMPORT!$A$2:$A$10000,$B$5),INDEX(GPS_IMPORT!$2:$10000,MATCH($B$5,(GPS_IMPORT!$A$2:$A$10000),0)+ROWS($1:13)-1,COLUMN()-1),0) -> 00:00:00 | E19: =IF(ROWS(GPS_IMPORT!$1:13)<=COUNTIF(GPS_IMPORT!$A$2:$A$10000,$B$5),INDEX(GPS_IMPORT!$2:$10000,MATCH($B$5,(GPS_IMPORT!$A$2:$A$10000),0)+ROWS($1:13)-1,COLUMN()-1),0) -> 0 | F19: =IF(ROWS(GPS_IMPORT!$1:13)<=COUNTIF(GPS_IMPORT!$A$2:$A$10000,$B$5),INDEX(GPS_IMPORT!$2:$10000,MATCH($B$5,(GPS_IMPORT!$A$2:$A$10000),0)+ROWS($1:13)-1,COLUMN()-1),0) -> 0 | G19: =IF(ROWS(GPS_IMPORT!$1:13)<=COUNTIF(GPS_IMPORT!$A$2:$A$10000,$B$5),INDEX(GPS_IMPORT!$2:$10000,MATCH($B$5,(GPS_IMPORT!$A$2:$A$10000),0)+ROWS($1:13)-1,COLUMN()-1),0) -> 0 | H19: =IF(E19>0,E$22-E19,0) -> 0 | I19: 0 | J19: 0 | K19: FALSE
A20: 14 | B20: =IF(ROWS(GPS_IMPORT!$1:14)<=COUNTIF(GPS_IMPORT!$A$2:$A$10000,$B$5),INDEX(GPS_IMPORT!$2:$10000,MATCH($B$5,(GPS_IMPORT!$A$2:$A$10000),0)+ROWS($1:14)-1,COLUMN()-1),0) -> 0 | C20: =IF(ROWS(GPS_IMPORT!$1:14)<=COUNTIF(GPS_IMPORT!$A$2:$A$10000,$B$5),INDEX(GPS_IMPORT!$2:$10000,MATCH($B$5,(GPS_IMPORT!$A$2:$A$10000),0)+ROWS($1:14)-1,COLUMN()-1),0) -> 00:00:00 | D20: =IF(ROWS(GPS_IMPORT!$1:14)<=COUNTIF(GPS_IMPORT!$A$2:$A$10000,$B$5),INDEX(GPS_IMPORT!$2:$10000,MATCH($B$5,(GPS_IMPORT!$A$2:$A$10000),0)+ROWS($1:14)-1,COLUMN()-1),0) -> 00:00:00 | E20: =IF(ROWS(GPS_IMPORT!$1:14)<=COUNTIF(GPS_IMPORT!$A$2:$A$10000,$B$5),INDEX(GPS_IMPORT!$2:$10000,MATCH($B$5,(GPS_IMPORT!$A$2:$A$10000),0)+ROWS($1:14)-1,COLUMN()-1),0) -> 0 | F20: =IF(ROWS(GPS_IMPORT!$1:14)<=COUNTIF(GPS_IMPORT!$A$2:$A$10000,$B$5),INDEX(GPS_IMPORT!$2:$10000,MATCH($B$5,(GPS_IMPORT!$A$2:$A$10000),0)+ROWS($1:14)-1,COLUMN()-1),0) -> 0 | G20: =IF(ROWS(GPS_IMPORT!$1:14)<=COUNTIF(GPS_IMPORT!$A$2:$A$10000,$B$5),INDEX(GPS_IMPORT!$2:$10000,MATCH($B$5,(GPS_IMPORT!$A$2:$A$10000),0)+ROWS($1:14)-1,COLUMN()-1),0) -> 0 | H20: 0 | I20: 0 | J20: 0 | K20: FALSE
A21: 15 | B21: =IF(ROWS(GPS_IMPORT!$1:15)<=COUNTIF(GPS_IMPORT!$A$2:$A$10000,$B$5),INDEX(GPS_IMPORT!$2:$10000,MATCH($B$5,(GPS_IMPORT!$A$2:$A$10000),0)+ROWS($1:15)-1,COLUMN()-1),0) -> 0 | C21: =IF(ROWS(GPS_IMPORT!$1:15)<=COUNTIF(GPS_IMPORT!$A$2:$A$10000,$B$5),INDEX(GPS_IMPORT!$2:$10000,MATCH($B$5,(GPS_IMPORT!$A$2:$A$10000),0)+ROWS($1:15)-1,COLUMN()-1),0) -> 00:00:00 | D21: =IF(ROWS(GPS_IMPORT!$1:15)<=COUNTIF(GPS_IMPORT!$A$2:$A$10000,$B$5),INDEX(GPS_IMPORT!$2:$10000,MATCH($B$5,(GPS_IMPORT!$A$2:$A$10000),0)+ROWS($1:15)-1,COLUMN()-1),0) -> 00:00:00 | E21: =IF(ROWS(GPS_IMPORT!$1:15)<=COUNTIF(GPS_IMPORT!$A$2:$A$10000,$B$5),INDEX(GPS_IMPORT!$2:$10000,MATCH($B$5,(GPS_IMPORT!$A$2:$A$10000),0)+ROWS($1:15)-1,COLUMN()-1),0) -> 0 | F21: =IF(ROWS(GPS_IMPORT!$1:15)<=COUNTIF(GPS_IMPORT!$A$2:$A$10000,$B$5),INDEX(GPS_IMPORT!$2:$10000,MATCH($B$5,(GPS_IMPORT!$A$2:$A$10000),0)+ROWS($1:15)-1,COLUMN()-1),0) -> 0 | G21: =IF(ROWS(GPS_IMPORT!$1:15)<=COUNTIF(GPS_IMPORT!$A$2:$A$10000,$B$5),INDEX(GPS_IMPORT!$2:$10000,MATCH($B$5,(GPS_IMPORT!$A$2:$A$10000),0)+ROWS($1:15)-1,COLUMN()-1),0) -> 0 | H21: 0 | I21: 0 | J21: 0 | K21: FALSE
D22: AVERAGE | E22: =(IF($K$7=TRUE,E7,0)+IF($K$8=TRUE,E8,0)+IF($K$9=TRUE,E9,0)+IF($K$10=TRUE,E10,0)+IF($K$11=TRUE,E11,0)+IF($K$12=TRUE,E12,0)+IF($K$13=TRUE,E13,0)+IF($K$14=TRUE,E14,0)+IF($K$15=TRUE,E15,0)+IF($K$16=TRUE,E16,0)+IF($K$17=TRUE,E17,0)+IF($K$18=TRUE,E18,0)+IF($K$19=TRUE,E19,0)+IF($K$20=TRUE,E20,0)+IF($K$21=TRUE,E21,0))/(IF($K$7=TRUE,1,0)+IF($K$8=TRUE,1,0)+IF($K$9=TRUE,1,0)+IF($K$10=TRUE,1,0)+IF($K$11=TRUE,1,0)+IF($K$12=TRUE,1,0)+IF($K$13=TRUE,1,0)+IF($K$14=TRUE,1,0)+IF($K$15=TRUE,1,0)+IF($K$16=TRUE,1,0)+IF($K$17=TRUE,1,0)+IF($K$18=TRUE,1,0)+IF($K$19=TRUE,1,0)+IF($K$20=TRUE,1,0)+IF($K$21=TRUE,1,0)) -> 316420.7285 | F22: =(IF($K$7=TRUE,F7,0)+IF($K$8=TRUE,F8,0)+IF($K$9=TRUE,F9,0)+IF($K$10=TRUE,F10,0)+IF($K$11=TRUE,F11,0)+IF($K$12=TRUE,F12,0)+IF($K$13=TRUE,F13,0)+IF($K$14=TRUE,F14,0)+IF($K$15=TRUE,F15,0)+IF($K$16=TRUE,F16,0)+IF($K$17=TRUE,F17,0)+IF($K$18=TRUE,F18,0)+IF($K$19=TRUE,F19,0)+IF($K$20=TRUE,F20,0)+IF($K$21=TRUE,F21,0))/(IF($K$7=TRUE,1,0)+IF($K$8=TRUE,1,0)+IF($K$9=TRUE,1,0)+IF($K$10=TRUE,1,0)+IF($K$11=TRUE,1,0)+IF($K$12=TRUE,1,0)+IF($K$13=TRUE,1,0)+IF($K$14=TRUE,1,0)+IF($K$15=TRUE,1,0)+IF($K$16=TRUE,1,0)+IF($K$17=TRUE,1,0)+IF($K$18=TRUE,1,0)+IF($K$19=TRUE,1,0)+IF($K$20=TRUE,1,0)+IF($K$21=TRUE,1,0)) -> 2266072.37 | G22: =(IF($K$7=TRUE,G7,0)+IF($K$8=TRUE,G8,0)+IF($K$9=TRUE,G9,0)+IF($K$10=TRUE,G10,0)+IF($K$11=TRUE,G11,0)+IF($K$12=TRUE,G12,0)+IF($K$13=TRUE,G13,0)+IF($K$14=TRUE,G14,0)+IF($K$15=TRUE,G15,0)+IF($K$16=TRUE,G16,0)+IF($K$17=TRUE,G17,0)+IF($K$18=TRUE,G18,0)+IF($K$19=TRUE,G19,0)+IF($K$20=TRUE,G20,0)+IF($K$21=TRUE,G21,0))/ (IF($K$7=TRUE,1,0)+IF($K$8=TRUE,1,0)+IF($K$9=TRUE,1,0)+IF($K$10=TRUE,1,0)+IF($K$11=TRUE,1,0)+IF($K$12=TRUE,1,0)+IF($K$13=TRUE,1,0)+IF($K$14=TRUE,1,0)+IF($K$15=TRUE,1,0)+IF($K$16=TRUE,1,0)+IF($K$17=TRUE,1,0)+IF($K$18=TRUE,1,0)+IF($K$19=TRUE,1,0)+IF($K$20=TRUE,1,0)+IF($K$21=TRUE,1,0)) -> 880.649423 | H22: RMSE: | I22: RMSE: | J22: RMSE:
G23: RMSE IN US SURVEY FEET: | H23: =SQRT(( (IF($K$7=TRUE,H7^2,0))+(IF($K$8=TRUE,H8^2,0))+(IF($K$9=TRUE,H9^2,0))+(IF($K$10=TRUE,H10^2,0))+(IF($K$11=TRUE,H11^2,0))+(IF($K$12=TRUE,H12^2,0))+(IF($K$13=TRUE,H13^2,0))+(IF($K$14=TRUE,H14^2,0))+(IF($K$15=TRUE,H15^2,0))+(IF($K$16=TRUE,H16^2,0))+(IF($K$17=TRUE,H17^2,0))+(IF($K$18=TRUE,H18^2,0))+(IF($K$19=TRUE,H19^2,0))+(IF($K$20=TRUE,H20^2,0))+(IF($K$21=TRUE,H21^2,0)))/ (IF($K$7=TRUE,1,0)+IF($K$8=TRUE,1,0)+IF($K$9=TRUE,1,0)+IF($K$10=TRUE,1,0)+IF($K$11=TRUE,1,0)+IF($K$12=TRUE,1,0)+IF($K$13=TRUE,1,0)+IF($K$14=TRUE,1,0)+IF($K$15=TRUE,1,0)+IF($K$16=TRUE,1,0)+IF($K$17=TRUE,1,0)+IF($K$18=TRUE,1,0)+IF($K$19=TRUE,1,0)+IF($K$20=TRUE,1,0)+IF($K$21=TRUE,1,0))) -> 0.00339434634 | I23: =SQRT(( (IF($K$7=TRUE,I7^2,0))+(IF($K$8=TRUE,I8^2,0))+(IF($K$9=TRUE,I9^2,0))+(IF($K$10=TRUE,I10^2,0))+(IF($K$11=TRUE,I11^2,0))+(IF($K$12=TRUE,I12^2,0))+(IF($K$13=TRUE,I13^2,0))+(IF($K$14=TRUE,I14^2,0))+(IF($K$15=TRUE,I15^2,0))+(IF($K$16=TRUE,I16^2,0))+(IF($K$17=TRUE,I17^2,0))+(IF($K$18=TRUE,I18^2,0))+(IF($K$19=TRUE,I19^2,0))+(IF($K$20=TRUE,I20^2,0))+(IF($K$21=TRUE,I21^2,0)))/ (IF($K$7=TRUE,1,0)+IF($K$8=TRUE,1,0)+IF($K$9=TRUE,1,0)+IF($K$10=TRUE,1,0)+IF($K$11=TRUE,1,0)+IF($K$12=TRUE,1,0)+IF($K$13=TRUE,1,0)+IF($K$14=TRUE,1,0)+IF($K$15=TRUE,1,0)+IF($K$16=TRUE,1,0)+IF($K$17=TRUE,1,0)+IF($K$18=TRUE,1,0)+IF($K$19=TRUE,1,0)+IF($K$20=TRUE,1,0)+IF($K$21=TRUE,1,0))) -> 0.004958340807 | J23: =SQRT(( (IF($K$7=TRUE,J7^2,0))+(IF($K$8=TRUE,J8^2,0))+(IF($K$9=TRUE,J9^2,0))+(IF($K$10=TRUE,J10^2,0))+(IF($K$11=TRUE,J11^2,0))+(IF($K$12=TRUE,J12^2,0))+(IF($K$13=TRUE,J13^2,0))+(IF($K$14=TRUE,J14^2,0))+(IF($K$15=TRUE,J15^2,0))+(IF($K$16=TRUE,J16^2,0))+(IF($K$17=TRUE,J17^2,0))+(IF($K$18=TRUE,J18^2,0))+(IF($K$19=TRUE,J19^2,0))+(IF($K$20=TRUE,J20^2,0))+(IF($K$21=TRUE,J21^2,0)))/ (IF($K$7=TRUE,1,0)+IF($K$8=TRUE,1,0)+IF($K$9=TRUE,1,0)+IF($K$10=TRUE,1,0)+IF($K$11=TRUE,1,0)+IF($K$12=TRUE,1,0)+IF($K$13=TRUE,1,0)+IF($K$14=TRUE,1,0)+IF($K$15=TRUE,1,0)+IF($K$16=TRUE,1,0)+IF($K$17=TRUE,1,0)+IF($K$18=TRUE,1,0)+IF($K$19=TRUE,1,0)+IF($K$20=TRUE,1,0)+IF($K$21=TRUE,1,0))) -> 0.01146125785
D24: 1
C25: UNITLESS GRID TO GROUND MULTIPLIER | D25: =IF(REPORT!C13="n/a","0.00000000",REPORT!C13) -> 0 | H25: =IF(H23<=0.029,"PASS","FAIL") -> PASS | I25: =IF(I23<=0.029,"PASS","FAIL") -> PASS | J25: =IF(J23<=0.039,"PASS","FAIL") -> PASS
A27: AVERAGED GPS-DERIVED POSITION | I27: Notes:
B28: MONUMENT COORDINATES | D28: NORTHING | E28: EASTING | F28: ORTHO HEIGHT
B29: US Survey Feet (GRID) | D29: =$E$22 -> 316420.7285 | E29: =$F$22 -> 2266072.37 | F29: =$G$22 -> 880.649423
A31: LEVELED ELEVATION
A32: US SURVEY FEET | C32: N/A | D32: (Type the leveled elevation or N/A if no leveled elevation is available)
A33: MONUMENT HELD | D33: (Type the monument name from which leveling originated)
A34: LEVELED ELEVATION - GPS DERIVED ELEVATION = | E34: =IF(C32="N/A","N/A",C32-(F29*D24)) -> N/A
A36: FINAL MONUMENT COORDINATES
B37: MONUMENT COORDINATES | D37: NORTHING | E37: EASTING | F37: ELEVATION | G37: FEATURE CODE
B38: US SURVEY FEET (GRID) | D38: =$E$22*$D$24 -> 316420.7285 | E38: =$F$22*$D$24 -> 2266072.37 | F38: =IF($C$32="N/A",($G$22*$D$24),$C$32) -> 880.649423 | G38: AERTAR
B39: US SURVEY FEET (GROUND) | D39: =$D$38*$D$25 -> 0 | E39: =$E$38*$D$25 -> 0 | F39: =IF($C$32="N/A",($G$22*$D$24),$C$32) -> 880.649423 | G39: =G38 -> AERTAR
A41: ∆ North, ∆ East, and ∆ Ht. are the difference between the average northing, easting, and height for each observation. | I41: Mask Angle: | J41: 10°

Sheet GS6
A1: VRS GNSS Project Control Monument Coordinate Analysis
A3: Project: | B3: =REPORT!B2 -> TUS-800-22.74 | C3: GPS Antenna: | D3: LEICA GS14 | J3: Report Date: | K3: =REPORT!C49 -> 2018-12-19
A4: PID: | B4: =REPORT!E2 -> 100603 | C4: VRS Network: | D4: ODOT VRS | J4: Prepared By: | K4: =REPORT!C48 -> Kolton Wilson
A5: Point ID: | B5: GS6 | C5: No. of Sessions: | D5: =COUNTIF(GPS_IMPORT!A2:A1000,$B$5) -> 12 | J5: Checked By: | K5: =REPORT!C52 -> Joel Swick
A6: SESSION # | B6: Point | C6: Observation Date | D6: Start Time | E6: Northing(sft) | F6: Easting(sft) | G6: Height(sft) | H6: ∆ Northing(sft) | I6: ∆ Easting(sft) | J6: ∆ Height(sft) | K6: Include in Solution?
A7: 1 | B7: =IF(ROWS(GPS_IMPORT!$1:1)<=COUNTIF(GPS_IMPORT!$A$2:$A$10000,$B$5),INDEX(GPS_IMPORT!$2:$10000,MATCH($B$5,(GPS_IMPORT!$A$2:$A$10000),0)+ROWS($1:1)-1,COLUMN()-1),0) -> GS6 | C7: =IF(ROWS(GPS_IMPORT!$1:1)<=COUNTIF(GPS_IMPORT!$A$2:$A$10000,$B$5),INDEX(GPS_IMPORT!$2:$10000,MATCH($B$5,(GPS_IMPORT!$A$2:$A$10000),0)+ROWS($1:1)-1,COLUMN()-1),0) -> 12.18.2018 | D7: =IF(ROWS(GPS_IMPORT!$1:1)<=COUNTIF(GPS_IMPORT!$A$2:$A$10000,$B$5),INDEX(GPS_IMPORT!$2:$10000,MATCH($B$5,(GPS_IMPORT!$A$2:$A$10000),0)+ROWS($1:1)-1,COLUMN()-1),0) -> 9:53:38.8900 | E7: =IF(ROWS(GPS_IMPORT!$1:1)<=COUNTIF(GPS_IMPORT!$A$2:$A$10000,$B$5),INDEX(GPS_IMPORT!$2:$10000,MATCH($B$5,(GPS_IMPORT!$A$2:$A$10000),0)+ROWS($1:1)-1,COLUMN()-1),0) -> 311926.7939 | F7: =IF(ROWS(GPS_IMPORT!$1:1)<=COUNTIF(GPS_IMPORT!$A$2:$A$10000,$B$5),INDEX(GPS_IMPORT!$2:$10000,MATCH($B$5,(GPS_IMPORT!$A$2:$A$10000),0)+ROWS($1:1)-1,COLUMN()-1),0) -> 2265883.914 | G7: =IF(ROWS(GPS_IMPORT!$1:1)<=COUNTIF(GPS_IMPORT!$A$2:$A$10000,$B$5),INDEX(GPS_IMPORT!$2:$10000,MATCH($B$5,(GPS_IMPORT!$A$2:$A$10000),0)+ROWS($1:1)-1,COLUMN()-1),0) -> 1041.315056 | H7: =IF(E7>0,E$22-E7,0) -> -0.002010944125 | I7: -0.003390333615 | J7: 0.01861894988 | K7: TRUE
A8: 2 | B8: =IF(ROWS(GPS_IMPORT!$1:2)<=COUNTIF(GPS_IMPORT!$A$2:$A$10000,$B$5),INDEX(GPS_IMPORT!$2:$10000,MATCH($B$5,(GPS_IMPORT!$A$2:$A$10000),0)+ROWS($1:2)-1,COLUMN()-1),0) -> GS6 | C8: =IF(ROWS(GPS_IMPORT!$1:2)<=COUNTIF(GPS_IMPORT!$A$2:$A$10000,$B$5),INDEX(GPS_IMPORT!$2:$10000,MATCH($B$5,(GPS_IMPORT!$A$2:$A$10000),0)+ROWS($1:2)-1,COLUMN()-1),0) -> 12.18.2018 | D8: =IF(ROWS(GPS_IMPORT!$1:2)<=COUNTIF(GPS_IMPORT!$A$2:$A$10000,$B$5),INDEX(GPS_IMPORT!$2:$10000,MATCH($B$5,(GPS_IMPORT!$A$2:$A$10000),0)+ROWS($1:2)-1,COLUMN()-1),0) -> 9:53:53.4200 | E8: =IF(ROWS(GPS_IMPORT!$1:2)<=COUNTIF(GPS_IMPORT!$A$2:$A$10000,$B$5),INDEX(GPS_IMPORT!$2:$10000,MATCH($B$5,(GPS_IMPORT!$A$2:$A$10000),0)+ROWS($1:2)-1,COLUMN()-1),0) -> 311926.7986 | F8: =IF(ROWS(GPS_IMPORT!$1:2)<=COUNTIF(GPS_IMPORT!$A$2:$A$10000,$B$5),INDEX(GPS_IMPORT!$2:$10000,MATCH($B$5,(GPS_IMPORT!$A$2:$A$10000),0)+ROWS($1:2)-1,COLUMN()-1),0) -> 2265883.92 | G8: =IF(ROWS(GPS_IMPORT!$1:2)<=COUNTIF(GPS_IMPORT!$A$2:$A$10000,$B$5),INDEX(GPS_IMPORT!$2:$10000,MATCH($B$5,(GPS_IMPORT!$A$2:$A$10000),0)+ROWS($1:2)-1,COLUMN()-1),0) -> 1041.300552 | H8: -0.006708876113 | I8: -0.009712353814 | J8: 0.03312327387 | K8: TRUE
A9: 3 | B9: =IF(ROWS(GPS_IMPORT!$1:3)<=COUNTIF(GPS_IMPORT!$A$2:$A$10000,$B$5),INDEX(GPS_IMPORT!$2:$10000,MATCH($B$5,(GPS_IMPORT!$A$2:$A$10000),0)+ROWS($1:3)-1,COLUMN()-1),0) -> GS6 | C9: =IF(ROWS(GPS_IMPORT!$1:3)<=COUNTIF(GPS_IMPORT!$A$2:$A$10000,$B$5),INDEX(GPS_IMPORT!$2:$10000,MATCH($B$5,(GPS_IMPORT!$A$2:$A$10000),0)+ROWS($1:3)-1,COLUMN()-1),0) -> 12.18.2018 | D9: =IF(ROWS(GPS_IMPORT!$1:3)<=COUNTIF(GPS_IMPORT!$A$2:$A$10000,$B$5),INDEX(GPS_IMPORT!$2:$10000,MATCH($B$5,(GPS_IMPORT!$A$2:$A$10000),0)+ROWS($1:3)-1,COLUMN()-1),0) -> 9:54:5.2200 | E9: =IF(ROWS(GPS_IMPORT!$1:3)<=COUNTIF(GPS_IMPORT!$A$2:$A$10000,$B$5),INDEX(GPS_IMPORT!$2:$10000,MATCH($B$5,(GPS_IMPORT!$A$2:$A$10000),0)+ROWS($1:3)-1,COLUMN()-1),0) -> 311926.7996 | F9: =IF(ROWS(GPS_IMPORT!$1:3)<=COUNTIF(GPS_IMPORT!$A$2:$A$10000,$B$5),INDEX(GPS_IMPORT!$2:$10000,MATCH($B$5,(GPS_IMPORT!$A$2:$A$10000),0)+ROWS($1:3)-1,COLUMN()-1),0) -> 2265883.919 | G9: =IF(ROWS(GPS_IMPORT!$1:3)<=COUNTIF(GPS_IMPORT!$A$2:$A$10000,$B$5),INDEX(GPS_IMPORT!$2:$10000,MATCH($B$5,(GPS_IMPORT!$A$2:$A$10000),0)+ROWS($1:3)-1,COLUMN()-1),0) -> 1041.301268 | H9: -0.007645751117 | I9: -0.008029633667 | J9: 0.03240719885 | K9: TRUE
A10: 4 | B10: =IF(ROWS(GPS_IMPORT!$1:4)<=COUNTIF(GPS_IMPORT!$A$2:$A$10000,$B$5),INDEX(GPS_IMPORT!$2:$10000,MATCH($B$5,(GPS_IMPORT!$A$2:$A$10000),0)+ROWS($1:4)-1,COLUMN()-1),0) -> GS6 | C10: =IF(ROWS(GPS_IMPORT!$1:4)<=COUNTIF(GPS_IMPORT!$A$2:$A$10000,$B$5),INDEX(GPS_IMPORT!$2:$10000,MATCH($B$5,(GPS_IMPORT!$A$2:$A$10000),0)+ROWS($1:4)-1,COLUMN()-1),0) -> 12.18.2018 | D10: =IF(ROWS(GPS_IMPORT!$1:4)<=COUNTIF(GPS_IMPORT!$A$2:$A$10000,$B$5),INDEX(GPS_IMPORT!$2:$10000,MATCH($B$5,(GPS_IMPORT!$A$2:$A$10000),0)+ROWS($1:4)-1,COLUMN()-1),0) -> 9:54:17.0600 | E10: =IF(ROWS(GPS_IMPORT!$1:4)<=COUNTIF(GPS_IMPORT!$A$2:$A$10000,$B$5),INDEX(GPS_IMPORT!$2:$10000,MATCH($B$5,(GPS_IMPORT!$A$2:$A$10000),0)+ROWS($1:4)-1,COLUMN()-1),0) -> 311926.7927 | F10: =IF(ROWS(GPS_IMPORT!$1:4)<=COUNTIF(GPS_IMPORT!$A$2:$A$10000,$B$5),INDEX(GPS_IMPORT!$2:$10000,MATCH($B$5,(GPS_IMPORT!$A$2:$A$10000),0)+ROWS($1:4)-1,COLUMN()-1),0) -> 2265883.914 | G10: =IF(ROWS(GPS_IMPORT!$1:4)<=COUNTIF(GPS_IMPORT!$A$2:$A$10000,$B$5),INDEX(GPS_IMPORT!$2:$10000,MATCH($B$5,(GPS_IMPORT!$A$2:$A$10000),0)+ROWS($1:4)-1,COLUMN()-1),0) -> 1041.331893 | H10: -0.0007577801007 | I10: -0.003154953476 | J10: 0.001782461935 | K10: TRUE
A11: 5 | B11: =IF(ROWS(GPS_IMPORT!$1:5)<=COUNTIF(GPS_IMPORT!$A$2:$A$10000,$B$5),INDEX(GPS_IMPORT!$2:$10000,MATCH($B$5,(GPS_IMPORT!$A$2:$A$10000),0)+ROWS($1:5)-1,COLUMN()-1),0) -> GS6 | C11: =IF(ROWS(GPS_IMPORT!$1:5)<=COUNTIF(GPS_IMPORT!$A$2:$A$10000,$B$5),INDEX(GPS_IMPORT!$2:$10000,MATCH($B$5,(GPS_IMPORT!$A$2:$A$10000),0)+ROWS($1:5)-1,COLUMN()-1),0) -> 12.18.2018 | D11: =IF(ROWS(GPS_IMPORT!$1:5)<=COUNTIF(GPS_IMPORT!$A$2:$A$10000,$B$5),INDEX(GPS_IMPORT!$2:$10000,MATCH($B$5,(GPS_IMPORT!$A$2:$A$10000),0)+ROWS($1:5)-1,COLUMN()-1),0) -> 9:54:36.7800 | E11: =IF(ROWS(GPS_IMPORT!$1:5)<=COUNTIF(GPS_IMPORT!$A$2:$A$10000,$B$5),INDEX(GPS_IMPORT!$2:$10000,MATCH($B$5,(GPS_IMPORT!$A$2:$A$10000),0)+ROWS($1:5)-1,COLUMN()-1),0) -> 311926.7897 | F11: =IF(ROWS(GPS_IMPORT!$1:5)<=COUNTIF(GPS_IMPORT!$A$2:$A$10000,$B$5),INDEX(GPS_IMPORT!$2:$10000,MATCH($B$5,(GPS_IMPORT!$A$2:$A$10000),0)+ROWS($1:5)-1,COLUMN()-1),0) -> 2265883.908 | G11: =IF(ROWS(GPS_IMPORT!$1:5)<=COUNTIF(GPS_IMPORT!$A$2:$A$10000,$B$5),INDEX(GPS_IMPORT!$2:$10000,MATCH($B$5,(GPS_IMPORT!$A$2:$A$10000),0)+ROWS($1:5)-1,COLUMN()-1),0) -> 1041.337244 | H11: 0.002267075877 | I11: 0.002723226324 | J11: -0.003568684435 | K11: TRUE
A12: 6 | B12: =IF(ROWS(GPS_IMPORT!$1:6)<=COUNTIF(GPS_IMPORT!$A$2:$A$10000,$B$5),INDEX(GPS_IMPORT!$2:$10000,MATCH($B$5,(GPS_IMPORT!$A$2:$A$10000),0)+ROWS($1:6)-1,COLUMN()-1),0) -> GS6 | C12: =IF(ROWS(GPS_IMPORT!$1:6)<=COUNTIF(GPS_IMPORT!$A$2:$A$10000,$B$5),INDEX(GPS_IMPORT!$2:$10000,MATCH($B$5,(GPS_IMPORT!$A$2:$A$10000),0)+ROWS($1:6)-1,COLUMN()-1),0) -> 12.18.2018 | D12: =IF(ROWS(GPS_IMPORT!$1:6)<=COUNTIF(GPS_IMPORT!$A$2:$A$10000,$B$5),INDEX(GPS_IMPORT!$2:$10000,MATCH($B$5,(GPS_IMPORT!$A$2:$A$10000),0)+ROWS($1:6)-1,COLUMN()-1),0) -> 9:54:48.9400 | E12: =IF(ROWS(GPS_IMPORT!$1:6)<=COUNTIF(GPS_IMPORT!$A$2:$A$10000,$B$5),INDEX(GPS_IMPORT!$2:$10000,MATCH($B$5,(GPS_IMPORT!$A$2:$A$10000),0)+ROWS($1:6)-1,COLUMN()-1),0) -> 311926.783 | F12: =IF(ROWS(GPS_IMPORT!$1:6)<=COUNTIF(GPS_IMPORT!$A$2:$A$10000,$B$5),INDEX(GPS_IMPORT!$2:$10000,MATCH($B$5,(GPS_IMPORT!$A$2:$A$10000),0)+ROWS($1:6)-1,COLUMN()-1),0) -> 2265883.906 | G12: =IF(ROWS(GPS_IMPORT!$1:6)<=COUNTIF(GPS_IMPORT!$A$2:$A$10000,$B$5),INDEX(GPS_IMPORT!$2:$10000,MATCH($B$5,(GPS_IMPORT!$A$2:$A$10000),0)+ROWS($1:6)-1,COLUMN()-1),0) -> 1041.3416 | H12: 0.008906940871 | I12: 0.004155606497 | J12: -0.007924720125 | K12: TRUE
A13: 7 | B13: =IF(ROWS(GPS_IMPORT!$1:7)<=COUNTIF(GPS_IMPORT!$A$2:$A$10000,$B$5),INDEX(GPS_IMPORT!$2:$10000,MATCH($B$5,(GPS_IMPORT!$A$2:$A$10000),0)+ROWS($1:7)-1,COLUMN()-1),0) -> GS6 | C13: =IF(ROWS(GPS_IMPORT!$1:7)<=COUNTIF(GPS_IMPORT!$A$2:$A$10000,$B$5),INDEX(GPS_IMPORT!$2:$10000,MATCH($B$5,(GPS_IMPORT!$A$2:$A$10000),0)+ROWS($1:7)-1,COLUMN()-1),0) -> 12.18.2018 | D13: =IF(ROWS(GPS_IMPORT!$1:7)<=COUNTIF(GPS_IMPORT!$A$2:$A$10000,$B$5),INDEX(GPS_IMPORT!$2:$10000,MATCH($B$5,(GPS_IMPORT!$A$2:$A$10000),0)+ROWS($1:7)-1,COLUMN()-1),0) -> 9:55:0.7900 | E13: =IF(ROWS(GPS_IMPORT!$1:7)<=COUNTIF(GPS_IMPORT!$A$2:$A$10000,$B$5),INDEX(GPS_IMPORT!$2:$10000,MATCH($B$5,(GPS_IMPORT!$A$2:$A$10000),0)+ROWS($1:7)-1,COLUMN()-1),0) -> 311926.7901 | F13: =IF(ROWS(GPS_IMPORT!$1:7)<=COUNTIF(GPS_IMPORT!$A$2:$A$10000,$B$5),INDEX(GPS_IMPORT!$2:$10000,MATCH($B$5,(GPS_IMPORT!$A$2:$A$10000),0)+ROWS($1:7)-1,COLUMN()-1),0) -> 2265883.907 | G13: =IF(ROWS(GPS_IMPORT!$1:7)<=COUNTIF(GPS_IMPORT!$A$2:$A$10000,$B$5),INDEX(GPS_IMPORT!$2:$10000,MATCH($B$5,(GPS_IMPORT!$A$2:$A$10000),0)+ROWS($1:7)-1,COLUMN()-1),0) -> 1041.348015 | H13: 0.001815514872 | I13: 0.003490576521 | J13: -0.01433973235 | K13: TRUE
A14: 8 | B14: =IF(ROWS(GPS_IMPORT!$1:8)<=COUNTIF(GPS_IMPORT!$A$2:$A$10000,$B$5),INDEX(GPS_IMPORT!$2:$10000,MATCH($B$5,(GPS_IMPORT!$A$2:$A$10000),0)+ROWS($1:8)-1,COLUMN()-1),0) -> GS6 | C14: =IF(ROWS(GPS_IMPORT!$1:8)<=COUNTIF(GPS_IMPORT!$A$2:$A$10000,$B$5),INDEX(GPS_IMPORT!$2:$10000,MATCH($B$5,(GPS_IMPORT!$A$2:$A$10000),0)+ROWS($1:8)-1,COLUMN()-1),0) -> 12.18.2018 | D14: =IF(ROWS(GPS_IMPORT!$1:8)<=COUNTIF(GPS_IMPORT!$A$2:$A$10000,$B$5),INDEX(GPS_IMPORT!$2:$10000,MATCH($B$5,(GPS_IMPORT!$A$2:$A$10000),0)+ROWS($1:8)-1,COLUMN()-1),0) -> 9:55:12.2200 | E14: =IF(ROWS(GPS_IMPORT!$1:8)<=COUNTIF(GPS_IMPORT!$A$2:$A$10000,$B$5),INDEX(GPS_IMPORT!$2:$10000,MATCH($B$5,(GPS_IMPORT!$A$2:$A$10000),0)+ROWS($1:8)-1,COLUMN()-1),0) -> 311926.7981 | F14: =IF(ROWS(GPS_IMPORT!$1:8)<=COUNTIF(GPS_IMPORT!$A$2:$A$10000,$B$5),INDEX(GPS_IMPORT!$2:$10000,MATCH($B$5,(GPS_IMPORT!$A$2:$A$10000),0)+ROWS($1:8)-1,COLUMN()-1),0) -> 2265883.906 | G14: =IF(ROWS(GPS_IMPORT!$1:8)<=COUNTIF(GPS_IMPORT!$A$2:$A$10000,$B$5),INDEX(GPS_IMPORT!$2:$10000,MATCH($B$5,(GPS_IMPORT!$A$2:$A$10000),0)+ROWS($1:8)-1,COLUMN()-1),0) -> 1041.331559 | H14: -0.006178591109 | I14: 0.005065496545 | J14: 0.002116612955 | K14: TRUE
A15: 9 | B15: =IF(ROWS(GPS_IMPORT!$1:9)<=COUNTIF(GPS_IMPORT!$A$2:$A$10000,$B$5),INDEX(GPS_IMPORT!$2:$10000,MATCH($B$5,(GPS_IMPORT!$A$2:$A$10000),0)+ROWS($1:9)-1,COLUMN()-1),0) -> GS6 | C15: =IF(ROWS(GPS_IMPORT!$1:9)<=COUNTIF(GPS_IMPORT!$A$2:$A$10000,$B$5),INDEX(GPS_IMPORT!$2:$10000,MATCH($B$5,(GPS_IMPORT!$A$2:$A$10000),0)+ROWS($1:9)-1,COLUMN()-1),0) -> 12.18.2018 | D15: =IF(ROWS(GPS_IMPORT!$1:9)<=COUNTIF(GPS_IMPORT!$A$2:$A$10000,$B$5),INDEX(GPS_IMPORT!$2:$10000,MATCH($B$5,(GPS_IMPORT!$A$2:$A$10000),0)+ROWS($1:9)-1,COLUMN()-1),0) -> 9:55:32.9400 | E15: =IF(ROWS(GPS_IMPORT!$1:9)<=COUNTIF(GPS_IMPORT!$A$2:$A$10000,$B$5),INDEX(GPS_IMPORT!$2:$10000,MATCH($B$5,(GPS_IMPORT!$A$2:$A$10000),0)+ROWS($1:9)-1,COLUMN()-1),0) -> 311926.7896 | F15: =IF(ROWS(GPS_IMPORT!$1:9)<=COUNTIF(GPS_IMPORT!$A$2:$A$10000,$B$5),INDEX(GPS_IMPORT!$2:$10000,MATCH($B$5,(GPS_IMPORT!$A$2:$A$10000),0)+ROWS($1:9)-1,COLUMN()-1),0) -> 2265883.906 | G15: =IF(ROWS(GPS_IMPORT!$1:9)<=COUNTIF(GPS_IMPORT!$A$2:$A$10000,$B$5),INDEX(GPS_IMPORT!$2:$10000,MATCH($B$5,(GPS_IMPORT!$A$2:$A$10000),0)+ROWS($1:9)-1,COLUMN()-1),0) -> 1041.346724 | H15: 0.00234752387 | I15: 0.004254006315 | J15: -0.01304874096 | K15: TRUE
A16: 10 | B16: =IF(ROWS(GPS_IMPORT!$1:10)<=COUNTIF(GPS_IMPORT!$A$2:$A$10000,$B$5),INDEX(GPS_IMPORT!$2:$10000,MATCH($B$5,(GPS_IMPORT!$A$2:$A$10000),0)+ROWS($1:10)-1,COLUMN()-1),0) -> GS6 | C16: =IF(ROWS(GPS_IMPORT!$1:10)<=COUNTIF(GPS_IMPORT!$A$2:$A$10000,$B$5),INDEX(GPS_IMPORT!$2:$10000,MATCH($B$5,(GPS_IMPORT!$A$2:$A$10000),0)+ROWS($1:10)-1,COLUMN()-1),0) -> 12.18.2018 | D16: =IF(ROWS(GPS_IMPORT!$1:10)<=COUNTIF(GPS_IMPORT!$A$2:$A$10000,$B$5),INDEX(GPS_IMPORT!$2:$10000,MATCH($B$5,(GPS_IMPORT!$A$2:$A$10000),0)+ROWS($1:10)-1,COLUMN()-1),0) -> 9:55:43.8000 | E16: =IF(ROWS(GPS_IMPORT!$1:10)<=COUNTIF(GPS_IMPORT!$A$2:$A$10000,$B$5),INDEX(GPS_IMPORT!$2:$10000,MATCH($B$5,(GPS_IMPORT!$A$2:$A$10000),0)+ROWS($1:10)-1,COLUMN()-1),0) -> 311926.7916 | F16: =IF(ROWS(GPS_IMPORT!$1:10)<=COUNTIF(GPS_IMPORT!$A$2:$A$10000,$B$5),INDEX(GPS_IMPORT!$2:$10000,MATCH($B$5,(GPS_IMPORT!$A$2:$A$10000),0)+ROWS($1:10)-1,COLUMN()-1),0) -> 2265883.908 | G16: =IF(ROWS(GPS_IMPORT!$1:10)<=COUNTIF(GPS_IMPORT!$A$2:$A$10000,$B$5),INDEX(GPS_IMPORT!$2:$10000,MATCH($B$5,(GPS_IMPORT!$A$2:$A$10000),0)+ROWS($1:10)-1,COLUMN()-1),0) -> 1041.343726 | H16: 0.0003118839231 | I16: 0.002958466299 | J16: -0.01005052687 | K16: TRUE
A17: 11 | B17: =IF(ROWS(GPS_IMPORT!$1:11)<=COUNTIF(GPS_IMPORT!$A$2:$A$10000,$B$5),INDEX(GPS_IMPORT!$2:$10000,MATCH($B$5,(GPS_IMPORT!$A$2:$A$10000),0)+ROWS($1:11)-1,COLUMN()-1),0) -> GS6 | C17: =IF(ROWS(GPS_IMPORT!$1:11)<=COUNTIF(GPS_IMPORT!$A$2:$A$10000,$B$5),INDEX(GPS_IMPORT!$2:$10000,MATCH($B$5,(GPS_IMPORT!$A$2:$A$10000),0)+ROWS($1:11)-1,COLUMN()-1),0) -> 12.18.2018 | D17: =IF(ROWS(GPS_IMPORT!$1:11)<=COUNTIF(GPS_IMPORT!$A$2:$A$10000,$B$5),INDEX(GPS_IMPORT!$2:$10000,MATCH($B$5,(GPS_IMPORT!$A$2:$A$10000),0)+ROWS($1:11)-1,COLUMN()-1),0) -> 9:55:55.2000 | E17: =IF(ROWS(GPS_IMPORT!$1:11)<=COUNTIF(GPS_IMPORT!$A$2:$A$10000,$B$5),INDEX(GPS_IMPORT!$2:$10000,MATCH($B$5,(GPS_IMPORT!$A$2:$A$10000),0)+ROWS($1:11)-1,COLUMN()-1),0) -> 311926.7889 | F17: =IF(ROWS(GPS_IMPORT!$1:11)<=COUNTIF(GPS_IMPORT!$A$2:$A$10000,$B$5),INDEX(GPS_IMPORT!$2:$10000,MATCH($B$5,(GPS_IMPORT!$A$2:$A$10000),0)+ROWS($1:11)-1,COLUMN()-1),0) -> 2265883.91 | G17: =IF(ROWS(GPS_IMPORT!$1:11)<=COUNTIF(GPS_IMPORT!$A$2:$A$10000,$B$5),INDEX(GPS_IMPORT!$2:$10000,MATCH($B$5,(GPS_IMPORT!$A$2:$A$10000),0)+ROWS($1:11)-1,COLUMN()-1),0) -> 1041.350517 | H17: 0.002992896887 | I17: 0.0006118761376 | J17: -0.01684152317 | K17: TRUE
A18: 12 | B18: =IF(ROWS(GPS_IMPORT!$1:12)<=COUNTIF(GPS_IMPORT!$A$2:$A$10000,$B$5),INDEX(GPS_IMPORT!$2:$10000,MATCH($B$5,(GPS_IMPORT!$A$2:$A$10000),0)+ROWS($1:12)-1,COLUMN()-1),0) -> GS6 | C18: =IF(ROWS(GPS_IMPORT!$1:12)<=COUNTIF(GPS_IMPORT!$A$2:$A$10000,$B$5),INDEX(GPS_IMPORT!$2:$10000,MATCH($B$5,(GPS_IMPORT!$A$2:$A$10000),0)+ROWS($1:12)-1,COLUMN()-1),0) -> 12.18.2018 | D18: =IF(ROWS(GPS_IMPORT!$1:12)<=COUNTIF(GPS_IMPORT!$A$2:$A$10000,$B$5),INDEX(GPS_IMPORT!$2:$10000,MATCH($B$5,(GPS_IMPORT!$A$2:$A$10000),0)+ROWS($1:12)-1,COLUMN()-1),0) -> 9:56:6.0700 | E18: =IF(ROWS(GPS_IMPORT!$1:12)<=COUNTIF(GPS_IMPORT!$A$2:$A$10000,$B$5),INDEX(GPS_IMPORT!$2:$10000,MATCH($B$5,(GPS_IMPORT!$A$2:$A$10000),0)+ROWS($1:12)-1,COLUMN()-1),0) -> 311926.7873 | F18: =IF(ROWS(GPS_IMPORT!$1:12)<=COUNTIF(GPS_IMPORT!$A$2:$A$10000,$B$5),INDEX(GPS_IMPORT!$2:$10000,MATCH($B$5,(GPS_IMPORT!$A$2:$A$10000),0)+ROWS($1:12)-1,COLUMN()-1),0) -> 2265883.91 | G18: =IF(ROWS(GPS_IMPORT!$1:12)<=COUNTIF(GPS_IMPORT!$A$2:$A$10000,$B$5),INDEX(GPS_IMPORT!$2:$10000,MATCH($B$5,(GPS_IMPORT!$A$2:$A$10000),0)+ROWS($1:12)-1,COLUMN()-1),0) -> 1041.35595 | H18: 0.004660105915 | I18: 0.00102801621 | J18: -0.02227456954 | K18: TRUE
A19: 13 | B19: =IF(ROWS(GPS_IMPORT!$1:13)<=COUNTIF(GPS_IMPORT!$A$2:$A$10000,$B$5),INDEX(GPS_IMPORT!$2:$10000,MATCH($B$5,(GPS_IMPORT!$A$2:$A$10000),0)+ROWS($1:13)-1,COLUMN()-1),0) -> 0 | C19: =IF(ROWS(GPS_IMPORT!$1:13)<=COUNTIF(GPS_IMPORT!$A$2:$A$10000,$B$5),INDEX(GPS_IMPORT!$2:$10000,MATCH($B$5,(GPS_IMPORT!$A$2:$A$10000),0)+ROWS($1:13)-1,COLUMN()-1),0) -> 00:00:00 | D19: =IF(ROWS(GPS_IMPORT!$1:13)<=COUNTIF(GPS_IMPORT!$A$2:$A$10000,$B$5),INDEX(GPS_IMPORT!$2:$10000,MATCH($B$5,(GPS_IMPORT!$A$2:$A$10000),0)+ROWS($1:13)-1,COLUMN()-1),0) -> 00:00:00 | E19: =IF(ROWS(GPS_IMPORT!$1:13)<=COUNTIF(GPS_IMPORT!$A$2:$A$10000,$B$5),INDEX(GPS_IMPORT!$2:$10000,MATCH($B$5,(GPS_IMPORT!$A$2:$A$10000),0)+ROWS($1:13)-1,COLUMN()-1),0) -> 0 | F19: =IF(ROWS(GPS_IMPORT!$1:13)<=COUNTIF(GPS_IMPORT!$A$2:$A$10000,$B$5),INDEX(GPS_IMPORT!$2:$10000,MATCH($B$5,(GPS_IMPORT!$A$2:$A$10000),0)+ROWS($1:13)-1,COLUMN()-1),0) -> 0 | G19: =IF(ROWS(GPS_IMPORT!$1:13)<=COUNTIF(GPS_IMPORT!$A$2:$A$10000,$B$5),INDEX(GPS_IMPORT!$2:$10000,MATCH($B$5,(GPS_IMPORT!$A$2:$A$10000),0)+ROWS($1:13)-1,COLUMN()-1),0) -> 0 | H19: =IF(E19>0,E$22-E19,0) -> 0 | I19: 0 | J19: 0 | K19: FALSE
A20: 14 | B20: =IF(ROWS(GPS_IMPORT!$1:14)<=COUNTIF(GPS_IMPORT!$A$2:$A$10000,$B$5),INDEX(GPS_IMPORT!$2:$10000,MATCH($B$5,(GPS_IMPORT!$A$2:$A$10000),0)+ROWS($1:14)-1,COLUMN()-1),0) -> 0 | C20: =IF(ROWS(GPS_IMPORT!$1:14)<=COUNTIF(GPS_IMPORT!$A$2:$A$10000,$B$5),INDEX(GPS_IMPORT!$2:$10000,MATCH($B$5,(GPS_IMPORT!$A$2:$A$10000),0)+ROWS($1:14)-1,COLUMN()-1),0) -> 00:00:00 | D20: =IF(ROWS(GPS_IMPORT!$1:14)<=COUNTIF(GPS_IMPORT!$A$2:$A$10000,$B$5),INDEX(GPS_IMPORT!$2:$10000,MATCH($B$5,(GPS_IMPORT!$A$2:$A$10000),0)+ROWS($1:14)-1,COLUMN()-1),0) -> 00:00:00 | E20: =IF(ROWS(GPS_IMPORT!$1:14)<=COUNTIF(GPS_IMPORT!$A$2:$A$10000,$B$5),INDEX(GPS_IMPORT!$2:$10000,MATCH($B$5,(GPS_IMPORT!$A$2:$A$10000),0)+ROWS($1:14)-1,COLUMN()-1),0) -> 0 | F20: =IF(ROWS(GPS_IMPORT!$1:14)<=COUNTIF(GPS_IMPORT!$A$2:$A$10000,$B$5),INDEX(GPS_IMPORT!$2:$10000,MATCH($B$5,(GPS_IMPORT!$A$2:$A$10000),0)+ROWS($1:14)-1,COLUMN()-1),0) -> 0 | G20: =IF(ROWS(GPS_IMPORT!$1:14)<=COUNTIF(GPS_IMPORT!$A$2:$A$10000,$B$5),INDEX(GPS_IMPORT!$2:$10000,MATCH($B$5,(GPS_IMPORT!$A$2:$A$10000),0)+ROWS($1:14)-1,COLUMN()-1),0) -> 0 | H20: 0 | I20: 0 | J20: 0 | K20: FALSE
A21: 15 | B21: =IF(ROWS(GPS_IMPORT!$1:15)<=COUNTIF(GPS_IMPORT!$A$2:$A$10000,$B$5),INDEX(GPS_IMPORT!$2:$10000,MATCH($B$5,(GPS_IMPORT!$A$2:$A$10000),0)+ROWS($1:15)-1,COLUMN()-1),0) -> 0 | C21: =IF(ROWS(GPS_IMPORT!$1:15)<=COUNTIF(GPS_IMPORT!$A$2:$A$10000,$B$5),INDEX(GPS_IMPORT!$2:$10000,MATCH($B$5,(GPS_IMPORT!$A$2:$A$10000),0)+ROWS($1:15)-1,COLUMN()-1),0) -> 00:00:00 | D21: =IF(ROWS(GPS_IMPORT!$1:15)<=COUNTIF(GPS_IMPORT!$A$2:$A$10000,$B$5),INDEX(GPS_IMPORT!$2:$10000,MATCH($B$5,(GPS_IMPORT!$A$2:$A$10000),0)+ROWS($1:15)-1,COLUMN()-1),0) -> 00:00:00 | E21: =IF(ROWS(GPS_IMPORT!$1:15)<=COUNTIF(GPS_IMPORT!$A$2:$A$10000,$B$5),INDEX(GPS_IMPORT!$2:$10000,MATCH($B$5,(GPS_IMPORT!$A$2:$A$10000),0)+ROWS($1:15)-1,COLUMN()-1),0) -> 0 | F21: =IF(ROWS(GPS_IMPORT!$1:15)<=COUNTIF(GPS_IMPORT!$A$2:$A$10000,$B$5),INDEX(GPS_IMPORT!$2:$10000,MATCH($B$5,(GPS_IMPORT!$A$2:$A$10000),0)+ROWS($1:15)-1,COLUMN()-1),0) -> 0 | G21: =IF(ROWS(GPS_IMPORT!$1:15)<=COUNTIF(GPS_IMPORT!$A$2:$A$10000,$B$5),INDEX(GPS_IMPORT!$2:$10000,MATCH($B$5,(GPS_IMPORT!$A$2:$A$10000),0)+ROWS($1:15)-1,COLUMN()-1),0) -> 0 | H21: 0 | I21: 0 | J21: 0 | K21: FALSE
D22: AVERAGE | E22: =(IF($K$7=TRUE,E7,0)+IF($K$8=TRUE,E8,0)+IF($K$9=TRUE,E9,0)+IF($K$10=TRUE,E10,0)+IF($K$11=TRUE,E11,0)+IF($K$12=TRUE,E12,0)+IF($K$13=TRUE,E13,0)+IF($K$14=TRUE,E14,0)+IF($K$15=TRUE,E15,0)+IF($K$16=TRUE,E16,0)+IF($K$17=TRUE,E17,0)+IF($K$18=TRUE,E18,0)+IF($K$19=TRUE,E19,0)+IF($K$20=TRUE,E20,0)+IF($K$21=TRUE,E21,0))/(IF($K$7=TRUE,1,0)+IF($K$8=TRUE,1,0)+IF($K$9=TRUE,1,0)+IF($K$10=TRUE,1,0)+IF($K$11=TRUE,1,0)+IF($K$12=TRUE,1,0)+IF($K$13=TRUE,1,0)+IF($K$14=TRUE,1,0)+IF($K$15=TRUE,1,0)+IF($K$16=TRUE,1,0)+IF($K$17=TRUE,1,0)+IF($K$18=TRUE,1,0)+IF($K$19=TRUE,1,0)+IF($K$20=TRUE,1,0)+IF($K$21=TRUE,1,0)) -> 311926.7919 | F22: =(IF($K$7=TRUE,F7,0)+IF($K$8=TRUE,F8,0)+IF($K$9=TRUE,F9,0)+IF($K$10=TRUE,F10,0)+IF($K$11=TRUE,F11,0)+IF($K$12=TRUE,F12,0)+IF($K$13=TRUE,F13,0)+IF($K$14=TRUE,F14,0)+IF($K$15=TRUE,F15,0)+IF($K$16=TRUE,F16,0)+IF($K$17=TRUE,F17,0)+IF($K$18=TRUE,F18,0)+IF($K$19=TRUE,F19,0)+IF($K$20=TRUE,F20,0)+IF($K$21=TRUE,F21,0))/(IF($K$7=TRUE,1,0)+IF($K$8=TRUE,1,0)+IF($K$9=TRUE,1,0)+IF($K$10=TRUE,1,0)+IF($K$11=TRUE,1,0)+IF($K$12=TRUE,1,0)+IF($K$13=TRUE,1,0)+IF($K$14=TRUE,1,0)+IF($K$15=TRUE,1,0)+IF($K$16=TRUE,1,0)+IF($K$17=TRUE,1,0)+IF($K$18=TRUE,1,0)+IF($K$19=TRUE,1,0)+IF($K$20=TRUE,1,0)+IF($K$21=TRUE,1,0)) -> 2265883.911 | G22: =(IF($K$7=TRUE,G7,0)+IF($K$8=TRUE,G8,0)+IF($K$9=TRUE,G9,0)+IF($K$10=TRUE,G10,0)+IF($K$11=TRUE,G11,0)+IF($K$12=TRUE,G12,0)+IF($K$13=TRUE,G13,0)+IF($K$14=TRUE,G14,0)+IF($K$15=TRUE,G15,0)+IF($K$16=TRUE,G16,0)+IF($K$17=TRUE,G17,0)+IF($K$18=TRUE,G18,0)+IF($K$19=TRUE,G19,0)+IF($K$20=TRUE,G20,0)+IF($K$21=TRUE,G21,0))/ (IF($K$7=TRUE,1,0)+IF($K$8=TRUE,1,0)+IF($K$9=TRUE,1,0)+IF($K$10=TRUE,1,0)+IF($K$11=TRUE,1,0)+IF($K$12=TRUE,1,0)+IF($K$13=TRUE,1,0)+IF($K$14=TRUE,1,0)+IF($K$15=TRUE,1,0)+IF($K$16=TRUE,1,0)+IF($K$17=TRUE,1,0)+IF($K$18=TRUE,1,0)+IF($K$19=TRUE,1,0)+IF($K$20=TRUE,1,0)+IF($K$21=TRUE,1,0)) -> 1041.333675 | H22: RMSE: | I22: RMSE: | J22: RMSE:
G23: RMSE IN US SURVEY FEET: | H23: =SQRT(( (IF($K$7=TRUE,H7^2,0))+(IF($K$8=TRUE,H8^2,0))+(IF($K$9=TRUE,H9^2,0))+(IF($K$10=TRUE,H10^2,0))+(IF($K$11=TRUE,H11^2,0))+(IF($K$12=TRUE,H12^2,0))+(IF($K$13=TRUE,H13^2,0))+(IF($K$14=TRUE,H14^2,0))+(IF($K$15=TRUE,H15^2,0))+(IF($K$16=TRUE,H16^2,0))+(IF($K$17=TRUE,H17^2,0))+(IF($K$18=TRUE,H18^2,0))+(IF($K$19=TRUE,H19^2,0))+(IF($K$20=TRUE,H20^2,0))+(IF($K$21=TRUE,H21^2,0)))/ (IF($K$7=TRUE,1,0)+IF($K$8=TRUE,1,0)+IF($K$9=TRUE,1,0)+IF($K$10=TRUE,1,0)+IF($K$11=TRUE,1,0)+IF($K$12=TRUE,1,0)+IF($K$13=TRUE,1,0)+IF($K$14=TRUE,1,0)+IF($K$15=TRUE,1,0)+IF($K$16=TRUE,1,0)+IF($K$17=TRUE,1,0)+IF($K$18=TRUE,1,0)+IF($K$19=TRUE,1,0)+IF($K$20=TRUE,1,0)+IF($K$21=TRUE,1,0))) -> 0.004746148664 | I23: =SQRT(( (IF($K$7=TRUE,I7^2,0))+(IF($K$8=TRUE,I8^2,0))+(IF($K$9=TRUE,I9^2,0))+(IF($K$10=TRUE,I10^2,0))+(IF($K$11=TRUE,I11^2,0))+(IF($K$12=TRUE,I12^2,0))+(IF($K$13=TRUE,I13^2,0))+(IF($K$14=TRUE,I14^2,0))+(IF($K$15=TRUE,I15^2,0))+(IF($K$16=TRUE,I16^2,0))+(IF($K$17=TRUE,I17^2,0))+(IF($K$18=TRUE,I18^2,0))+(IF($K$19=TRUE,I19^2,0))+(IF($K$20=TRUE,I20^2,0))+(IF($K$21=TRUE,I21^2,0)))/ (IF($K$7=TRUE,1,0)+IF($K$8=TRUE,1,0)+IF($K$9=TRUE,1,0)+IF($K$10=TRUE,1,0)+IF($K$11=TRUE,1,0)+IF($K$12=TRUE,1,0)+IF($K$13=TRUE,1,0)+IF($K$14=TRUE,1,0)+IF($K$15=TRUE,1,0)+IF($K$16=TRUE,1,0)+IF($K$17=TRUE,1,0)+IF($K$18=TRUE,1,0)+IF($K$19=TRUE,1,0)+IF($K$20=TRUE,1,0)+IF($K$21=TRUE,1,0))) -> 0.004752732862 | J23: =SQRT(( (IF($K$7=TRUE,J7^2,0))+(IF($K$8=TRUE,J8^2,0))+(IF($K$9=TRUE,J9^2,0))+(IF($K$10=TRUE,J10^2,0))+(IF($K$11=TRUE,J11^2,0))+(IF($K$12=TRUE,J12^2,0))+(IF($K$13=TRUE,J13^2,0))+(IF($K$14=TRUE,J14^2,0))+(IF($K$15=TRUE,J15^2,0))+(IF($K$16=TRUE,J16^2,0))+(IF($K$17=TRUE,J17^2,0))+(IF($K$18=TRUE,J18^2,0))+(IF($K$19=TRUE,J19^2,0))+(IF($K$20=TRUE,J20^2,0))+(IF($K$21=TRUE,J21^2,0)))/ (IF($K$7=TRUE,1,0)+IF($K$8=TRUE,1,0)+IF($K$9=TRUE,1,0)+IF($K$10=TRUE,1,0)+IF($K$11=TRUE,1,0)+IF($K$12=TRUE,1,0)+IF($K$13=TRUE,1,0)+IF($K$14=TRUE,1,0)+IF($K$15=TRUE,1,0)+IF($K$16=TRUE,1,0)+IF($K$17=TRUE,1,0)+IF($K$18=TRUE,1,0)+IF($K$19=TRUE,1,0)+IF($K$20=TRUE,1,0)+IF($K$21=TRUE,1,0))) -> 0.01787442546
D24: 1
C25: UNITLESS GRID TO GROUND MULTIPLIER | D25: =IF(REPORT!C13="n/a","0.00000000",REPORT!C13) -> 0 | H25: =IF(H23<=0.029,"PASS","FAIL") -> PASS | I25: =IF(I23<=0.029,"PASS","FAIL") -> PASS | J25: =IF(J23<=0.039,"PASS","FAIL") -> PASS
A27: AVERAGED GPS-DERIVED POSITION | I27: Notes:
B28: MONUMENT COORDINATES | D28: NORTHING | E28: EASTING | F28: ORTHO HEIGHT
B29: US Survey Feet (GRID) | D29: =$E$22 -> 311926.7919 | E29: =$F$22 -> 2265883.911 | F29: =$G$22 -> 1041.333675
A31: LEVELED ELEVATION
A32: US SURVEY FEET | C32: N/A | D32: (Type the leveled elevation or N/A if no leveled elevation is available)
A33: MONUMENT HELD | D33: (Type the monument name from which leveling originated)
A34: LEVELED ELEVATION - GPS DERIVED ELEVATION = | E34: =IF(C32="N/A","N/A",C32-(F29*D24)) -> N/A
A36: FINAL MONUMENT COORDINATES
B37: MONUMENT COORDINATES | D37: NORTHING | E37: EASTING | F37: ELEVATION | G37: FEATURE CODE
B38: US SURVEY FEET (GRID) | D38: =$E$22*$D$24 -> 311926.7919 | E38: =$F$22*$D$24 -> 2265883.911 | F38: =IF($C$32="N/A",($G$22*$D$24),$C$32) -> 1041.333675 | G38: AERTAR
B39: US SURVEY FEET (GROUND) | D39: =$D$38*$D$25 -> 0 | E39: =$E$38*$D$25 -> 0 | F39: =IF($C$32="N/A",($G$22*$D$24),$C$32) -> 1041.333675 | G39: =G38 -> AERTAR
A41: ∆ North, ∆ East, and ∆ Ht. are the difference between the average northing, easting, and height for each observation. | I41: Mask Angle: | J41: 10°

Sheet GS7
A1: VRS GNSS Project Control Monument Coordinate Analysis
A3: Project: | B3: =REPORT!B2 -> TUS-800-22.74 | C3: GPS Antenna: | D3: LEICA GS14 | J3: Report Date: | K3: =REPORT!C49 -> 2018-12-19
A4: PID: | B4: =REPORT!E2 -> 100603 | C4: VRS Network: | D4: ODOT VRS | J4: Prepared By: | K4: =REPORT!C48 -> Kolton Wilson
A5: Point ID: | B5: GS7 | C5: No. of Sessions: | D5: =COUNTIF(GPS_IMPORT!A2:A1000,$B$5) -> 12 | J5: Checked By: | K5: =REPORT!C52 -> Joel Swick
A6: SESSION # | B6: gs1 | C6: Observation Date | D6: Start Time | E6: Northing(sft) | F6: Easting(sft) | G6: Height(sft) | H6: ∆ Northing(sft) | I6: ∆ Easting(sft) | J6: ∆ Height(sft) | K6: Include in Solution?
A7: 1 | B7: =IF(ROWS(GPS_IMPORT!$1:1)<=COUNTIF(GPS_IMPORT!$A$2:$A$10000,$B$5),INDEX(GPS_IMPORT!$2:$10000,MATCH($B$5,(GPS_IMPORT!$A$2:$A$10000),0)+ROWS($1:1)-1,COLUMN()-1),0) -> GS7 | C7: =IF(ROWS(GPS_IMPORT!$1:1)<=COUNTIF(GPS_IMPORT!$A$2:$A$10000,$B$5),INDEX(GPS_IMPORT!$2:$10000,MATCH($B$5,(GPS_IMPORT!$A$2:$A$10000),0)+ROWS($1:1)-1,COLUMN()-1),0) -> 12.18.2018 | D7: =IF(ROWS(GPS_IMPORT!$1:1)<=COUNTIF(GPS_IMPORT!$A$2:$A$10000,$B$5),INDEX(GPS_IMPORT!$2:$10000,MATCH($B$5,(GPS_IMPORT!$A$2:$A$10000),0)+ROWS($1:1)-1,COLUMN()-1),0) -> 10:08:17.080 | E7: =IF(ROWS(GPS_IMPORT!$1:1)<=COUNTIF(GPS_IMPORT!$A$2:$A$10000,$B$5),INDEX(GPS_IMPORT!$2:$10000,MATCH($B$5,(GPS_IMPORT!$A$2:$A$10000),0)+ROWS($1:1)-1,COLUMN()-1),0) -> 310823.1445 | F7: =IF(ROWS(GPS_IMPORT!$1:1)<=COUNTIF(GPS_IMPORT!$A$2:$A$10000,$B$5),INDEX(GPS_IMPORT!$2:$10000,MATCH($B$5,(GPS_IMPORT!$A$2:$A$10000),0)+ROWS($1:1)-1,COLUMN()-1),0) -> 2269553.918 | G7: =IF(ROWS(GPS_IMPORT!$1:1)<=COUNTIF(GPS_IMPORT!$A$2:$A$10000,$B$5),INDEX(GPS_IMPORT!$2:$10000,MATCH($B$5,(GPS_IMPORT!$A$2:$A$10000),0)+ROWS($1:1)-1,COLUMN()-1),0) -> 930.6092891 | H7: =IF(E7>0,E$22-E7,0) -> -0.005962870142 | I7: -0.0007295068353 | J7: -0.0004251582474 | K7: TRUE
A8: 2 | B8: =IF(ROWS(GPS_IMPORT!$1:2)<=COUNTIF(GPS_IMPORT!$A$2:$A$10000,$B$5),INDEX(GPS_IMPORT!$2:$10000,MATCH($B$5,(GPS_IMPORT!$A$2:$A$10000),0)+ROWS($1:2)-1,COLUMN()-1),0) -> GS7 | C8: =IF(ROWS(GPS_IMPORT!$1:2)<=COUNTIF(GPS_IMPORT!$A$2:$A$10000,$B$5),INDEX(GPS_IMPORT!$2:$10000,MATCH($B$5,(GPS_IMPORT!$A$2:$A$10000),0)+ROWS($1:2)-1,COLUMN()-1),0) -> 12.18.2018 | D8: =IF(ROWS(GPS_IMPORT!$1:2)<=COUNTIF(GPS_IMPORT!$A$2:$A$10000,$B$5),INDEX(GPS_IMPORT!$2:$10000,MATCH($B$5,(GPS_IMPORT!$A$2:$A$10000),0)+ROWS($1:2)-1,COLUMN()-1),0) -> 10:08:28.450 | E8: =IF(ROWS(GPS_IMPORT!$1:2)<=COUNTIF(GPS_IMPORT!$A$2:$A$10000,$B$5),INDEX(GPS_IMPORT!$2:$10000,MATCH($B$5,(GPS_IMPORT!$A$2:$A$10000),0)+ROWS($1:2)-1,COLUMN()-1),0) -> 310823.1401 | F8: =IF(ROWS(GPS_IMPORT!$1:2)<=COUNTIF(GPS_IMPORT!$A$2:$A$10000,$B$5),INDEX(GPS_IMPORT!$2:$10000,MATCH($B$5,(GPS_IMPORT!$A$2:$A$10000),0)+ROWS($1:2)-1,COLUMN()-1),0) -> 2269553.92 | G8: =IF(ROWS(GPS_IMPORT!$1:2)<=COUNTIF(GPS_IMPORT!$A$2:$A$10000,$B$5),INDEX(GPS_IMPORT!$2:$10000,MATCH($B$5,(GPS_IMPORT!$A$2:$A$10000),0)+ROWS($1:2)-1,COLUMN()-1),0) -> 930.6087138 | H8: -0.001594838162 | I8: -0.002246296965 | J8: 0.0001501217426 | K8: TRUE
A9: 3 | B9: =IF(ROWS(GPS_IMPORT!$1:3)<=COUNTIF(GPS_IMPORT!$A$2:$A$10000,$B$5),INDEX(GPS_IMPORT!$2:$10000,MATCH($B$5,(GPS_IMPORT!$A$2:$A$10000),0)+ROWS($1:3)-1,COLUMN()-1),0) -> GS7 | C9: =IF(ROWS(GPS_IMPORT!$1:3)<=COUNTIF(GPS_IMPORT!$A$2:$A$10000,$B$5),INDEX(GPS_IMPORT!$2:$10000,MATCH($B$5,(GPS_IMPORT!$A$2:$A$10000),0)+ROWS($1:3)-1,COLUMN()-1),0) -> 12.18.2018 | D9: =IF(ROWS(GPS_IMPORT!$1:3)<=COUNTIF(GPS_IMPORT!$A$2:$A$10000,$B$5),INDEX(GPS_IMPORT!$2:$10000,MATCH($B$5,(GPS_IMPORT!$A$2:$A$10000),0)+ROWS($1:3)-1,COLUMN()-1),0) -> 10:08:40.180 | E9: =IF(ROWS(GPS_IMPORT!$1:3)<=COUNTIF(GPS_IMPORT!$A$2:$A$10000,$B$5),INDEX(GPS_IMPORT!$2:$10000,MATCH($B$5,(GPS_IMPORT!$A$2:$A$10000),0)+ROWS($1:3)-1,COLUMN()-1),0) -> 310823.1449 | F9: =IF(ROWS(GPS_IMPORT!$1:3)<=COUNTIF(GPS_IMPORT!$A$2:$A$10000,$B$5),INDEX(GPS_IMPORT!$2:$10000,MATCH($B$5,(GPS_IMPORT!$A$2:$A$10000),0)+ROWS($1:3)-1,COLUMN()-1),0) -> 2269553.921 | G9: =IF(ROWS(GPS_IMPORT!$1:3)<=COUNTIF(GPS_IMPORT!$A$2:$A$10000,$B$5),INDEX(GPS_IMPORT!$2:$10000,MATCH($B$5,(GPS_IMPORT!$A$2:$A$10000),0)+ROWS($1:3)-1,COLUMN()-1),0) -> 930.6061162 | H9: -0.006411654118 | I9: -0.003765007015 | J9: 0.002747721253 | K9: TRUE
A10: 4 | B10: =IF(ROWS(GPS_IMPORT!$1:4)<=COUNTIF(GPS_IMPORT!$A$2:$A$10000,$B$5),INDEX(GPS_IMPORT!$2:$10000,MATCH($B$5,(GPS_IMPORT!$A$2:$A$10000),0)+ROWS($1:4)-1,COLUMN()-1),0) -> GS7 | C10: =IF(ROWS(GPS_IMPORT!$1:4)<=COUNTIF(GPS_IMPORT!$A$2:$A$10000,$B$5),INDEX(GPS_IMPORT!$2:$10000,MATCH($B$5,(GPS_IMPORT!$A$2:$A$10000),0)+ROWS($1:4)-1,COLUMN()-1),0) -> 12.18.2018 | D10: =IF(ROWS(GPS_IMPORT!$1:4)<=COUNTIF(GPS_IMPORT!$A$2:$A$10000,$B$5),INDEX(GPS_IMPORT!$2:$10000,MATCH($B$5,(GPS_IMPORT!$A$2:$A$10000),0)+ROWS($1:4)-1,COLUMN()-1),0) -> 10:08:50.820 | E10: =IF(ROWS(GPS_IMPORT!$1:4)<=COUNTIF(GPS_IMPORT!$A$2:$A$10000,$B$5),INDEX(GPS_IMPORT!$2:$10000,MATCH($B$5,(GPS_IMPORT!$A$2:$A$10000),0)+ROWS($1:4)-1,COLUMN()-1),0) -> 310823.1414 | F10: =IF(ROWS(GPS_IMPORT!$1:4)<=COUNTIF(GPS_IMPORT!$A$2:$A$10000,$B$5),INDEX(GPS_IMPORT!$2:$10000,MATCH($B$5,(GPS_IMPORT!$A$2:$A$10000),0)+ROWS($1:4)-1,COLUMN()-1),0) -> 2269553.918 | G10: =IF(ROWS(GPS_IMPORT!$1:4)<=COUNTIF(GPS_IMPORT!$A$2:$A$10000,$B$5),INDEX(GPS_IMPORT!$2:$10000,MATCH($B$5,(GPS_IMPORT!$A$2:$A$10000),0)+ROWS($1:4)-1,COLUMN()-1),0) -> 930.6111329 | H10: -0.002877328137 | I10: -0.0002801669762 | J10: -0.002268950197 | K10: TRUE
A11: 5 | B11: =IF(ROWS(GPS_IMPORT!$1:5)<=COUNTIF(GPS_IMPORT!$A$2:$A$10000,$B$5),INDEX(GPS_IMPORT!$2:$10000,MATCH($B$5,(GPS_IMPORT!$A$2:$A$10000),0)+ROWS($1:5)-1,COLUMN()-1),0) -> GS7 | C11: =IF(ROWS(GPS_IMPORT!$1:5)<=COUNTIF(GPS_IMPORT!$A$2:$A$10000,$B$5),INDEX(GPS_IMPORT!$2:$10000,MATCH($B$5,(GPS_IMPORT!$A$2:$A$10000),0)+ROWS($1:5)-1,COLUMN()-1),0) -> 12.18.2018 | D11: =IF(ROWS(GPS_IMPORT!$1:5)<=COUNTIF(GPS_IMPORT!$A$2:$A$10000,$B$5),INDEX(GPS_IMPORT!$2:$10000,MATCH($B$5,(GPS_IMPORT!$A$2:$A$10000),0)+ROWS($1:5)-1,COLUMN()-1),0) -> 10:09:10.950 | E11: =IF(ROWS(GPS_IMPORT!$1:5)<=COUNTIF(GPS_IMPORT!$A$2:$A$10000,$B$5),INDEX(GPS_IMPORT!$2:$10000,MATCH($B$5,(GPS_IMPORT!$A$2:$A$10000),0)+ROWS($1:5)-1,COLUMN()-1),0) -> 310823.1353 | F11: =IF(ROWS(GPS_IMPORT!$1:5)<=COUNTIF(GPS_IMPORT!$A$2:$A$10000,$B$5),INDEX(GPS_IMPORT!$2:$10000,MATCH($B$5,(GPS_IMPORT!$A$2:$A$10000),0)+ROWS($1:5)-1,COLUMN()-1),0) -> 2269553.92 | G11: =IF(ROWS(GPS_IMPORT!$1:5)<=COUNTIF(GPS_IMPORT!$A$2:$A$10000,$B$5),INDEX(GPS_IMPORT!$2:$10000,MATCH($B$5,(GPS_IMPORT!$A$2:$A$10000),0)+ROWS($1:5)-1,COLUMN()-1),0) -> 930.6117599 | H11: 0.003155637882 | I11: -0.002479386982 | J11: -0.002895929477 | K11: TRUE
A12: 6 | B12: =IF(ROWS(GPS_IMPORT!$1:6)<=COUNTIF(GPS_IMPORT!$A$2:$A$10000,$B$5),INDEX(GPS_IMPORT!$2:$10000,MATCH($B$5,(GPS_IMPORT!$A$2:$A$10000),0)+ROWS($1:6)-1,COLUMN()-1),0) -> GS7 | C12: =IF(ROWS(GPS_IMPORT!$1:6)<=COUNTIF(GPS_IMPORT!$A$2:$A$10000,$B$5),INDEX(GPS_IMPORT!$2:$10000,MATCH($B$5,(GPS_IMPORT!$A$2:$A$10000),0)+ROWS($1:6)-1,COLUMN()-1),0) -> 12.18.2018 | D12: =IF(ROWS(GPS_IMPORT!$1:6)<=COUNTIF(GPS_IMPORT!$A$2:$A$10000,$B$5),INDEX(GPS_IMPORT!$2:$10000,MATCH($B$5,(GPS_IMPORT!$A$2:$A$10000),0)+ROWS($1:6)-1,COLUMN()-1),0) -> 10:09:21.680 | E12: =IF(ROWS(GPS_IMPORT!$1:6)<=COUNTIF(GPS_IMPORT!$A$2:$A$10000,$B$5),INDEX(GPS_IMPORT!$2:$10000,MATCH($B$5,(GPS_IMPORT!$A$2:$A$10000),0)+ROWS($1:6)-1,COLUMN()-1),0) -> 310823.1338 | F12: =IF(ROWS(GPS_IMPORT!$1:6)<=COUNTIF(GPS_IMPORT!$A$2:$A$10000,$B$5),INDEX(GPS_IMPORT!$2:$10000,MATCH($B$5,(GPS_IMPORT!$A$2:$A$10000),0)+ROWS($1:6)-1,COLUMN()-1),0) -> 2269553.918 | G12: =IF(ROWS(GPS_IMPORT!$1:6)<=COUNTIF(GPS_IMPORT!$A$2:$A$10000,$B$5),INDEX(GPS_IMPORT!$2:$10000,MATCH($B$5,(GPS_IMPORT!$A$2:$A$10000),0)+ROWS($1:6)-1,COLUMN()-1),0) -> 930.5976059 | H12: 0.004663235857 | I12: -0.0005945367739 | J12: 0.01125801259 | K12: TRUE
A13: 7 | B13: =IF(ROWS(GPS_IMPORT!$1:7)<=COUNTIF(GPS_IMPORT!$A$2:$A$10000,$B$5),INDEX(GPS_IMPORT!$2:$10000,MATCH($B$5,(GPS_IMPORT!$A$2:$A$10000),0)+ROWS($1:7)-1,COLUMN()-1),0) -> GS7 | C13: =IF(ROWS(GPS_IMPORT!$1:7)<=COUNTIF(GPS_IMPORT!$A$2:$A$10000,$B$5),INDEX(GPS_IMPORT!$2:$10000,MATCH($B$5,(GPS_IMPORT!$A$2:$A$10000),0)+ROWS($1:7)-1,COLUMN()-1),0) -> 12.18.2018 | D13: =IF(ROWS(GPS_IMPORT!$1:7)<=COUNTIF(GPS_IMPORT!$A$2:$A$10000,$B$5),INDEX(GPS_IMPORT!$2:$10000,MATCH($B$5,(GPS_IMPORT!$A$2:$A$10000),0)+ROWS($1:7)-1,COLUMN()-1),0) -> 10:09:33.070 | E13: =IF(ROWS(GPS_IMPORT!$1:7)<=COUNTIF(GPS_IMPORT!$A$2:$A$10000,$B$5),INDEX(GPS_IMPORT!$2:$10000,MATCH($B$5,(GPS_IMPORT!$A$2:$A$10000),0)+ROWS($1:7)-1,COLUMN()-1),0) -> 310823.1319 | F13: =IF(ROWS(GPS_IMPORT!$1:7)<=COUNTIF(GPS_IMPORT!$A$2:$A$10000,$B$5),INDEX(GPS_IMPORT!$2:$10000,MATCH($B$5,(GPS_IMPORT!$A$2:$A$10000),0)+ROWS($1:7)-1,COLUMN()-1),0) -> 2269553.917 | G13: =IF(ROWS(GPS_IMPORT!$1:7)<=COUNTIF(GPS_IMPORT!$A$2:$A$10000,$B$5),INDEX(GPS_IMPORT!$2:$10000,MATCH($B$5,(GPS_IMPORT!$A$2:$A$10000),0)+ROWS($1:7)-1,COLUMN()-1),0) -> 930.6019577 | H13: 0.006596950872 | I13: 0.0003614728339 | J13: 0.006906285173 | K13: TRUE
A14: 8 | B14: =IF(ROWS(GPS_IMPORT!$1:8)<=COUNTIF(GPS_IMPORT!$A$2:$A$10000,$B$5),INDEX(GPS_IMPORT!$2:$10000,MATCH($B$5,(GPS_IMPORT!$A$2:$A$10000),0)+ROWS($1:8)-1,COLUMN()-1),0) -> GS7 | C14: =IF(ROWS(GPS_IMPORT!$1:8)<=COUNTIF(GPS_IMPORT!$A$2:$A$10000,$B$5),INDEX(GPS_IMPORT!$2:$10000,MATCH($B$5,(GPS_IMPORT!$A$2:$A$10000),0)+ROWS($1:8)-1,COLUMN()-1),0) -> 12.18.2018 | D14: =IF(ROWS(GPS_IMPORT!$1:8)<=COUNTIF(GPS_IMPORT!$A$2:$A$10000,$B$5),INDEX(GPS_IMPORT!$2:$10000,MATCH($B$5,(GPS_IMPORT!$A$2:$A$10000),0)+ROWS($1:8)-1,COLUMN()-1),0) -> 10:09:45.310 | E14: =IF(ROWS(GPS_IMPORT!$1:8)<=COUNTIF(GPS_IMPORT!$A$2:$A$10000,$B$5),INDEX(GPS_IMPORT!$2:$10000,MATCH($B$5,(GPS_IMPORT!$A$2:$A$10000),0)+ROWS($1:8)-1,COLUMN()-1),0) -> 310823.1302 | F14: =IF(ROWS(GPS_IMPORT!$1:8)<=COUNTIF(GPS_IMPORT!$A$2:$A$10000,$B$5),INDEX(GPS_IMPORT!$2:$10000,MATCH($B$5,(GPS_IMPORT!$A$2:$A$10000),0)+ROWS($1:8)-1,COLUMN()-1),0) -> 2269553.912 | G14: =IF(ROWS(GPS_IMPORT!$1:8)<=COUNTIF(GPS_IMPORT!$A$2:$A$10000,$B$5),INDEX(GPS_IMPORT!$2:$10000,MATCH($B$5,(GPS_IMPORT!$A$2:$A$10000),0)+ROWS($1:8)-1,COLUMN()-1),0) -> 930.6054605 | H14: 0.008344089845 | I14: 0.005349842831 | J14: 0.003403437653 | K14: TRUE
A15: 9 | B15: =IF(ROWS(GPS_IMPORT!$1:9)<=COUNTIF(GPS_IMPORT!$A$2:$A$10000,$B$5),INDEX(GPS_IMPORT!$2:$10000,MATCH($B$5,(GPS_IMPORT!$A$2:$A$10000),0)+ROWS($1:9)-1,COLUMN()-1),0) -> GS7 | C15: =IF(ROWS(GPS_IMPORT!$1:9)<=COUNTIF(GPS_IMPORT!$A$2:$A$10000,$B$5),INDEX(GPS_IMPORT!$2:$10000,MATCH($B$5,(GPS_IMPORT!$A$2:$A$10000),0)+ROWS($1:9)-1,COLUMN()-1),0) -> 12.18.2018 | D15: =IF(ROWS(GPS_IMPORT!$1:9)<=COUNTIF(GPS_IMPORT!$A$2:$A$10000,$B$5),INDEX(GPS_IMPORT!$2:$10000,MATCH($B$5,(GPS_IMPORT!$A$2:$A$10000),0)+ROWS($1:9)-1,COLUMN()-1),0) -> 10:10:06.090 | E15: =IF(ROWS(GPS_IMPORT!$1:9)<=COUNTIF(GPS_IMPORT!$A$2:$A$10000,$B$5),INDEX(GPS_IMPORT!$2:$10000,MATCH($B$5,(GPS_IMPORT!$A$2:$A$10000),0)+ROWS($1:9)-1,COLUMN()-1),0) -> 310823.1381 | F15: =IF(ROWS(GPS_IMPORT!$1:9)<=COUNTIF(GPS_IMPORT!$A$2:$A$10000,$B$5),INDEX(GPS_IMPORT!$2:$10000,MATCH($B$5,(GPS_IMPORT!$A$2:$A$10000),0)+ROWS($1:9)-1,COLUMN()-1),0) -> 2269553.918 | G15: =IF(ROWS(GPS_IMPORT!$1:9)<=COUNTIF(GPS_IMPORT!$A$2:$A$10000,$B$5),INDEX(GPS_IMPORT!$2:$10000,MATCH($B$5,(GPS_IMPORT!$A$2:$A$10000),0)+ROWS($1:9)-1,COLUMN()-1),0) -> 930.610271 | H15: 0.0004228658509 | I15: -0.0004324270412 | J15: -0.001407084377 | K15: TRUE
A16: 10 | B16: =IF(ROWS(GPS_IMPORT!$1:10)<=COUNTIF(GPS_IMPORT!$A$2:$A$10000,$B$5),INDEX(GPS_IMPORT!$2:$10000,MATCH($B$5,(GPS_IMPORT!$A$2:$A$10000),0)+ROWS($1:10)-1,COLUMN()-1),0) -> GS7 | C16: =IF(ROWS(GPS_IMPORT!$1:10)<=COUNTIF(GPS_IMPORT!$A$2:$A$10000,$B$5),INDEX(GPS_IMPORT!$2:$10000,MATCH($B$5,(GPS_IMPORT!$A$2:$A$10000),0)+ROWS($1:10)-1,COLUMN()-1),0) -> 12.18.2018 | D16: =IF(ROWS(GPS_IMPORT!$1:10)<=COUNTIF(GPS_IMPORT!$A$2:$A$10000,$B$5),INDEX(GPS_IMPORT!$2:$10000,MATCH($B$5,(GPS_IMPORT!$A$2:$A$10000),0)+ROWS($1:10)-1,COLUMN()-1),0) -> 10:10:18.090 | E16: =IF(ROWS(GPS_IMPORT!$1:10)<=COUNTIF(GPS_IMPORT!$A$2:$A$10000,$B$5),INDEX(GPS_IMPORT!$2:$10000,MATCH($B$5,(GPS_IMPORT!$A$2:$A$10000),0)+ROWS($1:10)-1,COLUMN()-1),0) -> 310823.1403 | F16: =IF(ROWS(GPS_IMPORT!$1:10)<=COUNTIF(GPS_IMPORT!$A$2:$A$10000,$B$5),INDEX(GPS_IMPORT!$2:$10000,MATCH($B$5,(GPS_IMPORT!$A$2:$A$10000),0)+ROWS($1:10)-1,COLUMN()-1),0) -> 2269553.919 | G16: =IF(ROWS(GPS_IMPORT!$1:10)<=COUNTIF(GPS_IMPORT!$A$2:$A$10000,$B$5),INDEX(GPS_IMPORT!$2:$10000,MATCH($B$5,(GPS_IMPORT!$A$2:$A$10000),0)+ROWS($1:10)-1,COLUMN()-1),0) -> 930.6084794 | H16: -0.001802490151 | I16: -0.001319047064 | J16: 0.0003845713426 | K16: TRUE
A17: 11 | B17: =IF(ROWS(GPS_IMPORT!$1:11)<=COUNTIF(GPS_IMPORT!$A$2:$A$10000,$B$5),INDEX(GPS_IMPORT!$2:$10000,MATCH($B$5,(GPS_IMPORT!$A$2:$A$10000),0)+ROWS($1:11)-1,COLUMN()-1),0) -> GS7 | C17: =IF(ROWS(GPS_IMPORT!$1:11)<=COUNTIF(GPS_IMPORT!$A$2:$A$10000,$B$5),INDEX(GPS_IMPORT!$2:$10000,MATCH($B$5,(GPS_IMPORT!$A$2:$A$10000),0)+ROWS($1:11)-1,COLUMN()-1),0) -> 12.18.2018 | D17: =IF(ROWS(GPS_IMPORT!$1:11)<=COUNTIF(GPS_IMPORT!$A$2:$A$10000,$B$5),INDEX(GPS_IMPORT!$2:$10000,MATCH($B$5,(GPS_IMPORT!$A$2:$A$10000),0)+ROWS($1:11)-1,COLUMN()-1),0) -> 10:10:32.040 | E17: =IF(ROWS(GPS_IMPORT!$1:11)<=COUNTIF(GPS_IMPORT!$A$2:$A$10000,$B$5),INDEX(GPS_IMPORT!$2:$10000,MATCH($B$5,(GPS_IMPORT!$A$2:$A$10000),0)+ROWS($1:11)-1,COLUMN()-1),0) -> 310823.1386 | F17: =IF(ROWS(GPS_IMPORT!$1:11)<=COUNTIF(GPS_IMPORT!$A$2:$A$10000,$B$5),INDEX(GPS_IMPORT!$2:$10000,MATCH($B$5,(GPS_IMPORT!$A$2:$A$10000),0)+ROWS($1:11)-1,COLUMN()-1),0) -> 2269553.913 | G17: =IF(ROWS(GPS_IMPORT!$1:11)<=COUNTIF(GPS_IMPORT!$A$2:$A$10000,$B$5),INDEX(GPS_IMPORT!$2:$10000,MATCH($B$5,(GPS_IMPORT!$A$2:$A$10000),0)+ROWS($1:11)-1,COLUMN()-1),0) -> 930.6223805 | H17: -0.0001053901506 | I17: 0.004424833227 | J17: -0.01351656666 | K17: TRUE
A18: 12 | B18: =IF(ROWS(GPS_IMPORT!$1:12)<=COUNTIF(GPS_IMPORT!$A$2:$A$10000,$B$5),INDEX(GPS_IMPORT!$2:$10000,MATCH($B$5,(GPS_IMPORT!$A$2:$A$10000),0)+ROWS($1:12)-1,COLUMN()-1),0) -> GS7 | C18: =IF(ROWS(GPS_IMPORT!$1:12)<=COUNTIF(GPS_IMPORT!$A$2:$A$10000,$B$5),INDEX(GPS_IMPORT!$2:$10000,MATCH($B$5,(GPS_IMPORT!$A$2:$A$10000),0)+ROWS($1:12)-1,COLUMN()-1),0) -> 12.18.2018 | D18: =IF(ROWS(GPS_IMPORT!$1:12)<=COUNTIF(GPS_IMPORT!$A$2:$A$10000,$B$5),INDEX(GPS_IMPORT!$2:$10000,MATCH($B$5,(GPS_IMPORT!$A$2:$A$10000),0)+ROWS($1:12)-1,COLUMN()-1),0) -> 10:10:43.990 | E18: =IF(ROWS(GPS_IMPORT!$1:12)<=COUNTIF(GPS_IMPORT!$A$2:$A$10000,$B$5),INDEX(GPS_IMPORT!$2:$10000,MATCH($B$5,(GPS_IMPORT!$A$2:$A$10000),0)+ROWS($1:12)-1,COLUMN()-1),0) -> 310823.1429 | F18: =IF(ROWS(GPS_IMPORT!$1:12)<=COUNTIF(GPS_IMPORT!$A$2:$A$10000,$B$5),INDEX(GPS_IMPORT!$2:$10000,MATCH($B$5,(GPS_IMPORT!$A$2:$A$10000),0)+ROWS($1:12)-1,COLUMN()-1),0) -> 2269553.916 | G18: =IF(ROWS(GPS_IMPORT!$1:12)<=COUNTIF(GPS_IMPORT!$A$2:$A$10000,$B$5),INDEX(GPS_IMPORT!$2:$10000,MATCH($B$5,(GPS_IMPORT!$A$2:$A$10000),0)+ROWS($1:12)-1,COLUMN()-1),0) -> 930.6132004 | H18: -0.004428210144 | I18: 0.001710223034 | J18: -0.004336460797 | K18: TRUE
A19: 13 | B19: =IF(ROWS(GPS_IMPORT!$1:13)<=COUNTIF(GPS_IMPORT!$A$2:$A$10000,$B$5),INDEX(GPS_IMPORT!$2:$10000,MATCH($B$5,(GPS_IMPORT!$A$2:$A$10000),0)+ROWS($1:13)-1,COLUMN()-1),0) -> 0 | C19: =IF(ROWS(GPS_IMPORT!$1:13)<=COUNTIF(GPS_IMPORT!$A$2:$A$10000,$B$5),INDEX(GPS_IMPORT!$2:$10000,MATCH($B$5,(GPS_IMPORT!$A$2:$A$10000),0)+ROWS($1:13)-1,COLUMN()-1),0) -> 00:00:00 | D19: =IF(ROWS(GPS_IMPORT!$1:13)<=COUNTIF(GPS_IMPORT!$A$2:$A$10000,$B$5),INDEX(GPS_IMPORT!$2:$10000,MATCH($B$5,(GPS_IMPORT!$A$2:$A$10000),0)+ROWS($1:13)-1,COLUMN()-1),0) -> 00:00:00 | E19: =IF(ROWS(GPS_IMPORT!$1:13)<=COUNTIF(GPS_IMPORT!$A$2:$A$10000,$B$5),INDEX(GPS_IMPORT!$2:$10000,MATCH($B$5,(GPS_IMPORT!$A$2:$A$10000),0)+ROWS($1:13)-1,COLUMN()-1),0) -> 0 | F19: =IF(ROWS(GPS_IMPORT!$1:13)<=COUNTIF(GPS_IMPORT!$A$2:$A$10000,$B$5),INDEX(GPS_IMPORT!$2:$10000,MATCH($B$5,(GPS_IMPORT!$A$2:$A$10000),0)+ROWS($1:13)-1,COLUMN()-1),0) -> 0 | G19: =IF(ROWS(GPS_IMPORT!$1:13)<=COUNTIF(GPS_IMPORT!$A$2:$A$10000,$B$5),INDEX(GPS_IMPORT!$2:$10000,MATCH($B$5,(GPS_IMPORT!$A$2:$A$10000),0)+ROWS($1:13)-1,COLUMN()-1),0) -> 0 | H19: =IF(E19>0,E$22-E19,0) -> 0 | I19: 0 | J19: 0 | K19: FALSE
A20: 14 | B20: =IF(ROWS(GPS_IMPORT!$1:14)<=COUNTIF(GPS_IMPORT!$A$2:$A$10000,$B$5),INDEX(GPS_IMPORT!$2:$10000,MATCH($B$5,(GPS_IMPORT!$A$2:$A$10000),0)+ROWS($1:14)-1,COLUMN()-1),0) -> 0 | C20: =IF(ROWS(GPS_IMPORT!$1:14)<=COUNTIF(GPS_IMPORT!$A$2:$A$10000,$B$5),INDEX(GPS_IMPORT!$2:$10000,MATCH($B$5,(GPS_IMPORT!$A$2:$A$10000),0)+ROWS($1:14)-1,COLUMN()-1),0) -> 00:00:00 | D20: =IF(ROWS(GPS_IMPORT!$1:14)<=COUNTIF(GPS_IMPORT!$A$2:$A$10000,$B$5),INDEX(GPS_IMPORT!$2:$10000,MATCH($B$5,(GPS_IMPORT!$A$2:$A$10000),0)+ROWS($1:14)-1,COLUMN()-1),0) -> 00:00:00 | E20: =IF(ROWS(GPS_IMPORT!$1:14)<=COUNTIF(GPS_IMPORT!$A$2:$A$10000,$B$5),INDEX(GPS_IMPORT!$2:$10000,MATCH($B$5,(GPS_IMPORT!$A$2:$A$10000),0)+ROWS($1:14)-1,COLUMN()-1),0) -> 0 | F20: =IF(ROWS(GPS_IMPORT!$1:14)<=COUNTIF(GPS_IMPORT!$A$2:$A$10000,$B$5),INDEX(GPS_IMPORT!$2:$10000,MATCH($B$5,(GPS_IMPORT!$A$2:$A$10000),0)+ROWS($1:14)-1,COLUMN()-1),0) -> 0 | G20: =IF(ROWS(GPS_IMPORT!$1:14)<=COUNTIF(GPS_IMPORT!$A$2:$A$10000,$B$5),INDEX(GPS_IMPORT!$2:$10000,MATCH($B$5,(GPS_IMPORT!$A$2:$A$10000),0)+ROWS($1:14)-1,COLUMN()-1),0) -> 0 | H20: 0 | I20: 0 | J20: 0 | K20: FALSE
A21: 15 | B21: =IF(ROWS(GPS_IMPORT!$1:15)<=COUNTIF(GPS_IMPORT!$A$2:$A$10000,$B$5),INDEX(GPS_IMPORT!$2:$10000,MATCH($B$5,(GPS_IMPORT!$A$2:$A$10000),0)+ROWS($1:15)-1,COLUMN()-1),0) -> 0 | C21: =IF(ROWS(GPS_IMPORT!$1:15)<=COUNTIF(GPS_IMPORT!$A$2:$A$10000,$B$5),INDEX(GPS_IMPORT!$2:$10000,MATCH($B$5,(GPS_IMPORT!$A$2:$A$10000),0)+ROWS($1:15)-1,COLUMN()-1),0) -> 00:00:00 | D21: =IF(ROWS(GPS_IMPORT!$1:15)<=COUNTIF(GPS_IMPORT!$A$2:$A$10000,$B$5),INDEX(GPS_IMPORT!$2:$10000,MATCH($B$5,(GPS_IMPORT!$A$2:$A$10000),0)+ROWS($1:15)-1,COLUMN()-1),0) -> 00:00:00 | E21: =IF(ROWS(GPS_IMPORT!$1:15)<=COUNTIF(GPS_IMPORT!$A$2:$A$10000,$B$5),INDEX(GPS_IMPORT!$2:$10000,MATCH($B$5,(GPS_IMPORT!$A$2:$A$10000),0)+ROWS($1:15)-1,COLUMN()-1),0) -> 0 | F21: =IF(ROWS(GPS_IMPORT!$1:15)<=COUNTIF(GPS_IMPORT!$A$2:$A$10000,$B$5),INDEX(GPS_IMPORT!$2:$10000,MATCH($B$5,(GPS_IMPORT!$A$2:$A$10000),0)+ROWS($1:15)-1,COLUMN()-1),0) -> 0 | G21: =IF(ROWS(GPS_IMPORT!$1:15)<=COUNTIF(GPS_IMPORT!$A$2:$A$10000,$B$5),INDEX(GPS_IMPORT!$2:$10000,MATCH($B$5,(GPS_IMPORT!$A$2:$A$10000),0)+ROWS($1:15)-1,COLUMN()-1),0) -> 0 | H21: 0 | I21: 0 | J21: 0 | K21: FALSE
D22: AVERAGE | E22: =(IF($K$7=TRUE,E7,0)+IF($K$8=TRUE,E8,0)+IF($K$9=TRUE,E9,0)+IF($K$10=TRUE,E10,0)+IF($K$11=TRUE,E11,0)+IF($K$12=TRUE,E12,0)+IF($K$13=TRUE,E13,0)+IF($K$14=TRUE,E14,0)+IF($K$15=TRUE,E15,0)+IF($K$16=TRUE,E16,0)+IF($K$17=TRUE,E17,0)+IF($K$18=TRUE,E18,0)+IF($K$19=TRUE,E19,0)+IF($K$20=TRUE,E20,0)+IF($K$21=TRUE,E21,0))/(IF($K$7=TRUE,1,0)+IF($K$8=TRUE,1,0)+IF($K$9=TRUE,1,0)+IF($K$10=TRUE,1,0)+IF($K$11=TRUE,1,0)+IF($K$12=TRUE,1,0)+IF($K$13=TRUE,1,0)+IF($K$14=TRUE,1,0)+IF($K$15=TRUE,1,0)+IF($K$16=TRUE,1,0)+IF($K$17=TRUE,1,0)+IF($K$18=TRUE,1,0)+IF($K$19=TRUE,1,0)+IF($K$20=TRUE,1,0)+IF($K$21=TRUE,1,0)) -> 310823.1385 | F22: =(IF($K$7=TRUE,F7,0)+IF($K$8=TRUE,F8,0)+IF($K$9=TRUE,F9,0)+IF($K$10=TRUE,F10,0)+IF($K$11=TRUE,F11,0)+IF($K$12=TRUE,F12,0)+IF($K$13=TRUE,F13,0)+IF($K$14=TRUE,F14,0)+IF($K$15=TRUE,F15,0)+IF($K$16=TRUE,F16,0)+IF($K$17=TRUE,F17,0)+IF($K$18=TRUE,F18,0)+IF($K$19=TRUE,F19,0)+IF($K$20=TRUE,F20,0)+IF($K$21=TRUE,F21,0))/(IF($K$7=TRUE,1,0)+IF($K$8=TRUE,1,0)+IF($K$9=TRUE,1,0)+IF($K$10=TRUE,1,0)+IF($K$11=TRUE,1,0)+IF($K$12=TRUE,1,0)+IF($K$13=TRUE,1,0)+IF($K$14=TRUE,1,0)+IF($K$15=TRUE,1,0)+IF($K$16=TRUE,1,0)+IF($K$17=TRUE,1,0)+IF($K$18=TRUE,1,0)+IF($K$19=TRUE,1,0)+IF($K$20=TRUE,1,0)+IF($K$21=TRUE,1,0)) -> 2269553.918 | G22: =(IF($K$7=TRUE,G7,0)+IF($K$8=TRUE,G8,0)+IF($K$9=TRUE,G9,0)+IF($K$10=TRUE,G10,0)+IF($K$11=TRUE,G11,0)+IF($K$12=TRUE,G12,0)+IF($K$13=TRUE,G13,0)+IF($K$14=TRUE,G14,0)+IF($K$15=TRUE,G15,0)+IF($K$16=TRUE,G16,0)+IF($K$17=TRUE,G17,0)+IF($K$18=TRUE,G18,0)+IF($K$19=TRUE,G19,0)+IF($K$20=TRUE,G20,0)+IF($K$21=TRUE,G21,0))/ (IF($K$7=TRUE,1,0)+IF($K$8=TRUE,1,0)+IF($K$9=TRUE,1,0)+IF($K$10=TRUE,1,0)+IF($K$11=TRUE,1,0)+IF($K$12=TRUE,1,0)+IF($K$13=TRUE,1,0)+IF($K$14=TRUE,1,0)+IF($K$15=TRUE,1,0)+IF($K$16=TRUE,1,0)+IF($K$17=TRUE,1,0)+IF($K$18=TRUE,1,0)+IF($K$19=TRUE,1,0)+IF($K$20=TRUE,1,0)+IF($K$21=TRUE,1,0)) -> 930.6088639 | H22: RMSE: | I22: RMSE: | J22: RMSE:
G23: RMSE IN US SURVEY FEET: | H23: =SQRT(( (IF($K$7=TRUE,H7^2,0))+(IF($K$8=TRUE,H8^2,0))+(IF($K$9=TRUE,H9^2,0))+(IF($K$10=TRUE,H10^2,0))+(IF($K$11=TRUE,H11^2,0))+(IF($K$12=TRUE,H12^2,0))+(IF($K$13=TRUE,H13^2,0))+(IF($K$14=TRUE,H14^2,0))+(IF($K$15=TRUE,H15^2,0))+(IF($K$16=TRUE,H16^2,0))+(IF($K$17=TRUE,H17^2,0))+(IF($K$18=TRUE,H18^2,0))+(IF($K$19=TRUE,H19^2,0))+(IF($K$20=TRUE,H20^2,0))+(IF($K$21=TRUE,H21^2,0)))/ (IF($K$7=TRUE,1,0)+IF($K$8=TRUE,1,0)+IF($K$9=TRUE,1,0)+IF($K$10=TRUE,1,0)+IF($K$11=TRUE,1,0)+IF($K$12=TRUE,1,0)+IF($K$13=TRUE,1,0)+IF($K$14=TRUE,1,0)+IF($K$15=TRUE,1,0)+IF($K$16=TRUE,1,0)+IF($K$17=TRUE,1,0)+IF($K$18=TRUE,1,0)+IF($K$19=TRUE,1,0)+IF($K$20=TRUE,1,0)+IF($K$21=TRUE,1,0))) -> 0.004613232855 | I23: =SQRT(( (IF($K$7=TRUE,I7^2,0))+(IF($K$8=TRUE,I8^2,0))+(IF($K$9=TRUE,I9^2,0))+(IF($K$10=TRUE,I10^2,0))+(IF($K$11=TRUE,I11^2,0))+(IF($K$12=TRUE,I12^2,0))+(IF($K$13=TRUE,I13^2,0))+(IF($K$14=TRUE,I14^2,0))+(IF($K$15=TRUE,I15^2,0))+(IF($K$16=TRUE,I16^2,0))+(IF($K$17=TRUE,I17^2,0))+(IF($K$18=TRUE,I18^2,0))+(IF($K$19=TRUE,I19^2,0))+(IF($K$20=TRUE,I20^2,0))+(IF($K$21=TRUE,I21^2,0)))/ (IF($K$7=TRUE,1,0)+IF($K$8=TRUE,1,0)+IF($K$9=TRUE,1,0)+IF($K$10=TRUE,1,0)+IF($K$11=TRUE,1,0)+IF($K$12=TRUE,1,0)+IF($K$13=TRUE,1,0)+IF($K$14=TRUE,1,0)+IF($K$15=TRUE,1,0)+IF($K$16=TRUE,1,0)+IF($K$17=TRUE,1,0)+IF($K$18=TRUE,1,0)+IF($K$19=TRUE,1,0)+IF($K$20=TRUE,1,0)+IF($K$21=TRUE,1,0))) -> 0.002574150451 | J23: =SQRT(( (IF($K$7=TRUE,J7^2,0))+(IF($K$8=TRUE,J8^2,0))+(IF($K$9=TRUE,J9^2,0))+(IF($K$10=TRUE,J10^2,0))+(IF($K$11=TRUE,J11^2,0))+(IF($K$12=TRUE,J12^2,0))+(IF($K$13=TRUE,J13^2,0))+(IF($K$14=TRUE,J14^2,0))+(IF($K$15=TRUE,J15^2,0))+(IF($K$16=TRUE,J16^2,0))+(IF($K$17=TRUE,J17^2,0))+(IF($K$18=TRUE,J18^2,0))+(IF($K$19=TRUE,J19^2,0))+(IF($K$20=TRUE,J20^2,0))+(IF($K$21=TRUE,J21^2,0)))/ (IF($K$7=TRUE,1,0)+IF($K$8=TRUE,1,0)+IF($K$9=TRUE,1,0)+IF($K$10=TRUE,1,0)+IF($K$11=TRUE,1,0)+IF($K$12=TRUE,1,0)+IF($K$13=TRUE,1,0)+IF($K$14=TRUE,1,0)+IF($K$15=TRUE,1,0)+IF($K$16=TRUE,1,0)+IF($K$17=TRUE,1,0)+IF($K$18=TRUE,1,0)+IF($K$19=TRUE,1,0)+IF($K$20=TRUE,1,0)+IF($K$21=TRUE,1,0))) -> 0.005851930372
D24: 1
C25: UNITLESS GRID TO GROUND MULTIPLIER | D25: 0 | H25: =IF(H23<=0.029,"PASS","FAIL") -> PASS | I25: =IF(I23<=0.029,"PASS","FAIL") -> PASS | J25: =IF(J23<=0.039,"PASS","FAIL") -> PASS
A27: AVERAGED GPS-DERIVED POSITION | I27: Notes:
B28: MONUMENT COORDINATES | D28: NORTHING | E28: EASTING | F28: ORTHO HEIGHT
B29: US Survey Feet (GRID) | D29: =$E$22 -> 310823.1385 | E29: =$F$22 -> 2269553.918 | F29: =$G$22 -> 930.6088639
A31: LEVELED ELEVATION
A32: US SURVEY FEET | C32: N/A | D32: (Type the leveled elevation or N/A if no leveled elevation is available)
A33: MONUMENT HELD | D33: (Type the monument name from which leveling originated)
A34: LEVELED ELEVATION - GPS DERIVED ELEVATION = | E34: =IF(C32="N/A","N/A",C32-(F29*D24)) -> N/A
A36: FINAL MONUMENT COORDINATES
B37: MONUMENT COORDINATES | D37: NORTHING | E37: EASTING | F37: ELEVATION | G37: FEATURE CODE
B38: US SURVEY FEET (GRID) | D38: =$E$22*$D$24 -> 310823.1385 | E38: =$F$22*$D$24 -> 2269553.918 | F38: =IF($C$32="N/A",($G$22*$D$24),$C$32) -> 930.6088639 | G38: AERTAR
B39: US SURVEY FEET (GROUND) | D39: =$D$38*$D$25 -> 0 | E39: =$E$38*$D$25 -> 0 | F39: =IF($C$32="N/A",($G$22*$D$24),$C$32) -> 930.6088639 | G39: =G38 -> AERTAR
A41: ∆ North, ∆ East, and ∆ Ht. are the difference between the average northing, easting, and height for each observation. | I41: Mask Angle: | J41: 10°

Sheet GS8
A1: VRS GNSS Project Control Monument Coordinate Analysis
A3: Project: | B3: =REPORT!B2 -> TUS-800-22.74 | C3: GPS Antenna: | D3: LEICA GS14 | J3: Report Date: | K3: =REPORT!C49 -> 2018-12-19
A4: PID: | B4: =REPORT!E2 -> 100603 | C4: VRS Network: | D4: ODOT VRS | J4: Prepared By: | K4: =REPORT!C48 -> Kolton Wilson
A5: Point ID: | B5: GS8 | C5: No. of Sessions: | D5: =COUNTIF(GPS_IMPORT!A2:A1000,$B$5) -> 12 | J5: Checked By: | K5: =REPORT!C52 -> Joel Swick
A6: SESSION # | B6: Point | C6: Observation Date | D6: Start Time | E6: Northing(sft) | F6: Easting(sft) | G6: Height(sft) | H6: ∆ Northing(sft) | I6: ∆ Easting(sft) | J6: ∆ Height(sft) | K6: Include in Solution?
A7: 1 | B7: =IF(ROWS(GPS_IMPORT!$1:1)<=COUNTIF(GPS_IMPORT!$A$2:$A$10000,$B$5),INDEX(GPS_IMPORT!$2:$10000,MATCH($B$5,(GPS_IMPORT!$A$2:$A$10000),0)+ROWS($1:1)-1,COLUMN()-1),0) -> GS8 | C7: =IF(ROWS(GPS_IMPORT!$1:1)<=COUNTIF(GPS_IMPORT!$A$2:$A$10000,$B$5),INDEX(GPS_IMPORT!$2:$10000,MATCH($B$5,(GPS_IMPORT!$A$2:$A$10000),0)+ROWS($1:1)-1,COLUMN()-1),0) -> 12.18.2018 | D7: =IF(ROWS(GPS_IMPORT!$1:1)<=COUNTIF(GPS_IMPORT!$A$2:$A$10000,$B$5),INDEX(GPS_IMPORT!$2:$10000,MATCH($B$5,(GPS_IMPORT!$A$2:$A$10000),0)+ROWS($1:1)-1,COLUMN()-1),0) -> 10:29:50.490 | E7: =IF(ROWS(GPS_IMPORT!$1:1)<=COUNTIF(GPS_IMPORT!$A$2:$A$10000,$B$5),INDEX(GPS_IMPORT!$2:$10000,MATCH($B$5,(GPS_IMPORT!$A$2:$A$10000),0)+ROWS($1:1)-1,COLUMN()-1),0) -> 320793.6243 | F7: =IF(ROWS(GPS_IMPORT!$1:1)<=COUNTIF(GPS_IMPORT!$A$2:$A$10000,$B$5),INDEX(GPS_IMPORT!$2:$10000,MATCH($B$5,(GPS_IMPORT!$A$2:$A$10000),0)+ROWS($1:1)-1,COLUMN()-1),0) -> 2266823.859 | G7: =IF(ROWS(GPS_IMPORT!$1:1)<=COUNTIF(GPS_IMPORT!$A$2:$A$10000,$B$5),INDEX(GPS_IMPORT!$2:$10000,MATCH($B$5,(GPS_IMPORT!$A$2:$A$10000),0)+ROWS($1:1)-1,COLUMN()-1),0) -> 894.8722997 | H7: =IF(E7>0,E$22-E7,0) -> -0.02371105651 | I7: 0.001391656231 | J7: -0.02285270085 | K7: TRUE
A8: 2 | B8: =IF(ROWS(GPS_IMPORT!$1:2)<=COUNTIF(GPS_IMPORT!$A$2:$A$10000,$B$5),INDEX(GPS_IMPORT!$2:$10000,MATCH($B$5,(GPS_IMPORT!$A$2:$A$10000),0)+ROWS($1:2)-1,COLUMN()-1),0) -> GS8 | C8: =IF(ROWS(GPS_IMPORT!$1:2)<=COUNTIF(GPS_IMPORT!$A$2:$A$10000,$B$5),INDEX(GPS_IMPORT!$2:$10000,MATCH($B$5,(GPS_IMPORT!$A$2:$A$10000),0)+ROWS($1:2)-1,COLUMN()-1),0) -> 12.18.2018 | D8: =IF(ROWS(GPS_IMPORT!$1:2)<=COUNTIF(GPS_IMPORT!$A$2:$A$10000,$B$5),INDEX(GPS_IMPORT!$2:$10000,MATCH($B$5,(GPS_IMPORT!$A$2:$A$10000),0)+ROWS($1:2)-1,COLUMN()-1),0) -> 10:30:01.830 | E8: =IF(ROWS(GPS_IMPORT!$1:2)<=COUNTIF(GPS_IMPORT!$A$2:$A$10000,$B$5),INDEX(GPS_IMPORT!$2:$10000,MATCH($B$5,(GPS_IMPORT!$A$2:$A$10000),0)+ROWS($1:2)-1,COLUMN()-1),0) -> 320793.6148 | F8: =IF(ROWS(GPS_IMPORT!$1:2)<=COUNTIF(GPS_IMPORT!$A$2:$A$10000,$B$5),INDEX(GPS_IMPORT!$2:$10000,MATCH($B$5,(GPS_IMPORT!$A$2:$A$10000),0)+ROWS($1:2)-1,COLUMN()-1),0) -> 2266823.86 | G8: =IF(ROWS(GPS_IMPORT!$1:2)<=COUNTIF(GPS_IMPORT!$A$2:$A$10000,$B$5),INDEX(GPS_IMPORT!$2:$10000,MATCH($B$5,(GPS_IMPORT!$A$2:$A$10000),0)+ROWS($1:2)-1,COLUMN()-1),0) -> 894.8391928 | H8: -0.01426066749 | I8: 0.0005744365044 | J8: 0.01025414937 | K8: TRUE
A9: 3 | B9: =IF(ROWS(GPS_IMPORT!$1:3)<=COUNTIF(GPS_IMPORT!$A$2:$A$10000,$B$5),INDEX(GPS_IMPORT!$2:$10000,MATCH($B$5,(GPS_IMPORT!$A$2:$A$10000),0)+ROWS($1:3)-1,COLUMN()-1),0) -> GS8 | C9: =IF(ROWS(GPS_IMPORT!$1:3)<=COUNTIF(GPS_IMPORT!$A$2:$A$10000,$B$5),INDEX(GPS_IMPORT!$2:$10000,MATCH($B$5,(GPS_IMPORT!$A$2:$A$10000),0)+ROWS($1:3)-1,COLUMN()-1),0) -> 12.18.2018 | D9: =IF(ROWS(GPS_IMPORT!$1:3)<=COUNTIF(GPS_IMPORT!$A$2:$A$10000,$B$5),INDEX(GPS_IMPORT!$2:$10000,MATCH($B$5,(GPS_IMPORT!$A$2:$A$10000),0)+ROWS($1:3)-1,COLUMN()-1),0) -> 10:30:14.140 | E9: =IF(ROWS(GPS_IMPORT!$1:3)<=COUNTIF(GPS_IMPORT!$A$2:$A$10000,$B$5),INDEX(GPS_IMPORT!$2:$10000,MATCH($B$5,(GPS_IMPORT!$A$2:$A$10000),0)+ROWS($1:3)-1,COLUMN()-1),0) -> 320793.6607 | F9: =IF(ROWS(GPS_IMPORT!$1:3)<=COUNTIF(GPS_IMPORT!$A$2:$A$10000,$B$5),INDEX(GPS_IMPORT!$2:$10000,MATCH($B$5,(GPS_IMPORT!$A$2:$A$10000),0)+ROWS($1:3)-1,COLUMN()-1),0) -> 2266823.834 | G9: =IF(ROWS(GPS_IMPORT!$1:3)<=COUNTIF(GPS_IMPORT!$A$2:$A$10000,$B$5),INDEX(GPS_IMPORT!$2:$10000,MATCH($B$5,(GPS_IMPORT!$A$2:$A$10000),0)+ROWS($1:3)-1,COLUMN()-1),0) -> 894.8367905 | H9: -0.06017633452 | I9: 0.02725317655 | J9: 0.01265646181 | K9: TRUE
A10: 4 | B10: =IF(ROWS(GPS_IMPORT!$1:4)<=COUNTIF(GPS_IMPORT!$A$2:$A$10000,$B$5),INDEX(GPS_IMPORT!$2:$10000,MATCH($B$5,(GPS_IMPORT!$A$2:$A$10000),0)+ROWS($1:4)-1,COLUMN()-1),0) -> GS8 | C10: =IF(ROWS(GPS_IMPORT!$1:4)<=COUNTIF(GPS_IMPORT!$A$2:$A$10000,$B$5),INDEX(GPS_IMPORT!$2:$10000,MATCH($B$5,(GPS_IMPORT!$A$2:$A$10000),0)+ROWS($1:4)-1,COLUMN()-1),0) -> 12.18.2018 | D10: =IF(ROWS(GPS_IMPORT!$1:4)<=COUNTIF(GPS_IMPORT!$A$2:$A$10000,$B$5),INDEX(GPS_IMPORT!$2:$10000,MATCH($B$5,(GPS_IMPORT!$A$2:$A$10000),0)+ROWS($1:4)-1,COLUMN()-1),0) -> 10:30:23.480 | E10: =IF(ROWS(GPS_IMPORT!$1:4)<=COUNTIF(GPS_IMPORT!$A$2:$A$10000,$B$5),INDEX(GPS_IMPORT!$2:$10000,MATCH($B$5,(GPS_IMPORT!$A$2:$A$10000),0)+ROWS($1:4)-1,COLUMN()-1),0) -> 320793.6263 | F10: =IF(ROWS(GPS_IMPORT!$1:4)<=COUNTIF(GPS_IMPORT!$A$2:$A$10000,$B$5),INDEX(GPS_IMPORT!$2:$10000,MATCH($B$5,(GPS_IMPORT!$A$2:$A$10000),0)+ROWS($1:4)-1,COLUMN()-1),0) -> 2266823.848 | G10: =IF(ROWS(GPS_IMPORT!$1:4)<=COUNTIF(GPS_IMPORT!$A$2:$A$10000,$B$5),INDEX(GPS_IMPORT!$2:$10000,MATCH($B$5,(GPS_IMPORT!$A$2:$A$10000),0)+ROWS($1:4)-1,COLUMN()-1),0) -> 894.8661129 | H10: -0.0257450465 | I10: 0.01306595653 | J10: -0.01666588664 | K10: TRUE
A11: 5 | B11: =IF(ROWS(GPS_IMPORT!$1:5)<=COUNTIF(GPS_IMPORT!$A$2:$A$10000,$B$5),INDEX(GPS_IMPORT!$2:$10000,MATCH($B$5,(GPS_IMPORT!$A$2:$A$10000),0)+ROWS($1:5)-1,COLUMN()-1),0) -> GS8 | C11: =IF(ROWS(GPS_IMPORT!$1:5)<=COUNTIF(GPS_IMPORT!$A$2:$A$10000,$B$5),INDEX(GPS_IMPORT!$2:$10000,MATCH($B$5,(GPS_IMPORT!$A$2:$A$10000),0)+ROWS($1:5)-1,COLUMN()-1),0) -> 12.18.2018 | D11: =IF(ROWS(GPS_IMPORT!$1:5)<=COUNTIF(GPS_IMPORT!$A$2:$A$10000,$B$5),INDEX(GPS_IMPORT!$2:$10000,MATCH($B$5,(GPS_IMPORT!$A$2:$A$10000),0)+ROWS($1:5)-1,COLUMN()-1),0) -> 10:31:01.200 | E11: =IF(ROWS(GPS_IMPORT!$1:5)<=COUNTIF(GPS_IMPORT!$A$2:$A$10000,$B$5),INDEX(GPS_IMPORT!$2:$10000,MATCH($B$5,(GPS_IMPORT!$A$2:$A$10000),0)+ROWS($1:5)-1,COLUMN()-1),0) -> 320793.5909 | F11: =IF(ROWS(GPS_IMPORT!$1:5)<=COUNTIF(GPS_IMPORT!$A$2:$A$10000,$B$5),INDEX(GPS_IMPORT!$2:$10000,MATCH($B$5,(GPS_IMPORT!$A$2:$A$10000),0)+ROWS($1:5)-1,COLUMN()-1),0) -> 2266823.868 | G11: =IF(ROWS(GPS_IMPORT!$1:5)<=COUNTIF(GPS_IMPORT!$A$2:$A$10000,$B$5),INDEX(GPS_IMPORT!$2:$10000,MATCH($B$5,(GPS_IMPORT!$A$2:$A$10000),0)+ROWS($1:5)-1,COLUMN()-1),0) -> 894.8858563 | H11: 0.00959282351 | I11: -0.007474603597 | J11: -0.03640928074 | K11: TRUE
A12: 6 | B12: =IF(ROWS(GPS_IMPORT!$1:6)<=COUNTIF(GPS_IMPORT!$A$2:$A$10000,$B$5),INDEX(GPS_IMPORT!$2:$10000,MATCH($B$5,(GPS_IMPORT!$A$2:$A$10000),0)+ROWS($1:6)-1,COLUMN()-1),0) -> GS8 | C12: =IF(ROWS(GPS_IMPORT!$1:6)<=COUNTIF(GPS_IMPORT!$A$2:$A$10000,$B$5),INDEX(GPS_IMPORT!$2:$10000,MATCH($B$5,(GPS_IMPORT!$A$2:$A$10000),0)+ROWS($1:6)-1,COLUMN()-1),0) -> 12.18.2018 | D12: =IF(ROWS(GPS_IMPORT!$1:6)<=COUNTIF(GPS_IMPORT!$A$2:$A$10000,$B$5),INDEX(GPS_IMPORT!$2:$10000,MATCH($B$5,(GPS_IMPORT!$A$2:$A$10000),0)+ROWS($1:6)-1,COLUMN()-1),0) -> 10:31:11.080 | E12: =IF(ROWS(GPS_IMPORT!$1:6)<=COUNTIF(GPS_IMPORT!$A$2:$A$10000,$B$5),INDEX(GPS_IMPORT!$2:$10000,MATCH($B$5,(GPS_IMPORT!$A$2:$A$10000),0)+ROWS($1:6)-1,COLUMN()-1),0) -> 320793.5875 | F12: =IF(ROWS(GPS_IMPORT!$1:6)<=COUNTIF(GPS_IMPORT!$A$2:$A$10000,$B$5),INDEX(GPS_IMPORT!$2:$10000,MATCH($B$5,(GPS_IMPORT!$A$2:$A$10000),0)+ROWS($1:6)-1,COLUMN()-1),0) -> 2266823.872 | G12: =IF(ROWS(GPS_IMPORT!$1:6)<=COUNTIF(GPS_IMPORT!$A$2:$A$10000,$B$5),INDEX(GPS_IMPORT!$2:$10000,MATCH($B$5,(GPS_IMPORT!$A$2:$A$10000),0)+ROWS($1:6)-1,COLUMN()-1),0) -> 894.8662425 | H12: 0.01307417953 | I12: -0.01163441362 | J12: -0.01679553211 | K12: TRUE
A13: 7 | B13: =IF(ROWS(GPS_IMPORT!$1:7)<=COUNTIF(GPS_IMPORT!$A$2:$A$10000,$B$5),INDEX(GPS_IMPORT!$2:$10000,MATCH($B$5,(GPS_IMPORT!$A$2:$A$10000),0)+ROWS($1:7)-1,COLUMN()-1),0) -> GS8 | C13: =IF(ROWS(GPS_IMPORT!$1:7)<=COUNTIF(GPS_IMPORT!$A$2:$A$10000,$B$5),INDEX(GPS_IMPORT!$2:$10000,MATCH($B$5,(GPS_IMPORT!$A$2:$A$10000),0)+ROWS($1:7)-1,COLUMN()-1),0) -> 12.18.2018 | D13: =IF(ROWS(GPS_IMPORT!$1:7)<=COUNTIF(GPS_IMPORT!$A$2:$A$10000,$B$5),INDEX(GPS_IMPORT!$2:$10000,MATCH($B$5,(GPS_IMPORT!$A$2:$A$10000),0)+ROWS($1:7)-1,COLUMN()-1),0) -> 10:31:28.080 | E13: =IF(ROWS(GPS_IMPORT!$1:7)<=COUNTIF(GPS_IMPORT!$A$2:$A$10000,$B$5),INDEX(GPS_IMPORT!$2:$10000,MATCH($B$5,(GPS_IMPORT!$A$2:$A$10000),0)+ROWS($1:7)-1,COLUMN()-1),0) -> 320793.5913 | F13: =IF(ROWS(GPS_IMPORT!$1:7)<=COUNTIF(GPS_IMPORT!$A$2:$A$10000,$B$5),INDEX(GPS_IMPORT!$2:$10000,MATCH($B$5,(GPS_IMPORT!$A$2:$A$10000),0)+ROWS($1:7)-1,COLUMN()-1),0) -> 2266823.855 | G13: =IF(ROWS(GPS_IMPORT!$1:7)<=COUNTIF(GPS_IMPORT!$A$2:$A$10000,$B$5),INDEX(GPS_IMPORT!$2:$10000,MATCH($B$5,(GPS_IMPORT!$A$2:$A$10000),0)+ROWS($1:7)-1,COLUMN()-1),0) -> 894.8654251 | H13: 0.009200997534 | I13: 0.005423346534 | J13: -0.01597812096 | K13: TRUE
A14: 8 | B14: =IF(ROWS(GPS_IMPORT!$1:8)<=COUNTIF(GPS_IMPORT!$A$2:$A$10000,$B$5),INDEX(GPS_IMPORT!$2:$10000,MATCH($B$5,(GPS_IMPORT!$A$2:$A$10000),0)+ROWS($1:8)-1,COLUMN()-1),0) -> GS8 | C14: =IF(ROWS(GPS_IMPORT!$1:8)<=COUNTIF(GPS_IMPORT!$A$2:$A$10000,$B$5),INDEX(GPS_IMPORT!$2:$10000,MATCH($B$5,(GPS_IMPORT!$A$2:$A$10000),0)+ROWS($1:8)-1,COLUMN()-1),0) -> 12.18.2018 | D14: =IF(ROWS(GPS_IMPORT!$1:8)<=COUNTIF(GPS_IMPORT!$A$2:$A$10000,$B$5),INDEX(GPS_IMPORT!$2:$10000,MATCH($B$5,(GPS_IMPORT!$A$2:$A$10000),0)+ROWS($1:8)-1,COLUMN()-1),0) -> 10:31:37.780 | E14: =IF(ROWS(GPS_IMPORT!$1:8)<=COUNTIF(GPS_IMPORT!$A$2:$A$10000,$B$5),INDEX(GPS_IMPORT!$2:$10000,MATCH($B$5,(GPS_IMPORT!$A$2:$A$10000),0)+ROWS($1:8)-1,COLUMN()-1),0) -> 320793.5912 | F14: =IF(ROWS(GPS_IMPORT!$1:8)<=COUNTIF(GPS_IMPORT!$A$2:$A$10000,$B$5),INDEX(GPS_IMPORT!$2:$10000,MATCH($B$5,(GPS_IMPORT!$A$2:$A$10000),0)+ROWS($1:8)-1,COLUMN()-1),0) -> 2266823.853 | G14: =IF(ROWS(GPS_IMPORT!$1:8)<=COUNTIF(GPS_IMPORT!$A$2:$A$10000,$B$5),INDEX(GPS_IMPORT!$2:$10000,MATCH($B$5,(GPS_IMPORT!$A$2:$A$10000),0)+ROWS($1:8)-1,COLUMN()-1),0) -> 894.8764966 | H14: 0.009381251526 | I14: 0.007327526342 | J14: -0.02704958703 | K14: TRUE
A15: 9 | B15: =IF(ROWS(GPS_IMPORT!$1:9)<=COUNTIF(GPS_IMPORT!$A$2:$A$10000,$B$5),INDEX(GPS_IMPORT!$2:$10000,MATCH($B$5,(GPS_IMPORT!$A$2:$A$10000),0)+ROWS($1:9)-1,COLUMN()-1),0) -> GS8 | C15: =IF(ROWS(GPS_IMPORT!$1:9)<=COUNTIF(GPS_IMPORT!$A$2:$A$10000,$B$5),INDEX(GPS_IMPORT!$2:$10000,MATCH($B$5,(GPS_IMPORT!$A$2:$A$10000),0)+ROWS($1:9)-1,COLUMN()-1),0) -> 12.18.2018 | D15: =IF(ROWS(GPS_IMPORT!$1:9)<=COUNTIF(GPS_IMPORT!$A$2:$A$10000,$B$5),INDEX(GPS_IMPORT!$2:$10000,MATCH($B$5,(GPS_IMPORT!$A$2:$A$10000),0)+ROWS($1:9)-1,COLUMN()-1),0) -> 10:32:06 | E15: =IF(ROWS(GPS_IMPORT!$1:9)<=COUNTIF(GPS_IMPORT!$A$2:$A$10000,$B$5),INDEX(GPS_IMPORT!$2:$10000,MATCH($B$5,(GPS_IMPORT!$A$2:$A$10000),0)+ROWS($1:9)-1,COLUMN()-1),0) -> 320793.5797 | F15: =IF(ROWS(GPS_IMPORT!$1:9)<=COUNTIF(GPS_IMPORT!$A$2:$A$10000,$B$5),INDEX(GPS_IMPORT!$2:$10000,MATCH($B$5,(GPS_IMPORT!$A$2:$A$10000),0)+ROWS($1:9)-1,COLUMN()-1),0) -> 2266823.876 | G15: =IF(ROWS(GPS_IMPORT!$1:9)<=COUNTIF(GPS_IMPORT!$A$2:$A$10000,$B$5),INDEX(GPS_IMPORT!$2:$10000,MATCH($B$5,(GPS_IMPORT!$A$2:$A$10000),0)+ROWS($1:9)-1,COLUMN()-1),0) -> 894.810814 | H15: 0.02082629851 | I15: -0.01483533345 | J15: 0.03863299172 | K15: TRUE
A16: 10 | B16: =IF(ROWS(GPS_IMPORT!$1:10)<=COUNTIF(GPS_IMPORT!$A$2:$A$10000,$B$5),INDEX(GPS_IMPORT!$2:$10000,MATCH($B$5,(GPS_IMPORT!$A$2:$A$10000),0)+ROWS($1:10)-1,COLUMN()-1),0) -> GS8 | C16: =IF(ROWS(GPS_IMPORT!$1:10)<=COUNTIF(GPS_IMPORT!$A$2:$A$10000,$B$5),INDEX(GPS_IMPORT!$2:$10000,MATCH($B$5,(GPS_IMPORT!$A$2:$A$10000),0)+ROWS($1:10)-1,COLUMN()-1),0) -> 12.18.2018 | D16: =IF(ROWS(GPS_IMPORT!$1:10)<=COUNTIF(GPS_IMPORT!$A$2:$A$10000,$B$5),INDEX(GPS_IMPORT!$2:$10000,MATCH($B$5,(GPS_IMPORT!$A$2:$A$10000),0)+ROWS($1:10)-1,COLUMN()-1),0) -> 10:32:17.090 | E16: =IF(ROWS(GPS_IMPORT!$1:10)<=COUNTIF(GPS_IMPORT!$A$2:$A$10000,$B$5),INDEX(GPS_IMPORT!$2:$10000,MATCH($B$5,(GPS_IMPORT!$A$2:$A$10000),0)+ROWS($1:10)-1,COLUMN()-1),0) -> 320793.5685 | F16: =IF(ROWS(GPS_IMPORT!$1:10)<=COUNTIF(GPS_IMPORT!$A$2:$A$10000,$B$5),INDEX(GPS_IMPORT!$2:$10000,MATCH($B$5,(GPS_IMPORT!$A$2:$A$10000),0)+ROWS($1:10)-1,COLUMN()-1),0) -> 2266823.873 | G16: =IF(ROWS(GPS_IMPORT!$1:10)<=COUNTIF(GPS_IMPORT!$A$2:$A$10000,$B$5),INDEX(GPS_IMPORT!$2:$10000,MATCH($B$5,(GPS_IMPORT!$A$2:$A$10000),0)+ROWS($1:10)-1,COLUMN()-1),0) -> 894.8110639 | H16: 0.03208464052 | I16: -0.01223244332 | J16: 0.03838305983 | K16: TRUE
A17: 11 | B17: =IF(ROWS(GPS_IMPORT!$1:11)<=COUNTIF(GPS_IMPORT!$A$2:$A$10000,$B$5),INDEX(GPS_IMPORT!$2:$10000,MATCH($B$5,(GPS_IMPORT!$A$2:$A$10000),0)+ROWS($1:11)-1,COLUMN()-1),0) -> GS8 | C17: =IF(ROWS(GPS_IMPORT!$1:11)<=COUNTIF(GPS_IMPORT!$A$2:$A$10000,$B$5),INDEX(GPS_IMPORT!$2:$10000,MATCH($B$5,(GPS_IMPORT!$A$2:$A$10000),0)+ROWS($1:11)-1,COLUMN()-1),0) -> 12.18.2018 | D17: =IF(ROWS(GPS_IMPORT!$1:11)<=COUNTIF(GPS_IMPORT!$A$2:$A$10000,$B$5),INDEX(GPS_IMPORT!$2:$10000,MATCH($B$5,(GPS_IMPORT!$A$2:$A$10000),0)+ROWS($1:11)-1,COLUMN()-1),0) -> 10:32:28.200 | E17: =IF(ROWS(GPS_IMPORT!$1:11)<=COUNTIF(GPS_IMPORT!$A$2:$A$10000,$B$5),INDEX(GPS_IMPORT!$2:$10000,MATCH($B$5,(GPS_IMPORT!$A$2:$A$10000),0)+ROWS($1:11)-1,COLUMN()-1),0) -> 320793.5708 | F17: =IF(ROWS(GPS_IMPORT!$1:11)<=COUNTIF(GPS_IMPORT!$A$2:$A$10000,$B$5),INDEX(GPS_IMPORT!$2:$10000,MATCH($B$5,(GPS_IMPORT!$A$2:$A$10000),0)+ROWS($1:11)-1,COLUMN()-1),0) -> 2266823.87 | G17: =IF(ROWS(GPS_IMPORT!$1:11)<=COUNTIF(GPS_IMPORT!$A$2:$A$10000,$B$5),INDEX(GPS_IMPORT!$2:$10000,MATCH($B$5,(GPS_IMPORT!$A$2:$A$10000),0)+ROWS($1:11)-1,COLUMN()-1),0) -> 894.8136225 | H17: 0.02973291354 | I17: -0.008859303314 | J17: 0.03582444561 | K17: TRUE
A18: 12 | B18: =IF(ROWS(GPS_IMPORT!$1:12)<=COUNTIF(GPS_IMPORT!$A$2:$A$10000,$B$5),INDEX(GPS_IMPORT!$2:$10000,MATCH($B$5,(GPS_IMPORT!$A$2:$A$10000),0)+ROWS($1:12)-1,COLUMN()-1),0) -> GS8 | C18: =IF(ROWS(GPS_IMPORT!$1:12)<=COUNTIF(GPS_IMPORT!$A$2:$A$10000,$B$5),INDEX(GPS_IMPORT!$2:$10000,MATCH($B$5,(GPS_IMPORT!$A$2:$A$10000),0)+ROWS($1:12)-1,COLUMN()-1),0) -> 12.18.2018 | D18: =IF(ROWS(GPS_IMPORT!$1:12)<=COUNTIF(GPS_IMPORT!$A$2:$A$10000,$B$5),INDEX(GPS_IMPORT!$2:$10000,MATCH($B$5,(GPS_IMPORT!$A$2:$A$10000),0)+ROWS($1:12)-1,COLUMN()-1),0) -> 10:32:41.980 | E18: =IF(ROWS(GPS_IMPORT!$1:12)<=COUNTIF(GPS_IMPORT!$A$2:$A$10000,$B$5),INDEX(GPS_IMPORT!$2:$10000,MATCH($B$5,(GPS_IMPORT!$A$2:$A$10000),0)+ROWS($1:12)-1,COLUMN()-1),0) -> 320793.5492 | F18: =IF(ROWS(GPS_IMPORT!$1:12)<=COUNTIF(GPS_IMPORT!$A$2:$A$10000,$B$5),INDEX(GPS_IMPORT!$2:$10000,MATCH($B$5,(GPS_IMPORT!$A$2:$A$10000),0)+ROWS($1:12)-1,COLUMN()-1),0) -> 2266823.868 | G18: =IF(ROWS(GPS_IMPORT!$1:12)<=COUNTIF(GPS_IMPORT!$A$2:$A$10000,$B$5),INDEX(GPS_IMPORT!$2:$10000,MATCH($B$5,(GPS_IMPORT!$A$2:$A$10000),0)+ROWS($1:12)-1,COLUMN()-1),0) -> 894.8100458 | H18: 0.05131354049 | I18: -0.00685845362 | J18: 0.03940112659 | K18: FALSE
A19: 13 | B19: =IF(ROWS(GPS_IMPORT!$1:13)<=COUNTIF(GPS_IMPORT!$A$2:$A$10000,$B$5),INDEX(GPS_IMPORT!$2:$10000,MATCH($B$5,(GPS_IMPORT!$A$2:$A$10000),0)+ROWS($1:13)-1,COLUMN()-1),0) -> 0 | C19: =IF(ROWS(GPS_IMPORT!$1:13)<=COUNTIF(GPS_IMPORT!$A$2:$A$10000,$B$5),INDEX(GPS_IMPORT!$2:$10000,MATCH($B$5,(GPS_IMPORT!$A$2:$A$10000),0)+ROWS($1:13)-1,COLUMN()-1),0) -> 00:00:00 | D19: =IF(ROWS(GPS_IMPORT!$1:13)<=COUNTIF(GPS_IMPORT!$A$2:$A$10000,$B$5),INDEX(GPS_IMPORT!$2:$10000,MATCH($B$5,(GPS_IMPORT!$A$2:$A$10000),0)+ROWS($1:13)-1,COLUMN()-1),0) -> 00:00:00 | E19: =IF(ROWS(GPS_IMPORT!$1:13)<=COUNTIF(GPS_IMPORT!$A$2:$A$10000,$B$5),INDEX(GPS_IMPORT!$2:$10000,MATCH($B$5,(GPS_IMPORT!$A$2:$A$10000),0)+ROWS($1:13)-1,COLUMN()-1),0) -> 0 | F19: =IF(ROWS(GPS_IMPORT!$1:13)<=COUNTIF(GPS_IMPORT!$A$2:$A$10000,$B$5),INDEX(GPS_IMPORT!$2:$10000,MATCH($B$5,(GPS_IMPORT!$A$2:$A$10000),0)+ROWS($1:13)-1,COLUMN()-1),0) -> 0 | G19: =IF(ROWS(GPS_IMPORT!$1:13)<=COUNTIF(GPS_IMPORT!$A$2:$A$10000,$B$5),INDEX(GPS_IMPORT!$2:$10000,MATCH($B$5,(GPS_IMPORT!$A$2:$A$10000),0)+ROWS($1:13)-1,COLUMN()-1),0) -> 0 | H19: =IF(E19>0,E$22-E19,0) -> 0 | I19: 0 | J19: 0 | K19: FALSE
A20: 14 | B20: =IF(ROWS(GPS_IMPORT!$1:14)<=COUNTIF(GPS_IMPORT!$A$2:$A$10000,$B$5),INDEX(GPS_IMPORT!$2:$10000,MATCH($B$5,(GPS_IMPORT!$A$2:$A$10000),0)+ROWS($1:14)-1,COLUMN()-1),0) -> 0 | C20: =IF(ROWS(GPS_IMPORT!$1:14)<=COUNTIF(GPS_IMPORT!$A$2:$A$10000,$B$5),INDEX(GPS_IMPORT!$2:$10000,MATCH($B$5,(GPS_IMPORT!$A$2:$A$10000),0)+ROWS($1:14)-1,COLUMN()-1),0) -> 00:00:00 | D20: =IF(ROWS(GPS_IMPORT!$1:14)<=COUNTIF(GPS_IMPORT!$A$2:$A$10000,$B$5),INDEX(GPS_IMPORT!$2:$10000,MATCH($B$5,(GPS_IMPORT!$A$2:$A$10000),0)+ROWS($1:14)-1,COLUMN()-1),0) -> 00:00:00 | E20: =IF(ROWS(GPS_IMPORT!$1:14)<=COUNTIF(GPS_IMPORT!$A$2:$A$10000,$B$5),INDEX(GPS_IMPORT!$2:$10000,MATCH($B$5,(GPS_IMPORT!$A$2:$A$10000),0)+ROWS($1:14)-1,COLUMN()-1),0) -> 0 | F20: =IF(ROWS(GPS_IMPORT!$1:14)<=COUNTIF(GPS_IMPORT!$A$2:$A$10000,$B$5),INDEX(GPS_IMPORT!$2:$10000,MATCH($B$5,(GPS_IMPORT!$A$2:$A$10000),0)+ROWS($1:14)-1,COLUMN()-1),0) -> 0 | G20: =IF(ROWS(GPS_IMPORT!$1:14)<=COUNTIF(GPS_IMPORT!$A$2:$A$10000,$B$5),INDEX(GPS_IMPORT!$2:$10000,MATCH($B$5,(GPS_IMPORT!$A$2:$A$10000),0)+ROWS($1:14)-1,COLUMN()-1),0) -> 0 | H20: 0 | I20: 0 | J20: 0 | K20: FALSE
A21: 15 | B21: =IF(ROWS(GPS_IMPORT!$1:15)<=COUNTIF(GPS_IMPORT!$A$2:$A$10000,$B$5),INDEX(GPS_IMPORT!$2:$10000,MATCH($B$5,(GPS_IMPORT!$A$2:$A$10000),0)+ROWS($1:15)-1,COLUMN()-1),0) -> 0 | C21: =IF(ROWS(GPS_IMPORT!$1:15)<=COUNTIF(GPS_IMPORT!$A$2:$A$10000,$B$5),INDEX(GPS_IMPORT!$2:$10000,MATCH($B$5,(GPS_IMPORT!$A$2:$A$10000),0)+ROWS($1:15)-1,COLUMN()-1),0) -> 00:00:00 | D21: =IF(ROWS(GPS_IMPORT!$1:15)<=COUNTIF(GPS_IMPORT!$A$2:$A$10000,$B$5),INDEX(GPS_IMPORT!$2:$10000,MATCH($B$5,(GPS_IMPORT!$A$2:$A$10000),0)+ROWS($1:15)-1,COLUMN()-1),0) -> 00:00:00 | E21: =IF(ROWS(GPS_IMPORT!$1:15)<=COUNTIF(GPS_IMPORT!$A$2:$A$10000,$B$5),INDEX(GPS_IMPORT!$2:$10000,MATCH($B$5,(GPS_IMPORT!$A$2:$A$10000),0)+ROWS($1:15)-1,COLUMN()-1),0) -> 0 | F21: =IF(ROWS(GPS_IMPORT!$1:15)<=COUNTIF(GPS_IMPORT!$A$2:$A$10000,$B$5),INDEX(GPS_IMPORT!$2:$10000,MATCH($B$5,(GPS_IMPORT!$A$2:$A$10000),0)+ROWS($1:15)-1,COLUMN()-1),0) -> 0 | G21: =IF(ROWS(GPS_IMPORT!$1:15)<=COUNTIF(GPS_IMPORT!$A$2:$A$10000,$B$5),INDEX(GPS_IMPORT!$2:$10000,MATCH($B$5,(GPS_IMPORT!$A$2:$A$10000),0)+ROWS($1:15)-1,COLUMN()-1),0) -> 0 | H21: 0 | I21: 0 | J21: 0 | K21: FALSE
D22: AVERAGE | E22: =(IF($K$7=TRUE,E7,0)+IF($K$8=TRUE,E8,0)+IF($K$9=TRUE,E9,0)+IF($K$10=TRUE,E10,0)+IF($K$11=TRUE,E11,0)+IF($K$12=TRUE,E12,0)+IF($K$13=TRUE,E13,0)+IF($K$14=TRUE,E14,0)+IF($K$15=TRUE,E15,0)+IF($K$16=TRUE,E16,0)+IF($K$17=TRUE,E17,0)+IF($K$18=TRUE,E18,0)+IF($K$19=TRUE,E19,0)+IF($K$20=TRUE,E20,0)+IF($K$21=TRUE,E21,0))/(IF($K$7=TRUE,1,0)+IF($K$8=TRUE,1,0)+IF($K$9=TRUE,1,0)+IF($K$10=TRUE,1,0)+IF($K$11=TRUE,1,0)+IF($K$12=TRUE,1,0)+IF($K$13=TRUE,1,0)+IF($K$14=TRUE,1,0)+IF($K$15=TRUE,1,0)+IF($K$16=TRUE,1,0)+IF($K$17=TRUE,1,0)+IF($K$18=TRUE,1,0)+IF($K$19=TRUE,1,0)+IF($K$20=TRUE,1,0)+IF($K$21=TRUE,1,0)) -> 320793.6005 | F22: =(IF($K$7=TRUE,F7,0)+IF($K$8=TRUE,F8,0)+IF($K$9=TRUE,F9,0)+IF($K$10=TRUE,F10,0)+IF($K$11=TRUE,F11,0)+IF($K$12=TRUE,F12,0)+IF($K$13=TRUE,F13,0)+IF($K$14=TRUE,F14,0)+IF($K$15=TRUE,F15,0)+IF($K$16=TRUE,F16,0)+IF($K$17=TRUE,F17,0)+IF($K$18=TRUE,F18,0)+IF($K$19=TRUE,F19,0)+IF($K$20=TRUE,F20,0)+IF($K$21=TRUE,F21,0))/(IF($K$7=TRUE,1,0)+IF($K$8=TRUE,1,0)+IF($K$9=TRUE,1,0)+IF($K$10=TRUE,1,0)+IF($K$11=TRUE,1,0)+IF($K$12=TRUE,1,0)+IF($K$13=TRUE,1,0)+IF($K$14=TRUE,1,0)+IF($K$15=TRUE,1,0)+IF($K$16=TRUE,1,0)+IF($K$17=TRUE,1,0)+IF($K$18=TRUE,1,0)+IF($K$19=TRUE,1,0)+IF($K$20=TRUE,1,0)+IF($K$21=TRUE,1,0)) -> 2266823.861 | G22: =(IF($K$7=TRUE,G7,0)+IF($K$8=TRUE,G8,0)+IF($K$9=TRUE,G9,0)+IF($K$10=TRUE,G10,0)+IF($K$11=TRUE,G11,0)+IF($K$12=TRUE,G12,0)+IF($K$13=TRUE,G13,0)+IF($K$14=TRUE,G14,0)+IF($K$15=TRUE,G15,0)+IF($K$16=TRUE,G16,0)+IF($K$17=TRUE,G17,0)+IF($K$18=TRUE,G18,0)+IF($K$19=TRUE,G19,0)+IF($K$20=TRUE,G20,0)+IF($K$21=TRUE,G21,0))/ (IF($K$7=TRUE,1,0)+IF($K$8=TRUE,1,0)+IF($K$9=TRUE,1,0)+IF($K$10=TRUE,1,0)+IF($K$11=TRUE,1,0)+IF($K$12=TRUE,1,0)+IF($K$13=TRUE,1,0)+IF($K$14=TRUE,1,0)+IF($K$15=TRUE,1,0)+IF($K$16=TRUE,1,0)+IF($K$17=TRUE,1,0)+IF($K$18=TRUE,1,0)+IF($K$19=TRUE,1,0)+IF($K$20=TRUE,1,0)+IF($K$21=TRUE,1,0)) -> 894.849447 | H22: RMSE: | I22: RMSE: | J22: RMSE:
G23: RMSE IN US SURVEY FEET: | H23: =SQRT(( (IF($K$7=TRUE,H7^2,0))+(IF($K$8=TRUE,H8^2,0))+(IF($K$9=TRUE,H9^2,0))+(IF($K$10=TRUE,H10^2,0))+(IF($K$11=TRUE,H11^2,0))+(IF($K$12=TRUE,H12^2,0))+(IF($K$13=TRUE,H13^2,0))+(IF($K$14=TRUE,H14^2,0))+(IF($K$15=TRUE,H15^2,0))+(IF($K$16=TRUE,H16^2,0))+(IF($K$17=TRUE,H17^2,0))+(IF($K$18=TRUE,H18^2,0))+(IF($K$19=TRUE,H19^2,0))+(IF($K$20=TRUE,H20^2,0))+(IF($K$21=TRUE,H21^2,0)))/ (IF($K$7=TRUE,1,0)+IF($K$8=TRUE,1,0)+IF($K$9=TRUE,1,0)+IF($K$10=TRUE,1,0)+IF($K$11=TRUE,1,0)+IF($K$12=TRUE,1,0)+IF($K$13=TRUE,1,0)+IF($K$14=TRUE,1,0)+IF($K$15=TRUE,1,0)+IF($K$16=TRUE,1,0)+IF($K$17=TRUE,1,0)+IF($K$18=TRUE,1,0)+IF($K$19=TRUE,1,0)+IF($K$20=TRUE,1,0)+IF($K$21=TRUE,1,0))) -> 0.02668402174 | I23: =SQRT(( (IF($K$7=TRUE,I7^2,0))+(IF($K$8=TRUE,I8^2,0))+(IF($K$9=TRUE,I9^2,0))+(IF($K$10=TRUE,I10^2,0))+(IF($K$11=TRUE,I11^2,0))+(IF($K$12=TRUE,I12^2,0))+(IF($K$13=TRUE,I13^2,0))+(IF($K$14=TRUE,I14^2,0))+(IF($K$15=TRUE,I15^2,0))+(IF($K$16=TRUE,I16^2,0))+(IF($K$17=TRUE,I17^2,0))+(IF($K$18=TRUE,I18^2,0))+(IF($K$19=TRUE,I19^2,0))+(IF($K$20=TRUE,I20^2,0))+(IF($K$21=TRUE,I21^2,0)))/ (IF($K$7=TRUE,1,0)+IF($K$8=TRUE,1,0)+IF($K$9=TRUE,1,0)+IF($K$10=TRUE,1,0)+IF($K$11=TRUE,1,0)+IF($K$12=TRUE,1,0)+IF($K$13=TRUE,1,0)+IF($K$14=TRUE,1,0)+IF($K$15=TRUE,1,0)+IF($K$16=TRUE,1,0)+IF($K$17=TRUE,1,0)+IF($K$18=TRUE,1,0)+IF($K$19=TRUE,1,0)+IF($K$20=TRUE,1,0)+IF($K$21=TRUE,1,0))) -> 0.01220381158 | J23: =SQRT(( (IF($K$7=TRUE,J7^2,0))+(IF($K$8=TRUE,J8^2,0))+(IF($K$9=TRUE,J9^2,0))+(IF($K$10=TRUE,J10^2,0))+(IF($K$11=TRUE,J11^2,0))+(IF($K$12=TRUE,J12^2,0))+(IF($K$13=TRUE,J13^2,0))+(IF($K$14=TRUE,J14^2,0))+(IF($K$15=TRUE,J15^2,0))+(IF($K$16=TRUE,J16^2,0))+(IF($K$17=TRUE,J17^2,0))+(IF($K$18=TRUE,J18^2,0))+(IF($K$19=TRUE,J19^2,0))+(IF($K$20=TRUE,J20^2,0))+(IF($K$21=TRUE,J21^2,0)))/ (IF($K$7=TRUE,1,0)+IF($K$8=TRUE,1,0)+IF($K$9=TRUE,1,0)+IF($K$10=TRUE,1,0)+IF($K$11=TRUE,1,0)+IF($K$12=TRUE,1,0)+IF($K$13=TRUE,1,0)+IF($K$14=TRUE,1,0)+IF($K$15=TRUE,1,0)+IF($K$16=TRUE,1,0)+IF($K$17=TRUE,1,0)+IF($K$18=TRUE,1,0)+IF($K$19=TRUE,1,0)+IF($K$20=TRUE,1,0)+IF($K$21=TRUE,1,0))) -> 0.02681450707
D24: 1
C25: UNITLESS GRID TO GROUND MULTIPLIER | D25: =IF(REPORT!C13="n/a","0.00000000",REPORT!C13) -> 0 | H25: =IF(H23<=0.029,"PASS","FAIL") -> PASS | I25: =IF(I23<=0.029,"PASS","FAIL") -> PASS | J25: =IF(J23<=0.039,"PASS","FAIL") -> PASS
A27: AVERAGED GPS-DERIVED POSITION | I27: Notes:
B28: MONUMENT COORDINATES | D28: NORTHING | E28: EASTING | F28: ORTHO HEIGHT
B29: US Survey Feet (GRID) | D29: =$E$22 -> 320793.6005 | E29: =$F$22 -> 2266823.861 | F29: =$G$22 -> 894.849447
A31: LEVELED ELEVATION
A32: US SURVEY FEET | C32: N/A | D32: (Type the leveled elevation or N/A if no leveled elevation is available)
A33: MONUMENT HELD | D33: (Type the monument name from which leveling originated)
A34: LEVELED ELEVATION - GPS DERIVED ELEVATION = | E34: =IF(C32="N/A","N/A",C32-(F29*D24)) -> N/A
A36: FINAL MONUMENT COORDINATES
B37: MONUMENT COORDINATES | D37: NORTHING | E37: EASTING | F37: ELEVATION | G37: FEATURE CODE
B38: US SURVEY FEET (GRID) | D38: =$E$22*$D$24 -> 320793.6005 | E38: =$F$22*$D$24 -> 2266823.861 | F38: =IF($C$32="N/A",($G$22*$D$24),$C$32) -> 894.849447 | G38: AERTAR
B39: US SURVEY FEET (GROUND) | D39: =$D$38*$D$25 -> 0 | E39: =$E$38*$D$25 -> 0 | F39: =IF($C$32="N/A",($G$22*$D$24),$C$32) -> 894.849447 | G39: =G38 -> AERTAR
A41: ∆ North, ∆ East, and ∆ Ht. are the difference between the average northing, easting, and height for each observation. | I41: Mask Angle: | J41: 10°

Sheet GS9
A1: VRS GNSS Project Control Monument Coordinate Analysis
A3: Project: | B3: =REPORT!B2 -> TUS-800-22.74 | C3: GPS Antenna: | D3: LEICA GS14 | J3: Report Date: | K3: =REPORT!C49 -> 2018-12-19
A4: PID: | B4: =REPORT!E2 -> 100603 | C4: VRS Network: | D4: ODOT VRS | J4: Prepared By: | K4: =REPORT!C48 -> Kolton Wilson
A5: Point ID: | B5: GS9 | C5: No. of Sessions: | D5: =COUNTIF(GPS_IMPORT!A2:A1000,$B$5) -> 12 | J5: Checked By: | K5: =REPORT!C52 -> Joel Swick
A6: SESSION # | B6: Point | C6: Observation Date | D6: Start Time | E6: Northing(sft) | F6: Easting(sft) | G6: Height(sft) | H6: ∆ Northing(sft) | I6: ∆ Easting(sft) | J6: ∆ Height(sft) | K6: Include in Solution?
A7: 1 | B7: =IF(ROWS(GPS_IMPORT!$1:1)<=COUNTIF(GPS_IMPORT!$A$2:$A$10000,$B$5),INDEX(GPS_IMPORT!$2:$10000,MATCH($B$5,(GPS_IMPORT!$A$2:$A$10000),0)+ROWS($1:1)-1,COLUMN()-1),0) -> GS9 | C7: =IF(ROWS(GPS_IMPORT!$1:1)<=COUNTIF(GPS_IMPORT!$A$2:$A$10000,$B$5),INDEX(GPS_IMPORT!$2:$10000,MATCH($B$5,(GPS_IMPORT!$A$2:$A$10000),0)+ROWS($1:1)-1,COLUMN()-1),0) -> 12.18.2018 | D7: =IF(ROWS(GPS_IMPORT!$1:1)<=COUNTIF(GPS_IMPORT!$A$2:$A$10000,$B$5),INDEX(GPS_IMPORT!$2:$10000,MATCH($B$5,(GPS_IMPORT!$A$2:$A$10000),0)+ROWS($1:1)-1,COLUMN()-1),0) -> 10:43:24.890 | E7: =IF(ROWS(GPS_IMPORT!$1:1)<=COUNTIF(GPS_IMPORT!$A$2:$A$10000,$B$5),INDEX(GPS_IMPORT!$2:$10000,MATCH($B$5,(GPS_IMPORT!$A$2:$A$10000),0)+ROWS($1:1)-1,COLUMN()-1),0) -> 320157.2826 | F7: =IF(ROWS(GPS_IMPORT!$1:1)<=COUNTIF(GPS_IMPORT!$A$2:$A$10000,$B$5),INDEX(GPS_IMPORT!$2:$10000,MATCH($B$5,(GPS_IMPORT!$A$2:$A$10000),0)+ROWS($1:1)-1,COLUMN()-1),0) -> 2265885.467 | G7: =IF(ROWS(GPS_IMPORT!$1:1)<=COUNTIF(GPS_IMPORT!$A$2:$A$10000,$B$5),INDEX(GPS_IMPORT!$2:$10000,MATCH($B$5,(GPS_IMPORT!$A$2:$A$10000),0)+ROWS($1:1)-1,COLUMN()-1),0) -> 888.1203464 | H7: =IF(E7>0,E$22-E7,0) -> 0.02448298549 | I7: -0.007362526841 | J7: 0.03400692193 | K7: TRUE
A8: 2 | B8: =IF(ROWS(GPS_IMPORT!$1:2)<=COUNTIF(GPS_IMPORT!$A$2:$A$10000,$B$5),INDEX(GPS_IMPORT!$2:$10000,MATCH($B$5,(GPS_IMPORT!$A$2:$A$10000),0)+ROWS($1:2)-1,COLUMN()-1),0) -> GS9 | C8: =IF(ROWS(GPS_IMPORT!$1:2)<=COUNTIF(GPS_IMPORT!$A$2:$A$10000,$B$5),INDEX(GPS_IMPORT!$2:$10000,MATCH($B$5,(GPS_IMPORT!$A$2:$A$10000),0)+ROWS($1:2)-1,COLUMN()-1),0) -> 12.18.2018 | D8: =IF(ROWS(GPS_IMPORT!$1:2)<=COUNTIF(GPS_IMPORT!$A$2:$A$10000,$B$5),INDEX(GPS_IMPORT!$2:$10000,MATCH($B$5,(GPS_IMPORT!$A$2:$A$10000),0)+ROWS($1:2)-1,COLUMN()-1),0) -> 10:43:37.280 | E8: =IF(ROWS(GPS_IMPORT!$1:2)<=COUNTIF(GPS_IMPORT!$A$2:$A$10000,$B$5),INDEX(GPS_IMPORT!$2:$10000,MATCH($B$5,(GPS_IMPORT!$A$2:$A$10000),0)+ROWS($1:2)-1,COLUMN()-1),0) -> 320157.3088 | F8: =IF(ROWS(GPS_IMPORT!$1:2)<=COUNTIF(GPS_IMPORT!$A$2:$A$10000,$B$5),INDEX(GPS_IMPORT!$2:$10000,MATCH($B$5,(GPS_IMPORT!$A$2:$A$10000),0)+ROWS($1:2)-1,COLUMN()-1),0) -> 2265885.464 | G8: =IF(ROWS(GPS_IMPORT!$1:2)<=COUNTIF(GPS_IMPORT!$A$2:$A$10000,$B$5),INDEX(GPS_IMPORT!$2:$10000,MATCH($B$5,(GPS_IMPORT!$A$2:$A$10000),0)+ROWS($1:2)-1,COLUMN()-1),0) -> 888.119851 | H8: -0.001761399501 | I8: -0.004304086789 | J8: 0.03450232161 | K8: TRUE
A9: 3 | B9: =IF(ROWS(GPS_IMPORT!$1:3)<=COUNTIF(GPS_IMPORT!$A$2:$A$10000,$B$5),INDEX(GPS_IMPORT!$2:$10000,MATCH($B$5,(GPS_IMPORT!$A$2:$A$10000),0)+ROWS($1:3)-1,COLUMN()-1),0) -> GS9 | C9: =IF(ROWS(GPS_IMPORT!$1:3)<=COUNTIF(GPS_IMPORT!$A$2:$A$10000,$B$5),INDEX(GPS_IMPORT!$2:$10000,MATCH($B$5,(GPS_IMPORT!$A$2:$A$10000),0)+ROWS($1:3)-1,COLUMN()-1),0) -> 12.18.2018 | D9: =IF(ROWS(GPS_IMPORT!$1:3)<=COUNTIF(GPS_IMPORT!$A$2:$A$10000,$B$5),INDEX(GPS_IMPORT!$2:$10000,MATCH($B$5,(GPS_IMPORT!$A$2:$A$10000),0)+ROWS($1:3)-1,COLUMN()-1),0) -> 10:43:47.700 | E9: =IF(ROWS(GPS_IMPORT!$1:3)<=COUNTIF(GPS_IMPORT!$A$2:$A$10000,$B$5),INDEX(GPS_IMPORT!$2:$10000,MATCH($B$5,(GPS_IMPORT!$A$2:$A$10000),0)+ROWS($1:3)-1,COLUMN()-1),0) -> 320157.3166 | F9: =IF(ROWS(GPS_IMPORT!$1:3)<=COUNTIF(GPS_IMPORT!$A$2:$A$10000,$B$5),INDEX(GPS_IMPORT!$2:$10000,MATCH($B$5,(GPS_IMPORT!$A$2:$A$10000),0)+ROWS($1:3)-1,COLUMN()-1),0) -> 2265885.466 | G9: =IF(ROWS(GPS_IMPORT!$1:3)<=COUNTIF(GPS_IMPORT!$A$2:$A$10000,$B$5),INDEX(GPS_IMPORT!$2:$10000,MATCH($B$5,(GPS_IMPORT!$A$2:$A$10000),0)+ROWS($1:3)-1,COLUMN()-1),0) -> 888.1249648 | H9: -0.009591329494 | I9: -0.005466956645 | J9: 0.02938856119 | K9: TRUE
A10: 4 | B10: =IF(ROWS(GPS_IMPORT!$1:4)<=COUNTIF(GPS_IMPORT!$A$2:$A$10000,$B$5),INDEX(GPS_IMPORT!$2:$10000,MATCH($B$5,(GPS_IMPORT!$A$2:$A$10000),0)+ROWS($1:4)-1,COLUMN()-1),0) -> GS9 | C10: =IF(ROWS(GPS_IMPORT!$1:4)<=COUNTIF(GPS_IMPORT!$A$2:$A$10000,$B$5),INDEX(GPS_IMPORT!$2:$10000,MATCH($B$5,(GPS_IMPORT!$A$2:$A$10000),0)+ROWS($1:4)-1,COLUMN()-1),0) -> 12.18.2018 | D10: =IF(ROWS(GPS_IMPORT!$1:4)<=COUNTIF(GPS_IMPORT!$A$2:$A$10000,$B$5),INDEX(GPS_IMPORT!$2:$10000,MATCH($B$5,(GPS_IMPORT!$A$2:$A$10000),0)+ROWS($1:4)-1,COLUMN()-1),0) -> 10:44:12.860 | E10: =IF(ROWS(GPS_IMPORT!$1:4)<=COUNTIF(GPS_IMPORT!$A$2:$A$10000,$B$5),INDEX(GPS_IMPORT!$2:$10000,MATCH($B$5,(GPS_IMPORT!$A$2:$A$10000),0)+ROWS($1:4)-1,COLUMN()-1),0) -> 320157.3253 | F10: =IF(ROWS(GPS_IMPORT!$1:4)<=COUNTIF(GPS_IMPORT!$A$2:$A$10000,$B$5),INDEX(GPS_IMPORT!$2:$10000,MATCH($B$5,(GPS_IMPORT!$A$2:$A$10000),0)+ROWS($1:4)-1,COLUMN()-1),0) -> 2265885.482 | G10: =IF(ROWS(GPS_IMPORT!$1:4)<=COUNTIF(GPS_IMPORT!$A$2:$A$10000,$B$5),INDEX(GPS_IMPORT!$2:$10000,MATCH($B$5,(GPS_IMPORT!$A$2:$A$10000),0)+ROWS($1:4)-1,COLUMN()-1),0) -> 888.1692216 | H10: -0.0182170475 | I10: -0.02207961679 | J10: -0.01486823904 | K10: TRUE
A11: 5 | B11: =IF(ROWS(GPS_IMPORT!$1:5)<=COUNTIF(GPS_IMPORT!$A$2:$A$10000,$B$5),INDEX(GPS_IMPORT!$2:$10000,MATCH($B$5,(GPS_IMPORT!$A$2:$A$10000),0)+ROWS($1:5)-1,COLUMN()-1),0) -> GS9 | C11: =IF(ROWS(GPS_IMPORT!$1:5)<=COUNTIF(GPS_IMPORT!$A$2:$A$10000,$B$5),INDEX(GPS_IMPORT!$2:$10000,MATCH($B$5,(GPS_IMPORT!$A$2:$A$10000),0)+ROWS($1:5)-1,COLUMN()-1),0) -> 12.18.2018 | D11: =IF(ROWS(GPS_IMPORT!$1:5)<=COUNTIF(GPS_IMPORT!$A$2:$A$10000,$B$5),INDEX(GPS_IMPORT!$2:$10000,MATCH($B$5,(GPS_IMPORT!$A$2:$A$10000),0)+ROWS($1:5)-1,COLUMN()-1),0) -> 10:44:38.870 | E11: =IF(ROWS(GPS_IMPORT!$1:5)<=COUNTIF(GPS_IMPORT!$A$2:$A$10000,$B$5),INDEX(GPS_IMPORT!$2:$10000,MATCH($B$5,(GPS_IMPORT!$A$2:$A$10000),0)+ROWS($1:5)-1,COLUMN()-1),0) -> 320157.3254 | F11: =IF(ROWS(GPS_IMPORT!$1:5)<=COUNTIF(GPS_IMPORT!$A$2:$A$10000,$B$5),INDEX(GPS_IMPORT!$2:$10000,MATCH($B$5,(GPS_IMPORT!$A$2:$A$10000),0)+ROWS($1:5)-1,COLUMN()-1),0) -> 2265885.446 | G11: =IF(ROWS(GPS_IMPORT!$1:5)<=COUNTIF(GPS_IMPORT!$A$2:$A$10000,$B$5),INDEX(GPS_IMPORT!$2:$10000,MATCH($B$5,(GPS_IMPORT!$A$2:$A$10000),0)+ROWS($1:5)-1,COLUMN()-1),0) -> 888.1465501 | H11: -0.01838790352 | I11: 0.01431995304 | J11: 0.007803257323 | K11: TRUE
A12: 6 | B12: =IF(ROWS(GPS_IMPORT!$1:6)<=COUNTIF(GPS_IMPORT!$A$2:$A$10000,$B$5),INDEX(GPS_IMPORT!$2:$10000,MATCH($B$5,(GPS_IMPORT!$A$2:$A$10000),0)+ROWS($1:6)-1,COLUMN()-1),0) -> GS9 | C12: =IF(ROWS(GPS_IMPORT!$1:6)<=COUNTIF(GPS_IMPORT!$A$2:$A$10000,$B$5),INDEX(GPS_IMPORT!$2:$10000,MATCH($B$5,(GPS_IMPORT!$A$2:$A$10000),0)+ROWS($1:6)-1,COLUMN()-1),0) -> 12.18.2018 | D12: =IF(ROWS(GPS_IMPORT!$1:6)<=COUNTIF(GPS_IMPORT!$A$2:$A$10000,$B$5),INDEX(GPS_IMPORT!$2:$10000,MATCH($B$5,(GPS_IMPORT!$A$2:$A$10000),0)+ROWS($1:6)-1,COLUMN()-1),0) -> 10:44:50.090 | E12: =IF(ROWS(GPS_IMPORT!$1:6)<=COUNTIF(GPS_IMPORT!$A$2:$A$10000,$B$5),INDEX(GPS_IMPORT!$2:$10000,MATCH($B$5,(GPS_IMPORT!$A$2:$A$10000),0)+ROWS($1:6)-1,COLUMN()-1),0) -> 320157.3185 | F12: =IF(ROWS(GPS_IMPORT!$1:6)<=COUNTIF(GPS_IMPORT!$A$2:$A$10000,$B$5),INDEX(GPS_IMPORT!$2:$10000,MATCH($B$5,(GPS_IMPORT!$A$2:$A$10000),0)+ROWS($1:6)-1,COLUMN()-1),0) -> 2265885.455 | G12: =IF(ROWS(GPS_IMPORT!$1:6)<=COUNTIF(GPS_IMPORT!$A$2:$A$10000,$B$5),INDEX(GPS_IMPORT!$2:$10000,MATCH($B$5,(GPS_IMPORT!$A$2:$A$10000),0)+ROWS($1:6)-1,COLUMN()-1),0) -> 888.172572 | H12: -0.01145940251 | I12: 0.005425953306 | J12: -0.01821865002 | K12: TRUE
A13: 7 | B13: =IF(ROWS(GPS_IMPORT!$1:7)<=COUNTIF(GPS_IMPORT!$A$2:$A$10000,$B$5),INDEX(GPS_IMPORT!$2:$10000,MATCH($B$5,(GPS_IMPORT!$A$2:$A$10000),0)+ROWS($1:7)-1,COLUMN()-1),0) -> GS9 | C13: =IF(ROWS(GPS_IMPORT!$1:7)<=COUNTIF(GPS_IMPORT!$A$2:$A$10000,$B$5),INDEX(GPS_IMPORT!$2:$10000,MATCH($B$5,(GPS_IMPORT!$A$2:$A$10000),0)+ROWS($1:7)-1,COLUMN()-1),0) -> 12.18.2018 | D13: =IF(ROWS(GPS_IMPORT!$1:7)<=COUNTIF(GPS_IMPORT!$A$2:$A$10000,$B$5),INDEX(GPS_IMPORT!$2:$10000,MATCH($B$5,(GPS_IMPORT!$A$2:$A$10000),0)+ROWS($1:7)-1,COLUMN()-1),0) -> 10:45:00.900 | E13: =IF(ROWS(GPS_IMPORT!$1:7)<=COUNTIF(GPS_IMPORT!$A$2:$A$10000,$B$5),INDEX(GPS_IMPORT!$2:$10000,MATCH($B$5,(GPS_IMPORT!$A$2:$A$10000),0)+ROWS($1:7)-1,COLUMN()-1),0) -> 320157.3126 | F13: =IF(ROWS(GPS_IMPORT!$1:7)<=COUNTIF(GPS_IMPORT!$A$2:$A$10000,$B$5),INDEX(GPS_IMPORT!$2:$10000,MATCH($B$5,(GPS_IMPORT!$A$2:$A$10000),0)+ROWS($1:7)-1,COLUMN()-1),0) -> 2265885.44 | G13: =IF(ROWS(GPS_IMPORT!$1:7)<=COUNTIF(GPS_IMPORT!$A$2:$A$10000,$B$5),INDEX(GPS_IMPORT!$2:$10000,MATCH($B$5,(GPS_IMPORT!$A$2:$A$10000),0)+ROWS($1:7)-1,COLUMN()-1),0) -> 888.1260204 | H13: -0.005524443521 | I13: 0.0199613031 | J13: 0.02833298188 | K13: TRUE
A14: 8 | B14: =IF(ROWS(GPS_IMPORT!$1:8)<=COUNTIF(GPS_IMPORT!$A$2:$A$10000,$B$5),INDEX(GPS_IMPORT!$2:$10000,MATCH($B$5,(GPS_IMPORT!$A$2:$A$10000),0)+ROWS($1:8)-1,COLUMN()-1),0) -> GS9 | C14: =IF(ROWS(GPS_IMPORT!$1:8)<=COUNTIF(GPS_IMPORT!$A$2:$A$10000,$B$5),INDEX(GPS_IMPORT!$2:$10000,MATCH($B$5,(GPS_IMPORT!$A$2:$A$10000),0)+ROWS($1:8)-1,COLUMN()-1),0) -> 12.18.2018 | D14: =IF(ROWS(GPS_IMPORT!$1:8)<=COUNTIF(GPS_IMPORT!$A$2:$A$10000,$B$5),INDEX(GPS_IMPORT!$2:$10000,MATCH($B$5,(GPS_IMPORT!$A$2:$A$10000),0)+ROWS($1:8)-1,COLUMN()-1),0) -> 10:45:13.980 | E14: =IF(ROWS(GPS_IMPORT!$1:8)<=COUNTIF(GPS_IMPORT!$A$2:$A$10000,$B$5),INDEX(GPS_IMPORT!$2:$10000,MATCH($B$5,(GPS_IMPORT!$A$2:$A$10000),0)+ROWS($1:8)-1,COLUMN()-1),0) -> 320157.3065 | F14: =IF(ROWS(GPS_IMPORT!$1:8)<=COUNTIF(GPS_IMPORT!$A$2:$A$10000,$B$5),INDEX(GPS_IMPORT!$2:$10000,MATCH($B$5,(GPS_IMPORT!$A$2:$A$10000),0)+ROWS($1:8)-1,COLUMN()-1),0) -> 2265885.434 | G14: =IF(ROWS(GPS_IMPORT!$1:8)<=COUNTIF(GPS_IMPORT!$A$2:$A$10000,$B$5),INDEX(GPS_IMPORT!$2:$10000,MATCH($B$5,(GPS_IMPORT!$A$2:$A$10000),0)+ROWS($1:8)-1,COLUMN()-1),0) -> 888.1490453 | H14: 0.0005418634973 | I14: 0.0261915531 | J14: 0.005307996143 | K14: TRUE
A15: 9 | B15: =IF(ROWS(GPS_IMPORT!$1:9)<=COUNTIF(GPS_IMPORT!$A$2:$A$10000,$B$5),INDEX(GPS_IMPORT!$2:$10000,MATCH($B$5,(GPS_IMPORT!$A$2:$A$10000),0)+ROWS($1:9)-1,COLUMN()-1),0) -> GS9 | C15: =IF(ROWS(GPS_IMPORT!$1:9)<=COUNTIF(GPS_IMPORT!$A$2:$A$10000,$B$5),INDEX(GPS_IMPORT!$2:$10000,MATCH($B$5,(GPS_IMPORT!$A$2:$A$10000),0)+ROWS($1:9)-1,COLUMN()-1),0) -> 12.18.2018 | D15: =IF(ROWS(GPS_IMPORT!$1:9)<=COUNTIF(GPS_IMPORT!$A$2:$A$10000,$B$5),INDEX(GPS_IMPORT!$2:$10000,MATCH($B$5,(GPS_IMPORT!$A$2:$A$10000),0)+ROWS($1:9)-1,COLUMN()-1),0) -> 10:45:45.390 | E15: =IF(ROWS(GPS_IMPORT!$1:9)<=COUNTIF(GPS_IMPORT!$A$2:$A$10000,$B$5),INDEX(GPS_IMPORT!$2:$10000,MATCH($B$5,(GPS_IMPORT!$A$2:$A$10000),0)+ROWS($1:9)-1,COLUMN()-1),0) -> 320157.2959 | F15: =IF(ROWS(GPS_IMPORT!$1:9)<=COUNTIF(GPS_IMPORT!$A$2:$A$10000,$B$5),INDEX(GPS_IMPORT!$2:$10000,MATCH($B$5,(GPS_IMPORT!$A$2:$A$10000),0)+ROWS($1:9)-1,COLUMN()-1),0) -> 2265885.447 | G15: =IF(ROWS(GPS_IMPORT!$1:9)<=COUNTIF(GPS_IMPORT!$A$2:$A$10000,$B$5),INDEX(GPS_IMPORT!$2:$10000,MATCH($B$5,(GPS_IMPORT!$A$2:$A$10000),0)+ROWS($1:9)-1,COLUMN()-1),0) -> 888.1537053 | H15: 0.01115781348 | I15: 0.01343648322 | J15: 0.0006480467932 | K15: TRUE
A16: 10 | B16: =IF(ROWS(GPS_IMPORT!$1:10)<=COUNTIF(GPS_IMPORT!$A$2:$A$10000,$B$5),INDEX(GPS_IMPORT!$2:$10000,MATCH($B$5,(GPS_IMPORT!$A$2:$A$10000),0)+ROWS($1:10)-1,COLUMN()-1),0) -> GS9 | C16: =IF(ROWS(GPS_IMPORT!$1:10)<=COUNTIF(GPS_IMPORT!$A$2:$A$10000,$B$5),INDEX(GPS_IMPORT!$2:$10000,MATCH($B$5,(GPS_IMPORT!$A$2:$A$10000),0)+ROWS($1:10)-1,COLUMN()-1),0) -> 12.18.2018 | D16: =IF(ROWS(GPS_IMPORT!$1:10)<=COUNTIF(GPS_IMPORT!$A$2:$A$10000,$B$5),INDEX(GPS_IMPORT!$2:$10000,MATCH($B$5,(GPS_IMPORT!$A$2:$A$10000),0)+ROWS($1:10)-1,COLUMN()-1),0) -> 10:45:58.640 | E16: =IF(ROWS(GPS_IMPORT!$1:10)<=COUNTIF(GPS_IMPORT!$A$2:$A$10000,$B$5),INDEX(GPS_IMPORT!$2:$10000,MATCH($B$5,(GPS_IMPORT!$A$2:$A$10000),0)+ROWS($1:10)-1,COLUMN()-1),0) -> 320157.2938 | F16: =IF(ROWS(GPS_IMPORT!$1:10)<=COUNTIF(GPS_IMPORT!$A$2:$A$10000,$B$5),INDEX(GPS_IMPORT!$2:$10000,MATCH($B$5,(GPS_IMPORT!$A$2:$A$10000),0)+ROWS($1:10)-1,COLUMN()-1),0) -> 2265885.466 | G16: =IF(ROWS(GPS_IMPORT!$1:10)<=COUNTIF(GPS_IMPORT!$A$2:$A$10000,$B$5),INDEX(GPS_IMPORT!$2:$10000,MATCH($B$5,(GPS_IMPORT!$A$2:$A$10000),0)+ROWS($1:10)-1,COLUMN()-1),0) -> 888.188672 | H16: 0.0132676175 | I16: -0.005505926907 | J16: -0.03431863072 | K16: TRUE
A17: 11 | B17: =IF(ROWS(GPS_IMPORT!$1:11)<=COUNTIF(GPS_IMPORT!$A$2:$A$10000,$B$5),INDEX(GPS_IMPORT!$2:$10000,MATCH($B$5,(GPS_IMPORT!$A$2:$A$10000),0)+ROWS($1:11)-1,COLUMN()-1),0) -> GS9 | C17: =IF(ROWS(GPS_IMPORT!$1:11)<=COUNTIF(GPS_IMPORT!$A$2:$A$10000,$B$5),INDEX(GPS_IMPORT!$2:$10000,MATCH($B$5,(GPS_IMPORT!$A$2:$A$10000),0)+ROWS($1:11)-1,COLUMN()-1),0) -> 12.18.2018 | D17: =IF(ROWS(GPS_IMPORT!$1:11)<=COUNTIF(GPS_IMPORT!$A$2:$A$10000,$B$5),INDEX(GPS_IMPORT!$2:$10000,MATCH($B$5,(GPS_IMPORT!$A$2:$A$10000),0)+ROWS($1:11)-1,COLUMN()-1),0) -> 10:46:11.230 | E17: =IF(ROWS(GPS_IMPORT!$1:11)<=COUNTIF(GPS_IMPORT!$A$2:$A$10000,$B$5),INDEX(GPS_IMPORT!$2:$10000,MATCH($B$5,(GPS_IMPORT!$A$2:$A$10000),0)+ROWS($1:11)-1,COLUMN()-1),0) -> 320157.3079 | F17: =IF(ROWS(GPS_IMPORT!$1:11)<=COUNTIF(GPS_IMPORT!$A$2:$A$10000,$B$5),INDEX(GPS_IMPORT!$2:$10000,MATCH($B$5,(GPS_IMPORT!$A$2:$A$10000),0)+ROWS($1:11)-1,COLUMN()-1),0) -> 2265885.48 | G17: =IF(ROWS(GPS_IMPORT!$1:11)<=COUNTIF(GPS_IMPORT!$A$2:$A$10000,$B$5),INDEX(GPS_IMPORT!$2:$10000,MATCH($B$5,(GPS_IMPORT!$A$2:$A$10000),0)+ROWS($1:11)-1,COLUMN()-1),0) -> 888.1982801 | H17: -0.0008682784974 | I17: -0.01966787688 | J17: -0.04392671024 | K17: TRUE
A18: 12 | B18: =IF(ROWS(GPS_IMPORT!$1:12)<=COUNTIF(GPS_IMPORT!$A$2:$A$10000,$B$5),INDEX(GPS_IMPORT!$2:$10000,MATCH($B$5,(GPS_IMPORT!$A$2:$A$10000),0)+ROWS($1:12)-1,COLUMN()-1),0) -> GS9 | C18: =IF(ROWS(GPS_IMPORT!$1:12)<=COUNTIF(GPS_IMPORT!$A$2:$A$10000,$B$5),INDEX(GPS_IMPORT!$2:$10000,MATCH($B$5,(GPS_IMPORT!$A$2:$A$10000),0)+ROWS($1:12)-1,COLUMN()-1),0) -> 12.18.2018 | D18: =IF(ROWS(GPS_IMPORT!$1:12)<=COUNTIF(GPS_IMPORT!$A$2:$A$10000,$B$5),INDEX(GPS_IMPORT!$2:$10000,MATCH($B$5,(GPS_IMPORT!$A$2:$A$10000),0)+ROWS($1:12)-1,COLUMN()-1),0) -> 10:46:23.640 | E18: =IF(ROWS(GPS_IMPORT!$1:12)<=COUNTIF(GPS_IMPORT!$A$2:$A$10000,$B$5),INDEX(GPS_IMPORT!$2:$10000,MATCH($B$5,(GPS_IMPORT!$A$2:$A$10000),0)+ROWS($1:12)-1,COLUMN()-1),0) -> 320157.2907 | F18: =IF(ROWS(GPS_IMPORT!$1:12)<=COUNTIF(GPS_IMPORT!$A$2:$A$10000,$B$5),INDEX(GPS_IMPORT!$2:$10000,MATCH($B$5,(GPS_IMPORT!$A$2:$A$10000),0)+ROWS($1:12)-1,COLUMN()-1),0) -> 2265885.475 | G18: =IF(ROWS(GPS_IMPORT!$1:12)<=COUNTIF(GPS_IMPORT!$A$2:$A$10000,$B$5),INDEX(GPS_IMPORT!$2:$10000,MATCH($B$5,(GPS_IMPORT!$A$2:$A$10000),0)+ROWS($1:12)-1,COLUMN()-1),0) -> 888.1830112 | H18: 0.01635952451 | I18: -0.01494825678 | J18: -0.02865785688 | K18: TRUE
A19: 13 | B19: =IF(ROWS(GPS_IMPORT!$1:13)<=COUNTIF(GPS_IMPORT!$A$2:$A$10000,$B$5),INDEX(GPS_IMPORT!$2:$10000,MATCH($B$5,(GPS_IMPORT!$A$2:$A$10000),0)+ROWS($1:13)-1,COLUMN()-1),0) -> 0 | C19: =IF(ROWS(GPS_IMPORT!$1:13)<=COUNTIF(GPS_IMPORT!$A$2:$A$10000,$B$5),INDEX(GPS_IMPORT!$2:$10000,MATCH($B$5,(GPS_IMPORT!$A$2:$A$10000),0)+ROWS($1:13)-1,COLUMN()-1),0) -> 00:00:00 | D19: =IF(ROWS(GPS_IMPORT!$1:13)<=COUNTIF(GPS_IMPORT!$A$2:$A$10000,$B$5),INDEX(GPS_IMPORT!$2:$10000,MATCH($B$5,(GPS_IMPORT!$A$2:$A$10000),0)+ROWS($1:13)-1,COLUMN()-1),0) -> 00:00:00 | E19: =IF(ROWS(GPS_IMPORT!$1:13)<=COUNTIF(GPS_IMPORT!$A$2:$A$10000,$B$5),INDEX(GPS_IMPORT!$2:$10000,MATCH($B$5,(GPS_IMPORT!$A$2:$A$10000),0)+ROWS($1:13)-1,COLUMN()-1),0) -> 0 | F19: =IF(ROWS(GPS_IMPORT!$1:13)<=COUNTIF(GPS_IMPORT!$A$2:$A$10000,$B$5),INDEX(GPS_IMPORT!$2:$10000,MATCH($B$5,(GPS_IMPORT!$A$2:$A$10000),0)+ROWS($1:13)-1,COLUMN()-1),0) -> 0 | G19: =IF(ROWS(GPS_IMPORT!$1:13)<=COUNTIF(GPS_IMPORT!$A$2:$A$10000,$B$5),INDEX(GPS_IMPORT!$2:$10000,MATCH($B$5,(GPS_IMPORT!$A$2:$A$10000),0)+ROWS($1:13)-1,COLUMN()-1),0) -> 0 | H19: =IF(E19>0,E$22-E19,0) -> 0 | I19: 0 | J19: 0 | K19: FALSE
A20: 14 | B20: =IF(ROWS(GPS_IMPORT!$1:14)<=COUNTIF(GPS_IMPORT!$A$2:$A$10000,$B$5),INDEX(GPS_IMPORT!$2:$10000,MATCH($B$5,(GPS_IMPORT!$A$2:$A$10000),0)+ROWS($1:14)-1,COLUMN()-1),0) -> 0 | C20: =IF(ROWS(GPS_IMPORT!$1:14)<=COUNTIF(GPS_IMPORT!$A$2:$A$10000,$B$5),INDEX(GPS_IMPORT!$2:$10000,MATCH($B$5,(GPS_IMPORT!$A$2:$A$10000),0)+ROWS($1:14)-1,COLUMN()-1),0) -> 00:00:00 | D20: =IF(ROWS(GPS_IMPORT!$1:14)<=COUNTIF(GPS_IMPORT!$A$2:$A$10000,$B$5),INDEX(GPS_IMPORT!$2:$10000,MATCH($B$5,(GPS_IMPORT!$A$2:$A$10000),0)+ROWS($1:14)-1,COLUMN()-1),0) -> 00:00:00 | E20: =IF(ROWS(GPS_IMPORT!$1:14)<=COUNTIF(GPS_IMPORT!$A$2:$A$10000,$B$5),INDEX(GPS_IMPORT!$2:$10000,MATCH($B$5,(GPS_IMPORT!$A$2:$A$10000),0)+ROWS($1:14)-1,COLUMN()-1),0) -> 0 | F20: =IF(ROWS(GPS_IMPORT!$1:14)<=COUNTIF(GPS_IMPORT!$A$2:$A$10000,$B$5),INDEX(GPS_IMPORT!$2:$10000,MATCH($B$5,(GPS_IMPORT!$A$2:$A$10000),0)+ROWS($1:14)-1,COLUMN()-1),0) -> 0 | G20: =IF(ROWS(GPS_IMPORT!$1:14)<=COUNTIF(GPS_IMPORT!$A$2:$A$10000,$B$5),INDEX(GPS_IMPORT!$2:$10000,MATCH($B$5,(GPS_IMPORT!$A$2:$A$10000),0)+ROWS($1:14)-1,COLUMN()-1),0) -> 0 | H20: 0 | I20: 0 | J20: 0 | K20: FALSE
A21: 15 | B21: =IF(ROWS(GPS_IMPORT!$1:15)<=COUNTIF(GPS_IMPORT!$A$2:$A$10000,$B$5),INDEX(GPS_IMPORT!$2:$10000,MATCH($B$5,(GPS_IMPORT!$A$2:$A$10000),0)+ROWS($1:15)-1,COLUMN()-1),0) -> 0 | C21: =IF(ROWS(GPS_IMPORT!$1:15)<=COUNTIF(GPS_IMPORT!$A$2:$A$10000,$B$5),INDEX(GPS_IMPORT!$2:$10000,MATCH($B$5,(GPS_IMPORT!$A$2:$A$10000),0)+ROWS($1:15)-1,COLUMN()-1),0) -> 00:00:00 | D21: =IF(ROWS(GPS_IMPORT!$1:15)<=COUNTIF(GPS_IMPORT!$A$2:$A$10000,$B$5),INDEX(GPS_IMPORT!$2:$10000,MATCH($B$5,(GPS_IMPORT!$A$2:$A$10000),0)+ROWS($1:15)-1,COLUMN()-1),0) -> 00:00:00 | E21: =IF(ROWS(GPS_IMPORT!$1:15)<=COUNTIF(GPS_IMPORT!$A$2:$A$10000,$B$5),INDEX(GPS_IMPORT!$2:$10000,MATCH($B$5,(GPS_IMPORT!$A$2:$A$10000),0)+ROWS($1:15)-1,COLUMN()-1),0) -> 0 | F21: =IF(ROWS(GPS_IMPORT!$1:15)<=COUNTIF(GPS_IMPORT!$A$2:$A$10000,$B$5),INDEX(GPS_IMPORT!$2:$10000,MATCH($B$5,(GPS_IMPORT!$A$2:$A$10000),0)+ROWS($1:15)-1,COLUMN()-1),0) -> 0 | G21: =IF(ROWS(GPS_IMPORT!$1:15)<=COUNTIF(GPS_IMPORT!$A$2:$A$10000,$B$5),INDEX(GPS_IMPORT!$2:$10000,MATCH($B$5,(GPS_IMPORT!$A$2:$A$10000),0)+ROWS($1:15)-1,COLUMN()-1),0) -> 0 | H21: 0 | I21: 0 | J21: 0 | K21: FALSE
D22: AVERAGE | E22: =(IF($K$7=TRUE,E7,0)+IF($K$8=TRUE,E8,0)+IF($K$9=TRUE,E9,0)+IF($K$10=TRUE,E10,0)+IF($K$11=TRUE,E11,0)+IF($K$12=TRUE,E12,0)+IF($K$13=TRUE,E13,0)+IF($K$14=TRUE,E14,0)+IF($K$15=TRUE,E15,0)+IF($K$16=TRUE,E16,0)+IF($K$17=TRUE,E17,0)+IF($K$18=TRUE,E18,0)+IF($K$19=TRUE,E19,0)+IF($K$20=TRUE,E20,0)+IF($K$21=TRUE,E21,0))/(IF($K$7=TRUE,1,0)+IF($K$8=TRUE,1,0)+IF($K$9=TRUE,1,0)+IF($K$10=TRUE,1,0)+IF($K$11=TRUE,1,0)+IF($K$12=TRUE,1,0)+IF($K$13=TRUE,1,0)+IF($K$14=TRUE,1,0)+IF($K$15=TRUE,1,0)+IF($K$16=TRUE,1,0)+IF($K$17=TRUE,1,0)+IF($K$18=TRUE,1,0)+IF($K$19=TRUE,1,0)+IF($K$20=TRUE,1,0)+IF($K$21=TRUE,1,0)) -> 320157.307 | F22: =(IF($K$7=TRUE,F7,0)+IF($K$8=TRUE,F8,0)+IF($K$9=TRUE,F9,0)+IF($K$10=TRUE,F10,0)+IF($K$11=TRUE,F11,0)+IF($K$12=TRUE,F12,0)+IF($K$13=TRUE,F13,0)+IF($K$14=TRUE,F14,0)+IF($K$15=TRUE,F15,0)+IF($K$16=TRUE,F16,0)+IF($K$17=TRUE,F17,0)+IF($K$18=TRUE,F18,0)+IF($K$19=TRUE,F19,0)+IF($K$20=TRUE,F20,0)+IF($K$21=TRUE,F21,0))/(IF($K$7=TRUE,1,0)+IF($K$8=TRUE,1,0)+IF($K$9=TRUE,1,0)+IF($K$10=TRUE,1,0)+IF($K$11=TRUE,1,0)+IF($K$12=TRUE,1,0)+IF($K$13=TRUE,1,0)+IF($K$14=TRUE,1,0)+IF($K$15=TRUE,1,0)+IF($K$16=TRUE,1,0)+IF($K$17=TRUE,1,0)+IF($K$18=TRUE,1,0)+IF($K$19=TRUE,1,0)+IF($K$20=TRUE,1,0)+IF($K$21=TRUE,1,0)) -> 2265885.46 | G22: =(IF($K$7=TRUE,G7,0)+IF($K$8=TRUE,G8,0)+IF($K$9=TRUE,G9,0)+IF($K$10=TRUE,G10,0)+IF($K$11=TRUE,G11,0)+IF($K$12=TRUE,G12,0)+IF($K$13=TRUE,G13,0)+IF($K$14=TRUE,G14,0)+IF($K$15=TRUE,G15,0)+IF($K$16=TRUE,G16,0)+IF($K$17=TRUE,G17,0)+IF($K$18=TRUE,G18,0)+IF($K$19=TRUE,G19,0)+IF($K$20=TRUE,G20,0)+IF($K$21=TRUE,G21,0))/ (IF($K$7=TRUE,1,0)+IF($K$8=TRUE,1,0)+IF($K$9=TRUE,1,0)+IF($K$10=TRUE,1,0)+IF($K$11=TRUE,1,0)+IF($K$12=TRUE,1,0)+IF($K$13=TRUE,1,0)+IF($K$14=TRUE,1,0)+IF($K$15=TRUE,1,0)+IF($K$16=TRUE,1,0)+IF($K$17=TRUE,1,0)+IF($K$18=TRUE,1,0)+IF($K$19=TRUE,1,0)+IF($K$20=TRUE,1,0)+IF($K$21=TRUE,1,0)) -> 888.1543533 | H22: RMSE: | I22: RMSE: | J22: RMSE:
G23: RMSE IN US SURVEY FEET: | H23: =SQRT(( (IF($K$7=TRUE,H7^2,0))+(IF($K$8=TRUE,H8^2,0))+(IF($K$9=TRUE,H9^2,0))+(IF($K$10=TRUE,H10^2,0))+(IF($K$11=TRUE,H11^2,0))+(IF($K$12=TRUE,H12^2,0))+(IF($K$13=TRUE,H13^2,0))+(IF($K$14=TRUE,H14^2,0))+(IF($K$15=TRUE,H15^2,0))+(IF($K$16=TRUE,H16^2,0))+(IF($K$17=TRUE,H17^2,0))+(IF($K$18=TRUE,H18^2,0))+(IF($K$19=TRUE,H19^2,0))+(IF($K$20=TRUE,H20^2,0))+(IF($K$21=TRUE,H21^2,0)))/ (IF($K$7=TRUE,1,0)+IF($K$8=TRUE,1,0)+IF($K$9=TRUE,1,0)+IF($K$10=TRUE,1,0)+IF($K$11=TRUE,1,0)+IF($K$12=TRUE,1,0)+IF($K$13=TRUE,1,0)+IF($K$14=TRUE,1,0)+IF($K$15=TRUE,1,0)+IF($K$16=TRUE,1,0)+IF($K$17=TRUE,1,0)+IF($K$18=TRUE,1,0)+IF($K$19=TRUE,1,0)+IF($K$20=TRUE,1,0)+IF($K$21=TRUE,1,0))) -> 0.01321468232 | I23: =SQRT(( (IF($K$7=TRUE,I7^2,0))+(IF($K$8=TRUE,I8^2,0))+(IF($K$9=TRUE,I9^2,0))+(IF($K$10=TRUE,I10^2,0))+(IF($K$11=TRUE,I11^2,0))+(IF($K$12=TRUE,I12^2,0))+(IF($K$13=TRUE,I13^2,0))+(IF($K$14=TRUE,I14^2,0))+(IF($K$15=TRUE,I15^2,0))+(IF($K$16=TRUE,I16^2,0))+(IF($K$17=TRUE,I17^2,0))+(IF($K$18=TRUE,I18^2,0))+(IF($K$19=TRUE,I19^2,0))+(IF($K$20=TRUE,I20^2,0))+(IF($K$21=TRUE,I21^2,0)))/ (IF($K$7=TRUE,1,0)+IF($K$8=TRUE,1,0)+IF($K$9=TRUE,1,0)+IF($K$10=TRUE,1,0)+IF($K$11=TRUE,1,0)+IF($K$12=TRUE,1,0)+IF($K$13=TRUE,1,0)+IF($K$14=TRUE,1,0)+IF($K$15=TRUE,1,0)+IF($K$16=TRUE,1,0)+IF($K$17=TRUE,1,0)+IF($K$18=TRUE,1,0)+IF($K$19=TRUE,1,0)+IF($K$20=TRUE,1,0)+IF($K$21=TRUE,1,0))) -> 0.0150836894 | J23: =SQRT(( (IF($K$7=TRUE,J7^2,0))+(IF($K$8=TRUE,J8^2,0))+(IF($K$9=TRUE,J9^2,0))+(IF($K$10=TRUE,J10^2,0))+(IF($K$11=TRUE,J11^2,0))+(IF($K$12=TRUE,J12^2,0))+(IF($K$13=TRUE,J13^2,0))+(IF($K$14=TRUE,J14^2,0))+(IF($K$15=TRUE,J15^2,0))+(IF($K$16=TRUE,J16^2,0))+(IF($K$17=TRUE,J17^2,0))+(IF($K$18=TRUE,J18^2,0))+(IF($K$19=TRUE,J19^2,0))+(IF($K$20=TRUE,J20^2,0))+(IF($K$21=TRUE,J21^2,0)))/ (IF($K$7=TRUE,1,0)+IF($K$8=TRUE,1,0)+IF($K$9=TRUE,1,0)+IF($K$10=TRUE,1,0)+IF($K$11=TRUE,1,0)+IF($K$12=TRUE,1,0)+IF($K$13=TRUE,1,0)+IF($K$14=TRUE,1,0)+IF($K$15=TRUE,1,0)+IF($K$16=TRUE,1,0)+IF($K$17=TRUE,1,0)+IF($K$18=TRUE,1,0)+IF($K$19=TRUE,1,0)+IF($K$20=TRUE,1,0)+IF($K$21=TRUE,1,0))) -> 0.02674632798
D24: 1
C25: UNITLESS GRID TO GROUND MULTIPLIER | D25: =IF(REPORT!C13="n/a","0.00000000",REPORT!C13) -> 0 | H25: =IF(H23<=0.029,"PASS","FAIL") -> PASS | I25: =IF(I23<=0.029,"PASS","FAIL") -> PASS | J25: =IF(J23<=0.039,"PASS","FAIL") -> PASS
A27: AVERAGED GPS-DERIVED POSITION | I27: Notes:
B28: MONUMENT COORDINATES | D28: NORTHING | E28: EASTING | F28: ORTHO HEIGHT
B29: US Survey Feet (GRID) | D29: =$E$22 -> 320157.307 | E29: =$F$22 -> 2265885.46 | F29: =$G$22 -> 888.1543533
A31: LEVELED ELEVATION
A32: US SURVEY FEET | C32: N/A | D32: (Type the leveled elevation or N/A if no leveled elevation is available)
A33: MONUMENT HELD | D33: (Type the monument name from which leveling originated)
A34: LEVELED ELEVATION - GPS DERIVED ELEVATION = | E34: =IF(C32="N/A","N/A",C32-(F29*D24)) -> N/A
A36: FINAL MONUMENT COORDINATES
B37: MONUMENT COORDINATES | D37: NORTHING | E37: EASTING | F37: ELEVATION | G37: FEATURE CODE
